Workbook

Sheet SYSTEM
B2: A | C2: =VLOOKUP(B2,B4:C79,2,FALSE) -> 2
B3: T-value for priority | L3: date: | M3: =NOW() -> 2019-06-26T09:22:43.930
B4: A | C4: 2 | E4: * apply correction factor if I update the scoring system
B5: A1 | C5: 2
B6: A2 | C6: 2
B7: A3 | C7: 2
B8: A4 | C8: 2
B9: A5 | C9: 2
B10: A6 | C10: 2
B11: A7 | C11: 2
B12: A8 | C12: 2
B13: A9 | C13: 2
B14: B | C14: 0.2 | E14: 1.5
B15: B1 | C15: 0.2 | E15: 1.5
B16: B2 | C16: 0.2 | E16: 1.5
B17: B3 | C17: 0.2 | E17: 1.5
B18: B4 | C18: 0.2 | E18: 1.5
B19: B5 | C19: 0.2 | E19: 1.5
B20: B6 | C20: 0.2 | E20: 1.5
B21: B7 | C21: 0.2 | E21: 1.5
B22: B8 | C22: 0.2 | E22: 1.5
B23: B9 | C23: 0.2 | E23: 1.5
B24: C | C24: 0.2 | E24: 1
B25: C1 | C25: 0.2 | E25: 1
B26: C2 | C26: 0.2 | E26: 1
B27: C3 | C27: 0.2 | E27: 1
B28: C4 | C28: 0.2 | E28: 1
B29: C5 | C29: 0.2 | E29: 1
B30: C6 | C30: 0.2 | E30: 1
B31: C7 | C31: 0.2 | E31: 1
B32: C8 | C32: 0.2 | E32: 1
B33: C9 | C33: 0.2 | E33: 1
B34: D | C34: 0.2 | E34: 0.5
B35: D1 | C35: 0.2 | E35: 0.5
B36: D2 | C36: 0.2 | E36: 0.5
B37: D3 | C37: 0.2 | E37: 0.5
B38: D4 | C38: 0.2 | E38: 0.5
B39: D5 | C39: 0.2 | E39: 0.5
B40: D6 | C40: 0.2 | E40: 0.5
B41: D7 | C41: 0.2 | E41: 0.5
B42: D8 | C42: 0.2 | E42: 0.5
B43: E | C43: 0.1
B44: GSG | C44: 2
B45: GSGx | C45: 0
B46: case | C46: 2
B47: calc | C47: 4
B48: outdated | C48: 0
B49: x | C49: 0
B50: ssq | C50: 2
B51: calc00 | C51: 0
B52: calc02 | C52: 4
B53: calc04 | C53: 6
B54: calc06 | C54: 8
B55: calc08 | C55: 10
B56: calc10 | C56: 2
B57: A-02 | C57: 2
B58: A-03 | C58: 2
B59: A-04 | C59: 2
B60: A-05 | C60: 2
B61: A-06 | C61: 2
B62: A-07 | C62: 2
B63: A-08 | C63: 2
B64: A-09 | C64: 2
B65: A-10 | C65: 2
B66: A-11 | C66: 2
B67: A-12 | C67: 2
B68: A-01+ | C68: 2
B69: A-02+ | C69: 2
B70: A-03+ | C70: 2
B71: A-04+ | C71: 2
B72: A-05+ | C72: 2
B73: A-06+ | C73: 2
B74: A-07+ | C74: 2
B75: A-08+ | C75: 2
B76: A-09+ | C76: 2
B77: A-10+ | C77: 2
B78: A-11+ | C78: 2
B79: A-12+ | C79: 2

Sheet syllabus
A1: # | B1: BattleActs100 Abbreviation | C1: Citation | D1: CAS Abbreviation | E1: Source | F1: New
A2: 0 | B2: Exam.Total
A3: 10 | B3: IEE.2016 | C3: 2016 Insurance Expense Exhibit. | D3: 2016 IEE | E3: B | F3: New Fall 2017 | I3: =A3 -> 10
A4: 20 | B4: ASOP.20 | C4: Actuarial Standards Board of the American Academy of Actuaries, “Actuarial Standard of Practice, No. 20, Discounting of Property/Casualty Unpaid Claim Estimates,” September 2011. | D4: ASOP 20 | E4: online | I4: 20
A5: 30 | B5: ASOP.36 | C5: Actuarial Standards Board of the American Academy of Actuaries, “Actuarial Standard of Practice No. 36, Statements of Actuarial Opinion Regarding Property/Casualty Loss and Loss Adjustment Expense Reserves,” December 2010, updated for deviation language in May 2011. | D5: ASOP 36 | E5: online | I5: 30
A6: 40 | B6: ASOP.41 | C6: Actuarial Standards Board of the American Academy of Actuaries, “Actuarial Standard of Practice No. 41, Actuarial Communications,” December 2010. | D6: ASOP 41 | E6: online | I6: 40
A7: 50 | B7: ASOP.43 | C7: Actuarial Standards Board of the American Academy of Actuaries, “Actuarial Standard of Practice No. 43, Property/Casualty Unpaid Claim Estimates,” June 2007, updated for deviation language in May 2011. | D7: ASOP 43 | E7: online | I7: 50
A8: 60 | B8: AAA.Materiality | C8: American Academy of Actuaries, Task Force on Materiality, “Materiality, Concepts on Professionalism,” Discussion Paper, Professionalism Series, 2006, No. 8, June 2006. | D8: AAA Materiality | E8: online | I8: 60
A9: 70 | B9: Baribeau.Regs | C9: Baribeau, A.G., “Demystifying the Regulatory Web,” Actuarial Review, March/April 2016. | D9: Baribeau | E9: online | F9: New Fall 2017 | I9: 70
A10: 80 | B10: BK.Reins | C10: Blanchard, R.S.; and Klann, J., “Basic Reinsurance Accounting–Selected Topics,” CAS Study Note, October 2012. | D10: Blanchard and Klann | E10: online | I10: 80
A11: 90 | B11: COPLFR.SAO | C11: Committee on Property and Liability Financial Reporting, American Academy of Actuaries, “Property and Casualty Practice Note, Statements of Actuarial Opinion on P&C Loss Reserves as of December 31, 2016.” Exclude Appendix I.1.3 NAIC Title SAO Instructions and Appendix IV. SSAPs. Note that SSAP 5R, 9, 53, 55, 62R and 65 found in Appendix IV are readings for Learning Objectives C1 and E1 for this exam. | D11: COPLFR P&C Practice Note | E11: online | F11: New Fall 2017 | I11: 90
A12: 100 | B12: Cook.Personal | C12: Cook, Mary Ann, ed., Personal Insurance, (Second Edition), The Institutes, 2013, pp. 2.13-2.15 and 7.32-7.36. | D12: Cook | E12: SKU | I12: 100
A13: 105 | B13: Dearie.Excess | I13: 105
A14: 110 | B14: Feldblum.Discount | C14: Feldblum, S., "IRS Loss Reserve Discounting," CAS Study Note, 2017, pp. 1-26, excluding Appendix and endnotes. | D14: Feldblum (Loss Reserve Discounting) | E14: online | F14: New Fall 2017 | I14: 110
A15: 120 | B15: Feldblum.Ratings | C15: Feldblum, S., “Rating Agencies,” CAS Study Note, October 3, 2011, pp. 1-7 and 14-15 (stop at Best’s Capital Adequacy Ratio) and Appendix A. Candidates are not responsible for Section 4, Section 5 beginning at Best's Capital Adequacy Ratio on p. 15, Appendices B-D, and the endnotes. | D15: Feldblum (Rating Agencies) | E15: online | I15: 120
A16: 130 | B16: Feldblum.Surplus | C16: Feldblum, S., “Statutory Surplus: Computation, Pricing and Valuation,” CAS Study Note, June 2003, including errata. Candidates are not responsible for the endnotes. | D16: Feldblum (Surplus) | E16: online | I16: 130
A17: 140 | B17: FASB.944 | C17: Financial Accounting Standards Board, Accounting Standards Codification 944, “Financial Guarantee Insurance Contracts,” 2011, Section 15, Scope and Scope Exceptions, paragraphs 15-1 to 15-2; 15-5 to 15-7; 15-34 to 15-35; 15-41 to 15-44; and 15-49 to 15-54. Candidates are not responsible for material relating to long-duration contracts and/or life insurance. | D17: ASC 944-020-15 | E17: SK | I17: 140
A18: 150 | B18: Freihaut.Reins | C18: Freihaut, D.; and Vendetti, P., “Common Pitfalls and Practical Considerations in Risk Transfer Analysis,” Casualty Actuarial Society E-Forum, Spring 2009. Appendices A and B are for information only and will not be directly tested. | D18: Freihaut & Vendetti | E18: online | I18: =A18 -> 150
A19: 160 | B19: GAO.Report | C19: “GAO Report to Congressional Requesters, Risk Retention Groups, Clarifications Could Facilitate States’ Implementation of the Liability Risk Retention Act,” United States Government Accountability Office, GAO-12-16, December 2011, pp. 5-7 and 34-38. | D19: GAO Report | E19: online | F19: New Fall 2017 | I19: 160
A20: 170 | B20: Germani.GovtIns | C20: Germani, W., et al., "Government Insurers Study Note,” CAS Study Note, April 2017, pp. 1-16. | D20: Government Insurers Study Note | E20: online | F20: New Fall 2017 | I20: 170
A21: 174 | B21: Horn2018.Flood | I21: 174
A22: 175 | B22: Horn.Flood | C22: Horn, D. and Brown, J., “Introduction to the National Flood Insurance Program (NFIP),” Congressional Research Service, September 12, 2017, pp. 1-25. | D22: Horn and Brown (NFIP - Flood) | F22: New Fall 2018 | I22: 175
A23: 180 | B23: NAIC.Telematics | C23: Karapiperis, Dimitri; Birnbaum, Birny; Brandenberg, Aaron; Castagna, Sandra; Greenberg, Allen; Harbage, Robin; and Obersteadt, Anne, Usage-Based Insurance and Vehicle Telematics: Insurance Market and Regulatory Implications, National Association of Insurance Commissioners, CIPR Study, March 2015, pp. 1-16 (excluding section on Tower Watson’s DriveAbility) and 42-60. | D23: NAIC Telematics | E23: online | I23: 180
A24: 190 | B24: King.Flood | C24: King, R. “The National Flood Insurance Program: Status and Remaining Issues for Congress,” Congressional Research Service, February 6, 2013, pp. 1-32. | D24: King | E24: online | I24: 190
A25: 200 | B25: Klann.ReinsComm | C25: Klann, J., “Reinsurance Commutation,” 2013. | D25: Klann | E25: online | I25: 200
A26: 210 | B26: Kucera.Credit | C26: Kucera, J., “NAIC Public Hearing on Credit-Based Insurance Scores,” American Academy of Actuaries, April 30, 2009. | D26: Kucera | E26: online | I26: 210
A27: 220 | B27: McCarty.Credit | C27: McCarty, K.M., “Testimony of Kevin M. McCarty, Florida Insurance Commissioner, Florida Office of Insurance Regulation and Representing the National Association of Insurance Commissioners, Regarding: ‘The Impact of Credit-Based Insurance Scoring on the Availability and Affordability of Insurance,’ May 21, 2008,” Subcommittee on Oversight and Investigations of the House Committee on Financial Services, excluding Appendices 1 and 2. | D27: McCarty | E27: online | I27: 220
A28: 230 | B28: NAIC.APPM | C28: National Association of Insurance Commissioners, Accounting Practices and Procedures Manual, 2016, Preamble. | D28: NAIC APPM, Preamble | E28: SKU | F28: New Fall 2017 | I28: 230
A29: 240 | B29: NAIC.SSAP-5R | C29: National Association of Insurance Commissioners, Accounting Practices and Procedures Manual, 2016, Statement of Statutory Accounting Principles 5R, “Liabilities, Contingencies, and Impairment of Assets,” paragraphs 1-12, 26-29, and 33-34. This material is available in Appendix IV.1 of the COPLFR P&C Practice Note. | D29: NAIC SSAP 5R | E29: online - See COPLFR Practice Note | F29: New Fall 2017 | I29: 240
A30: 250 | B30: NAIC.SSAP-9 | C30: National Association of Insurance Commissioners, Accounting Practices and Procedures Manual, 2016, Statement of Statutory Accounting Principles 9, “Subsequent Events,” paragraphs 1-8. This material is available in Appendix IV.2 of the COPLFR P&C Practice Note. | D30: NAIC SSAP 9 | E30: online - See COPLFR Practice Note | F30: New Fall 2017 | I30: 250
A31: 260 | B31: NAIC.SSAP-53 | C31: National Association of Insurance Commissioners, Accounting Practices and Procedures Manual, 2016, Statement of Statutory Accounting Principles 53, “Property Casualty Contracts—Premiums,” paragraphs 1-18. This material is available in Appendix IV.4 of the COPLFR P&C Practice Note. | D31: NAIC SSAP 53 | E31: online - See COPLFR Practice Note | F31: New Fall 2017 | I31: 260
A32: 270 | B32: NAIC.SSAP-55 | C32: National Association of Insurance Commissioners, Accounting Practices and Procedures Manual, 2016, Statement of Statutory Accounting Principles 55, “Unpaid Claims, Loss and Loss Adjustment Expenses,” paragraphs 1-6 and 10-17. This material is available in Appendix IV.5 of the COPLFR P&C Practice Note. | D32: NAIC SSAP 55 | E32: online - See COPLFR Practice Note | F32: New Fall 2017 | I32: 270
A33: 280 | B33: NAIC.SSAP-62R | C33: National Association of Insurance Commissioners, Accounting Practices and Procedures Manual, 2016, Statement of Statutory Accounting Principles 62R, “Property and Casualty Reinsurance,” paragraphs 1-90. This material is available in Appendix IV.8 of the COPLFR P&C Practice Note. | D33: NAIC SSAP 62R | E33: online - See COPLFR Practice Note | F33: New Fall 2017 | I33: 280
A34: 290 | B34: NAIC.SSAP-65 | C34: National Association of Insurance Commissioners, Accounting Practices and Procedures Manual, 2016, Statement of Statutory Accounting Principles 65, “Property and Casualty Contracts,” paragraphs 1-46. This material is available in Appendix IV.10 of COPLFR P&C Practice Note. | D34: NAIC SSAP 65 | E34: online - See COPLFR Practice Note | F34: New Fall 2017 | I34: 290
A35: 300 | B35: NAIC.IRIS | C35: National Association of Insurance Commissioners, “NAIC Insurance Regulatory Information System (IRIS) Ratios Manual,” 2016, Section II, Property/Casualty Ratios, pp. 5-26. | D35: NAIC IRIS | E35: online | I35: 300
A36: 310 | B36: NAIC.Annual | C36: National Association of Insurance Commissioners, Official 2016 NAIC Annual Statement Blanks, Property and Casualty, (both individual and consolidated basis), pp. 2-13, Notes to the Financial Statement p. 14 (refer to the Odomirok paper for the Notes to cover); Schedules D (pp. SI03 through SI09), F (pp. 20-29), H (pp. 30-32), and P (pp. 33-93). Candidates will be expected to have knowledge of other sections of the annual statement that are discussed in other Syllabus readings. Candidates are not responsible for page numbers. [The “Notes to the Financial Statement” are cited for reference only. Candidates are responsible for the Notes as described in the Odomirok reading where the Notes are referenced by title. If the 2016 Annual Statement and the study materials differ, candidates may base their answers on either.] | D36: NAIC Annual Statement | E36: B | F36: New Fall 2017 | I36: 310
A37: 320 | B37: NAIC.AnnualExs | C37: National Association of Insurance Commissioners Official Annual Statement Examples: The following companies post their annual statements online. Candidates may use these (or their own company’s statements) as illustrations to better understand the annual statement but are not responsible for any company-specific data: (1) Travelers and (2) the Liberty Mutual Group. | D37: NAIC Annual Statement Examples | E37: online | F37: New Fall 2017 | I37: 320
A38: 330 | B38: NAIC.Price | C38: National Association of Insurance Commissioners, Casualty Actuarial and Statistical Task Force, Price Optimization White Paper, November 2015, pp. 1-16. | D38: NAIC Price | E38: online | I38: 330
A39: 340 | B39: NAIC.Solvency | C39: NAIC White Paper, “The U.S. National State-Based System of Insurance Regulation and the Solvency Modernization Initiative,” 2013, excluding appendices, Section 2 paragraphs 15-18, 26-28, 32-34, 41-42; Section 3 paragraphs 9, 13-15, 23-32 and 38-39; Section 4; and Section 5 paragraphs 9, 20-29, 30-45 and 61-86. | D39: NAIC Solvency Regulatory Framework | E39: online | I39: 340
A40: 350 | B40: Odomirok.Reporting | C40: Odomirok, K.C., et al., Financial Reporting Through the Lens of a Property/ Casualty Actuary, Casualty Actuarial Society, 2014, Edition 4, excluding Part VII [Canadian Introduction and Canadian Chapters 27-29 (pp. 335-362)] and Appendix II. Including Errata. | D40: CAS Financial Reporting | E40: online | I40: 350
A41: 360 | B41: Odomirok.1-5-Intro | C41: Odomirok, PARTS I & II Chapters (1-5): Introduction & Overview | D41: n/a | E41: online | I41: =A41 -> 360
A42: 370 | B42: Odomirok.6-7-BS | C42: Odomirok, PART III, Chapters (6-7): Intro to Financial Statements, Balance Sheet | D42: n/a | E42: online | I42: 370
A43: 380 | B43: Odomirok.8-9-IS | C43: Odomirok, PART III, Chapters (8-9): Income Statement, Capital & Surplus Account | D43: n/a | E43: online | I43: 380
A44: 390 | B44: Odomirok.10-Notes | C44: Odomirok, PART III, Chapters (10): Notes to Financial Statements | D44: n/a | E44: online | I44: 390
A45: 400 | B45: Odomirok.11-GenInt | C45: Odomirok, PART III, Chapters (11): General Interrogatories | D45: n/a | E45: online | I45: 400
A46: 410 | B46: Odomirok.12-5yr | C46: Odomirok, PART III, Chapters (12): Five-Year Historical Data Exhibit | D46: n/a | E46: online | I46: 410
A47: 420 | B47: Odomirok.13 | C47: Odomirok, PART III, Chapters (13): Overview of Schedules & Their Purpose | D47: n/a | E47: online | I47: 420
A48: 430 | B48: Odomirok.14-F | C48: Odomirok, PART III, Chapters (14): Schedule F | D48: n/a | E48: online | I48: 430
A49: 440 | B49: Odomirok.15-P | C49: Odomirok, PART III, Chapters (15): Schedule P | D49: n/a | E49: online | I49: 440
A50: 450 | B50: Odomirok.16-17-SAO | C50: Odomirok, PART IV, Chapters (16-17): SAO & AOS (Statement of Actuarial Opinion & Actuarial Opinion Summary Supplement) | D50: n/a | E50: online | I50: 450
A51: 460 | B51: Odomirok.18-IEE | C51: Odomirok, PART IV, Chapters (18): IEE (Insurance Expense Exhibit) | D51: n/a | E51: online | I51: 460
A52: 470 | B52: Odomirok.19-RBC | C52: Odomirok, PART IV, Chapters (19): RBC (Risk-Based Capital) | D52: n/a | E52: online | I52: 470
A53: 480 | B53: Odomirok.20-IRIS | C53: Odomirok, PART IV, Chapters (20): IRIS Ratios | D53: n/a | E53: online | I53: 480
A54: 490 | B54: Odomirok.21-Tools | C54: Odomirok, PART V, Chapters (21): Measurement Tools | D54: n/a | E54: online | I54: 490
A55: 500 | B55: Odomirok.22-23-GAAP | C55: Odomirok, PART VI, Chapters (22-23): U.S. GAAP, Fair Value Under Purchase GAAP | D55: n/a | E55: online | I55: 500
A56: 510 | B56: Odomirok.24-IFRS | C56: Odomirok, PART VI, Chapters (24): IFRS (International Financial Reporting Standards) | D56: n/a | E56: online | I56: 510
A57: 520 | B57: Odomirok.25-Solv2 | C57: Odomirok, PART VI, Chapters (25): Solvency II | D57: n/a | E57: online | I57: 520
A58: 530 | B58: Odomirok.26-Taxes | C58: Odomirok, PART VI, Chapters (26): Taxation in the U.S. | D58: n/a | E58: online | I58: 530
A59: 540 | B59: Odomirok.30-Future | C59: Odomirok, PART VIII, Chapters (30): Future of SAP | D59: n/a | E59: online | I59: 540
A60: 550 | B60: Porter.Regs-1 | C60: Porter, K., Insurance Regulation, Insurance Institute of America, 2008, Chapters 2 (exclude pp. 2.19-2.29), 3 (exclude pp. 3.21-3.25), 4 (exclude pp. 4.16-4.23), 5 (exclude pp. 5.12-5.22), 6 (pp. 6.11-6.17), 8 (pp. 8.3-8.6 and 8.12-8.15), and 12 (exclude pp. 12.12-12.17). | D60: Porter 1 | E60: B | I60: 550
A61: =A60+10 -> 560 | B61: Porter.2-Devlpt | C61: Development of Insurance Regulation (exclude pp. 2.19-2.29) | D61: n/a | E61: B | I61: 560
A62: =A61+10 -> 570 | B62: Porter.3-Roles-Fed | C62: Federal Role in Insurance Regulation (exclude pp. 3.21-3.25) | D62: n/a | E62: B | I62: 570
A63: 580 | B63: Porter.4-Roles-State | C63: Roles of State Regulators & NAIC in Insurance Regulation (exclude pp. 4.16-4.23) | D63: n/a | E63: B | I63: 580
A64: 590 | B64: Porter.5-Opns-State | C64: State Department of Insurance Operations (exclude pp. 5.12-5.22) | D64: n/a | E64: B | I64: 590
A65: 600 | B65: Porter.6-Formation | C65: Insurer Formation (pp. 6.11-6.17) | D65: n/a | E65: B | I65: 600
A66: 610 | B66: Porter.8-Rates | C66: Rate Regulation (pp. 8.3-8.6 and 8.12-8.15) | D66: n/a | E66: B | I66: 610
A67: 620 | B67: Porter.12-Insolvency | C67: Insolvency Regulation (exclude pp. 12.12-12.17) | D67: n/a | E67: B | I67: 620
A68: 630 | B68: Porter.Reg-2 | C68: Porter, K., Insurance Regulation, Insurance Institute of America, 2008, Chapter 12 (pp. 12.12-12.17). | D68: Porter 2 | E68: B | I68: 630
A69: 640 | B69: Vaughan.Crisis | C69: Vaughan, T.M., “The Economic Crisis and Lessons from (and for) U.S. Insurance Regulation,” Journal of Insurance Regulation, National Association of Insurance Commissioners, Fall/Winter, Volume 28, No. 1, 2009. | D69: Vaughan (Economic Crisis) | E69: SK | I69: 640
A70: 650 | B70: Webel.TRIA-1 | C70: Webel, B., “Terrorism Risk Insurance: Issue Analysis and Overview of Current Program,” Congressional Research Service, July 23, 2014, pp. 5-11. | D70: Webel 1 | E70: online | F70: New Fall 2017 | I70: 650
A71: 660 | B71: Webel.TRIA-2 | C71: Webel, B., “Terrorism Risk Insurance Legislation the 114th Congress: Issue Summary and Side-by-Side Analysis,” Congressional Research Service, January 20, 2015, Summary page and pp. 1-3. | D71: Webel 2 | E71: online | F71: New Fall 2017 | I71: 660
A72: 670 | B72: outdated. | I72: 670
A73: 680 | B73: unknown. | I73: 680

Sheet stats
F1: 2-Fall | G1: 1-Spring | H1: 2-Fall | I1: 1-Spring | J1: 2-Fall | K1: 1-Spring | L1: 2-Fall | M1: 1-Spring | N1: 2-Fall | O1: 1-Spring | P1: 2-Fall | Q1: 2-Fall | S1: =(SUM(H$3:M$3)-SUM(H$73:M$74)-SUM(H70:M70)) -> 435.5 | T1: =SUM(H4:M72)-SUM(H70:M70) -> 435.5 | X1: 1-Fall | Y1: 1-Spring | Z1: 1-Fall | AA1: 1-Spring | AB1: 2-Fall | AC1: 1-Spring | AD1: 2-Fall | AE1: 1-Spring | AF1: 2-Fall | AG1: 1-Spring | AH1: 2-Fall | AI1: 2-Fall
A2: ref | B2: BA100_abbreviation | C2: # pgs | D2: prop | F2: 18 | G2: 18 | H2: 17 | I2: 17 | J2: 16 | K2: 16 | L2: 15 | M2: 15 | N2: 14 | O2: 14 | P2: 13 | Q2: 12 | S2: L8 wtd | T2: % L8 wtd | V2: rank | X2: 18 | Y2: 18 | Z2: 17 | AA2: 17 | AB2: 16 | AC2: 16 | AD2: 15 | AE2: 15 | AF2: 14 | AG2: 14 | AH2: 13 | AI2: 12
A3: 0 | B3: =VLOOKUP(A3,Syllabus,2,FALSE) -> Exam.Total | C3: =SUM(C5:C103) -> 323 | D3: =C3/C3 -> 1 | F3: =SUM(F4:F128) -> 69.5 | G3: =SUM(G4:G128) -> 67.25 | H3: 70 | I3: 73.5 | J3: 74.25 | K3: 81.25 | L3: 80.5 | M3: 81.25 | N3: 81.75 | O3: 88 | P3: 91.5 | Q3: 87 | S3: =SUM(F3:K3)+0.5*SUM(L3:M3)+0.25*SUM(N3:O3) -> 559.0625 | T3: =SUM(T4:T128) -> 0.8944885211 | W3: =IFERROR(SUMIF(#REF!,P5,#REF!)/SUMIF(#REF!,P5,#REF!),"") ->  | X3: =F3/X4 -> 1 | Y3: 0.9471830986 | Z3: 1 | AA3: 1 | AB3: 1.010204082 | AC3: 1 | AD3: 1.038709677 | AE3: 1 | AF3: 1 | AG3: 1.011494253 | AH3: 1.051724138 | AI3: 1
A4: =syllabus!A3 -> 10 | B4: =VLOOKUP(A4,Syllabus,2,FALSE) -> IEE.2016 | D4: =C4/C$3 -> 0 | F4: =SUMIFS(FCs!$AA$1:$AA$11201,FCs!$A$1:$A$11201,stats!$B4,FCs!$V$1:$V$11201,stats!F$2,FCs!$W$1:$W$11201,stats!F$1) -> 0 | G4: =SUMIFS(FCs!$AA$1:$AA$11201,FCs!$A$1:$A$11201,stats!$B4,FCs!$V$1:$V$11201,stats!G$2,FCs!$W$1:$W$11201,stats!G$1) -> 0 | H4: =SUMIFS(FCs!$AA$1:$AA$11201,FCs!$A$1:$A$11201,stats!$B4,FCs!$V$1:$V$11201,stats!H$2,FCs!$W$1:$W$11201,stats!H$1) -> 0 | I4: =SUMIFS(FCs!$AA$1:$AA$11201,FCs!$A$1:$A$11201,stats!$B4,FCs!$V$1:$V$11201,stats!I$2,FCs!$W$1:$W$11201,stats!I$1) -> 0 | J4: =SUMIFS(FCs!$AA$1:$AA$11201,FCs!$A$1:$A$11201,stats!$B4,FCs!$V$1:$V$11201,stats!J$2,FCs!$W$1:$W$11201,stats!J$1) -> 0 | K4: =SUMIFS(FCs!$AA$1:$AA$11201,FCs!$A$1:$A$11201,stats!$B4,FCs!$V$1:$V$11201,stats!K$2,FCs!$W$1:$W$11201,stats!K$1) -> 0 | L4: =SUMIFS(FCs!$AA$1:$AA$11201,FCs!$A$1:$A$11201,stats!$B4,FCs!$V$1:$V$11201,stats!L$2,FCs!$W$1:$W$11201,stats!L$1) -> 0 | M4: =SUMIFS(FCs!$AA$1:$AA$11201,FCs!$A$1:$A$11201,stats!$B4,FCs!$V$1:$V$11201,stats!M$2,FCs!$W$1:$W$11201,stats!M$1) -> 0 | N4: =SUMIFS(FCs!$AA$1:$AA$11201,FCs!$A$1:$A$11201,stats!$B4,FCs!$V$1:$V$11201,stats!N$2,FCs!$W$1:$W$11201,stats!N$1) -> 0 | O4: =SUMIFS(FCs!$AA$1:$AA$11201,FCs!$A$1:$A$11201,stats!$B4,FCs!$V$1:$V$11201,stats!O$2,FCs!$W$1:$W$11201,stats!O$1) -> 0 | P4: =SUMIFS(FCs!$AA$1:$AA$11201,FCs!$A$1:$A$11201,stats!$B4,FCs!$V$1:$V$11201,stats!P$2,FCs!$W$1:$W$11201,stats!P$1) -> 0 | Q4: =SUMIFS(FCs!$AA$1:$AA$11201,FCs!$A$1:$A$11201,stats!$B4,FCs!$V$1:$V$11201,stats!Q$2,FCs!$W$1:$W$11201,stats!Q$1) -> 0 | S4: =SUM(F4:K4)+0.5*SUM(L4:M4)+0.25*SUM(N4:O4) -> 0 | T4: =S4/S$3 -> 0 | V4: =_xlfn.RANK.AVG(T4,T$5:T$74) -> 52 | X4: 69.5 | Y4: 71 | Z4: 70 | AA4: 73.5 | AB4: 73.5 | AC4: 81.25 | AD4: 77.5 | AE4: 81.25 | AF4: 81.75 | AG4: 87 | AH4: 87 | AI4: 87
A5: =syllabus!A4 -> 20 | B5: ASOP.20 | C5: 17 | D5: =C5/C$3 -> 0.05263157895 | F5: =SUMIFS(FCs!$AA$1:$AA$11201,FCs!$A$1:$A$11201,stats!$B5,FCs!$V$1:$V$11201,stats!F$2,FCs!$W$1:$W$11201,stats!F$1) -> 0 | G5: =SUMIFS(FCs!$AA$1:$AA$11201,FCs!$A$1:$A$11201,stats!$B5,FCs!$V$1:$V$11201,stats!G$2,FCs!$W$1:$W$11201,stats!G$1) -> 0 | H5: =SUMIFS(FCs!$AA$1:$AA$11201,FCs!$A$1:$A$11201,stats!$B5,FCs!$V$1:$V$11201,stats!H$2,FCs!$W$1:$W$11201,stats!H$1) -> 0 | I5: =SUMIFS(FCs!$AA$1:$AA$11201,FCs!$A$1:$A$11201,stats!$B5,FCs!$V$1:$V$11201,stats!I$2,FCs!$W$1:$W$11201,stats!I$1) -> 0 | J5: =SUMIFS(FCs!$AA$1:$AA$11201,FCs!$A$1:$A$11201,stats!$B5,FCs!$V$1:$V$11201,stats!J$2,FCs!$W$1:$W$11201,stats!J$1) -> 0 | K5: =SUMIFS(FCs!$AA$1:$AA$11201,FCs!$A$1:$A$11201,stats!$B5,FCs!$V$1:$V$11201,stats!K$2,FCs!$W$1:$W$11201,stats!K$1) -> 0 | L5: =SUMIFS(FCs!$AA$1:$AA$11201,FCs!$A$1:$A$11201,stats!$B5,FCs!$V$1:$V$11201,stats!L$2,FCs!$W$1:$W$11201,stats!L$1) -> 0 | M5: =SUMIFS(FCs!$AA$1:$AA$11201,FCs!$A$1:$A$11201,stats!$B5,FCs!$V$1:$V$11201,stats!M$2,FCs!$W$1:$W$11201,stats!M$1) -> 0 | N5: =SUMIFS(FCs!$AA$1:$AA$11201,FCs!$A$1:$A$11201,stats!$B5,FCs!$V$1:$V$11201,stats!N$2,FCs!$W$1:$W$11201,stats!N$1) -> 0 | O5: =SUMIFS(FCs!$AA$1:$AA$11201,FCs!$A$1:$A$11201,stats!$B5,FCs!$V$1:$V$11201,stats!O$2,FCs!$W$1:$W$11201,stats!O$1) -> 0 | P5: =SUMIFS(FCs!$AA$1:$AA$11201,FCs!$A$1:$A$11201,stats!$B5,FCs!$V$1:$V$11201,stats!P$2,FCs!$W$1:$W$11201,stats!P$1) -> 0 | Q5: =SUMIFS(FCs!$AA$1:$AA$11201,FCs!$A$1:$A$11201,stats!$B5,FCs!$V$1:$V$11201,stats!Q$2,FCs!$W$1:$W$11201,stats!Q$1) -> 0 | S5: =SUM(F5:K5)+0.5*SUM(L5:M5)+0.25*SUM(N5:O5) -> 0 | T5: =S5/S$3 -> 0 | V5: 52 | X5: =X4-F3 -> 0 | Y5: 3.75 | Z5: 0 | AA5: 0 | AB5: -0.75 | AC5: 0 | AD5: -3 | AE5: 0 | AF5: 0 | AG5: -1 | AH5: -4.5 | AI5: 0
A6: =syllabus!A5 -> 30 | B6: ASOP.36 | C6: 22 | D6: =C6/C$3 -> 0.06811145511 | F6: =SUMIFS(FCs!$AA$1:$AA$11201,FCs!$A$1:$A$11201,stats!$B6,FCs!$V$1:$V$11201,stats!F$2,FCs!$W$1:$W$11201,stats!F$1) -> 0 | G6: =SUMIFS(FCs!$AA$1:$AA$11201,FCs!$A$1:$A$11201,stats!$B6,FCs!$V$1:$V$11201,stats!G$2,FCs!$W$1:$W$11201,stats!G$1) -> 0 | H6: =SUMIFS(FCs!$AA$1:$AA$11201,FCs!$A$1:$A$11201,stats!$B6,FCs!$V$1:$V$11201,stats!H$2,FCs!$W$1:$W$11201,stats!H$1) -> 0 | I6: =SUMIFS(FCs!$AA$1:$AA$11201,FCs!$A$1:$A$11201,stats!$B6,FCs!$V$1:$V$11201,stats!I$2,FCs!$W$1:$W$11201,stats!I$1) -> 0 | J6: =SUMIFS(FCs!$AA$1:$AA$11201,FCs!$A$1:$A$11201,stats!$B6,FCs!$V$1:$V$11201,stats!J$2,FCs!$W$1:$W$11201,stats!J$1) -> 0 | K6: =SUMIFS(FCs!$AA$1:$AA$11201,FCs!$A$1:$A$11201,stats!$B6,FCs!$V$1:$V$11201,stats!K$2,FCs!$W$1:$W$11201,stats!K$1) -> 0 | L6: =SUMIFS(FCs!$AA$1:$AA$11201,FCs!$A$1:$A$11201,stats!$B6,FCs!$V$1:$V$11201,stats!L$2,FCs!$W$1:$W$11201,stats!L$1) -> 0 | M6: =SUMIFS(FCs!$AA$1:$AA$11201,FCs!$A$1:$A$11201,stats!$B6,FCs!$V$1:$V$11201,stats!M$2,FCs!$W$1:$W$11201,stats!M$1) -> 0 | N6: =SUMIFS(FCs!$AA$1:$AA$11201,FCs!$A$1:$A$11201,stats!$B6,FCs!$V$1:$V$11201,stats!N$2,FCs!$W$1:$W$11201,stats!N$1) -> 0 | O6: =SUMIFS(FCs!$AA$1:$AA$11201,FCs!$A$1:$A$11201,stats!$B6,FCs!$V$1:$V$11201,stats!O$2,FCs!$W$1:$W$11201,stats!O$1) -> 0 | P6: =SUMIFS(FCs!$AA$1:$AA$11201,FCs!$A$1:$A$11201,stats!$B6,FCs!$V$1:$V$11201,stats!P$2,FCs!$W$1:$W$11201,stats!P$1) -> 0 | Q6: =SUMIFS(FCs!$AA$1:$AA$11201,FCs!$A$1:$A$11201,stats!$B6,FCs!$V$1:$V$11201,stats!Q$2,FCs!$W$1:$W$11201,stats!Q$1) -> 0 | S6: 0 | T6: 0 | V6: 52
A7: =syllabus!A6 -> 40 | B7: ASOP.41 | C7: 27 | D7: 0.08359133127 | F7: =SUMIFS(FCs!$AA$1:$AA$11201,FCs!$A$1:$A$11201,stats!$B7,FCs!$V$1:$V$11201,stats!F$2,FCs!$W$1:$W$11201,stats!F$1) -> 0 | G7: =SUMIFS(FCs!$AA$1:$AA$11201,FCs!$A$1:$A$11201,stats!$B7,FCs!$V$1:$V$11201,stats!G$2,FCs!$W$1:$W$11201,stats!G$1) -> 0 | H7: =SUMIFS(FCs!$AA$1:$AA$11201,FCs!$A$1:$A$11201,stats!$B7,FCs!$V$1:$V$11201,stats!H$2,FCs!$W$1:$W$11201,stats!H$1) -> 0 | I7: =SUMIFS(FCs!$AA$1:$AA$11201,FCs!$A$1:$A$11201,stats!$B7,FCs!$V$1:$V$11201,stats!I$2,FCs!$W$1:$W$11201,stats!I$1) -> 0 | J7: =SUMIFS(FCs!$AA$1:$AA$11201,FCs!$A$1:$A$11201,stats!$B7,FCs!$V$1:$V$11201,stats!J$2,FCs!$W$1:$W$11201,stats!J$1) -> 0 | K7: =SUMIFS(FCs!$AA$1:$AA$11201,FCs!$A$1:$A$11201,stats!$B7,FCs!$V$1:$V$11201,stats!K$2,FCs!$W$1:$W$11201,stats!K$1) -> 0 | L7: =SUMIFS(FCs!$AA$1:$AA$11201,FCs!$A$1:$A$11201,stats!$B7,FCs!$V$1:$V$11201,stats!L$2,FCs!$W$1:$W$11201,stats!L$1) -> 0 | M7: =SUMIFS(FCs!$AA$1:$AA$11201,FCs!$A$1:$A$11201,stats!$B7,FCs!$V$1:$V$11201,stats!M$2,FCs!$W$1:$W$11201,stats!M$1) -> 2.75 | N7: =SUMIFS(FCs!$AA$1:$AA$11201,FCs!$A$1:$A$11201,stats!$B7,FCs!$V$1:$V$11201,stats!N$2,FCs!$W$1:$W$11201,stats!N$1) -> 0 | O7: =SUMIFS(FCs!$AA$1:$AA$11201,FCs!$A$1:$A$11201,stats!$B7,FCs!$V$1:$V$11201,stats!O$2,FCs!$W$1:$W$11201,stats!O$1) -> 0 | P7: =SUMIFS(FCs!$AA$1:$AA$11201,FCs!$A$1:$A$11201,stats!$B7,FCs!$V$1:$V$11201,stats!P$2,FCs!$W$1:$W$11201,stats!P$1) -> 0 | Q7: =SUMIFS(FCs!$AA$1:$AA$11201,FCs!$A$1:$A$11201,stats!$B7,FCs!$V$1:$V$11201,stats!Q$2,FCs!$W$1:$W$11201,stats!Q$1) -> 0 | S7: 1.375 | T7: 0.002459474567 | V7: 37
A8: =syllabus!A7 -> 50 | B8: ASOP.43 | C8: 31 | D8: 0.0959752322 | F8: =SUMIFS(FCs!$AA$1:$AA$11201,FCs!$A$1:$A$11201,stats!$B8,FCs!$V$1:$V$11201,stats!F$2,FCs!$W$1:$W$11201,stats!F$1) -> 0 | G8: =SUMIFS(FCs!$AA$1:$AA$11201,FCs!$A$1:$A$11201,stats!$B8,FCs!$V$1:$V$11201,stats!G$2,FCs!$W$1:$W$11201,stats!G$1) -> 0 | H8: =SUMIFS(FCs!$AA$1:$AA$11201,FCs!$A$1:$A$11201,stats!$B8,FCs!$V$1:$V$11201,stats!H$2,FCs!$W$1:$W$11201,stats!H$1) -> 0 | I8: =SUMIFS(FCs!$AA$1:$AA$11201,FCs!$A$1:$A$11201,stats!$B8,FCs!$V$1:$V$11201,stats!I$2,FCs!$W$1:$W$11201,stats!I$1) -> 0 | J8: =SUMIFS(FCs!$AA$1:$AA$11201,FCs!$A$1:$A$11201,stats!$B8,FCs!$V$1:$V$11201,stats!J$2,FCs!$W$1:$W$11201,stats!J$1) -> 0 | K8: =SUMIFS(FCs!$AA$1:$AA$11201,FCs!$A$1:$A$11201,stats!$B8,FCs!$V$1:$V$11201,stats!K$2,FCs!$W$1:$W$11201,stats!K$1) -> 0 | L8: =SUMIFS(FCs!$AA$1:$AA$11201,FCs!$A$1:$A$11201,stats!$B8,FCs!$V$1:$V$11201,stats!L$2,FCs!$W$1:$W$11201,stats!L$1) -> 0 | M8: =SUMIFS(FCs!$AA$1:$AA$11201,FCs!$A$1:$A$11201,stats!$B8,FCs!$V$1:$V$11201,stats!M$2,FCs!$W$1:$W$11201,stats!M$1) -> 0 | N8: =SUMIFS(FCs!$AA$1:$AA$11201,FCs!$A$1:$A$11201,stats!$B8,FCs!$V$1:$V$11201,stats!N$2,FCs!$W$1:$W$11201,stats!N$1) -> 0 | O8: =SUMIFS(FCs!$AA$1:$AA$11201,FCs!$A$1:$A$11201,stats!$B8,FCs!$V$1:$V$11201,stats!O$2,FCs!$W$1:$W$11201,stats!O$1) -> 0 | P8: =SUMIFS(FCs!$AA$1:$AA$11201,FCs!$A$1:$A$11201,stats!$B8,FCs!$V$1:$V$11201,stats!P$2,FCs!$W$1:$W$11201,stats!P$1) -> 0 | Q8: =SUMIFS(FCs!$AA$1:$AA$11201,FCs!$A$1:$A$11201,stats!$B8,FCs!$V$1:$V$11201,stats!Q$2,FCs!$W$1:$W$11201,stats!Q$1) -> 0 | S8: 0 | T8: 0 | V8: 52
A9: =syllabus!A8 -> 60 | B9: AAA.Materiality | D9: 0 | F9: =SUMIFS(FCs!$AA$1:$AA$11201,FCs!$A$1:$A$11201,stats!$B9,FCs!$V$1:$V$11201,stats!F$2,FCs!$W$1:$W$11201,stats!F$1) -> 0 | G9: =SUMIFS(FCs!$AA$1:$AA$11201,FCs!$A$1:$A$11201,stats!$B9,FCs!$V$1:$V$11201,stats!G$2,FCs!$W$1:$W$11201,stats!G$1) -> 0 | H9: =SUMIFS(FCs!$AA$1:$AA$11201,FCs!$A$1:$A$11201,stats!$B9,FCs!$V$1:$V$11201,stats!H$2,FCs!$W$1:$W$11201,stats!H$1) -> 0 | I9: =SUMIFS(FCs!$AA$1:$AA$11201,FCs!$A$1:$A$11201,stats!$B9,FCs!$V$1:$V$11201,stats!I$2,FCs!$W$1:$W$11201,stats!I$1) -> 0 | J9: =SUMIFS(FCs!$AA$1:$AA$11201,FCs!$A$1:$A$11201,stats!$B9,FCs!$V$1:$V$11201,stats!J$2,FCs!$W$1:$W$11201,stats!J$1) -> 0 | K9: =SUMIFS(FCs!$AA$1:$AA$11201,FCs!$A$1:$A$11201,stats!$B9,FCs!$V$1:$V$11201,stats!K$2,FCs!$W$1:$W$11201,stats!K$1) -> 0 | L9: =SUMIFS(FCs!$AA$1:$AA$11201,FCs!$A$1:$A$11201,stats!$B9,FCs!$V$1:$V$11201,stats!L$2,FCs!$W$1:$W$11201,stats!L$1) -> 0 | M9: =SUMIFS(FCs!$AA$1:$AA$11201,FCs!$A$1:$A$11201,stats!$B9,FCs!$V$1:$V$11201,stats!M$2,FCs!$W$1:$W$11201,stats!M$1) -> 0 | N9: =SUMIFS(FCs!$AA$1:$AA$11201,FCs!$A$1:$A$11201,stats!$B9,FCs!$V$1:$V$11201,stats!N$2,FCs!$W$1:$W$11201,stats!N$1) -> 0 | O9: =SUMIFS(FCs!$AA$1:$AA$11201,FCs!$A$1:$A$11201,stats!$B9,FCs!$V$1:$V$11201,stats!O$2,FCs!$W$1:$W$11201,stats!O$1) -> 0 | P9: =SUMIFS(FCs!$AA$1:$AA$11201,FCs!$A$1:$A$11201,stats!$B9,FCs!$V$1:$V$11201,stats!P$2,FCs!$W$1:$W$11201,stats!P$1) -> 0 | Q9: =SUMIFS(FCs!$AA$1:$AA$11201,FCs!$A$1:$A$11201,stats!$B9,FCs!$V$1:$V$11201,stats!Q$2,FCs!$W$1:$W$11201,stats!Q$1) -> 0 | S9: 0 | T9: 0 | V9: 52
A10: =syllabus!A9 -> 70 | B10: Baribeau.Regs | D10: 0 | F10: =SUMIFS(FCs!$AA$1:$AA$11201,FCs!$A$1:$A$11201,stats!$B10,FCs!$V$1:$V$11201,stats!F$2,FCs!$W$1:$W$11201,stats!F$1) -> 2.25 | G10: =SUMIFS(FCs!$AA$1:$AA$11201,FCs!$A$1:$A$11201,stats!$B10,FCs!$V$1:$V$11201,stats!G$2,FCs!$W$1:$W$11201,stats!G$1) -> 0 | H10: =SUMIFS(FCs!$AA$1:$AA$11201,FCs!$A$1:$A$11201,stats!$B10,FCs!$V$1:$V$11201,stats!H$2,FCs!$W$1:$W$11201,stats!H$1) -> 1 | I10: =SUMIFS(FCs!$AA$1:$AA$11201,FCs!$A$1:$A$11201,stats!$B10,FCs!$V$1:$V$11201,stats!I$2,FCs!$W$1:$W$11201,stats!I$1) -> 1.5 | J10: =SUMIFS(FCs!$AA$1:$AA$11201,FCs!$A$1:$A$11201,stats!$B10,FCs!$V$1:$V$11201,stats!J$2,FCs!$W$1:$W$11201,stats!J$1) -> 3.25 | K10: =SUMIFS(FCs!$AA$1:$AA$11201,FCs!$A$1:$A$11201,stats!$B10,FCs!$V$1:$V$11201,stats!K$2,FCs!$W$1:$W$11201,stats!K$1) -> 1 | L10: =SUMIFS(FCs!$AA$1:$AA$11201,FCs!$A$1:$A$11201,stats!$B10,FCs!$V$1:$V$11201,stats!L$2,FCs!$W$1:$W$11201,stats!L$1) -> 0 | M10: =SUMIFS(FCs!$AA$1:$AA$11201,FCs!$A$1:$A$11201,stats!$B10,FCs!$V$1:$V$11201,stats!M$2,FCs!$W$1:$W$11201,stats!M$1) -> 0.5 | N10: =SUMIFS(FCs!$AA$1:$AA$11201,FCs!$A$1:$A$11201,stats!$B10,FCs!$V$1:$V$11201,stats!N$2,FCs!$W$1:$W$11201,stats!N$1) -> 0.5 | O10: =SUMIFS(FCs!$AA$1:$AA$11201,FCs!$A$1:$A$11201,stats!$B10,FCs!$V$1:$V$11201,stats!O$2,FCs!$W$1:$W$11201,stats!O$1) -> 1 | P10: =SUMIFS(FCs!$AA$1:$AA$11201,FCs!$A$1:$A$11201,stats!$B10,FCs!$V$1:$V$11201,stats!P$2,FCs!$W$1:$W$11201,stats!P$1) -> 0 | Q10: =SUMIFS(FCs!$AA$1:$AA$11201,FCs!$A$1:$A$11201,stats!$B10,FCs!$V$1:$V$11201,stats!Q$2,FCs!$W$1:$W$11201,stats!Q$1) -> 0 | S10: 9.625 | T10: 0.01721632197 | V10: 17
A11: =syllabus!A10 -> 80 | B11: BK.Reins | D11: 0 | F11: =SUMIFS(FCs!$AA$1:$AA$11201,FCs!$A$1:$A$11201,stats!$B11,FCs!$V$1:$V$11201,stats!F$2,FCs!$W$1:$W$11201,stats!F$1) -> 0 | G11: =SUMIFS(FCs!$AA$1:$AA$11201,FCs!$A$1:$A$11201,stats!$B11,FCs!$V$1:$V$11201,stats!G$2,FCs!$W$1:$W$11201,stats!G$1) -> 0 | H11: =SUMIFS(FCs!$AA$1:$AA$11201,FCs!$A$1:$A$11201,stats!$B11,FCs!$V$1:$V$11201,stats!H$2,FCs!$W$1:$W$11201,stats!H$1) -> 0 | I11: =SUMIFS(FCs!$AA$1:$AA$11201,FCs!$A$1:$A$11201,stats!$B11,FCs!$V$1:$V$11201,stats!I$2,FCs!$W$1:$W$11201,stats!I$1) -> 0 | J11: =SUMIFS(FCs!$AA$1:$AA$11201,FCs!$A$1:$A$11201,stats!$B11,FCs!$V$1:$V$11201,stats!J$2,FCs!$W$1:$W$11201,stats!J$1) -> 0 | K11: =SUMIFS(FCs!$AA$1:$AA$11201,FCs!$A$1:$A$11201,stats!$B11,FCs!$V$1:$V$11201,stats!K$2,FCs!$W$1:$W$11201,stats!K$1) -> 0 | L11: =SUMIFS(FCs!$AA$1:$AA$11201,FCs!$A$1:$A$11201,stats!$B11,FCs!$V$1:$V$11201,stats!L$2,FCs!$W$1:$W$11201,stats!L$1) -> 0 | M11: =SUMIFS(FCs!$AA$1:$AA$11201,FCs!$A$1:$A$11201,stats!$B11,FCs!$V$1:$V$11201,stats!M$2,FCs!$W$1:$W$11201,stats!M$1) -> 0 | N11: =SUMIFS(FCs!$AA$1:$AA$11201,FCs!$A$1:$A$11201,stats!$B11,FCs!$V$1:$V$11201,stats!N$2,FCs!$W$1:$W$11201,stats!N$1) -> 0 | O11: =SUMIFS(FCs!$AA$1:$AA$11201,FCs!$A$1:$A$11201,stats!$B11,FCs!$V$1:$V$11201,stats!O$2,FCs!$W$1:$W$11201,stats!O$1) -> 0 | P11: =SUMIFS(FCs!$AA$1:$AA$11201,FCs!$A$1:$A$11201,stats!$B11,FCs!$V$1:$V$11201,stats!P$2,FCs!$W$1:$W$11201,stats!P$1) -> 0 | Q11: =SUMIFS(FCs!$AA$1:$AA$11201,FCs!$A$1:$A$11201,stats!$B11,FCs!$V$1:$V$11201,stats!Q$2,FCs!$W$1:$W$11201,stats!Q$1) -> 0 | S11: 0 | T11: 0 | V11: 52
A12: =syllabus!A11 -> 90 | B12: COPLFR.SAO | D12: 0 | F12: =SUMIFS(FCs!$AA$1:$AA$11201,FCs!$A$1:$A$11201,stats!$B12,FCs!$V$1:$V$11201,stats!F$2,FCs!$W$1:$W$11201,stats!F$1) -> 11.25 | G12: =SUMIFS(FCs!$AA$1:$AA$11201,FCs!$A$1:$A$11201,stats!$B12,FCs!$V$1:$V$11201,stats!G$2,FCs!$W$1:$W$11201,stats!G$1) -> 12.75 | H12: =SUMIFS(FCs!$AA$1:$AA$11201,FCs!$A$1:$A$11201,stats!$B12,FCs!$V$1:$V$11201,stats!H$2,FCs!$W$1:$W$11201,stats!H$1) -> 14 | I12: =SUMIFS(FCs!$AA$1:$AA$11201,FCs!$A$1:$A$11201,stats!$B12,FCs!$V$1:$V$11201,stats!I$2,FCs!$W$1:$W$11201,stats!I$1) -> 10.75 | J12: =SUMIFS(FCs!$AA$1:$AA$11201,FCs!$A$1:$A$11201,stats!$B12,FCs!$V$1:$V$11201,stats!J$2,FCs!$W$1:$W$11201,stats!J$1) -> 11.5 | K12: =SUMIFS(FCs!$AA$1:$AA$11201,FCs!$A$1:$A$11201,stats!$B12,FCs!$V$1:$V$11201,stats!K$2,FCs!$W$1:$W$11201,stats!K$1) -> 14 | L12: =SUMIFS(FCs!$AA$1:$AA$11201,FCs!$A$1:$A$11201,stats!$B12,FCs!$V$1:$V$11201,stats!L$2,FCs!$W$1:$W$11201,stats!L$1) -> 12.75 | M12: =SUMIFS(FCs!$AA$1:$AA$11201,FCs!$A$1:$A$11201,stats!$B12,FCs!$V$1:$V$11201,stats!M$2,FCs!$W$1:$W$11201,stats!M$1) -> 8 | N12: =SUMIFS(FCs!$AA$1:$AA$11201,FCs!$A$1:$A$11201,stats!$B12,FCs!$V$1:$V$11201,stats!N$2,FCs!$W$1:$W$11201,stats!N$1) -> 11.75 | O12: =SUMIFS(FCs!$AA$1:$AA$11201,FCs!$A$1:$A$11201,stats!$B12,FCs!$V$1:$V$11201,stats!O$2,FCs!$W$1:$W$11201,stats!O$1) -> 9.5 | P12: =SUMIFS(FCs!$AA$1:$AA$11201,FCs!$A$1:$A$11201,stats!$B12,FCs!$V$1:$V$11201,stats!P$2,FCs!$W$1:$W$11201,stats!P$1) -> 12.75 | Q12: =SUMIFS(FCs!$AA$1:$AA$11201,FCs!$A$1:$A$11201,stats!$B12,FCs!$V$1:$V$11201,stats!Q$2,FCs!$W$1:$W$11201,stats!Q$1) -> 11.75 | S12: 89.9375 | T12: 0.1608719955 | V12: 1
A13: =syllabus!A12 -> 100 | B13: Cook.Personal | D13: 0 | F13: =SUMIFS(FCs!$AA$1:$AA$11201,FCs!$A$1:$A$11201,stats!$B13,FCs!$V$1:$V$11201,stats!F$2,FCs!$W$1:$W$11201,stats!F$1) -> 2.75 | G13: =SUMIFS(FCs!$AA$1:$AA$11201,FCs!$A$1:$A$11201,stats!$B13,FCs!$V$1:$V$11201,stats!G$2,FCs!$W$1:$W$11201,stats!G$1) -> 4.75 | H13: =SUMIFS(FCs!$AA$1:$AA$11201,FCs!$A$1:$A$11201,stats!$B13,FCs!$V$1:$V$11201,stats!H$2,FCs!$W$1:$W$11201,stats!H$1) -> 1.75 | I13: =SUMIFS(FCs!$AA$1:$AA$11201,FCs!$A$1:$A$11201,stats!$B13,FCs!$V$1:$V$11201,stats!I$2,FCs!$W$1:$W$11201,stats!I$1) -> 4 | J13: =SUMIFS(FCs!$AA$1:$AA$11201,FCs!$A$1:$A$11201,stats!$B13,FCs!$V$1:$V$11201,stats!J$2,FCs!$W$1:$W$11201,stats!J$1) -> 2.5 | K13: =SUMIFS(FCs!$AA$1:$AA$11201,FCs!$A$1:$A$11201,stats!$B13,FCs!$V$1:$V$11201,stats!K$2,FCs!$W$1:$W$11201,stats!K$1) -> 2.5 | L13: =SUMIFS(FCs!$AA$1:$AA$11201,FCs!$A$1:$A$11201,stats!$B13,FCs!$V$1:$V$11201,stats!L$2,FCs!$W$1:$W$11201,stats!L$1) -> 0 | M13: =SUMIFS(FCs!$AA$1:$AA$11201,FCs!$A$1:$A$11201,stats!$B13,FCs!$V$1:$V$11201,stats!M$2,FCs!$W$1:$W$11201,stats!M$1) -> 3.25 | N13: =SUMIFS(FCs!$AA$1:$AA$11201,FCs!$A$1:$A$11201,stats!$B13,FCs!$V$1:$V$11201,stats!N$2,FCs!$W$1:$W$11201,stats!N$1) -> 0 | O13: =SUMIFS(FCs!$AA$1:$AA$11201,FCs!$A$1:$A$11201,stats!$B13,FCs!$V$1:$V$11201,stats!O$2,FCs!$W$1:$W$11201,stats!O$1) -> 4 | P13: =SUMIFS(FCs!$AA$1:$AA$11201,FCs!$A$1:$A$11201,stats!$B13,FCs!$V$1:$V$11201,stats!P$2,FCs!$W$1:$W$11201,stats!P$1) -> 2 | Q13: =SUMIFS(FCs!$AA$1:$AA$11201,FCs!$A$1:$A$11201,stats!$B13,FCs!$V$1:$V$11201,stats!Q$2,FCs!$W$1:$W$11201,stats!Q$1) -> 3 | S13: 20.875 | T13: 0.0373392957 | V13: 8
A14: 105 | B14: Dearie.Excess | F14: =SUMIFS(FCs!$AA$1:$AA$11201,FCs!$A$1:$A$11201,stats!$B14,FCs!$V$1:$V$11201,stats!F$2,FCs!$W$1:$W$11201,stats!F$1) -> 0 | G14: =SUMIFS(FCs!$AA$1:$AA$11201,FCs!$A$1:$A$11201,stats!$B14,FCs!$V$1:$V$11201,stats!G$2,FCs!$W$1:$W$11201,stats!G$1) -> 0 | H14: =SUMIFS(FCs!$AA$1:$AA$11201,FCs!$A$1:$A$11201,stats!$B14,FCs!$V$1:$V$11201,stats!H$2,FCs!$W$1:$W$11201,stats!H$1) -> 0 | I14: =SUMIFS(FCs!$AA$1:$AA$11201,FCs!$A$1:$A$11201,stats!$B14,FCs!$V$1:$V$11201,stats!I$2,FCs!$W$1:$W$11201,stats!I$1) -> 0 | J14: =SUMIFS(FCs!$AA$1:$AA$11201,FCs!$A$1:$A$11201,stats!$B14,FCs!$V$1:$V$11201,stats!J$2,FCs!$W$1:$W$11201,stats!J$1) -> 0 | K14: =SUMIFS(FCs!$AA$1:$AA$11201,FCs!$A$1:$A$11201,stats!$B14,FCs!$V$1:$V$11201,stats!K$2,FCs!$W$1:$W$11201,stats!K$1) -> 0 | L14: =SUMIFS(FCs!$AA$1:$AA$11201,FCs!$A$1:$A$11201,stats!$B14,FCs!$V$1:$V$11201,stats!L$2,FCs!$W$1:$W$11201,stats!L$1) -> 0 | M14: =SUMIFS(FCs!$AA$1:$AA$11201,FCs!$A$1:$A$11201,stats!$B14,FCs!$V$1:$V$11201,stats!M$2,FCs!$W$1:$W$11201,stats!M$1) -> 0 | N14: =SUMIFS(FCs!$AA$1:$AA$11201,FCs!$A$1:$A$11201,stats!$B14,FCs!$V$1:$V$11201,stats!N$2,FCs!$W$1:$W$11201,stats!N$1) -> 0 | O14: =SUMIFS(FCs!$AA$1:$AA$11201,FCs!$A$1:$A$11201,stats!$B14,FCs!$V$1:$V$11201,stats!O$2,FCs!$W$1:$W$11201,stats!O$1) -> 0 | P14: =SUMIFS(FCs!$AA$1:$AA$11201,FCs!$A$1:$A$11201,stats!$B14,FCs!$V$1:$V$11201,stats!P$2,FCs!$W$1:$W$11201,stats!P$1) -> 0 | Q14: =SUMIFS(FCs!$AA$1:$AA$11201,FCs!$A$1:$A$11201,stats!$B14,FCs!$V$1:$V$11201,stats!Q$2,FCs!$W$1:$W$11201,stats!Q$1) -> 0 | S14: =SUM(F14:K14)+0.5*SUM(L14:M14)+0.25*SUM(N14:O14) -> 0 | T14: 0 | V14: 52
A15: =syllabus!A14 -> 110 | B15: =VLOOKUP(A15,Syllabus,2,FALSE) -> Feldblum.Discount | D15: =C15/C$3 -> 0 | F15: =SUMIFS(FCs!$AA$1:$AA$11201,FCs!$A$1:$A$11201,stats!$B15,FCs!$V$1:$V$11201,stats!F$2,FCs!$W$1:$W$11201,stats!F$1) -> 0 | G15: =SUMIFS(FCs!$AA$1:$AA$11201,FCs!$A$1:$A$11201,stats!$B15,FCs!$V$1:$V$11201,stats!G$2,FCs!$W$1:$W$11201,stats!G$1) -> 0 | H15: =SUMIFS(FCs!$AA$1:$AA$11201,FCs!$A$1:$A$11201,stats!$B15,FCs!$V$1:$V$11201,stats!H$2,FCs!$W$1:$W$11201,stats!H$1) -> 0 | I15: =SUMIFS(FCs!$AA$1:$AA$11201,FCs!$A$1:$A$11201,stats!$B15,FCs!$V$1:$V$11201,stats!I$2,FCs!$W$1:$W$11201,stats!I$1) -> 2.25 | J15: =SUMIFS(FCs!$AA$1:$AA$11201,FCs!$A$1:$A$11201,stats!$B15,FCs!$V$1:$V$11201,stats!J$2,FCs!$W$1:$W$11201,stats!J$1) -> 0 | K15: =SUMIFS(FCs!$AA$1:$AA$11201,FCs!$A$1:$A$11201,stats!$B15,FCs!$V$1:$V$11201,stats!K$2,FCs!$W$1:$W$11201,stats!K$1) -> 0 | L15: =SUMIFS(FCs!$AA$1:$AA$11201,FCs!$A$1:$A$11201,stats!$B15,FCs!$V$1:$V$11201,stats!L$2,FCs!$W$1:$W$11201,stats!L$1) -> 0 | M15: =SUMIFS(FCs!$AA$1:$AA$11201,FCs!$A$1:$A$11201,stats!$B15,FCs!$V$1:$V$11201,stats!M$2,FCs!$W$1:$W$11201,stats!M$1) -> 0 | N15: =SUMIFS(FCs!$AA$1:$AA$11201,FCs!$A$1:$A$11201,stats!$B15,FCs!$V$1:$V$11201,stats!N$2,FCs!$W$1:$W$11201,stats!N$1) -> 2.75 | O15: =SUMIFS(FCs!$AA$1:$AA$11201,FCs!$A$1:$A$11201,stats!$B15,FCs!$V$1:$V$11201,stats!O$2,FCs!$W$1:$W$11201,stats!O$1) -> 0 | P15: =SUMIFS(FCs!$AA$1:$AA$11201,FCs!$A$1:$A$11201,stats!$B15,FCs!$V$1:$V$11201,stats!P$2,FCs!$W$1:$W$11201,stats!P$1) -> 0 | Q15: =SUMIFS(FCs!$AA$1:$AA$11201,FCs!$A$1:$A$11201,stats!$B15,FCs!$V$1:$V$11201,stats!Q$2,FCs!$W$1:$W$11201,stats!Q$1) -> 0 | S15: =SUM(F15:K15)+0.5*SUM(L15:M15)+0.25*SUM(N15:O15) -> 2.9375 | T15: =S15/S$3 -> 0.005254332029 | V15: 35
A16: =syllabus!A15 -> 120 | B16: Feldblum.Ratings | D16: 0 | F16: =SUMIFS(FCs!$AA$1:$AA$11201,FCs!$A$1:$A$11201,stats!$B16,FCs!$V$1:$V$11201,stats!F$2,FCs!$W$1:$W$11201,stats!F$1) -> 1.75 | G16: =SUMIFS(FCs!$AA$1:$AA$11201,FCs!$A$1:$A$11201,stats!$B16,FCs!$V$1:$V$11201,stats!G$2,FCs!$W$1:$W$11201,stats!G$1) -> 0 | H16: =SUMIFS(FCs!$AA$1:$AA$11201,FCs!$A$1:$A$11201,stats!$B16,FCs!$V$1:$V$11201,stats!H$2,FCs!$W$1:$W$11201,stats!H$1) -> 0 | I16: =SUMIFS(FCs!$AA$1:$AA$11201,FCs!$A$1:$A$11201,stats!$B16,FCs!$V$1:$V$11201,stats!I$2,FCs!$W$1:$W$11201,stats!I$1) -> 2.5 | J16: =SUMIFS(FCs!$AA$1:$AA$11201,FCs!$A$1:$A$11201,stats!$B16,FCs!$V$1:$V$11201,stats!J$2,FCs!$W$1:$W$11201,stats!J$1) -> 0 | K16: =SUMIFS(FCs!$AA$1:$AA$11201,FCs!$A$1:$A$11201,stats!$B16,FCs!$V$1:$V$11201,stats!K$2,FCs!$W$1:$W$11201,stats!K$1) -> 0 | L16: =SUMIFS(FCs!$AA$1:$AA$11201,FCs!$A$1:$A$11201,stats!$B16,FCs!$V$1:$V$11201,stats!L$2,FCs!$W$1:$W$11201,stats!L$1) -> 3 | M16: =SUMIFS(FCs!$AA$1:$AA$11201,FCs!$A$1:$A$11201,stats!$B16,FCs!$V$1:$V$11201,stats!M$2,FCs!$W$1:$W$11201,stats!M$1) -> 5 | N16: =SUMIFS(FCs!$AA$1:$AA$11201,FCs!$A$1:$A$11201,stats!$B16,FCs!$V$1:$V$11201,stats!N$2,FCs!$W$1:$W$11201,stats!N$1) -> 0 | O16: =SUMIFS(FCs!$AA$1:$AA$11201,FCs!$A$1:$A$11201,stats!$B16,FCs!$V$1:$V$11201,stats!O$2,FCs!$W$1:$W$11201,stats!O$1) -> 0 | P16: =SUMIFS(FCs!$AA$1:$AA$11201,FCs!$A$1:$A$11201,stats!$B16,FCs!$V$1:$V$11201,stats!P$2,FCs!$W$1:$W$11201,stats!P$1) -> 4.25 | Q16: =SUMIFS(FCs!$AA$1:$AA$11201,FCs!$A$1:$A$11201,stats!$B16,FCs!$V$1:$V$11201,stats!Q$2,FCs!$W$1:$W$11201,stats!Q$1) -> 3 | S16: 8.25 | T16: 0.0147568474 | V16: 21
A17: =syllabus!A16 -> 130 | B17: Feldblum.Surplus | D17: 0 | F17: =SUMIFS(FCs!$AA$1:$AA$11201,FCs!$A$1:$A$11201,stats!$B17,FCs!$V$1:$V$11201,stats!F$2,FCs!$W$1:$W$11201,stats!F$1) -> 0 | G17: =SUMIFS(FCs!$AA$1:$AA$11201,FCs!$A$1:$A$11201,stats!$B17,FCs!$V$1:$V$11201,stats!G$2,FCs!$W$1:$W$11201,stats!G$1) -> 2.5 | H17: =SUMIFS(FCs!$AA$1:$AA$11201,FCs!$A$1:$A$11201,stats!$B17,FCs!$V$1:$V$11201,stats!H$2,FCs!$W$1:$W$11201,stats!H$1) -> 0 | I17: =SUMIFS(FCs!$AA$1:$AA$11201,FCs!$A$1:$A$11201,stats!$B17,FCs!$V$1:$V$11201,stats!I$2,FCs!$W$1:$W$11201,stats!I$1) -> 4.25 | J17: =SUMIFS(FCs!$AA$1:$AA$11201,FCs!$A$1:$A$11201,stats!$B17,FCs!$V$1:$V$11201,stats!J$2,FCs!$W$1:$W$11201,stats!J$1) -> 0 | K17: =SUMIFS(FCs!$AA$1:$AA$11201,FCs!$A$1:$A$11201,stats!$B17,FCs!$V$1:$V$11201,stats!K$2,FCs!$W$1:$W$11201,stats!K$1) -> 0 | L17: =SUMIFS(FCs!$AA$1:$AA$11201,FCs!$A$1:$A$11201,stats!$B17,FCs!$V$1:$V$11201,stats!L$2,FCs!$W$1:$W$11201,stats!L$1) -> 0 | M17: =SUMIFS(FCs!$AA$1:$AA$11201,FCs!$A$1:$A$11201,stats!$B17,FCs!$V$1:$V$11201,stats!M$2,FCs!$W$1:$W$11201,stats!M$1) -> 3.5 | N17: =SUMIFS(FCs!$AA$1:$AA$11201,FCs!$A$1:$A$11201,stats!$B17,FCs!$V$1:$V$11201,stats!N$2,FCs!$W$1:$W$11201,stats!N$1) -> 0 | O17: =SUMIFS(FCs!$AA$1:$AA$11201,FCs!$A$1:$A$11201,stats!$B17,FCs!$V$1:$V$11201,stats!O$2,FCs!$W$1:$W$11201,stats!O$1) -> 0 | P17: =SUMIFS(FCs!$AA$1:$AA$11201,FCs!$A$1:$A$11201,stats!$B17,FCs!$V$1:$V$11201,stats!P$2,FCs!$W$1:$W$11201,stats!P$1) -> 0 | Q17: =SUMIFS(FCs!$AA$1:$AA$11201,FCs!$A$1:$A$11201,stats!$B17,FCs!$V$1:$V$11201,stats!Q$2,FCs!$W$1:$W$11201,stats!Q$1) -> 0 | S17: 8.5 | T17: 0.01520402459 | V17: 19
A18: =syllabus!A17 -> 140 | B18: FASB.944 | D18: 0 | F18: =SUMIFS(FCs!$AA$1:$AA$11201,FCs!$A$1:$A$11201,stats!$B18,FCs!$V$1:$V$11201,stats!F$2,FCs!$W$1:$W$11201,stats!F$1) -> 0 | G18: =SUMIFS(FCs!$AA$1:$AA$11201,FCs!$A$1:$A$11201,stats!$B18,FCs!$V$1:$V$11201,stats!G$2,FCs!$W$1:$W$11201,stats!G$1) -> 0 | H18: =SUMIFS(FCs!$AA$1:$AA$11201,FCs!$A$1:$A$11201,stats!$B18,FCs!$V$1:$V$11201,stats!H$2,FCs!$W$1:$W$11201,stats!H$1) -> 0 | I18: =SUMIFS(FCs!$AA$1:$AA$11201,FCs!$A$1:$A$11201,stats!$B18,FCs!$V$1:$V$11201,stats!I$2,FCs!$W$1:$W$11201,stats!I$1) -> 0 | J18: =SUMIFS(FCs!$AA$1:$AA$11201,FCs!$A$1:$A$11201,stats!$B18,FCs!$V$1:$V$11201,stats!J$2,FCs!$W$1:$W$11201,stats!J$1) -> 0 | K18: =SUMIFS(FCs!$AA$1:$AA$11201,FCs!$A$1:$A$11201,stats!$B18,FCs!$V$1:$V$11201,stats!K$2,FCs!$W$1:$W$11201,stats!K$1) -> 0 | L18: =SUMIFS(FCs!$AA$1:$AA$11201,FCs!$A$1:$A$11201,stats!$B18,FCs!$V$1:$V$11201,stats!L$2,FCs!$W$1:$W$11201,stats!L$1) -> 0 | M18: =SUMIFS(FCs!$AA$1:$AA$11201,FCs!$A$1:$A$11201,stats!$B18,FCs!$V$1:$V$11201,stats!M$2,FCs!$W$1:$W$11201,stats!M$1) -> 0 | N18: =SUMIFS(FCs!$AA$1:$AA$11201,FCs!$A$1:$A$11201,stats!$B18,FCs!$V$1:$V$11201,stats!N$2,FCs!$W$1:$W$11201,stats!N$1) -> 0 | O18: =SUMIFS(FCs!$AA$1:$AA$11201,FCs!$A$1:$A$11201,stats!$B18,FCs!$V$1:$V$11201,stats!O$2,FCs!$W$1:$W$11201,stats!O$1) -> 0 | P18: =SUMIFS(FCs!$AA$1:$AA$11201,FCs!$A$1:$A$11201,stats!$B18,FCs!$V$1:$V$11201,stats!P$2,FCs!$W$1:$W$11201,stats!P$1) -> 0 | Q18: =SUMIFS(FCs!$AA$1:$AA$11201,FCs!$A$1:$A$11201,stats!$B18,FCs!$V$1:$V$11201,stats!Q$2,FCs!$W$1:$W$11201,stats!Q$1) -> 0 | S18: 0 | T18: 0 | V18: 52
A19: =syllabus!A18 -> 150 | B19: Freihaut.Reins | D19: 0 | F19: =SUMIFS(FCs!$AA$1:$AA$11201,FCs!$A$1:$A$11201,stats!$B19,FCs!$V$1:$V$11201,stats!F$2,FCs!$W$1:$W$11201,stats!F$1) -> 3.25 | G19: =SUMIFS(FCs!$AA$1:$AA$11201,FCs!$A$1:$A$11201,stats!$B19,FCs!$V$1:$V$11201,stats!G$2,FCs!$W$1:$W$11201,stats!G$1) -> 2.75 | H19: =SUMIFS(FCs!$AA$1:$AA$11201,FCs!$A$1:$A$11201,stats!$B19,FCs!$V$1:$V$11201,stats!H$2,FCs!$W$1:$W$11201,stats!H$1) -> 0 | I19: =SUMIFS(FCs!$AA$1:$AA$11201,FCs!$A$1:$A$11201,stats!$B19,FCs!$V$1:$V$11201,stats!I$2,FCs!$W$1:$W$11201,stats!I$1) -> 2.75 | J19: =SUMIFS(FCs!$AA$1:$AA$11201,FCs!$A$1:$A$11201,stats!$B19,FCs!$V$1:$V$11201,stats!J$2,FCs!$W$1:$W$11201,stats!J$1) -> 1.5 | K19: =SUMIFS(FCs!$AA$1:$AA$11201,FCs!$A$1:$A$11201,stats!$B19,FCs!$V$1:$V$11201,stats!K$2,FCs!$W$1:$W$11201,stats!K$1) -> 1.25 | L19: =SUMIFS(FCs!$AA$1:$AA$11201,FCs!$A$1:$A$11201,stats!$B19,FCs!$V$1:$V$11201,stats!L$2,FCs!$W$1:$W$11201,stats!L$1) -> 2.5 | M19: =SUMIFS(FCs!$AA$1:$AA$11201,FCs!$A$1:$A$11201,stats!$B19,FCs!$V$1:$V$11201,stats!M$2,FCs!$W$1:$W$11201,stats!M$1) -> 2.25 | N19: =SUMIFS(FCs!$AA$1:$AA$11201,FCs!$A$1:$A$11201,stats!$B19,FCs!$V$1:$V$11201,stats!N$2,FCs!$W$1:$W$11201,stats!N$1) -> 0 | O19: =SUMIFS(FCs!$AA$1:$AA$11201,FCs!$A$1:$A$11201,stats!$B19,FCs!$V$1:$V$11201,stats!O$2,FCs!$W$1:$W$11201,stats!O$1) -> 4.25 | P19: =SUMIFS(FCs!$AA$1:$AA$11201,FCs!$A$1:$A$11201,stats!$B19,FCs!$V$1:$V$11201,stats!P$2,FCs!$W$1:$W$11201,stats!P$1) -> 2.25 | Q19: =SUMIFS(FCs!$AA$1:$AA$11201,FCs!$A$1:$A$11201,stats!$B19,FCs!$V$1:$V$11201,stats!Q$2,FCs!$W$1:$W$11201,stats!Q$1) -> 1.5 | S19: 14.9375 | T19: 0.02671883734 | V19: 11
A20: =syllabus!A19 -> 160 | B20: GAO.Report | C20: 58 | D20: 0.1795665635 | F20: =SUMIFS(FCs!$AA$1:$AA$11201,FCs!$A$1:$A$11201,stats!$B20,FCs!$V$1:$V$11201,stats!F$2,FCs!$W$1:$W$11201,stats!F$1) -> 0 | G20: =SUMIFS(FCs!$AA$1:$AA$11201,FCs!$A$1:$A$11201,stats!$B20,FCs!$V$1:$V$11201,stats!G$2,FCs!$W$1:$W$11201,stats!G$1) -> 0 | H20: =SUMIFS(FCs!$AA$1:$AA$11201,FCs!$A$1:$A$11201,stats!$B20,FCs!$V$1:$V$11201,stats!H$2,FCs!$W$1:$W$11201,stats!H$1) -> 0 | I20: =SUMIFS(FCs!$AA$1:$AA$11201,FCs!$A$1:$A$11201,stats!$B20,FCs!$V$1:$V$11201,stats!I$2,FCs!$W$1:$W$11201,stats!I$1) -> 0 | J20: =SUMIFS(FCs!$AA$1:$AA$11201,FCs!$A$1:$A$11201,stats!$B20,FCs!$V$1:$V$11201,stats!J$2,FCs!$W$1:$W$11201,stats!J$1) -> 0 | K20: =SUMIFS(FCs!$AA$1:$AA$11201,FCs!$A$1:$A$11201,stats!$B20,FCs!$V$1:$V$11201,stats!K$2,FCs!$W$1:$W$11201,stats!K$1) -> 3 | L20: =SUMIFS(FCs!$AA$1:$AA$11201,FCs!$A$1:$A$11201,stats!$B20,FCs!$V$1:$V$11201,stats!L$2,FCs!$W$1:$W$11201,stats!L$1) -> 2 | M20: =SUMIFS(FCs!$AA$1:$AA$11201,FCs!$A$1:$A$11201,stats!$B20,FCs!$V$1:$V$11201,stats!M$2,FCs!$W$1:$W$11201,stats!M$1) -> 0 | N20: =SUMIFS(FCs!$AA$1:$AA$11201,FCs!$A$1:$A$11201,stats!$B20,FCs!$V$1:$V$11201,stats!N$2,FCs!$W$1:$W$11201,stats!N$1) -> 2.75 | O20: =SUMIFS(FCs!$AA$1:$AA$11201,FCs!$A$1:$A$11201,stats!$B20,FCs!$V$1:$V$11201,stats!O$2,FCs!$W$1:$W$11201,stats!O$1) -> 0 | P20: =SUMIFS(FCs!$AA$1:$AA$11201,FCs!$A$1:$A$11201,stats!$B20,FCs!$V$1:$V$11201,stats!P$2,FCs!$W$1:$W$11201,stats!P$1) -> 0 | Q20: =SUMIFS(FCs!$AA$1:$AA$11201,FCs!$A$1:$A$11201,stats!$B20,FCs!$V$1:$V$11201,stats!Q$2,FCs!$W$1:$W$11201,stats!Q$1) -> 0 | S20: 4.6875 | T20: 0.008384572387 | V20: 29
A21: =syllabus!A20 -> 170 | B21: Germani.GovtIns | C21: 18 | D21: 0.05572755418 | F21: =SUMIFS(FCs!$AA$1:$AA$11201,FCs!$A$1:$A$11201,stats!$B21,FCs!$V$1:$V$11201,stats!F$2,FCs!$W$1:$W$11201,stats!F$1) -> 2 | G21: =SUMIFS(FCs!$AA$1:$AA$11201,FCs!$A$1:$A$11201,stats!$B21,FCs!$V$1:$V$11201,stats!G$2,FCs!$W$1:$W$11201,stats!G$1) -> 1 | H21: =SUMIFS(FCs!$AA$1:$AA$11201,FCs!$A$1:$A$11201,stats!$B21,FCs!$V$1:$V$11201,stats!H$2,FCs!$W$1:$W$11201,stats!H$1) -> 3 | I21: =SUMIFS(FCs!$AA$1:$AA$11201,FCs!$A$1:$A$11201,stats!$B21,FCs!$V$1:$V$11201,stats!I$2,FCs!$W$1:$W$11201,stats!I$1) -> 2.5 | J21: =SUMIFS(FCs!$AA$1:$AA$11201,FCs!$A$1:$A$11201,stats!$B21,FCs!$V$1:$V$11201,stats!J$2,FCs!$W$1:$W$11201,stats!J$1) -> 3 | K21: =SUMIFS(FCs!$AA$1:$AA$11201,FCs!$A$1:$A$11201,stats!$B21,FCs!$V$1:$V$11201,stats!K$2,FCs!$W$1:$W$11201,stats!K$1) -> 2.5 | L21: =SUMIFS(FCs!$AA$1:$AA$11201,FCs!$A$1:$A$11201,stats!$B21,FCs!$V$1:$V$11201,stats!L$2,FCs!$W$1:$W$11201,stats!L$1) -> 5 | M21: =SUMIFS(FCs!$AA$1:$AA$11201,FCs!$A$1:$A$11201,stats!$B21,FCs!$V$1:$V$11201,stats!M$2,FCs!$W$1:$W$11201,stats!M$1) -> 1.5 | N21: =SUMIFS(FCs!$AA$1:$AA$11201,FCs!$A$1:$A$11201,stats!$B21,FCs!$V$1:$V$11201,stats!N$2,FCs!$W$1:$W$11201,stats!N$1) -> 2.5 | O21: =SUMIFS(FCs!$AA$1:$AA$11201,FCs!$A$1:$A$11201,stats!$B21,FCs!$V$1:$V$11201,stats!O$2,FCs!$W$1:$W$11201,stats!O$1) -> 4.75 | P21: =SUMIFS(FCs!$AA$1:$AA$11201,FCs!$A$1:$A$11201,stats!$B21,FCs!$V$1:$V$11201,stats!P$2,FCs!$W$1:$W$11201,stats!P$1) -> 2.75 | Q21: =SUMIFS(FCs!$AA$1:$AA$11201,FCs!$A$1:$A$11201,stats!$B21,FCs!$V$1:$V$11201,stats!Q$2,FCs!$W$1:$W$11201,stats!Q$1) -> 6 | S21: 19.0625 | T21: 0.03409726104 | V21: 10
A22: 174 | B22: Horn2018.Flood | F22: =SUMIFS(FCs!$AA$1:$AA$11201,FCs!$A$1:$A$11201,stats!$B22,FCs!$V$1:$V$11201,stats!F$2,FCs!$W$1:$W$11201,stats!F$1) -> 0 | G22: =SUMIFS(FCs!$AA$1:$AA$11201,FCs!$A$1:$A$11201,stats!$B22,FCs!$V$1:$V$11201,stats!G$2,FCs!$W$1:$W$11201,stats!G$1) -> 0 | H22: =SUMIFS(FCs!$AA$1:$AA$11201,FCs!$A$1:$A$11201,stats!$B22,FCs!$V$1:$V$11201,stats!H$2,FCs!$W$1:$W$11201,stats!H$1) -> 0 | I22: =SUMIFS(FCs!$AA$1:$AA$11201,FCs!$A$1:$A$11201,stats!$B22,FCs!$V$1:$V$11201,stats!I$2,FCs!$W$1:$W$11201,stats!I$1) -> 0 | J22: =SUMIFS(FCs!$AA$1:$AA$11201,FCs!$A$1:$A$11201,stats!$B22,FCs!$V$1:$V$11201,stats!J$2,FCs!$W$1:$W$11201,stats!J$1) -> 0 | K22: =SUMIFS(FCs!$AA$1:$AA$11201,FCs!$A$1:$A$11201,stats!$B22,FCs!$V$1:$V$11201,stats!K$2,FCs!$W$1:$W$11201,stats!K$1) -> 0 | L22: =SUMIFS(FCs!$AA$1:$AA$11201,FCs!$A$1:$A$11201,stats!$B22,FCs!$V$1:$V$11201,stats!L$2,FCs!$W$1:$W$11201,stats!L$1) -> 0 | M22: =SUMIFS(FCs!$AA$1:$AA$11201,FCs!$A$1:$A$11201,stats!$B22,FCs!$V$1:$V$11201,stats!M$2,FCs!$W$1:$W$11201,stats!M$1) -> 0 | N22: =SUMIFS(FCs!$AA$1:$AA$11201,FCs!$A$1:$A$11201,stats!$B22,FCs!$V$1:$V$11201,stats!N$2,FCs!$W$1:$W$11201,stats!N$1) -> 0 | O22: =SUMIFS(FCs!$AA$1:$AA$11201,FCs!$A$1:$A$11201,stats!$B22,FCs!$V$1:$V$11201,stats!O$2,FCs!$W$1:$W$11201,stats!O$1) -> 0 | P22: =SUMIFS(FCs!$AA$1:$AA$11201,FCs!$A$1:$A$11201,stats!$B22,FCs!$V$1:$V$11201,stats!P$2,FCs!$W$1:$W$11201,stats!P$1) -> 0 | Q22: =SUMIFS(FCs!$AA$1:$AA$11201,FCs!$A$1:$A$11201,stats!$B22,FCs!$V$1:$V$11201,stats!Q$2,FCs!$W$1:$W$11201,stats!Q$1) -> 0 | S22: 0 | T22: 0 | V22: 52
A23: =syllabus!A22 -> 175 | B23: Horn.Flood | C23: 86 | D23: =C23/C$3 -> 0.26625387 | F23: =SUMIFS(FCs!$AA$1:$AA$11201,FCs!$A$1:$A$11201,stats!$B23,FCs!$V$1:$V$11201,stats!F$2,FCs!$W$1:$W$11201,stats!F$1) -> 2.5 | G23: =SUMIFS(FCs!$AA$1:$AA$11201,FCs!$A$1:$A$11201,stats!$B23,FCs!$V$1:$V$11201,stats!G$2,FCs!$W$1:$W$11201,stats!G$1) -> 0 | H23: =SUMIFS(FCs!$AA$1:$AA$11201,FCs!$A$1:$A$11201,stats!$B23,FCs!$V$1:$V$11201,stats!H$2,FCs!$W$1:$W$11201,stats!H$1) -> 0 | I23: =SUMIFS(FCs!$AA$1:$AA$11201,FCs!$A$1:$A$11201,stats!$B23,FCs!$V$1:$V$11201,stats!I$2,FCs!$W$1:$W$11201,stats!I$1) -> 0 | J23: =SUMIFS(FCs!$AA$1:$AA$11201,FCs!$A$1:$A$11201,stats!$B23,FCs!$V$1:$V$11201,stats!J$2,FCs!$W$1:$W$11201,stats!J$1) -> 0 | K23: =SUMIFS(FCs!$AA$1:$AA$11201,FCs!$A$1:$A$11201,stats!$B23,FCs!$V$1:$V$11201,stats!K$2,FCs!$W$1:$W$11201,stats!K$1) -> 0 | L23: =SUMIFS(FCs!$AA$1:$AA$11201,FCs!$A$1:$A$11201,stats!$B23,FCs!$V$1:$V$11201,stats!L$2,FCs!$W$1:$W$11201,stats!L$1) -> 0 | M23: =SUMIFS(FCs!$AA$1:$AA$11201,FCs!$A$1:$A$11201,stats!$B23,FCs!$V$1:$V$11201,stats!M$2,FCs!$W$1:$W$11201,stats!M$1) -> 0 | N23: =SUMIFS(FCs!$AA$1:$AA$11201,FCs!$A$1:$A$11201,stats!$B23,FCs!$V$1:$V$11201,stats!N$2,FCs!$W$1:$W$11201,stats!N$1) -> 0 | O23: =SUMIFS(FCs!$AA$1:$AA$11201,FCs!$A$1:$A$11201,stats!$B23,FCs!$V$1:$V$11201,stats!O$2,FCs!$W$1:$W$11201,stats!O$1) -> 0 | P23: =SUMIFS(FCs!$AA$1:$AA$11201,FCs!$A$1:$A$11201,stats!$B23,FCs!$V$1:$V$11201,stats!P$2,FCs!$W$1:$W$11201,stats!P$1) -> 0 | Q23: =SUMIFS(FCs!$AA$1:$AA$11201,FCs!$A$1:$A$11201,stats!$B23,FCs!$V$1:$V$11201,stats!Q$2,FCs!$W$1:$W$11201,stats!Q$1) -> 0 | S23: 0 | T23: 0 | V23: 52
A24: =syllabus!A23 -> 180 | B24: NAIC.Telematics | D24: 0 | F24: =SUMIFS(FCs!$AA$1:$AA$11201,FCs!$A$1:$A$11201,stats!$B24,FCs!$V$1:$V$11201,stats!F$2,FCs!$W$1:$W$11201,stats!F$1) -> 0 | G24: =SUMIFS(FCs!$AA$1:$AA$11201,FCs!$A$1:$A$11201,stats!$B24,FCs!$V$1:$V$11201,stats!G$2,FCs!$W$1:$W$11201,stats!G$1) -> 0 | H24: =SUMIFS(FCs!$AA$1:$AA$11201,FCs!$A$1:$A$11201,stats!$B24,FCs!$V$1:$V$11201,stats!H$2,FCs!$W$1:$W$11201,stats!H$1) -> 2 | I24: =SUMIFS(FCs!$AA$1:$AA$11201,FCs!$A$1:$A$11201,stats!$B24,FCs!$V$1:$V$11201,stats!I$2,FCs!$W$1:$W$11201,stats!I$1) -> 3.75 | J24: =SUMIFS(FCs!$AA$1:$AA$11201,FCs!$A$1:$A$11201,stats!$B24,FCs!$V$1:$V$11201,stats!J$2,FCs!$W$1:$W$11201,stats!J$1) -> 0 | K24: =SUMIFS(FCs!$AA$1:$AA$11201,FCs!$A$1:$A$11201,stats!$B24,FCs!$V$1:$V$11201,stats!K$2,FCs!$W$1:$W$11201,stats!K$1) -> 0 | L24: =SUMIFS(FCs!$AA$1:$AA$11201,FCs!$A$1:$A$11201,stats!$B24,FCs!$V$1:$V$11201,stats!L$2,FCs!$W$1:$W$11201,stats!L$1) -> 0 | M24: =SUMIFS(FCs!$AA$1:$AA$11201,FCs!$A$1:$A$11201,stats!$B24,FCs!$V$1:$V$11201,stats!M$2,FCs!$W$1:$W$11201,stats!M$1) -> 0 | N24: =SUMIFS(FCs!$AA$1:$AA$11201,FCs!$A$1:$A$11201,stats!$B24,FCs!$V$1:$V$11201,stats!N$2,FCs!$W$1:$W$11201,stats!N$1) -> 0 | O24: =SUMIFS(FCs!$AA$1:$AA$11201,FCs!$A$1:$A$11201,stats!$B24,FCs!$V$1:$V$11201,stats!O$2,FCs!$W$1:$W$11201,stats!O$1) -> 0 | P24: =SUMIFS(FCs!$AA$1:$AA$11201,FCs!$A$1:$A$11201,stats!$B24,FCs!$V$1:$V$11201,stats!P$2,FCs!$W$1:$W$11201,stats!P$1) -> 0 | Q24: =SUMIFS(FCs!$AA$1:$AA$11201,FCs!$A$1:$A$11201,stats!$B24,FCs!$V$1:$V$11201,stats!Q$2,FCs!$W$1:$W$11201,stats!Q$1) -> 0 | S24: =SUM(F24:K24)+0.5*SUM(L24:M24)+0.25*SUM(N24:O24) -> 5.75 | T24: 0.01028507546 | V24: 25
A25: =syllabus!A24 -> 190 | B25: King.Flood | D25: 0 | F25: =SUMIFS(FCs!$AA$1:$AA$11201,FCs!$A$1:$A$11201,stats!$B25,FCs!$V$1:$V$11201,stats!F$2,FCs!$W$1:$W$11201,stats!F$1) -> 0 | G25: =SUMIFS(FCs!$AA$1:$AA$11201,FCs!$A$1:$A$11201,stats!$B25,FCs!$V$1:$V$11201,stats!G$2,FCs!$W$1:$W$11201,stats!G$1) -> 0 | H25: =SUMIFS(FCs!$AA$1:$AA$11201,FCs!$A$1:$A$11201,stats!$B25,FCs!$V$1:$V$11201,stats!H$2,FCs!$W$1:$W$11201,stats!H$1) -> 2.75 | I25: =SUMIFS(FCs!$AA$1:$AA$11201,FCs!$A$1:$A$11201,stats!$B25,FCs!$V$1:$V$11201,stats!I$2,FCs!$W$1:$W$11201,stats!I$1) -> 1 | J25: =SUMIFS(FCs!$AA$1:$AA$11201,FCs!$A$1:$A$11201,stats!$B25,FCs!$V$1:$V$11201,stats!J$2,FCs!$W$1:$W$11201,stats!J$1) -> 2.5 | K25: =SUMIFS(FCs!$AA$1:$AA$11201,FCs!$A$1:$A$11201,stats!$B25,FCs!$V$1:$V$11201,stats!K$2,FCs!$W$1:$W$11201,stats!K$1) -> 2.25 | L25: =SUMIFS(FCs!$AA$1:$AA$11201,FCs!$A$1:$A$11201,stats!$B25,FCs!$V$1:$V$11201,stats!L$2,FCs!$W$1:$W$11201,stats!L$1) -> 2 | M25: =SUMIFS(FCs!$AA$1:$AA$11201,FCs!$A$1:$A$11201,stats!$B25,FCs!$V$1:$V$11201,stats!M$2,FCs!$W$1:$W$11201,stats!M$1) -> 2 | N25: =SUMIFS(FCs!$AA$1:$AA$11201,FCs!$A$1:$A$11201,stats!$B25,FCs!$V$1:$V$11201,stats!N$2,FCs!$W$1:$W$11201,stats!N$1) -> 2.25 | O25: =SUMIFS(FCs!$AA$1:$AA$11201,FCs!$A$1:$A$11201,stats!$B25,FCs!$V$1:$V$11201,stats!O$2,FCs!$W$1:$W$11201,stats!O$1) -> 0 | P25: =SUMIFS(FCs!$AA$1:$AA$11201,FCs!$A$1:$A$11201,stats!$B25,FCs!$V$1:$V$11201,stats!P$2,FCs!$W$1:$W$11201,stats!P$1) -> 1.75 | Q25: =SUMIFS(FCs!$AA$1:$AA$11201,FCs!$A$1:$A$11201,stats!$B25,FCs!$V$1:$V$11201,stats!Q$2,FCs!$W$1:$W$11201,stats!Q$1) -> 0 | S25: 0 | T25: -0.01 | V25: 68.5
A26: =syllabus!A25 -> 200 | B26: Klann.ReinsComm | D26: 0 | F26: =SUMIFS(FCs!$AA$1:$AA$11201,FCs!$A$1:$A$11201,stats!$B26,FCs!$V$1:$V$11201,stats!F$2,FCs!$W$1:$W$11201,stats!F$1) -> 2 | G26: =SUMIFS(FCs!$AA$1:$AA$11201,FCs!$A$1:$A$11201,stats!$B26,FCs!$V$1:$V$11201,stats!G$2,FCs!$W$1:$W$11201,stats!G$1) -> 0 | H26: =SUMIFS(FCs!$AA$1:$AA$11201,FCs!$A$1:$A$11201,stats!$B26,FCs!$V$1:$V$11201,stats!H$2,FCs!$W$1:$W$11201,stats!H$1) -> 3 | I26: =SUMIFS(FCs!$AA$1:$AA$11201,FCs!$A$1:$A$11201,stats!$B26,FCs!$V$1:$V$11201,stats!I$2,FCs!$W$1:$W$11201,stats!I$1) -> 3 | J26: =SUMIFS(FCs!$AA$1:$AA$11201,FCs!$A$1:$A$11201,stats!$B26,FCs!$V$1:$V$11201,stats!J$2,FCs!$W$1:$W$11201,stats!J$1) -> 4.25 | K26: =SUMIFS(FCs!$AA$1:$AA$11201,FCs!$A$1:$A$11201,stats!$B26,FCs!$V$1:$V$11201,stats!K$2,FCs!$W$1:$W$11201,stats!K$1) -> 3.5 | L26: =SUMIFS(FCs!$AA$1:$AA$11201,FCs!$A$1:$A$11201,stats!$B26,FCs!$V$1:$V$11201,stats!L$2,FCs!$W$1:$W$11201,stats!L$1) -> 4.25 | M26: =SUMIFS(FCs!$AA$1:$AA$11201,FCs!$A$1:$A$11201,stats!$B26,FCs!$V$1:$V$11201,stats!M$2,FCs!$W$1:$W$11201,stats!M$1) -> 3 | N26: =SUMIFS(FCs!$AA$1:$AA$11201,FCs!$A$1:$A$11201,stats!$B26,FCs!$V$1:$V$11201,stats!N$2,FCs!$W$1:$W$11201,stats!N$1) -> 0 | O26: =SUMIFS(FCs!$AA$1:$AA$11201,FCs!$A$1:$A$11201,stats!$B26,FCs!$V$1:$V$11201,stats!O$2,FCs!$W$1:$W$11201,stats!O$1) -> 0 | P26: =SUMIFS(FCs!$AA$1:$AA$11201,FCs!$A$1:$A$11201,stats!$B26,FCs!$V$1:$V$11201,stats!P$2,FCs!$W$1:$W$11201,stats!P$1) -> 3.25 | Q26: =SUMIFS(FCs!$AA$1:$AA$11201,FCs!$A$1:$A$11201,stats!$B26,FCs!$V$1:$V$11201,stats!Q$2,FCs!$W$1:$W$11201,stats!Q$1) -> 0 | S26: =SUM(F26:K26)+0.5*SUM(L26:M26)+0.25*SUM(N26:O26) -> 19.375 | T26: =S26/S$3 -> 0.03465623253 | V26: 9
A27: =syllabus!A26 -> 210 | B27: Kucera.Credit | C27: 7 | D27: 0.02167182663 | F27: =SUMIFS(FCs!$AA$1:$AA$11201,FCs!$A$1:$A$11201,stats!$B27,FCs!$V$1:$V$11201,stats!F$2,FCs!$W$1:$W$11201,stats!F$1) -> 0 | G27: =SUMIFS(FCs!$AA$1:$AA$11201,FCs!$A$1:$A$11201,stats!$B27,FCs!$V$1:$V$11201,stats!G$2,FCs!$W$1:$W$11201,stats!G$1) -> 0 | H27: =SUMIFS(FCs!$AA$1:$AA$11201,FCs!$A$1:$A$11201,stats!$B27,FCs!$V$1:$V$11201,stats!H$2,FCs!$W$1:$W$11201,stats!H$1) -> 1.75 | I27: =SUMIFS(FCs!$AA$1:$AA$11201,FCs!$A$1:$A$11201,stats!$B27,FCs!$V$1:$V$11201,stats!I$2,FCs!$W$1:$W$11201,stats!I$1) -> 0 | J27: =SUMIFS(FCs!$AA$1:$AA$11201,FCs!$A$1:$A$11201,stats!$B27,FCs!$V$1:$V$11201,stats!J$2,FCs!$W$1:$W$11201,stats!J$1) -> 2.5 | K27: =SUMIFS(FCs!$AA$1:$AA$11201,FCs!$A$1:$A$11201,stats!$B27,FCs!$V$1:$V$11201,stats!K$2,FCs!$W$1:$W$11201,stats!K$1) -> 0 | L27: =SUMIFS(FCs!$AA$1:$AA$11201,FCs!$A$1:$A$11201,stats!$B27,FCs!$V$1:$V$11201,stats!L$2,FCs!$W$1:$W$11201,stats!L$1) -> 0 | M27: =SUMIFS(FCs!$AA$1:$AA$11201,FCs!$A$1:$A$11201,stats!$B27,FCs!$V$1:$V$11201,stats!M$2,FCs!$W$1:$W$11201,stats!M$1) -> 0 | N27: =SUMIFS(FCs!$AA$1:$AA$11201,FCs!$A$1:$A$11201,stats!$B27,FCs!$V$1:$V$11201,stats!N$2,FCs!$W$1:$W$11201,stats!N$1) -> 0 | O27: =SUMIFS(FCs!$AA$1:$AA$11201,FCs!$A$1:$A$11201,stats!$B27,FCs!$V$1:$V$11201,stats!O$2,FCs!$W$1:$W$11201,stats!O$1) -> 2 | P27: =SUMIFS(FCs!$AA$1:$AA$11201,FCs!$A$1:$A$11201,stats!$B27,FCs!$V$1:$V$11201,stats!P$2,FCs!$W$1:$W$11201,stats!P$1) -> 0 | Q27: =SUMIFS(FCs!$AA$1:$AA$11201,FCs!$A$1:$A$11201,stats!$B27,FCs!$V$1:$V$11201,stats!Q$2,FCs!$W$1:$W$11201,stats!Q$1) -> 0 | S27: 4.75 | T27: 0.008496366685 | V27: 28
A28: =syllabus!A27 -> 220 | B28: McCarty.Credit | C28: 57 | D28: 0.1764705882 | F28: =SUMIFS(FCs!$AA$1:$AA$11201,FCs!$A$1:$A$11201,stats!$B28,FCs!$V$1:$V$11201,stats!F$2,FCs!$W$1:$W$11201,stats!F$1) -> 1.5 | G28: =SUMIFS(FCs!$AA$1:$AA$11201,FCs!$A$1:$A$11201,stats!$B28,FCs!$V$1:$V$11201,stats!G$2,FCs!$W$1:$W$11201,stats!G$1) -> 0 | H28: =SUMIFS(FCs!$AA$1:$AA$11201,FCs!$A$1:$A$11201,stats!$B28,FCs!$V$1:$V$11201,stats!H$2,FCs!$W$1:$W$11201,stats!H$1) -> 0.5 | I28: =SUMIFS(FCs!$AA$1:$AA$11201,FCs!$A$1:$A$11201,stats!$B28,FCs!$V$1:$V$11201,stats!I$2,FCs!$W$1:$W$11201,stats!I$1) -> 0 | J28: =SUMIFS(FCs!$AA$1:$AA$11201,FCs!$A$1:$A$11201,stats!$B28,FCs!$V$1:$V$11201,stats!J$2,FCs!$W$1:$W$11201,stats!J$1) -> 0 | K28: =SUMIFS(FCs!$AA$1:$AA$11201,FCs!$A$1:$A$11201,stats!$B28,FCs!$V$1:$V$11201,stats!K$2,FCs!$W$1:$W$11201,stats!K$1) -> 2.5 | L28: =SUMIFS(FCs!$AA$1:$AA$11201,FCs!$A$1:$A$11201,stats!$B28,FCs!$V$1:$V$11201,stats!L$2,FCs!$W$1:$W$11201,stats!L$1) -> 2.25 | M28: =SUMIFS(FCs!$AA$1:$AA$11201,FCs!$A$1:$A$11201,stats!$B28,FCs!$V$1:$V$11201,stats!M$2,FCs!$W$1:$W$11201,stats!M$1) -> 0 | N28: =SUMIFS(FCs!$AA$1:$AA$11201,FCs!$A$1:$A$11201,stats!$B28,FCs!$V$1:$V$11201,stats!N$2,FCs!$W$1:$W$11201,stats!N$1) -> 3.75 | O28: =SUMIFS(FCs!$AA$1:$AA$11201,FCs!$A$1:$A$11201,stats!$B28,FCs!$V$1:$V$11201,stats!O$2,FCs!$W$1:$W$11201,stats!O$1) -> 0.75 | P28: =SUMIFS(FCs!$AA$1:$AA$11201,FCs!$A$1:$A$11201,stats!$B28,FCs!$V$1:$V$11201,stats!P$2,FCs!$W$1:$W$11201,stats!P$1) -> 0 | Q28: =SUMIFS(FCs!$AA$1:$AA$11201,FCs!$A$1:$A$11201,stats!$B28,FCs!$V$1:$V$11201,stats!Q$2,FCs!$W$1:$W$11201,stats!Q$1) -> 0 | S28: 6.75 | T28: 0.01207378424 | V28: 23
A29: =syllabus!A28 -> 230 | B29: NAIC.APPM | D29: 0 | F29: =SUMIFS(FCs!$AA$1:$AA$11201,FCs!$A$1:$A$11201,stats!$B29,FCs!$V$1:$V$11201,stats!F$2,FCs!$W$1:$W$11201,stats!F$1) -> 0 | G29: =SUMIFS(FCs!$AA$1:$AA$11201,FCs!$A$1:$A$11201,stats!$B29,FCs!$V$1:$V$11201,stats!G$2,FCs!$W$1:$W$11201,stats!G$1) -> 0 | H29: =SUMIFS(FCs!$AA$1:$AA$11201,FCs!$A$1:$A$11201,stats!$B29,FCs!$V$1:$V$11201,stats!H$2,FCs!$W$1:$W$11201,stats!H$1) -> 0 | I29: =SUMIFS(FCs!$AA$1:$AA$11201,FCs!$A$1:$A$11201,stats!$B29,FCs!$V$1:$V$11201,stats!I$2,FCs!$W$1:$W$11201,stats!I$1) -> 0 | J29: =SUMIFS(FCs!$AA$1:$AA$11201,FCs!$A$1:$A$11201,stats!$B29,FCs!$V$1:$V$11201,stats!J$2,FCs!$W$1:$W$11201,stats!J$1) -> 0 | K29: =SUMIFS(FCs!$AA$1:$AA$11201,FCs!$A$1:$A$11201,stats!$B29,FCs!$V$1:$V$11201,stats!K$2,FCs!$W$1:$W$11201,stats!K$1) -> 0 | L29: =SUMIFS(FCs!$AA$1:$AA$11201,FCs!$A$1:$A$11201,stats!$B29,FCs!$V$1:$V$11201,stats!L$2,FCs!$W$1:$W$11201,stats!L$1) -> 0 | M29: =SUMIFS(FCs!$AA$1:$AA$11201,FCs!$A$1:$A$11201,stats!$B29,FCs!$V$1:$V$11201,stats!M$2,FCs!$W$1:$W$11201,stats!M$1) -> 2 | N29: =SUMIFS(FCs!$AA$1:$AA$11201,FCs!$A$1:$A$11201,stats!$B29,FCs!$V$1:$V$11201,stats!N$2,FCs!$W$1:$W$11201,stats!N$1) -> 0 | O29: =SUMIFS(FCs!$AA$1:$AA$11201,FCs!$A$1:$A$11201,stats!$B29,FCs!$V$1:$V$11201,stats!O$2,FCs!$W$1:$W$11201,stats!O$1) -> 0 | P29: =SUMIFS(FCs!$AA$1:$AA$11201,FCs!$A$1:$A$11201,stats!$B29,FCs!$V$1:$V$11201,stats!P$2,FCs!$W$1:$W$11201,stats!P$1) -> 0 | Q29: =SUMIFS(FCs!$AA$1:$AA$11201,FCs!$A$1:$A$11201,stats!$B29,FCs!$V$1:$V$11201,stats!Q$2,FCs!$W$1:$W$11201,stats!Q$1) -> 0 | S29: 1 | T29: 0.001788708776 | V29: 38
A30: =syllabus!A29 -> 240 | B30: NAIC.SSAP-5R | D30: 0 | F30: =SUMIFS(FCs!$AA$1:$AA$11201,FCs!$A$1:$A$11201,stats!$B30,FCs!$V$1:$V$11201,stats!F$2,FCs!$W$1:$W$11201,stats!F$1) -> 0 | G30: =SUMIFS(FCs!$AA$1:$AA$11201,FCs!$A$1:$A$11201,stats!$B30,FCs!$V$1:$V$11201,stats!G$2,FCs!$W$1:$W$11201,stats!G$1) -> 0 | H30: =SUMIFS(FCs!$AA$1:$AA$11201,FCs!$A$1:$A$11201,stats!$B30,FCs!$V$1:$V$11201,stats!H$2,FCs!$W$1:$W$11201,stats!H$1) -> 0 | I30: =SUMIFS(FCs!$AA$1:$AA$11201,FCs!$A$1:$A$11201,stats!$B30,FCs!$V$1:$V$11201,stats!I$2,FCs!$W$1:$W$11201,stats!I$1) -> 0 | J30: =SUMIFS(FCs!$AA$1:$AA$11201,FCs!$A$1:$A$11201,stats!$B30,FCs!$V$1:$V$11201,stats!J$2,FCs!$W$1:$W$11201,stats!J$1) -> 0 | K30: =SUMIFS(FCs!$AA$1:$AA$11201,FCs!$A$1:$A$11201,stats!$B30,FCs!$V$1:$V$11201,stats!K$2,FCs!$W$1:$W$11201,stats!K$1) -> 0 | L30: =SUMIFS(FCs!$AA$1:$AA$11201,FCs!$A$1:$A$11201,stats!$B30,FCs!$V$1:$V$11201,stats!L$2,FCs!$W$1:$W$11201,stats!L$1) -> 0 | M30: =SUMIFS(FCs!$AA$1:$AA$11201,FCs!$A$1:$A$11201,stats!$B30,FCs!$V$1:$V$11201,stats!M$2,FCs!$W$1:$W$11201,stats!M$1) -> 0 | N30: =SUMIFS(FCs!$AA$1:$AA$11201,FCs!$A$1:$A$11201,stats!$B30,FCs!$V$1:$V$11201,stats!N$2,FCs!$W$1:$W$11201,stats!N$1) -> 0 | O30: =SUMIFS(FCs!$AA$1:$AA$11201,FCs!$A$1:$A$11201,stats!$B30,FCs!$V$1:$V$11201,stats!O$2,FCs!$W$1:$W$11201,stats!O$1) -> 0 | P30: =SUMIFS(FCs!$AA$1:$AA$11201,FCs!$A$1:$A$11201,stats!$B30,FCs!$V$1:$V$11201,stats!P$2,FCs!$W$1:$W$11201,stats!P$1) -> 0 | Q30: =SUMIFS(FCs!$AA$1:$AA$11201,FCs!$A$1:$A$11201,stats!$B30,FCs!$V$1:$V$11201,stats!Q$2,FCs!$W$1:$W$11201,stats!Q$1) -> 0 | S30: 0 | T30: 0 | V30: 52
A31: =syllabus!A30 -> 250 | B31: NAIC.SSAP-9 | D31: 0 | F31: =SUMIFS(FCs!$AA$1:$AA$11201,FCs!$A$1:$A$11201,stats!$B31,FCs!$V$1:$V$11201,stats!F$2,FCs!$W$1:$W$11201,stats!F$1) -> 0 | G31: =SUMIFS(FCs!$AA$1:$AA$11201,FCs!$A$1:$A$11201,stats!$B31,FCs!$V$1:$V$11201,stats!G$2,FCs!$W$1:$W$11201,stats!G$1) -> 0 | H31: =SUMIFS(FCs!$AA$1:$AA$11201,FCs!$A$1:$A$11201,stats!$B31,FCs!$V$1:$V$11201,stats!H$2,FCs!$W$1:$W$11201,stats!H$1) -> 0 | I31: =SUMIFS(FCs!$AA$1:$AA$11201,FCs!$A$1:$A$11201,stats!$B31,FCs!$V$1:$V$11201,stats!I$2,FCs!$W$1:$W$11201,stats!I$1) -> 0 | J31: =SUMIFS(FCs!$AA$1:$AA$11201,FCs!$A$1:$A$11201,stats!$B31,FCs!$V$1:$V$11201,stats!J$2,FCs!$W$1:$W$11201,stats!J$1) -> 0 | K31: =SUMIFS(FCs!$AA$1:$AA$11201,FCs!$A$1:$A$11201,stats!$B31,FCs!$V$1:$V$11201,stats!K$2,FCs!$W$1:$W$11201,stats!K$1) -> 0 | L31: =SUMIFS(FCs!$AA$1:$AA$11201,FCs!$A$1:$A$11201,stats!$B31,FCs!$V$1:$V$11201,stats!L$2,FCs!$W$1:$W$11201,stats!L$1) -> 0 | M31: =SUMIFS(FCs!$AA$1:$AA$11201,FCs!$A$1:$A$11201,stats!$B31,FCs!$V$1:$V$11201,stats!M$2,FCs!$W$1:$W$11201,stats!M$1) -> 0 | N31: =SUMIFS(FCs!$AA$1:$AA$11201,FCs!$A$1:$A$11201,stats!$B31,FCs!$V$1:$V$11201,stats!N$2,FCs!$W$1:$W$11201,stats!N$1) -> 2 | O31: =SUMIFS(FCs!$AA$1:$AA$11201,FCs!$A$1:$A$11201,stats!$B31,FCs!$V$1:$V$11201,stats!O$2,FCs!$W$1:$W$11201,stats!O$1) -> 0 | P31: =SUMIFS(FCs!$AA$1:$AA$11201,FCs!$A$1:$A$11201,stats!$B31,FCs!$V$1:$V$11201,stats!P$2,FCs!$W$1:$W$11201,stats!P$1) -> 0 | Q31: =SUMIFS(FCs!$AA$1:$AA$11201,FCs!$A$1:$A$11201,stats!$B31,FCs!$V$1:$V$11201,stats!Q$2,FCs!$W$1:$W$11201,stats!Q$1) -> 0 | S31: 0.5 | T31: 0.0008943543879 | V31: 39
A32: =syllabus!A31 -> 260 | B32: NAIC.SSAP-53 | D32: 0 | F32: =SUMIFS(FCs!$AA$1:$AA$11201,FCs!$A$1:$A$11201,stats!$B32,FCs!$V$1:$V$11201,stats!F$2,FCs!$W$1:$W$11201,stats!F$1) -> 0 | G32: =SUMIFS(FCs!$AA$1:$AA$11201,FCs!$A$1:$A$11201,stats!$B32,FCs!$V$1:$V$11201,stats!G$2,FCs!$W$1:$W$11201,stats!G$1) -> 0 | H32: =SUMIFS(FCs!$AA$1:$AA$11201,FCs!$A$1:$A$11201,stats!$B32,FCs!$V$1:$V$11201,stats!H$2,FCs!$W$1:$W$11201,stats!H$1) -> 0 | I32: =SUMIFS(FCs!$AA$1:$AA$11201,FCs!$A$1:$A$11201,stats!$B32,FCs!$V$1:$V$11201,stats!I$2,FCs!$W$1:$W$11201,stats!I$1) -> 0 | J32: =SUMIFS(FCs!$AA$1:$AA$11201,FCs!$A$1:$A$11201,stats!$B32,FCs!$V$1:$V$11201,stats!J$2,FCs!$W$1:$W$11201,stats!J$1) -> 0 | K32: =SUMIFS(FCs!$AA$1:$AA$11201,FCs!$A$1:$A$11201,stats!$B32,FCs!$V$1:$V$11201,stats!K$2,FCs!$W$1:$W$11201,stats!K$1) -> 0 | L32: =SUMIFS(FCs!$AA$1:$AA$11201,FCs!$A$1:$A$11201,stats!$B32,FCs!$V$1:$V$11201,stats!L$2,FCs!$W$1:$W$11201,stats!L$1) -> 0 | M32: =SUMIFS(FCs!$AA$1:$AA$11201,FCs!$A$1:$A$11201,stats!$B32,FCs!$V$1:$V$11201,stats!M$2,FCs!$W$1:$W$11201,stats!M$1) -> 0 | N32: =SUMIFS(FCs!$AA$1:$AA$11201,FCs!$A$1:$A$11201,stats!$B32,FCs!$V$1:$V$11201,stats!N$2,FCs!$W$1:$W$11201,stats!N$1) -> 0 | O32: =SUMIFS(FCs!$AA$1:$AA$11201,FCs!$A$1:$A$11201,stats!$B32,FCs!$V$1:$V$11201,stats!O$2,FCs!$W$1:$W$11201,stats!O$1) -> 0 | P32: =SUMIFS(FCs!$AA$1:$AA$11201,FCs!$A$1:$A$11201,stats!$B32,FCs!$V$1:$V$11201,stats!P$2,FCs!$W$1:$W$11201,stats!P$1) -> 0 | Q32: =SUMIFS(FCs!$AA$1:$AA$11201,FCs!$A$1:$A$11201,stats!$B32,FCs!$V$1:$V$11201,stats!Q$2,FCs!$W$1:$W$11201,stats!Q$1) -> 0 | S32: 0 | T32: 0 | V32: 52
A33: =syllabus!A32 -> 270 | B33: NAIC.SSAP-55 | D33: 0 | F33: =SUMIFS(FCs!$AA$1:$AA$11201,FCs!$A$1:$A$11201,stats!$B33,FCs!$V$1:$V$11201,stats!F$2,FCs!$W$1:$W$11201,stats!F$1) -> 0 | G33: =SUMIFS(FCs!$AA$1:$AA$11201,FCs!$A$1:$A$11201,stats!$B33,FCs!$V$1:$V$11201,stats!G$2,FCs!$W$1:$W$11201,stats!G$1) -> 0 | H33: =SUMIFS(FCs!$AA$1:$AA$11201,FCs!$A$1:$A$11201,stats!$B33,FCs!$V$1:$V$11201,stats!H$2,FCs!$W$1:$W$11201,stats!H$1) -> 0 | I33: =SUMIFS(FCs!$AA$1:$AA$11201,FCs!$A$1:$A$11201,stats!$B33,FCs!$V$1:$V$11201,stats!I$2,FCs!$W$1:$W$11201,stats!I$1) -> 0 | J33: =SUMIFS(FCs!$AA$1:$AA$11201,FCs!$A$1:$A$11201,stats!$B33,FCs!$V$1:$V$11201,stats!J$2,FCs!$W$1:$W$11201,stats!J$1) -> 0 | K33: =SUMIFS(FCs!$AA$1:$AA$11201,FCs!$A$1:$A$11201,stats!$B33,FCs!$V$1:$V$11201,stats!K$2,FCs!$W$1:$W$11201,stats!K$1) -> 0 | L33: =SUMIFS(FCs!$AA$1:$AA$11201,FCs!$A$1:$A$11201,stats!$B33,FCs!$V$1:$V$11201,stats!L$2,FCs!$W$1:$W$11201,stats!L$1) -> 0 | M33: =SUMIFS(FCs!$AA$1:$AA$11201,FCs!$A$1:$A$11201,stats!$B33,FCs!$V$1:$V$11201,stats!M$2,FCs!$W$1:$W$11201,stats!M$1) -> 0 | N33: =SUMIFS(FCs!$AA$1:$AA$11201,FCs!$A$1:$A$11201,stats!$B33,FCs!$V$1:$V$11201,stats!N$2,FCs!$W$1:$W$11201,stats!N$1) -> 0 | O33: =SUMIFS(FCs!$AA$1:$AA$11201,FCs!$A$1:$A$11201,stats!$B33,FCs!$V$1:$V$11201,stats!O$2,FCs!$W$1:$W$11201,stats!O$1) -> 0 | P33: =SUMIFS(FCs!$AA$1:$AA$11201,FCs!$A$1:$A$11201,stats!$B33,FCs!$V$1:$V$11201,stats!P$2,FCs!$W$1:$W$11201,stats!P$1) -> 0 | Q33: =SUMIFS(FCs!$AA$1:$AA$11201,FCs!$A$1:$A$11201,stats!$B33,FCs!$V$1:$V$11201,stats!Q$2,FCs!$W$1:$W$11201,stats!Q$1) -> 0 | S33: 0 | T33: 0 | V33: 52
A34: =syllabus!A33 -> 280 | B34: NAIC.SSAP-62R | D34: 0 | F34: =SUMIFS(FCs!$AA$1:$AA$11201,FCs!$A$1:$A$11201,stats!$B34,FCs!$V$1:$V$11201,stats!F$2,FCs!$W$1:$W$11201,stats!F$1) -> 0 | G34: =SUMIFS(FCs!$AA$1:$AA$11201,FCs!$A$1:$A$11201,stats!$B34,FCs!$V$1:$V$11201,stats!G$2,FCs!$W$1:$W$11201,stats!G$1) -> 2 | H34: =SUMIFS(FCs!$AA$1:$AA$11201,FCs!$A$1:$A$11201,stats!$B34,FCs!$V$1:$V$11201,stats!H$2,FCs!$W$1:$W$11201,stats!H$1) -> 1.75 | I34: =SUMIFS(FCs!$AA$1:$AA$11201,FCs!$A$1:$A$11201,stats!$B34,FCs!$V$1:$V$11201,stats!I$2,FCs!$W$1:$W$11201,stats!I$1) -> 0 | J34: =SUMIFS(FCs!$AA$1:$AA$11201,FCs!$A$1:$A$11201,stats!$B34,FCs!$V$1:$V$11201,stats!J$2,FCs!$W$1:$W$11201,stats!J$1) -> 0 | K34: =SUMIFS(FCs!$AA$1:$AA$11201,FCs!$A$1:$A$11201,stats!$B34,FCs!$V$1:$V$11201,stats!K$2,FCs!$W$1:$W$11201,stats!K$1) -> 0 | L34: =SUMIFS(FCs!$AA$1:$AA$11201,FCs!$A$1:$A$11201,stats!$B34,FCs!$V$1:$V$11201,stats!L$2,FCs!$W$1:$W$11201,stats!L$1) -> 0 | M34: =SUMIFS(FCs!$AA$1:$AA$11201,FCs!$A$1:$A$11201,stats!$B34,FCs!$V$1:$V$11201,stats!M$2,FCs!$W$1:$W$11201,stats!M$1) -> 0 | N34: =SUMIFS(FCs!$AA$1:$AA$11201,FCs!$A$1:$A$11201,stats!$B34,FCs!$V$1:$V$11201,stats!N$2,FCs!$W$1:$W$11201,stats!N$1) -> 6 | O34: =SUMIFS(FCs!$AA$1:$AA$11201,FCs!$A$1:$A$11201,stats!$B34,FCs!$V$1:$V$11201,stats!O$2,FCs!$W$1:$W$11201,stats!O$1) -> 0 | P34: =SUMIFS(FCs!$AA$1:$AA$11201,FCs!$A$1:$A$11201,stats!$B34,FCs!$V$1:$V$11201,stats!P$2,FCs!$W$1:$W$11201,stats!P$1) -> 0 | Q34: =SUMIFS(FCs!$AA$1:$AA$11201,FCs!$A$1:$A$11201,stats!$B34,FCs!$V$1:$V$11201,stats!Q$2,FCs!$W$1:$W$11201,stats!Q$1) -> 1.5 | S34: 5.25 | T34: 0.009390721073 | V34: 26
A35: =syllabus!A34 -> 290 | B35: NAIC.SSAP-65 | D35: 0 | F35: =SUMIFS(FCs!$AA$1:$AA$11201,FCs!$A$1:$A$11201,stats!$B35,FCs!$V$1:$V$11201,stats!F$2,FCs!$W$1:$W$11201,stats!F$1) -> 0 | G35: =SUMIFS(FCs!$AA$1:$AA$11201,FCs!$A$1:$A$11201,stats!$B35,FCs!$V$1:$V$11201,stats!G$2,FCs!$W$1:$W$11201,stats!G$1) -> 0 | H35: =SUMIFS(FCs!$AA$1:$AA$11201,FCs!$A$1:$A$11201,stats!$B35,FCs!$V$1:$V$11201,stats!H$2,FCs!$W$1:$W$11201,stats!H$1) -> 0 | I35: =SUMIFS(FCs!$AA$1:$AA$11201,FCs!$A$1:$A$11201,stats!$B35,FCs!$V$1:$V$11201,stats!I$2,FCs!$W$1:$W$11201,stats!I$1) -> 0 | J35: =SUMIFS(FCs!$AA$1:$AA$11201,FCs!$A$1:$A$11201,stats!$B35,FCs!$V$1:$V$11201,stats!J$2,FCs!$W$1:$W$11201,stats!J$1) -> 0 | K35: =SUMIFS(FCs!$AA$1:$AA$11201,FCs!$A$1:$A$11201,stats!$B35,FCs!$V$1:$V$11201,stats!K$2,FCs!$W$1:$W$11201,stats!K$1) -> 0 | L35: =SUMIFS(FCs!$AA$1:$AA$11201,FCs!$A$1:$A$11201,stats!$B35,FCs!$V$1:$V$11201,stats!L$2,FCs!$W$1:$W$11201,stats!L$1) -> 0 | M35: =SUMIFS(FCs!$AA$1:$AA$11201,FCs!$A$1:$A$11201,stats!$B35,FCs!$V$1:$V$11201,stats!M$2,FCs!$W$1:$W$11201,stats!M$1) -> 0 | N35: =SUMIFS(FCs!$AA$1:$AA$11201,FCs!$A$1:$A$11201,stats!$B35,FCs!$V$1:$V$11201,stats!N$2,FCs!$W$1:$W$11201,stats!N$1) -> 0 | O35: =SUMIFS(FCs!$AA$1:$AA$11201,FCs!$A$1:$A$11201,stats!$B35,FCs!$V$1:$V$11201,stats!O$2,FCs!$W$1:$W$11201,stats!O$1) -> 0 | P35: =SUMIFS(FCs!$AA$1:$AA$11201,FCs!$A$1:$A$11201,stats!$B35,FCs!$V$1:$V$11201,stats!P$2,FCs!$W$1:$W$11201,stats!P$1) -> 0 | Q35: =SUMIFS(FCs!$AA$1:$AA$11201,FCs!$A$1:$A$11201,stats!$B35,FCs!$V$1:$V$11201,stats!Q$2,FCs!$W$1:$W$11201,stats!Q$1) -> 3.5 | S35: 0 | T35: 0 | V35: 52
A36: =syllabus!A35 -> 300 | B36: NAIC.IRIS | D36: 0 | F36: =SUMIFS(FCs!$AA$1:$AA$11201,FCs!$A$1:$A$11201,stats!$B36,FCs!$V$1:$V$11201,stats!F$2,FCs!$W$1:$W$11201,stats!F$1) -> 6.5 | G36: =SUMIFS(FCs!$AA$1:$AA$11201,FCs!$A$1:$A$11201,stats!$B36,FCs!$V$1:$V$11201,stats!G$2,FCs!$W$1:$W$11201,stats!G$1) -> 6 | H36: =SUMIFS(FCs!$AA$1:$AA$11201,FCs!$A$1:$A$11201,stats!$B36,FCs!$V$1:$V$11201,stats!H$2,FCs!$W$1:$W$11201,stats!H$1) -> 6 | I36: =SUMIFS(FCs!$AA$1:$AA$11201,FCs!$A$1:$A$11201,stats!$B36,FCs!$V$1:$V$11201,stats!I$2,FCs!$W$1:$W$11201,stats!I$1) -> 8.75 | J36: =SUMIFS(FCs!$AA$1:$AA$11201,FCs!$A$1:$A$11201,stats!$B36,FCs!$V$1:$V$11201,stats!J$2,FCs!$W$1:$W$11201,stats!J$1) -> 3.75 | K36: =SUMIFS(FCs!$AA$1:$AA$11201,FCs!$A$1:$A$11201,stats!$B36,FCs!$V$1:$V$11201,stats!K$2,FCs!$W$1:$W$11201,stats!K$1) -> 6 | L36: =SUMIFS(FCs!$AA$1:$AA$11201,FCs!$A$1:$A$11201,stats!$B36,FCs!$V$1:$V$11201,stats!L$2,FCs!$W$1:$W$11201,stats!L$1) -> 0 | M36: =SUMIFS(FCs!$AA$1:$AA$11201,FCs!$A$1:$A$11201,stats!$B36,FCs!$V$1:$V$11201,stats!M$2,FCs!$W$1:$W$11201,stats!M$1) -> 5 | N36: =SUMIFS(FCs!$AA$1:$AA$11201,FCs!$A$1:$A$11201,stats!$B36,FCs!$V$1:$V$11201,stats!N$2,FCs!$W$1:$W$11201,stats!N$1) -> 4.875 | O36: =SUMIFS(FCs!$AA$1:$AA$11201,FCs!$A$1:$A$11201,stats!$B36,FCs!$V$1:$V$11201,stats!O$2,FCs!$W$1:$W$11201,stats!O$1) -> 9.25 | P36: =SUMIFS(FCs!$AA$1:$AA$11201,FCs!$A$1:$A$11201,stats!$B36,FCs!$V$1:$V$11201,stats!P$2,FCs!$W$1:$W$11201,stats!P$1) -> 3.5 | Q36: =SUMIFS(FCs!$AA$1:$AA$11201,FCs!$A$1:$A$11201,stats!$B36,FCs!$V$1:$V$11201,stats!Q$2,FCs!$W$1:$W$11201,stats!Q$1) -> 5.5 | S36: 43.03125 | T36: 0.07697037451 | V36: =_xlfn.RANK.AVG(T36,T$5:T$74) -> 2
A37: =syllabus!A36 -> 310 | B37: NAIC.Annual | D37: 0 | F37: =SUMIFS(FCs!$AA$1:$AA$11201,FCs!$A$1:$A$11201,stats!$B37,FCs!$V$1:$V$11201,stats!F$2,FCs!$W$1:$W$11201,stats!F$1) -> 0 | G37: =SUMIFS(FCs!$AA$1:$AA$11201,FCs!$A$1:$A$11201,stats!$B37,FCs!$V$1:$V$11201,stats!G$2,FCs!$W$1:$W$11201,stats!G$1) -> 0 | H37: =SUMIFS(FCs!$AA$1:$AA$11201,FCs!$A$1:$A$11201,stats!$B37,FCs!$V$1:$V$11201,stats!H$2,FCs!$W$1:$W$11201,stats!H$1) -> 0 | I37: =SUMIFS(FCs!$AA$1:$AA$11201,FCs!$A$1:$A$11201,stats!$B37,FCs!$V$1:$V$11201,stats!I$2,FCs!$W$1:$W$11201,stats!I$1) -> 0 | J37: =SUMIFS(FCs!$AA$1:$AA$11201,FCs!$A$1:$A$11201,stats!$B37,FCs!$V$1:$V$11201,stats!J$2,FCs!$W$1:$W$11201,stats!J$1) -> 0 | K37: =SUMIFS(FCs!$AA$1:$AA$11201,FCs!$A$1:$A$11201,stats!$B37,FCs!$V$1:$V$11201,stats!K$2,FCs!$W$1:$W$11201,stats!K$1) -> 0 | L37: =SUMIFS(FCs!$AA$1:$AA$11201,FCs!$A$1:$A$11201,stats!$B37,FCs!$V$1:$V$11201,stats!L$2,FCs!$W$1:$W$11201,stats!L$1) -> 0 | M37: =SUMIFS(FCs!$AA$1:$AA$11201,FCs!$A$1:$A$11201,stats!$B37,FCs!$V$1:$V$11201,stats!M$2,FCs!$W$1:$W$11201,stats!M$1) -> 0 | N37: =SUMIFS(FCs!$AA$1:$AA$11201,FCs!$A$1:$A$11201,stats!$B37,FCs!$V$1:$V$11201,stats!N$2,FCs!$W$1:$W$11201,stats!N$1) -> 0 | O37: =SUMIFS(FCs!$AA$1:$AA$11201,FCs!$A$1:$A$11201,stats!$B37,FCs!$V$1:$V$11201,stats!O$2,FCs!$W$1:$W$11201,stats!O$1) -> 0 | P37: =SUMIFS(FCs!$AA$1:$AA$11201,FCs!$A$1:$A$11201,stats!$B37,FCs!$V$1:$V$11201,stats!P$2,FCs!$W$1:$W$11201,stats!P$1) -> 0 | Q37: =SUMIFS(FCs!$AA$1:$AA$11201,FCs!$A$1:$A$11201,stats!$B37,FCs!$V$1:$V$11201,stats!Q$2,FCs!$W$1:$W$11201,stats!Q$1) -> 0 | S37: 0 | T37: 0 | V37: 52
A38: =syllabus!A37 -> 320 | B38: NAIC.AnnualExs | D38: 0 | F38: =SUMIFS(FCs!$AA$1:$AA$11201,FCs!$A$1:$A$11201,stats!$B38,FCs!$V$1:$V$11201,stats!F$2,FCs!$W$1:$W$11201,stats!F$1) -> 0 | G38: =SUMIFS(FCs!$AA$1:$AA$11201,FCs!$A$1:$A$11201,stats!$B38,FCs!$V$1:$V$11201,stats!G$2,FCs!$W$1:$W$11201,stats!G$1) -> 0 | H38: =SUMIFS(FCs!$AA$1:$AA$11201,FCs!$A$1:$A$11201,stats!$B38,FCs!$V$1:$V$11201,stats!H$2,FCs!$W$1:$W$11201,stats!H$1) -> 0 | I38: =SUMIFS(FCs!$AA$1:$AA$11201,FCs!$A$1:$A$11201,stats!$B38,FCs!$V$1:$V$11201,stats!I$2,FCs!$W$1:$W$11201,stats!I$1) -> 0 | J38: =SUMIFS(FCs!$AA$1:$AA$11201,FCs!$A$1:$A$11201,stats!$B38,FCs!$V$1:$V$11201,stats!J$2,FCs!$W$1:$W$11201,stats!J$1) -> 0 | K38: =SUMIFS(FCs!$AA$1:$AA$11201,FCs!$A$1:$A$11201,stats!$B38,FCs!$V$1:$V$11201,stats!K$2,FCs!$W$1:$W$11201,stats!K$1) -> 0 | L38: =SUMIFS(FCs!$AA$1:$AA$11201,FCs!$A$1:$A$11201,stats!$B38,FCs!$V$1:$V$11201,stats!L$2,FCs!$W$1:$W$11201,stats!L$1) -> 0 | M38: =SUMIFS(FCs!$AA$1:$AA$11201,FCs!$A$1:$A$11201,stats!$B38,FCs!$V$1:$V$11201,stats!M$2,FCs!$W$1:$W$11201,stats!M$1) -> 0 | N38: =SUMIFS(FCs!$AA$1:$AA$11201,FCs!$A$1:$A$11201,stats!$B38,FCs!$V$1:$V$11201,stats!N$2,FCs!$W$1:$W$11201,stats!N$1) -> 0 | O38: =SUMIFS(FCs!$AA$1:$AA$11201,FCs!$A$1:$A$11201,stats!$B38,FCs!$V$1:$V$11201,stats!O$2,FCs!$W$1:$W$11201,stats!O$1) -> 0 | P38: =SUMIFS(FCs!$AA$1:$AA$11201,FCs!$A$1:$A$11201,stats!$B38,FCs!$V$1:$V$11201,stats!P$2,FCs!$W$1:$W$11201,stats!P$1) -> 0 | Q38: =SUMIFS(FCs!$AA$1:$AA$11201,FCs!$A$1:$A$11201,stats!$B38,FCs!$V$1:$V$11201,stats!Q$2,FCs!$W$1:$W$11201,stats!Q$1) -> 0 | S38: 0 | T38: 0 | V38: 52
A39: =syllabus!A38 -> 330 | B39: =VLOOKUP(A39,Syllabus,2,FALSE) -> NAIC.Price | D39: 0 | F39: =SUMIFS(FCs!$AA$1:$AA$11201,FCs!$A$1:$A$11201,stats!$B39,FCs!$V$1:$V$11201,stats!F$2,FCs!$W$1:$W$11201,stats!F$1) -> 3 | G39: =SUMIFS(FCs!$AA$1:$AA$11201,FCs!$A$1:$A$11201,stats!$B39,FCs!$V$1:$V$11201,stats!G$2,FCs!$W$1:$W$11201,stats!G$1) -> 3.25 | H39: =SUMIFS(FCs!$AA$1:$AA$11201,FCs!$A$1:$A$11201,stats!$B39,FCs!$V$1:$V$11201,stats!H$2,FCs!$W$1:$W$11201,stats!H$1) -> 0 | I39: =SUMIFS(FCs!$AA$1:$AA$11201,FCs!$A$1:$A$11201,stats!$B39,FCs!$V$1:$V$11201,stats!I$2,FCs!$W$1:$W$11201,stats!I$1) -> 0 | J39: =SUMIFS(FCs!$AA$1:$AA$11201,FCs!$A$1:$A$11201,stats!$B39,FCs!$V$1:$V$11201,stats!J$2,FCs!$W$1:$W$11201,stats!J$1) -> 0 | K39: =SUMIFS(FCs!$AA$1:$AA$11201,FCs!$A$1:$A$11201,stats!$B39,FCs!$V$1:$V$11201,stats!K$2,FCs!$W$1:$W$11201,stats!K$1) -> 0 | L39: =SUMIFS(FCs!$AA$1:$AA$11201,FCs!$A$1:$A$11201,stats!$B39,FCs!$V$1:$V$11201,stats!L$2,FCs!$W$1:$W$11201,stats!L$1) -> 0 | M39: =SUMIFS(FCs!$AA$1:$AA$11201,FCs!$A$1:$A$11201,stats!$B39,FCs!$V$1:$V$11201,stats!M$2,FCs!$W$1:$W$11201,stats!M$1) -> 0 | N39: =SUMIFS(FCs!$AA$1:$AA$11201,FCs!$A$1:$A$11201,stats!$B39,FCs!$V$1:$V$11201,stats!N$2,FCs!$W$1:$W$11201,stats!N$1) -> 0 | O39: =SUMIFS(FCs!$AA$1:$AA$11201,FCs!$A$1:$A$11201,stats!$B39,FCs!$V$1:$V$11201,stats!O$2,FCs!$W$1:$W$11201,stats!O$1) -> 0 | P39: =SUMIFS(FCs!$AA$1:$AA$11201,FCs!$A$1:$A$11201,stats!$B39,FCs!$V$1:$V$11201,stats!P$2,FCs!$W$1:$W$11201,stats!P$1) -> 0 | Q39: =SUMIFS(FCs!$AA$1:$AA$11201,FCs!$A$1:$A$11201,stats!$B39,FCs!$V$1:$V$11201,stats!Q$2,FCs!$W$1:$W$11201,stats!Q$1) -> 0 | S39: 6.25 | T39: 0.01117942985 | V39: 24
A40: =syllabus!A39 -> 340 | B40: NAIC.Solvency | D40: 0 | F40: =SUMIFS(FCs!$AA$1:$AA$11201,FCs!$A$1:$A$11201,stats!$B40,FCs!$V$1:$V$11201,stats!F$2,FCs!$W$1:$W$11201,stats!F$1) -> 0 | G40: =SUMIFS(FCs!$AA$1:$AA$11201,FCs!$A$1:$A$11201,stats!$B40,FCs!$V$1:$V$11201,stats!G$2,FCs!$W$1:$W$11201,stats!G$1) -> 0 | H40: =SUMIFS(FCs!$AA$1:$AA$11201,FCs!$A$1:$A$11201,stats!$B40,FCs!$V$1:$V$11201,stats!H$2,FCs!$W$1:$W$11201,stats!H$1) -> 0 | I40: =SUMIFS(FCs!$AA$1:$AA$11201,FCs!$A$1:$A$11201,stats!$B40,FCs!$V$1:$V$11201,stats!I$2,FCs!$W$1:$W$11201,stats!I$1) -> 2.5 | J40: =SUMIFS(FCs!$AA$1:$AA$11201,FCs!$A$1:$A$11201,stats!$B40,FCs!$V$1:$V$11201,stats!J$2,FCs!$W$1:$W$11201,stats!J$1) -> 2.5 | K40: =SUMIFS(FCs!$AA$1:$AA$11201,FCs!$A$1:$A$11201,stats!$B40,FCs!$V$1:$V$11201,stats!K$2,FCs!$W$1:$W$11201,stats!K$1) -> 0 | L40: =SUMIFS(FCs!$AA$1:$AA$11201,FCs!$A$1:$A$11201,stats!$B40,FCs!$V$1:$V$11201,stats!L$2,FCs!$W$1:$W$11201,stats!L$1) -> 5.5 | M40: =SUMIFS(FCs!$AA$1:$AA$11201,FCs!$A$1:$A$11201,stats!$B40,FCs!$V$1:$V$11201,stats!M$2,FCs!$W$1:$W$11201,stats!M$1) -> 0 | N40: =SUMIFS(FCs!$AA$1:$AA$11201,FCs!$A$1:$A$11201,stats!$B40,FCs!$V$1:$V$11201,stats!N$2,FCs!$W$1:$W$11201,stats!N$1) -> 4.5 | O40: =SUMIFS(FCs!$AA$1:$AA$11201,FCs!$A$1:$A$11201,stats!$B40,FCs!$V$1:$V$11201,stats!O$2,FCs!$W$1:$W$11201,stats!O$1) -> 6.25 | P40: =SUMIFS(FCs!$AA$1:$AA$11201,FCs!$A$1:$A$11201,stats!$B40,FCs!$V$1:$V$11201,stats!P$2,FCs!$W$1:$W$11201,stats!P$1) -> 0 | Q40: =SUMIFS(FCs!$AA$1:$AA$11201,FCs!$A$1:$A$11201,stats!$B40,FCs!$V$1:$V$11201,stats!Q$2,FCs!$W$1:$W$11201,stats!Q$1) -> 0 | S40: 10.4375 | T40: 0.01866964785 | V40: 16
A41: =syllabus!A40 -> 350 | B41: Odomirok.Reporting | D41: 0 | S41: =SUM(H41:M41) -> 0 | T41: -1e-08 | V41: 65.5 | Z41: =SUM(H41:M60) -> 148.75 | AA41: =Z41/T$1 -> 0.3415614237
A42: =syllabus!A41 -> 360 | B42: Odomirok.1-5-Intro | D42: 0 | F42: =SUMIFS(FCs!$AA$1:$AA$11201,FCs!$A$1:$A$11201,stats!$B42,FCs!$V$1:$V$11201,stats!F$2,FCs!$W$1:$W$11201,stats!F$1) -> 0 | G42: =SUMIFS(FCs!$AA$1:$AA$11201,FCs!$A$1:$A$11201,stats!$B42,FCs!$V$1:$V$11201,stats!G$2,FCs!$W$1:$W$11201,stats!G$1) -> 0 | H42: =SUMIFS(FCs!$AA$1:$AA$11201,FCs!$A$1:$A$11201,stats!$B42,FCs!$V$1:$V$11201,stats!H$2,FCs!$W$1:$W$11201,stats!H$1) -> 0 | I42: =SUMIFS(FCs!$AA$1:$AA$11201,FCs!$A$1:$A$11201,stats!$B42,FCs!$V$1:$V$11201,stats!I$2,FCs!$W$1:$W$11201,stats!I$1) -> 0 | J42: =SUMIFS(FCs!$AA$1:$AA$11201,FCs!$A$1:$A$11201,stats!$B42,FCs!$V$1:$V$11201,stats!J$2,FCs!$W$1:$W$11201,stats!J$1) -> 0 | K42: =SUMIFS(FCs!$AA$1:$AA$11201,FCs!$A$1:$A$11201,stats!$B42,FCs!$V$1:$V$11201,stats!K$2,FCs!$W$1:$W$11201,stats!K$1) -> 0 | L42: =SUMIFS(FCs!$AA$1:$AA$11201,FCs!$A$1:$A$11201,stats!$B42,FCs!$V$1:$V$11201,stats!L$2,FCs!$W$1:$W$11201,stats!L$1) -> 0 | M42: =SUMIFS(FCs!$AA$1:$AA$11201,FCs!$A$1:$A$11201,stats!$B42,FCs!$V$1:$V$11201,stats!M$2,FCs!$W$1:$W$11201,stats!M$1) -> 0 | N42: =SUMIFS(FCs!$AA$1:$AA$11201,FCs!$A$1:$A$11201,stats!$B42,FCs!$V$1:$V$11201,stats!N$2,FCs!$W$1:$W$11201,stats!N$1) -> 0 | O42: =SUMIFS(FCs!$AA$1:$AA$11201,FCs!$A$1:$A$11201,stats!$B42,FCs!$V$1:$V$11201,stats!O$2,FCs!$W$1:$W$11201,stats!O$1) -> 0 | P42: =SUMIFS(FCs!$AA$1:$AA$11201,FCs!$A$1:$A$11201,stats!$B42,FCs!$V$1:$V$11201,stats!P$2,FCs!$W$1:$W$11201,stats!P$1) -> 0 | Q42: =SUMIFS(FCs!$AA$1:$AA$11201,FCs!$A$1:$A$11201,stats!$B42,FCs!$V$1:$V$11201,stats!Q$2,FCs!$W$1:$W$11201,stats!Q$1) -> 0 | S42: =SUM(F42:K42)+0.5*SUM(L42:M42)+0.25*SUM(N42:O42) -> 0 | T42: =S42/S$3 -> 0 | V42: 52
A43: =syllabus!A42 -> 370 | B43: Odomirok.6-7-BS | D43: 0 | F43: =SUMIFS(FCs!$AA$1:$AA$11201,FCs!$A$1:$A$11201,stats!$B43,FCs!$V$1:$V$11201,stats!F$2,FCs!$W$1:$W$11201,stats!F$1) -> 1.25 | G43: =SUMIFS(FCs!$AA$1:$AA$11201,FCs!$A$1:$A$11201,stats!$B43,FCs!$V$1:$V$11201,stats!G$2,FCs!$W$1:$W$11201,stats!G$1) -> 0 | H43: =SUMIFS(FCs!$AA$1:$AA$11201,FCs!$A$1:$A$11201,stats!$B43,FCs!$V$1:$V$11201,stats!H$2,FCs!$W$1:$W$11201,stats!H$1) -> 2.25 | I43: =SUMIFS(FCs!$AA$1:$AA$11201,FCs!$A$1:$A$11201,stats!$B43,FCs!$V$1:$V$11201,stats!I$2,FCs!$W$1:$W$11201,stats!I$1) -> 0 | J43: =SUMIFS(FCs!$AA$1:$AA$11201,FCs!$A$1:$A$11201,stats!$B43,FCs!$V$1:$V$11201,stats!J$2,FCs!$W$1:$W$11201,stats!J$1) -> 0 | K43: =SUMIFS(FCs!$AA$1:$AA$11201,FCs!$A$1:$A$11201,stats!$B43,FCs!$V$1:$V$11201,stats!K$2,FCs!$W$1:$W$11201,stats!K$1) -> 0 | L43: =SUMIFS(FCs!$AA$1:$AA$11201,FCs!$A$1:$A$11201,stats!$B43,FCs!$V$1:$V$11201,stats!L$2,FCs!$W$1:$W$11201,stats!L$1) -> 0 | M43: =SUMIFS(FCs!$AA$1:$AA$11201,FCs!$A$1:$A$11201,stats!$B43,FCs!$V$1:$V$11201,stats!M$2,FCs!$W$1:$W$11201,stats!M$1) -> 0 | N43: =SUMIFS(FCs!$AA$1:$AA$11201,FCs!$A$1:$A$11201,stats!$B43,FCs!$V$1:$V$11201,stats!N$2,FCs!$W$1:$W$11201,stats!N$1) -> 0 | O43: =SUMIFS(FCs!$AA$1:$AA$11201,FCs!$A$1:$A$11201,stats!$B43,FCs!$V$1:$V$11201,stats!O$2,FCs!$W$1:$W$11201,stats!O$1) -> 0 | P43: =SUMIFS(FCs!$AA$1:$AA$11201,FCs!$A$1:$A$11201,stats!$B43,FCs!$V$1:$V$11201,stats!P$2,FCs!$W$1:$W$11201,stats!P$1) -> 0 | Q43: =SUMIFS(FCs!$AA$1:$AA$11201,FCs!$A$1:$A$11201,stats!$B43,FCs!$V$1:$V$11201,stats!Q$2,FCs!$W$1:$W$11201,stats!Q$1) -> 5 | S43: 3.5 | T43: 0.006260480715 | V43: 33
A44: =syllabus!A43 -> 380 | B44: Odomirok.8-9-IS | D44: 0 | F44: =SUMIFS(FCs!$AA$1:$AA$11201,FCs!$A$1:$A$11201,stats!$B44,FCs!$V$1:$V$11201,stats!F$2,FCs!$W$1:$W$11201,stats!F$1) -> 7 | G44: =SUMIFS(FCs!$AA$1:$AA$11201,FCs!$A$1:$A$11201,stats!$B44,FCs!$V$1:$V$11201,stats!G$2,FCs!$W$1:$W$11201,stats!G$1) -> 3 | H44: =SUMIFS(FCs!$AA$1:$AA$11201,FCs!$A$1:$A$11201,stats!$B44,FCs!$V$1:$V$11201,stats!H$2,FCs!$W$1:$W$11201,stats!H$1) -> 6 | I44: =SUMIFS(FCs!$AA$1:$AA$11201,FCs!$A$1:$A$11201,stats!$B44,FCs!$V$1:$V$11201,stats!I$2,FCs!$W$1:$W$11201,stats!I$1) -> 0 | J44: =SUMIFS(FCs!$AA$1:$AA$11201,FCs!$A$1:$A$11201,stats!$B44,FCs!$V$1:$V$11201,stats!J$2,FCs!$W$1:$W$11201,stats!J$1) -> 3.25 | K44: =SUMIFS(FCs!$AA$1:$AA$11201,FCs!$A$1:$A$11201,stats!$B44,FCs!$V$1:$V$11201,stats!K$2,FCs!$W$1:$W$11201,stats!K$1) -> 0 | L44: =SUMIFS(FCs!$AA$1:$AA$11201,FCs!$A$1:$A$11201,stats!$B44,FCs!$V$1:$V$11201,stats!L$2,FCs!$W$1:$W$11201,stats!L$1) -> 5.75 | M44: =SUMIFS(FCs!$AA$1:$AA$11201,FCs!$A$1:$A$11201,stats!$B44,FCs!$V$1:$V$11201,stats!M$2,FCs!$W$1:$W$11201,stats!M$1) -> 0 | N44: =SUMIFS(FCs!$AA$1:$AA$11201,FCs!$A$1:$A$11201,stats!$B44,FCs!$V$1:$V$11201,stats!N$2,FCs!$W$1:$W$11201,stats!N$1) -> 2.625 | O44: =SUMIFS(FCs!$AA$1:$AA$11201,FCs!$A$1:$A$11201,stats!$B44,FCs!$V$1:$V$11201,stats!O$2,FCs!$W$1:$W$11201,stats!O$1) -> 0 | P44: =SUMIFS(FCs!$AA$1:$AA$11201,FCs!$A$1:$A$11201,stats!$B44,FCs!$V$1:$V$11201,stats!P$2,FCs!$W$1:$W$11201,stats!P$1) -> 4.25 | Q44: =SUMIFS(FCs!$AA$1:$AA$11201,FCs!$A$1:$A$11201,stats!$B44,FCs!$V$1:$V$11201,stats!Q$2,FCs!$W$1:$W$11201,stats!Q$1) -> 1.5 | S44: 22.78125 | T44: 0.0407490218 | V44: 6
A45: =syllabus!A44 -> 390 | B45: Odomirok.10-Notes | D45: 0 | F45: =SUMIFS(FCs!$AA$1:$AA$11201,FCs!$A$1:$A$11201,stats!$B45,FCs!$V$1:$V$11201,stats!F$2,FCs!$W$1:$W$11201,stats!F$1) -> 0 | G45: =SUMIFS(FCs!$AA$1:$AA$11201,FCs!$A$1:$A$11201,stats!$B45,FCs!$V$1:$V$11201,stats!G$2,FCs!$W$1:$W$11201,stats!G$1) -> 0 | H45: =SUMIFS(FCs!$AA$1:$AA$11201,FCs!$A$1:$A$11201,stats!$B45,FCs!$V$1:$V$11201,stats!H$2,FCs!$W$1:$W$11201,stats!H$1) -> 0 | I45: =SUMIFS(FCs!$AA$1:$AA$11201,FCs!$A$1:$A$11201,stats!$B45,FCs!$V$1:$V$11201,stats!I$2,FCs!$W$1:$W$11201,stats!I$1) -> 2.5 | J45: =SUMIFS(FCs!$AA$1:$AA$11201,FCs!$A$1:$A$11201,stats!$B45,FCs!$V$1:$V$11201,stats!J$2,FCs!$W$1:$W$11201,stats!J$1) -> 0 | K45: =SUMIFS(FCs!$AA$1:$AA$11201,FCs!$A$1:$A$11201,stats!$B45,FCs!$V$1:$V$11201,stats!K$2,FCs!$W$1:$W$11201,stats!K$1) -> 0 | L45: =SUMIFS(FCs!$AA$1:$AA$11201,FCs!$A$1:$A$11201,stats!$B45,FCs!$V$1:$V$11201,stats!L$2,FCs!$W$1:$W$11201,stats!L$1) -> 4.25 | M45: =SUMIFS(FCs!$AA$1:$AA$11201,FCs!$A$1:$A$11201,stats!$B45,FCs!$V$1:$V$11201,stats!M$2,FCs!$W$1:$W$11201,stats!M$1) -> 3 | N45: =SUMIFS(FCs!$AA$1:$AA$11201,FCs!$A$1:$A$11201,stats!$B45,FCs!$V$1:$V$11201,stats!N$2,FCs!$W$1:$W$11201,stats!N$1) -> 0.75 | O45: =SUMIFS(FCs!$AA$1:$AA$11201,FCs!$A$1:$A$11201,stats!$B45,FCs!$V$1:$V$11201,stats!O$2,FCs!$W$1:$W$11201,stats!O$1) -> 2.5 | P45: =SUMIFS(FCs!$AA$1:$AA$11201,FCs!$A$1:$A$11201,stats!$B45,FCs!$V$1:$V$11201,stats!P$2,FCs!$W$1:$W$11201,stats!P$1) -> 3 | Q45: =SUMIFS(FCs!$AA$1:$AA$11201,FCs!$A$1:$A$11201,stats!$B45,FCs!$V$1:$V$11201,stats!Q$2,FCs!$W$1:$W$11201,stats!Q$1) -> 0 | S45: 6.9375 | T45: 0.01240916713 | V45: 22
A46: =syllabus!A45 -> 400 | B46: Odomirok.11-GenInt | D46: 0 | F46: =SUMIFS(FCs!$AA$1:$AA$11201,FCs!$A$1:$A$11201,stats!$B46,FCs!$V$1:$V$11201,stats!F$2,FCs!$W$1:$W$11201,stats!F$1) -> 0 | G46: =SUMIFS(FCs!$AA$1:$AA$11201,FCs!$A$1:$A$11201,stats!$B46,FCs!$V$1:$V$11201,stats!G$2,FCs!$W$1:$W$11201,stats!G$1) -> 0 | H46: =SUMIFS(FCs!$AA$1:$AA$11201,FCs!$A$1:$A$11201,stats!$B46,FCs!$V$1:$V$11201,stats!H$2,FCs!$W$1:$W$11201,stats!H$1) -> 0 | I46: =SUMIFS(FCs!$AA$1:$AA$11201,FCs!$A$1:$A$11201,stats!$B46,FCs!$V$1:$V$11201,stats!I$2,FCs!$W$1:$W$11201,stats!I$1) -> 0 | J46: =SUMIFS(FCs!$AA$1:$AA$11201,FCs!$A$1:$A$11201,stats!$B46,FCs!$V$1:$V$11201,stats!J$2,FCs!$W$1:$W$11201,stats!J$1) -> 0 | K46: =SUMIFS(FCs!$AA$1:$AA$11201,FCs!$A$1:$A$11201,stats!$B46,FCs!$V$1:$V$11201,stats!K$2,FCs!$W$1:$W$11201,stats!K$1) -> 0 | L46: =SUMIFS(FCs!$AA$1:$AA$11201,FCs!$A$1:$A$11201,stats!$B46,FCs!$V$1:$V$11201,stats!L$2,FCs!$W$1:$W$11201,stats!L$1) -> 0 | M46: =SUMIFS(FCs!$AA$1:$AA$11201,FCs!$A$1:$A$11201,stats!$B46,FCs!$V$1:$V$11201,stats!M$2,FCs!$W$1:$W$11201,stats!M$1) -> 0 | N46: =SUMIFS(FCs!$AA$1:$AA$11201,FCs!$A$1:$A$11201,stats!$B46,FCs!$V$1:$V$11201,stats!N$2,FCs!$W$1:$W$11201,stats!N$1) -> 0 | O46: =SUMIFS(FCs!$AA$1:$AA$11201,FCs!$A$1:$A$11201,stats!$B46,FCs!$V$1:$V$11201,stats!O$2,FCs!$W$1:$W$11201,stats!O$1) -> 0 | P46: =SUMIFS(FCs!$AA$1:$AA$11201,FCs!$A$1:$A$11201,stats!$B46,FCs!$V$1:$V$11201,stats!P$2,FCs!$W$1:$W$11201,stats!P$1) -> 0 | Q46: =SUMIFS(FCs!$AA$1:$AA$11201,FCs!$A$1:$A$11201,stats!$B46,FCs!$V$1:$V$11201,stats!Q$2,FCs!$W$1:$W$11201,stats!Q$1) -> 0 | S46: 0 | T46: 0 | V46: 52
A47: =syllabus!A46 -> 410 | B47: Odomirok.12-5yr | D47: 0 | F47: =SUMIFS(FCs!$AA$1:$AA$11201,FCs!$A$1:$A$11201,stats!$B47,FCs!$V$1:$V$11201,stats!F$2,FCs!$W$1:$W$11201,stats!F$1) -> 0 | G47: =SUMIFS(FCs!$AA$1:$AA$11201,FCs!$A$1:$A$11201,stats!$B47,FCs!$V$1:$V$11201,stats!G$2,FCs!$W$1:$W$11201,stats!G$1) -> 4 | H47: =SUMIFS(FCs!$AA$1:$AA$11201,FCs!$A$1:$A$11201,stats!$B47,FCs!$V$1:$V$11201,stats!H$2,FCs!$W$1:$W$11201,stats!H$1) -> 0 | I47: =SUMIFS(FCs!$AA$1:$AA$11201,FCs!$A$1:$A$11201,stats!$B47,FCs!$V$1:$V$11201,stats!I$2,FCs!$W$1:$W$11201,stats!I$1) -> 0 | J47: =SUMIFS(FCs!$AA$1:$AA$11201,FCs!$A$1:$A$11201,stats!$B47,FCs!$V$1:$V$11201,stats!J$2,FCs!$W$1:$W$11201,stats!J$1) -> 0 | K47: =SUMIFS(FCs!$AA$1:$AA$11201,FCs!$A$1:$A$11201,stats!$B47,FCs!$V$1:$V$11201,stats!K$2,FCs!$W$1:$W$11201,stats!K$1) -> 0 | L47: =SUMIFS(FCs!$AA$1:$AA$11201,FCs!$A$1:$A$11201,stats!$B47,FCs!$V$1:$V$11201,stats!L$2,FCs!$W$1:$W$11201,stats!L$1) -> 0 | M47: =SUMIFS(FCs!$AA$1:$AA$11201,FCs!$A$1:$A$11201,stats!$B47,FCs!$V$1:$V$11201,stats!M$2,FCs!$W$1:$W$11201,stats!M$1) -> 0 | N47: =SUMIFS(FCs!$AA$1:$AA$11201,FCs!$A$1:$A$11201,stats!$B47,FCs!$V$1:$V$11201,stats!N$2,FCs!$W$1:$W$11201,stats!N$1) -> 0 | O47: =SUMIFS(FCs!$AA$1:$AA$11201,FCs!$A$1:$A$11201,stats!$B47,FCs!$V$1:$V$11201,stats!O$2,FCs!$W$1:$W$11201,stats!O$1) -> 0 | P47: =SUMIFS(FCs!$AA$1:$AA$11201,FCs!$A$1:$A$11201,stats!$B47,FCs!$V$1:$V$11201,stats!P$2,FCs!$W$1:$W$11201,stats!P$1) -> 0 | Q47: =SUMIFS(FCs!$AA$1:$AA$11201,FCs!$A$1:$A$11201,stats!$B47,FCs!$V$1:$V$11201,stats!Q$2,FCs!$W$1:$W$11201,stats!Q$1) -> 0 | S47: 4 | T47: 0.007154835103 | V47: 30
A48: =syllabus!A47 -> 420 | B48: Odomirok.13 | D48: 0 | F48: =SUMIFS(FCs!$AA$1:$AA$11201,FCs!$A$1:$A$11201,stats!$B48,FCs!$V$1:$V$11201,stats!F$2,FCs!$W$1:$W$11201,stats!F$1) -> 0 | G48: =SUMIFS(FCs!$AA$1:$AA$11201,FCs!$A$1:$A$11201,stats!$B48,FCs!$V$1:$V$11201,stats!G$2,FCs!$W$1:$W$11201,stats!G$1) -> 0 | H48: =SUMIFS(FCs!$AA$1:$AA$11201,FCs!$A$1:$A$11201,stats!$B48,FCs!$V$1:$V$11201,stats!H$2,FCs!$W$1:$W$11201,stats!H$1) -> 0 | I48: =SUMIFS(FCs!$AA$1:$AA$11201,FCs!$A$1:$A$11201,stats!$B48,FCs!$V$1:$V$11201,stats!I$2,FCs!$W$1:$W$11201,stats!I$1) -> 0 | J48: =SUMIFS(FCs!$AA$1:$AA$11201,FCs!$A$1:$A$11201,stats!$B48,FCs!$V$1:$V$11201,stats!J$2,FCs!$W$1:$W$11201,stats!J$1) -> 0 | K48: =SUMIFS(FCs!$AA$1:$AA$11201,FCs!$A$1:$A$11201,stats!$B48,FCs!$V$1:$V$11201,stats!K$2,FCs!$W$1:$W$11201,stats!K$1) -> 0 | L48: =SUMIFS(FCs!$AA$1:$AA$11201,FCs!$A$1:$A$11201,stats!$B48,FCs!$V$1:$V$11201,stats!L$2,FCs!$W$1:$W$11201,stats!L$1) -> 0 | M48: =SUMIFS(FCs!$AA$1:$AA$11201,FCs!$A$1:$A$11201,stats!$B48,FCs!$V$1:$V$11201,stats!M$2,FCs!$W$1:$W$11201,stats!M$1) -> 0 | N48: =SUMIFS(FCs!$AA$1:$AA$11201,FCs!$A$1:$A$11201,stats!$B48,FCs!$V$1:$V$11201,stats!N$2,FCs!$W$1:$W$11201,stats!N$1) -> 0 | O48: =SUMIFS(FCs!$AA$1:$AA$11201,FCs!$A$1:$A$11201,stats!$B48,FCs!$V$1:$V$11201,stats!O$2,FCs!$W$1:$W$11201,stats!O$1) -> 0 | P48: =SUMIFS(FCs!$AA$1:$AA$11201,FCs!$A$1:$A$11201,stats!$B48,FCs!$V$1:$V$11201,stats!P$2,FCs!$W$1:$W$11201,stats!P$1) -> 0 | Q48: =SUMIFS(FCs!$AA$1:$AA$11201,FCs!$A$1:$A$11201,stats!$B48,FCs!$V$1:$V$11201,stats!Q$2,FCs!$W$1:$W$11201,stats!Q$1) -> 0 | S48: 0 | T48: 0 | V48: 52
A49: =syllabus!A48 -> 430 | B49: =VLOOKUP(A49,Syllabus,2,FALSE) -> Odomirok.14-F | D49: 0 | F49: =SUMIFS(FCs!$AA$1:$AA$11201,FCs!$A$1:$A$11201,stats!$B49,FCs!$V$1:$V$11201,stats!F$2,FCs!$W$1:$W$11201,stats!F$1) -> 3 | G49: =SUMIFS(FCs!$AA$1:$AA$11201,FCs!$A$1:$A$11201,stats!$B49,FCs!$V$1:$V$11201,stats!G$2,FCs!$W$1:$W$11201,stats!G$1) -> 2 | H49: =SUMIFS(FCs!$AA$1:$AA$11201,FCs!$A$1:$A$11201,stats!$B49,FCs!$V$1:$V$11201,stats!H$2,FCs!$W$1:$W$11201,stats!H$1) -> 2.5 | I49: =SUMIFS(FCs!$AA$1:$AA$11201,FCs!$A$1:$A$11201,stats!$B49,FCs!$V$1:$V$11201,stats!I$2,FCs!$W$1:$W$11201,stats!I$1) -> 3.75 | J49: =SUMIFS(FCs!$AA$1:$AA$11201,FCs!$A$1:$A$11201,stats!$B49,FCs!$V$1:$V$11201,stats!J$2,FCs!$W$1:$W$11201,stats!J$1) -> 3.75 | K49: =SUMIFS(FCs!$AA$1:$AA$11201,FCs!$A$1:$A$11201,stats!$B49,FCs!$V$1:$V$11201,stats!K$2,FCs!$W$1:$W$11201,stats!K$1) -> 4.25 | L49: =SUMIFS(FCs!$AA$1:$AA$11201,FCs!$A$1:$A$11201,stats!$B49,FCs!$V$1:$V$11201,stats!L$2,FCs!$W$1:$W$11201,stats!L$1) -> 0 | M49: =SUMIFS(FCs!$AA$1:$AA$11201,FCs!$A$1:$A$11201,stats!$B49,FCs!$V$1:$V$11201,stats!M$2,FCs!$W$1:$W$11201,stats!M$1) -> 4 | N49: =SUMIFS(FCs!$AA$1:$AA$11201,FCs!$A$1:$A$11201,stats!$B49,FCs!$V$1:$V$11201,stats!N$2,FCs!$W$1:$W$11201,stats!N$1) -> 0 | O49: =SUMIFS(FCs!$AA$1:$AA$11201,FCs!$A$1:$A$11201,stats!$B49,FCs!$V$1:$V$11201,stats!O$2,FCs!$W$1:$W$11201,stats!O$1) -> 0 | P49: =SUMIFS(FCs!$AA$1:$AA$11201,FCs!$A$1:$A$11201,stats!$B49,FCs!$V$1:$V$11201,stats!P$2,FCs!$W$1:$W$11201,stats!P$1) -> 3.5 | Q49: =SUMIFS(FCs!$AA$1:$AA$11201,FCs!$A$1:$A$11201,stats!$B49,FCs!$V$1:$V$11201,stats!Q$2,FCs!$W$1:$W$11201,stats!Q$1) -> 5.75 | S49: 21.25 | T49: 0.03801006149 | V49: 7
A50: =syllabus!A49 -> 440 | B50: Odomirok.15-P | D50: 0 | F50: =SUMIFS(FCs!$AA$1:$AA$11201,FCs!$A$1:$A$11201,stats!$B50,FCs!$V$1:$V$11201,stats!F$2,FCs!$W$1:$W$11201,stats!F$1) -> 4.75 | G50: =SUMIFS(FCs!$AA$1:$AA$11201,FCs!$A$1:$A$11201,stats!$B50,FCs!$V$1:$V$11201,stats!G$2,FCs!$W$1:$W$11201,stats!G$1) -> 3.5 | H50: =SUMIFS(FCs!$AA$1:$AA$11201,FCs!$A$1:$A$11201,stats!$B50,FCs!$V$1:$V$11201,stats!H$2,FCs!$W$1:$W$11201,stats!H$1) -> 2 | I50: =SUMIFS(FCs!$AA$1:$AA$11201,FCs!$A$1:$A$11201,stats!$B50,FCs!$V$1:$V$11201,stats!I$2,FCs!$W$1:$W$11201,stats!I$1) -> 2.75 | J50: =SUMIFS(FCs!$AA$1:$AA$11201,FCs!$A$1:$A$11201,stats!$B50,FCs!$V$1:$V$11201,stats!J$2,FCs!$W$1:$W$11201,stats!J$1) -> 5 | K50: =SUMIFS(FCs!$AA$1:$AA$11201,FCs!$A$1:$A$11201,stats!$B50,FCs!$V$1:$V$11201,stats!K$2,FCs!$W$1:$W$11201,stats!K$1) -> 6 | L50: =SUMIFS(FCs!$AA$1:$AA$11201,FCs!$A$1:$A$11201,stats!$B50,FCs!$V$1:$V$11201,stats!L$2,FCs!$W$1:$W$11201,stats!L$1) -> 5 | M50: =SUMIFS(FCs!$AA$1:$AA$11201,FCs!$A$1:$A$11201,stats!$B50,FCs!$V$1:$V$11201,stats!M$2,FCs!$W$1:$W$11201,stats!M$1) -> 3 | N50: =SUMIFS(FCs!$AA$1:$AA$11201,FCs!$A$1:$A$11201,stats!$B50,FCs!$V$1:$V$11201,stats!N$2,FCs!$W$1:$W$11201,stats!N$1) -> 4 | O50: =SUMIFS(FCs!$AA$1:$AA$11201,FCs!$A$1:$A$11201,stats!$B50,FCs!$V$1:$V$11201,stats!O$2,FCs!$W$1:$W$11201,stats!O$1) -> 8.5 | P50: =SUMIFS(FCs!$AA$1:$AA$11201,FCs!$A$1:$A$11201,stats!$B50,FCs!$V$1:$V$11201,stats!P$2,FCs!$W$1:$W$11201,stats!P$1) -> 2.75 | Q50: =SUMIFS(FCs!$AA$1:$AA$11201,FCs!$A$1:$A$11201,stats!$B50,FCs!$V$1:$V$11201,stats!Q$2,FCs!$W$1:$W$11201,stats!Q$1) -> 0 | S50: 31.125 | T50: 0.05567356065 | V50: 3
A51: =syllabus!A50 -> 450 | B51: Odomirok.16-17-SAO | D51: 0 | F51: =SUMIFS(FCs!$AA$1:$AA$11201,FCs!$A$1:$A$11201,stats!$B51,FCs!$V$1:$V$11201,stats!F$2,FCs!$W$1:$W$11201,stats!F$1) -> 0 | G51: =SUMIFS(FCs!$AA$1:$AA$11201,FCs!$A$1:$A$11201,stats!$B51,FCs!$V$1:$V$11201,stats!G$2,FCs!$W$1:$W$11201,stats!G$1) -> 0 | H51: =SUMIFS(FCs!$AA$1:$AA$11201,FCs!$A$1:$A$11201,stats!$B51,FCs!$V$1:$V$11201,stats!H$2,FCs!$W$1:$W$11201,stats!H$1) -> 0 | I51: =SUMIFS(FCs!$AA$1:$AA$11201,FCs!$A$1:$A$11201,stats!$B51,FCs!$V$1:$V$11201,stats!I$2,FCs!$W$1:$W$11201,stats!I$1) -> 0 | J51: =SUMIFS(FCs!$AA$1:$AA$11201,FCs!$A$1:$A$11201,stats!$B51,FCs!$V$1:$V$11201,stats!J$2,FCs!$W$1:$W$11201,stats!J$1) -> 0 | K51: =SUMIFS(FCs!$AA$1:$AA$11201,FCs!$A$1:$A$11201,stats!$B51,FCs!$V$1:$V$11201,stats!K$2,FCs!$W$1:$W$11201,stats!K$1) -> 0 | L51: =SUMIFS(FCs!$AA$1:$AA$11201,FCs!$A$1:$A$11201,stats!$B51,FCs!$V$1:$V$11201,stats!L$2,FCs!$W$1:$W$11201,stats!L$1) -> 0 | M51: =SUMIFS(FCs!$AA$1:$AA$11201,FCs!$A$1:$A$11201,stats!$B51,FCs!$V$1:$V$11201,stats!M$2,FCs!$W$1:$W$11201,stats!M$1) -> 0 | N51: =SUMIFS(FCs!$AA$1:$AA$11201,FCs!$A$1:$A$11201,stats!$B51,FCs!$V$1:$V$11201,stats!N$2,FCs!$W$1:$W$11201,stats!N$1) -> 0 | O51: =SUMIFS(FCs!$AA$1:$AA$11201,FCs!$A$1:$A$11201,stats!$B51,FCs!$V$1:$V$11201,stats!O$2,FCs!$W$1:$W$11201,stats!O$1) -> 0 | P51: =SUMIFS(FCs!$AA$1:$AA$11201,FCs!$A$1:$A$11201,stats!$B51,FCs!$V$1:$V$11201,stats!P$2,FCs!$W$1:$W$11201,stats!P$1) -> 0 | Q51: =SUMIFS(FCs!$AA$1:$AA$11201,FCs!$A$1:$A$11201,stats!$B51,FCs!$V$1:$V$11201,stats!Q$2,FCs!$W$1:$W$11201,stats!Q$1) -> 0 | S51: 0 | T51: 0 | V51: 52
A52: =syllabus!A51 -> 460 | B52: Odomirok.18-IEE | D52: 0 | F52: =SUMIFS(FCs!$AA$1:$AA$11201,FCs!$A$1:$A$11201,stats!$B52,FCs!$V$1:$V$11201,stats!F$2,FCs!$W$1:$W$11201,stats!F$1) -> 0 | G52: =SUMIFS(FCs!$AA$1:$AA$11201,FCs!$A$1:$A$11201,stats!$B52,FCs!$V$1:$V$11201,stats!G$2,FCs!$W$1:$W$11201,stats!G$1) -> 0 | H52: =SUMIFS(FCs!$AA$1:$AA$11201,FCs!$A$1:$A$11201,stats!$B52,FCs!$V$1:$V$11201,stats!H$2,FCs!$W$1:$W$11201,stats!H$1) -> 0 | I52: =SUMIFS(FCs!$AA$1:$AA$11201,FCs!$A$1:$A$11201,stats!$B52,FCs!$V$1:$V$11201,stats!I$2,FCs!$W$1:$W$11201,stats!I$1) -> 3.5 | J52: =SUMIFS(FCs!$AA$1:$AA$11201,FCs!$A$1:$A$11201,stats!$B52,FCs!$V$1:$V$11201,stats!J$2,FCs!$W$1:$W$11201,stats!J$1) -> 4 | K52: =SUMIFS(FCs!$AA$1:$AA$11201,FCs!$A$1:$A$11201,stats!$B52,FCs!$V$1:$V$11201,stats!K$2,FCs!$W$1:$W$11201,stats!K$1) -> 2.75 | L52: =SUMIFS(FCs!$AA$1:$AA$11201,FCs!$A$1:$A$11201,stats!$B52,FCs!$V$1:$V$11201,stats!L$2,FCs!$W$1:$W$11201,stats!L$1) -> 2.5 | M52: =SUMIFS(FCs!$AA$1:$AA$11201,FCs!$A$1:$A$11201,stats!$B52,FCs!$V$1:$V$11201,stats!M$2,FCs!$W$1:$W$11201,stats!M$1) -> 4.25 | N52: =SUMIFS(FCs!$AA$1:$AA$11201,FCs!$A$1:$A$11201,stats!$B52,FCs!$V$1:$V$11201,stats!N$2,FCs!$W$1:$W$11201,stats!N$1) -> 2.5 | O52: =SUMIFS(FCs!$AA$1:$AA$11201,FCs!$A$1:$A$11201,stats!$B52,FCs!$V$1:$V$11201,stats!O$2,FCs!$W$1:$W$11201,stats!O$1) -> 2 | P52: =SUMIFS(FCs!$AA$1:$AA$11201,FCs!$A$1:$A$11201,stats!$B52,FCs!$V$1:$V$11201,stats!P$2,FCs!$W$1:$W$11201,stats!P$1) -> 3 | Q52: =SUMIFS(FCs!$AA$1:$AA$11201,FCs!$A$1:$A$11201,stats!$B52,FCs!$V$1:$V$11201,stats!Q$2,FCs!$W$1:$W$11201,stats!Q$1) -> 2.75 | S52: 14.75 | T52: 0.02638345444 | V52: 12
A53: =syllabus!A52 -> 470 | B53: Odomirok.19-RBC | D53: 0 | F53: =SUMIFS(FCs!$AA$1:$AA$11201,FCs!$A$1:$A$11201,stats!$B53,FCs!$V$1:$V$11201,stats!F$2,FCs!$W$1:$W$11201,stats!F$1) -> 3.5 | G53: =SUMIFS(FCs!$AA$1:$AA$11201,FCs!$A$1:$A$11201,stats!$B53,FCs!$V$1:$V$11201,stats!G$2,FCs!$W$1:$W$11201,stats!G$1) -> 3.75 | H53: =SUMIFS(FCs!$AA$1:$AA$11201,FCs!$A$1:$A$11201,stats!$B53,FCs!$V$1:$V$11201,stats!H$2,FCs!$W$1:$W$11201,stats!H$1) -> 3.75 | I53: =SUMIFS(FCs!$AA$1:$AA$11201,FCs!$A$1:$A$11201,stats!$B53,FCs!$V$1:$V$11201,stats!I$2,FCs!$W$1:$W$11201,stats!I$1) -> 4 | J53: =SUMIFS(FCs!$AA$1:$AA$11201,FCs!$A$1:$A$11201,stats!$B53,FCs!$V$1:$V$11201,stats!J$2,FCs!$W$1:$W$11201,stats!J$1) -> 4.25 | K53: =SUMIFS(FCs!$AA$1:$AA$11201,FCs!$A$1:$A$11201,stats!$B53,FCs!$V$1:$V$11201,stats!K$2,FCs!$W$1:$W$11201,stats!K$1) -> 3 | L53: =SUMIFS(FCs!$AA$1:$AA$11201,FCs!$A$1:$A$11201,stats!$B53,FCs!$V$1:$V$11201,stats!L$2,FCs!$W$1:$W$11201,stats!L$1) -> 4.5 | M53: =SUMIFS(FCs!$AA$1:$AA$11201,FCs!$A$1:$A$11201,stats!$B53,FCs!$V$1:$V$11201,stats!M$2,FCs!$W$1:$W$11201,stats!M$1) -> 6.5 | N53: =SUMIFS(FCs!$AA$1:$AA$11201,FCs!$A$1:$A$11201,stats!$B53,FCs!$V$1:$V$11201,stats!N$2,FCs!$W$1:$W$11201,stats!N$1) -> 4.5 | O53: =SUMIFS(FCs!$AA$1:$AA$11201,FCs!$A$1:$A$11201,stats!$B53,FCs!$V$1:$V$11201,stats!O$2,FCs!$W$1:$W$11201,stats!O$1) -> 5.25 | P53: =SUMIFS(FCs!$AA$1:$AA$11201,FCs!$A$1:$A$11201,stats!$B53,FCs!$V$1:$V$11201,stats!P$2,FCs!$W$1:$W$11201,stats!P$1) -> 3.25 | Q53: =SUMIFS(FCs!$AA$1:$AA$11201,FCs!$A$1:$A$11201,stats!$B53,FCs!$V$1:$V$11201,stats!Q$2,FCs!$W$1:$W$11201,stats!Q$1) -> 8.75 | S53: 30.1875 | T53: 0.05399664617 | V53: 4
A54: =syllabus!A53 -> 480 | B54: Odomirok.20-IRIS | D54: 0 | F54: =SUMIFS(FCs!$AA$1:$AA$11201,FCs!$A$1:$A$11201,stats!$B54,FCs!$V$1:$V$11201,stats!F$2,FCs!$W$1:$W$11201,stats!F$1) -> 0 | G54: =SUMIFS(FCs!$AA$1:$AA$11201,FCs!$A$1:$A$11201,stats!$B54,FCs!$V$1:$V$11201,stats!G$2,FCs!$W$1:$W$11201,stats!G$1) -> 0 | H54: =SUMIFS(FCs!$AA$1:$AA$11201,FCs!$A$1:$A$11201,stats!$B54,FCs!$V$1:$V$11201,stats!H$2,FCs!$W$1:$W$11201,stats!H$1) -> 0 | I54: =SUMIFS(FCs!$AA$1:$AA$11201,FCs!$A$1:$A$11201,stats!$B54,FCs!$V$1:$V$11201,stats!I$2,FCs!$W$1:$W$11201,stats!I$1) -> 0 | J54: =SUMIFS(FCs!$AA$1:$AA$11201,FCs!$A$1:$A$11201,stats!$B54,FCs!$V$1:$V$11201,stats!J$2,FCs!$W$1:$W$11201,stats!J$1) -> 0 | K54: =SUMIFS(FCs!$AA$1:$AA$11201,FCs!$A$1:$A$11201,stats!$B54,FCs!$V$1:$V$11201,stats!K$2,FCs!$W$1:$W$11201,stats!K$1) -> 0 | L54: =SUMIFS(FCs!$AA$1:$AA$11201,FCs!$A$1:$A$11201,stats!$B54,FCs!$V$1:$V$11201,stats!L$2,FCs!$W$1:$W$11201,stats!L$1) -> 0 | M54: =SUMIFS(FCs!$AA$1:$AA$11201,FCs!$A$1:$A$11201,stats!$B54,FCs!$V$1:$V$11201,stats!M$2,FCs!$W$1:$W$11201,stats!M$1) -> 0 | N54: =SUMIFS(FCs!$AA$1:$AA$11201,FCs!$A$1:$A$11201,stats!$B54,FCs!$V$1:$V$11201,stats!N$2,FCs!$W$1:$W$11201,stats!N$1) -> 0 | O54: =SUMIFS(FCs!$AA$1:$AA$11201,FCs!$A$1:$A$11201,stats!$B54,FCs!$V$1:$V$11201,stats!O$2,FCs!$W$1:$W$11201,stats!O$1) -> 0 | P54: =SUMIFS(FCs!$AA$1:$AA$11201,FCs!$A$1:$A$11201,stats!$B54,FCs!$V$1:$V$11201,stats!P$2,FCs!$W$1:$W$11201,stats!P$1) -> 0 | Q54: =SUMIFS(FCs!$AA$1:$AA$11201,FCs!$A$1:$A$11201,stats!$B54,FCs!$V$1:$V$11201,stats!Q$2,FCs!$W$1:$W$11201,stats!Q$1) -> 0 | S54: 0 | T54: 0 | V54: 52
A55: =syllabus!A54 -> 490 | B55: Odomirok.21-Tools | D55: =C55/C$3 -> 0 | F55: =SUMIFS(FCs!$AA$1:$AA$11201,FCs!$A$1:$A$11201,stats!$B55,FCs!$V$1:$V$11201,stats!F$2,FCs!$W$1:$W$11201,stats!F$1) -> 0 | G55: =SUMIFS(FCs!$AA$1:$AA$11201,FCs!$A$1:$A$11201,stats!$B55,FCs!$V$1:$V$11201,stats!G$2,FCs!$W$1:$W$11201,stats!G$1) -> 0 | H55: =SUMIFS(FCs!$AA$1:$AA$11201,FCs!$A$1:$A$11201,stats!$B55,FCs!$V$1:$V$11201,stats!H$2,FCs!$W$1:$W$11201,stats!H$1) -> 0 | I55: =SUMIFS(FCs!$AA$1:$AA$11201,FCs!$A$1:$A$11201,stats!$B55,FCs!$V$1:$V$11201,stats!I$2,FCs!$W$1:$W$11201,stats!I$1) -> 0 | J55: =SUMIFS(FCs!$AA$1:$AA$11201,FCs!$A$1:$A$11201,stats!$B55,FCs!$V$1:$V$11201,stats!J$2,FCs!$W$1:$W$11201,stats!J$1) -> 0 | K55: =SUMIFS(FCs!$AA$1:$AA$11201,FCs!$A$1:$A$11201,stats!$B55,FCs!$V$1:$V$11201,stats!K$2,FCs!$W$1:$W$11201,stats!K$1) -> 0 | L55: =SUMIFS(FCs!$AA$1:$AA$11201,FCs!$A$1:$A$11201,stats!$B55,FCs!$V$1:$V$11201,stats!L$2,FCs!$W$1:$W$11201,stats!L$1) -> 0 | M55: =SUMIFS(FCs!$AA$1:$AA$11201,FCs!$A$1:$A$11201,stats!$B55,FCs!$V$1:$V$11201,stats!M$2,FCs!$W$1:$W$11201,stats!M$1) -> 0 | N55: =SUMIFS(FCs!$AA$1:$AA$11201,FCs!$A$1:$A$11201,stats!$B55,FCs!$V$1:$V$11201,stats!N$2,FCs!$W$1:$W$11201,stats!N$1) -> 0 | O55: =SUMIFS(FCs!$AA$1:$AA$11201,FCs!$A$1:$A$11201,stats!$B55,FCs!$V$1:$V$11201,stats!O$2,FCs!$W$1:$W$11201,stats!O$1) -> 0 | P55: =SUMIFS(FCs!$AA$1:$AA$11201,FCs!$A$1:$A$11201,stats!$B55,FCs!$V$1:$V$11201,stats!P$2,FCs!$W$1:$W$11201,stats!P$1) -> 0 | Q55: =SUMIFS(FCs!$AA$1:$AA$11201,FCs!$A$1:$A$11201,stats!$B55,FCs!$V$1:$V$11201,stats!Q$2,FCs!$W$1:$W$11201,stats!Q$1) -> 0 | S55: 0 | T55: 0 | V55: 52
A56: =syllabus!A55 -> 500 | B56: Odomirok.22-23-GAAP | D56: 0 | F56: =SUMIFS(FCs!$AA$1:$AA$11201,FCs!$A$1:$A$11201,stats!$B56,FCs!$V$1:$V$11201,stats!F$2,FCs!$W$1:$W$11201,stats!F$1) -> 3.5 | G56: =SUMIFS(FCs!$AA$1:$AA$11201,FCs!$A$1:$A$11201,stats!$B56,FCs!$V$1:$V$11201,stats!G$2,FCs!$W$1:$W$11201,stats!G$1) -> 2.75 | H56: =SUMIFS(FCs!$AA$1:$AA$11201,FCs!$A$1:$A$11201,stats!$B56,FCs!$V$1:$V$11201,stats!H$2,FCs!$W$1:$W$11201,stats!H$1) -> 7 | I56: =SUMIFS(FCs!$AA$1:$AA$11201,FCs!$A$1:$A$11201,stats!$B56,FCs!$V$1:$V$11201,stats!I$2,FCs!$W$1:$W$11201,stats!I$1) -> 0 | J56: =SUMIFS(FCs!$AA$1:$AA$11201,FCs!$A$1:$A$11201,stats!$B56,FCs!$V$1:$V$11201,stats!J$2,FCs!$W$1:$W$11201,stats!J$1) -> 3.75 | K56: =SUMIFS(FCs!$AA$1:$AA$11201,FCs!$A$1:$A$11201,stats!$B56,FCs!$V$1:$V$11201,stats!K$2,FCs!$W$1:$W$11201,stats!K$1) -> 5.5 | L56: =SUMIFS(FCs!$AA$1:$AA$11201,FCs!$A$1:$A$11201,stats!$B56,FCs!$V$1:$V$11201,stats!L$2,FCs!$W$1:$W$11201,stats!L$1) -> 0 | M56: =SUMIFS(FCs!$AA$1:$AA$11201,FCs!$A$1:$A$11201,stats!$B56,FCs!$V$1:$V$11201,stats!M$2,FCs!$W$1:$W$11201,stats!M$1) -> 0 | N56: =SUMIFS(FCs!$AA$1:$AA$11201,FCs!$A$1:$A$11201,stats!$B56,FCs!$V$1:$V$11201,stats!N$2,FCs!$W$1:$W$11201,stats!N$1) -> 9.25 | O56: =SUMIFS(FCs!$AA$1:$AA$11201,FCs!$A$1:$A$11201,stats!$B56,FCs!$V$1:$V$11201,stats!O$2,FCs!$W$1:$W$11201,stats!O$1) -> 8 | P56: =SUMIFS(FCs!$AA$1:$AA$11201,FCs!$A$1:$A$11201,stats!$B56,FCs!$V$1:$V$11201,stats!P$2,FCs!$W$1:$W$11201,stats!P$1) -> 0 | Q56: =SUMIFS(FCs!$AA$1:$AA$11201,FCs!$A$1:$A$11201,stats!$B56,FCs!$V$1:$V$11201,stats!Q$2,FCs!$W$1:$W$11201,stats!Q$1) -> 0.5 | S56: 26.8125 | T56: 0.04795975405 | V56: 5
A57: =syllabus!A56 -> 510 | B57: Odomirok.24-IFRS | D57: 0 | F57: =SUMIFS(FCs!$AA$1:$AA$11201,FCs!$A$1:$A$11201,stats!$B57,FCs!$V$1:$V$11201,stats!F$2,FCs!$W$1:$W$11201,stats!F$1) -> 0 | G57: =SUMIFS(FCs!$AA$1:$AA$11201,FCs!$A$1:$A$11201,stats!$B57,FCs!$V$1:$V$11201,stats!G$2,FCs!$W$1:$W$11201,stats!G$1) -> 0 | H57: =SUMIFS(FCs!$AA$1:$AA$11201,FCs!$A$1:$A$11201,stats!$B57,FCs!$V$1:$V$11201,stats!H$2,FCs!$W$1:$W$11201,stats!H$1) -> 0 | I57: =SUMIFS(FCs!$AA$1:$AA$11201,FCs!$A$1:$A$11201,stats!$B57,FCs!$V$1:$V$11201,stats!I$2,FCs!$W$1:$W$11201,stats!I$1) -> 0 | J57: =SUMIFS(FCs!$AA$1:$AA$11201,FCs!$A$1:$A$11201,stats!$B57,FCs!$V$1:$V$11201,stats!J$2,FCs!$W$1:$W$11201,stats!J$1) -> 0 | K57: =SUMIFS(FCs!$AA$1:$AA$11201,FCs!$A$1:$A$11201,stats!$B57,FCs!$V$1:$V$11201,stats!K$2,FCs!$W$1:$W$11201,stats!K$1) -> 0 | L57: =SUMIFS(FCs!$AA$1:$AA$11201,FCs!$A$1:$A$11201,stats!$B57,FCs!$V$1:$V$11201,stats!L$2,FCs!$W$1:$W$11201,stats!L$1) -> 0 | M57: =SUMIFS(FCs!$AA$1:$AA$11201,FCs!$A$1:$A$11201,stats!$B57,FCs!$V$1:$V$11201,stats!M$2,FCs!$W$1:$W$11201,stats!M$1) -> 0 | N57: =SUMIFS(FCs!$AA$1:$AA$11201,FCs!$A$1:$A$11201,stats!$B57,FCs!$V$1:$V$11201,stats!N$2,FCs!$W$1:$W$11201,stats!N$1) -> 0 | O57: =SUMIFS(FCs!$AA$1:$AA$11201,FCs!$A$1:$A$11201,stats!$B57,FCs!$V$1:$V$11201,stats!O$2,FCs!$W$1:$W$11201,stats!O$1) -> 0 | P57: =SUMIFS(FCs!$AA$1:$AA$11201,FCs!$A$1:$A$11201,stats!$B57,FCs!$V$1:$V$11201,stats!P$2,FCs!$W$1:$W$11201,stats!P$1) -> 0 | Q57: =SUMIFS(FCs!$AA$1:$AA$11201,FCs!$A$1:$A$11201,stats!$B57,FCs!$V$1:$V$11201,stats!Q$2,FCs!$W$1:$W$11201,stats!Q$1) -> 0 | S57: 0 | T57: 0 | V57: 52
A58: =syllabus!A57 -> 520 | B58: Odomirok.25-Solv2 | D58: 0 | F58: =SUMIFS(FCs!$AA$1:$AA$11201,FCs!$A$1:$A$11201,stats!$B58,FCs!$V$1:$V$11201,stats!F$2,FCs!$W$1:$W$11201,stats!F$1) -> 1.5 | G58: =SUMIFS(FCs!$AA$1:$AA$11201,FCs!$A$1:$A$11201,stats!$B58,FCs!$V$1:$V$11201,stats!G$2,FCs!$W$1:$W$11201,stats!G$1) -> 2 | H58: =SUMIFS(FCs!$AA$1:$AA$11201,FCs!$A$1:$A$11201,stats!$B58,FCs!$V$1:$V$11201,stats!H$2,FCs!$W$1:$W$11201,stats!H$1) -> 0 | I58: =SUMIFS(FCs!$AA$1:$AA$11201,FCs!$A$1:$A$11201,stats!$B58,FCs!$V$1:$V$11201,stats!I$2,FCs!$W$1:$W$11201,stats!I$1) -> 3 | J58: =SUMIFS(FCs!$AA$1:$AA$11201,FCs!$A$1:$A$11201,stats!$B58,FCs!$V$1:$V$11201,stats!J$2,FCs!$W$1:$W$11201,stats!J$1) -> 0 | K58: =SUMIFS(FCs!$AA$1:$AA$11201,FCs!$A$1:$A$11201,stats!$B58,FCs!$V$1:$V$11201,stats!K$2,FCs!$W$1:$W$11201,stats!K$1) -> 0 | L58: =SUMIFS(FCs!$AA$1:$AA$11201,FCs!$A$1:$A$11201,stats!$B58,FCs!$V$1:$V$11201,stats!L$2,FCs!$W$1:$W$11201,stats!L$1) -> 3.75 | M58: =SUMIFS(FCs!$AA$1:$AA$11201,FCs!$A$1:$A$11201,stats!$B58,FCs!$V$1:$V$11201,stats!M$2,FCs!$W$1:$W$11201,stats!M$1) -> 0 | N58: =SUMIFS(FCs!$AA$1:$AA$11201,FCs!$A$1:$A$11201,stats!$B58,FCs!$V$1:$V$11201,stats!N$2,FCs!$W$1:$W$11201,stats!N$1) -> 0 | O58: =SUMIFS(FCs!$AA$1:$AA$11201,FCs!$A$1:$A$11201,stats!$B58,FCs!$V$1:$V$11201,stats!O$2,FCs!$W$1:$W$11201,stats!O$1) -> 0 | P58: =SUMIFS(FCs!$AA$1:$AA$11201,FCs!$A$1:$A$11201,stats!$B58,FCs!$V$1:$V$11201,stats!P$2,FCs!$W$1:$W$11201,stats!P$1) -> 3.75 | Q58: =SUMIFS(FCs!$AA$1:$AA$11201,FCs!$A$1:$A$11201,stats!$B58,FCs!$V$1:$V$11201,stats!Q$2,FCs!$W$1:$W$11201,stats!Q$1) -> 0 | S58: 8.375 | T58: 0.014980436 | V58: 20
A59: =syllabus!A58 -> 530 | B59: Odomirok.26-Taxes | D59: 0 | F59: =SUMIFS(FCs!$AA$1:$AA$11201,FCs!$A$1:$A$11201,stats!$B59,FCs!$V$1:$V$11201,stats!F$2,FCs!$W$1:$W$11201,stats!F$1) -> 0 | G59: =SUMIFS(FCs!$AA$1:$AA$11201,FCs!$A$1:$A$11201,stats!$B59,FCs!$V$1:$V$11201,stats!G$2,FCs!$W$1:$W$11201,stats!G$1) -> 2 | H59: =SUMIFS(FCs!$AA$1:$AA$11201,FCs!$A$1:$A$11201,stats!$B59,FCs!$V$1:$V$11201,stats!H$2,FCs!$W$1:$W$11201,stats!H$1) -> 2.5 | I59: =SUMIFS(FCs!$AA$1:$AA$11201,FCs!$A$1:$A$11201,stats!$B59,FCs!$V$1:$V$11201,stats!I$2,FCs!$W$1:$W$11201,stats!I$1) -> 0 | J59: =SUMIFS(FCs!$AA$1:$AA$11201,FCs!$A$1:$A$11201,stats!$B59,FCs!$V$1:$V$11201,stats!J$2,FCs!$W$1:$W$11201,stats!J$1) -> 3.25 | K59: =SUMIFS(FCs!$AA$1:$AA$11201,FCs!$A$1:$A$11201,stats!$B59,FCs!$V$1:$V$11201,stats!K$2,FCs!$W$1:$W$11201,stats!K$1) -> 4.75 | L59: =SUMIFS(FCs!$AA$1:$AA$11201,FCs!$A$1:$A$11201,stats!$B59,FCs!$V$1:$V$11201,stats!L$2,FCs!$W$1:$W$11201,stats!L$1) -> 0 | M59: =SUMIFS(FCs!$AA$1:$AA$11201,FCs!$A$1:$A$11201,stats!$B59,FCs!$V$1:$V$11201,stats!M$2,FCs!$W$1:$W$11201,stats!M$1) -> 3.25 | N59: =SUMIFS(FCs!$AA$1:$AA$11201,FCs!$A$1:$A$11201,stats!$B59,FCs!$V$1:$V$11201,stats!N$2,FCs!$W$1:$W$11201,stats!N$1) -> 0 | O59: =SUMIFS(FCs!$AA$1:$AA$11201,FCs!$A$1:$A$11201,stats!$B59,FCs!$V$1:$V$11201,stats!O$2,FCs!$W$1:$W$11201,stats!O$1) -> 0 | P59: =SUMIFS(FCs!$AA$1:$AA$11201,FCs!$A$1:$A$11201,stats!$B59,FCs!$V$1:$V$11201,stats!P$2,FCs!$W$1:$W$11201,stats!P$1) -> 7 | Q59: =SUMIFS(FCs!$AA$1:$AA$11201,FCs!$A$1:$A$11201,stats!$B59,FCs!$V$1:$V$11201,stats!Q$2,FCs!$W$1:$W$11201,stats!Q$1) -> 0 | S59: 14.125 | T59: 0.02526551146 | V59: 13.5
A60: =syllabus!A59 -> 540 | B60: Odomirok.30-Future | D60: 0 | F60: =SUMIFS(FCs!$AA$1:$AA$11201,FCs!$A$1:$A$11201,stats!$B60,FCs!$V$1:$V$11201,stats!F$2,FCs!$W$1:$W$11201,stats!F$1) -> 0 | G60: =SUMIFS(FCs!$AA$1:$AA$11201,FCs!$A$1:$A$11201,stats!$B60,FCs!$V$1:$V$11201,stats!G$2,FCs!$W$1:$W$11201,stats!G$1) -> 0 | H60: =SUMIFS(FCs!$AA$1:$AA$11201,FCs!$A$1:$A$11201,stats!$B60,FCs!$V$1:$V$11201,stats!H$2,FCs!$W$1:$W$11201,stats!H$1) -> 0 | I60: =SUMIFS(FCs!$AA$1:$AA$11201,FCs!$A$1:$A$11201,stats!$B60,FCs!$V$1:$V$11201,stats!I$2,FCs!$W$1:$W$11201,stats!I$1) -> 0 | J60: =SUMIFS(FCs!$AA$1:$AA$11201,FCs!$A$1:$A$11201,stats!$B60,FCs!$V$1:$V$11201,stats!J$2,FCs!$W$1:$W$11201,stats!J$1) -> 0 | K60: =SUMIFS(FCs!$AA$1:$AA$11201,FCs!$A$1:$A$11201,stats!$B60,FCs!$V$1:$V$11201,stats!K$2,FCs!$W$1:$W$11201,stats!K$1) -> 0 | L60: =SUMIFS(FCs!$AA$1:$AA$11201,FCs!$A$1:$A$11201,stats!$B60,FCs!$V$1:$V$11201,stats!L$2,FCs!$W$1:$W$11201,stats!L$1) -> 0 | M60: =SUMIFS(FCs!$AA$1:$AA$11201,FCs!$A$1:$A$11201,stats!$B60,FCs!$V$1:$V$11201,stats!M$2,FCs!$W$1:$W$11201,stats!M$1) -> 0 | N60: =SUMIFS(FCs!$AA$1:$AA$11201,FCs!$A$1:$A$11201,stats!$B60,FCs!$V$1:$V$11201,stats!N$2,FCs!$W$1:$W$11201,stats!N$1) -> 0 | O60: =SUMIFS(FCs!$AA$1:$AA$11201,FCs!$A$1:$A$11201,stats!$B60,FCs!$V$1:$V$11201,stats!O$2,FCs!$W$1:$W$11201,stats!O$1) -> 0 | P60: =SUMIFS(FCs!$AA$1:$AA$11201,FCs!$A$1:$A$11201,stats!$B60,FCs!$V$1:$V$11201,stats!P$2,FCs!$W$1:$W$11201,stats!P$1) -> 0 | Q60: =SUMIFS(FCs!$AA$1:$AA$11201,FCs!$A$1:$A$11201,stats!$B60,FCs!$V$1:$V$11201,stats!Q$2,FCs!$W$1:$W$11201,stats!Q$1) -> 0 | S60: 0 | T60: 0 | V60: 52
A61: =syllabus!A60 -> 550 | B61: Porter.Regs-1 | D61: 0 | S61: 0 | T61: -1e-08 | V61: 65.5 | Z61: =SUM(H61:M69) -> 34.75 | AA61: =Z61/T$1 -> 0.07979334099
A62: =syllabus!A61 -> 560 | B62: Porter.2-Devlpt | D62: 0 | F62: =SUMIFS(FCs!$AA$1:$AA$11201,FCs!$A$1:$A$11201,stats!$B62,FCs!$V$1:$V$11201,stats!F$2,FCs!$W$1:$W$11201,stats!F$1) -> 1.5 | G62: =SUMIFS(FCs!$AA$1:$AA$11201,FCs!$A$1:$A$11201,stats!$B62,FCs!$V$1:$V$11201,stats!G$2,FCs!$W$1:$W$11201,stats!G$1) -> 7 | H62: =SUMIFS(FCs!$AA$1:$AA$11201,FCs!$A$1:$A$11201,stats!$B62,FCs!$V$1:$V$11201,stats!H$2,FCs!$W$1:$W$11201,stats!H$1) -> 0 | I62: =SUMIFS(FCs!$AA$1:$AA$11201,FCs!$A$1:$A$11201,stats!$B62,FCs!$V$1:$V$11201,stats!I$2,FCs!$W$1:$W$11201,stats!I$1) -> 0 | J62: =SUMIFS(FCs!$AA$1:$AA$11201,FCs!$A$1:$A$11201,stats!$B62,FCs!$V$1:$V$11201,stats!J$2,FCs!$W$1:$W$11201,stats!J$1) -> 3.25 | K62: =SUMIFS(FCs!$AA$1:$AA$11201,FCs!$A$1:$A$11201,stats!$B62,FCs!$V$1:$V$11201,stats!K$2,FCs!$W$1:$W$11201,stats!K$1) -> 0 | L62: =SUMIFS(FCs!$AA$1:$AA$11201,FCs!$A$1:$A$11201,stats!$B62,FCs!$V$1:$V$11201,stats!L$2,FCs!$W$1:$W$11201,stats!L$1) -> 0 | M62: =SUMIFS(FCs!$AA$1:$AA$11201,FCs!$A$1:$A$11201,stats!$B62,FCs!$V$1:$V$11201,stats!M$2,FCs!$W$1:$W$11201,stats!M$1) -> 2.25 | N62: =SUMIFS(FCs!$AA$1:$AA$11201,FCs!$A$1:$A$11201,stats!$B62,FCs!$V$1:$V$11201,stats!N$2,FCs!$W$1:$W$11201,stats!N$1) -> 3 | O62: =SUMIFS(FCs!$AA$1:$AA$11201,FCs!$A$1:$A$11201,stats!$B62,FCs!$V$1:$V$11201,stats!O$2,FCs!$W$1:$W$11201,stats!O$1) -> 2 | P62: =SUMIFS(FCs!$AA$1:$AA$11201,FCs!$A$1:$A$11201,stats!$B62,FCs!$V$1:$V$11201,stats!P$2,FCs!$W$1:$W$11201,stats!P$1) -> 2 | Q62: =SUMIFS(FCs!$AA$1:$AA$11201,FCs!$A$1:$A$11201,stats!$B62,FCs!$V$1:$V$11201,stats!Q$2,FCs!$W$1:$W$11201,stats!Q$1) -> 3.5 | S62: =SUM(F62:K62)+0.5*SUM(L62:M62)+0.25*SUM(N62:O62) -> 14.125 | T62: =S62/S$3 -> 0.02526551146 | V62: 13.5
A63: =syllabus!A62 -> 570 | B63: Porter.3-Roles-Fed | D63: 0 | F63: =SUMIFS(FCs!$AA$1:$AA$11201,FCs!$A$1:$A$11201,stats!$B63,FCs!$V$1:$V$11201,stats!F$2,FCs!$W$1:$W$11201,stats!F$1) -> 0 | G63: =SUMIFS(FCs!$AA$1:$AA$11201,FCs!$A$1:$A$11201,stats!$B63,FCs!$V$1:$V$11201,stats!G$2,FCs!$W$1:$W$11201,stats!G$1) -> 0 | H63: =SUMIFS(FCs!$AA$1:$AA$11201,FCs!$A$1:$A$11201,stats!$B63,FCs!$V$1:$V$11201,stats!H$2,FCs!$W$1:$W$11201,stats!H$1) -> 2.25 | I63: =SUMIFS(FCs!$AA$1:$AA$11201,FCs!$A$1:$A$11201,stats!$B63,FCs!$V$1:$V$11201,stats!I$2,FCs!$W$1:$W$11201,stats!I$1) -> 0 | J63: =SUMIFS(FCs!$AA$1:$AA$11201,FCs!$A$1:$A$11201,stats!$B63,FCs!$V$1:$V$11201,stats!J$2,FCs!$W$1:$W$11201,stats!J$1) -> 0 | K63: =SUMIFS(FCs!$AA$1:$AA$11201,FCs!$A$1:$A$11201,stats!$B63,FCs!$V$1:$V$11201,stats!K$2,FCs!$W$1:$W$11201,stats!K$1) -> 1.25 | L63: =SUMIFS(FCs!$AA$1:$AA$11201,FCs!$A$1:$A$11201,stats!$B63,FCs!$V$1:$V$11201,stats!L$2,FCs!$W$1:$W$11201,stats!L$1) -> 0 | M63: =SUMIFS(FCs!$AA$1:$AA$11201,FCs!$A$1:$A$11201,stats!$B63,FCs!$V$1:$V$11201,stats!M$2,FCs!$W$1:$W$11201,stats!M$1) -> 0 | N63: =SUMIFS(FCs!$AA$1:$AA$11201,FCs!$A$1:$A$11201,stats!$B63,FCs!$V$1:$V$11201,stats!N$2,FCs!$W$1:$W$11201,stats!N$1) -> 0 | O63: =SUMIFS(FCs!$AA$1:$AA$11201,FCs!$A$1:$A$11201,stats!$B63,FCs!$V$1:$V$11201,stats!O$2,FCs!$W$1:$W$11201,stats!O$1) -> 0 | P63: =SUMIFS(FCs!$AA$1:$AA$11201,FCs!$A$1:$A$11201,stats!$B63,FCs!$V$1:$V$11201,stats!P$2,FCs!$W$1:$W$11201,stats!P$1) -> 0 | Q63: =SUMIFS(FCs!$AA$1:$AA$11201,FCs!$A$1:$A$11201,stats!$B63,FCs!$V$1:$V$11201,stats!Q$2,FCs!$W$1:$W$11201,stats!Q$1) -> 0 | S63: 3.5 | T63: 0.006260480715 | V63: 33
A64: =syllabus!A63 -> 580 | B64: Porter.4-Roles-State | D64: 0 | F64: =SUMIFS(FCs!$AA$1:$AA$11201,FCs!$A$1:$A$11201,stats!$B64,FCs!$V$1:$V$11201,stats!F$2,FCs!$W$1:$W$11201,stats!F$1) -> 0 | G64: =SUMIFS(FCs!$AA$1:$AA$11201,FCs!$A$1:$A$11201,stats!$B64,FCs!$V$1:$V$11201,stats!G$2,FCs!$W$1:$W$11201,stats!G$1) -> 0 | H64: =SUMIFS(FCs!$AA$1:$AA$11201,FCs!$A$1:$A$11201,stats!$B64,FCs!$V$1:$V$11201,stats!H$2,FCs!$W$1:$W$11201,stats!H$1) -> 0 | I64: =SUMIFS(FCs!$AA$1:$AA$11201,FCs!$A$1:$A$11201,stats!$B64,FCs!$V$1:$V$11201,stats!I$2,FCs!$W$1:$W$11201,stats!I$1) -> 0 | J64: =SUMIFS(FCs!$AA$1:$AA$11201,FCs!$A$1:$A$11201,stats!$B64,FCs!$V$1:$V$11201,stats!J$2,FCs!$W$1:$W$11201,stats!J$1) -> 0 | K64: =SUMIFS(FCs!$AA$1:$AA$11201,FCs!$A$1:$A$11201,stats!$B64,FCs!$V$1:$V$11201,stats!K$2,FCs!$W$1:$W$11201,stats!K$1) -> 0 | L64: =SUMIFS(FCs!$AA$1:$AA$11201,FCs!$A$1:$A$11201,stats!$B64,FCs!$V$1:$V$11201,stats!L$2,FCs!$W$1:$W$11201,stats!L$1) -> 3.25 | M64: =SUMIFS(FCs!$AA$1:$AA$11201,FCs!$A$1:$A$11201,stats!$B64,FCs!$V$1:$V$11201,stats!M$2,FCs!$W$1:$W$11201,stats!M$1) -> 3.25 | N64: =SUMIFS(FCs!$AA$1:$AA$11201,FCs!$A$1:$A$11201,stats!$B64,FCs!$V$1:$V$11201,stats!N$2,FCs!$W$1:$W$11201,stats!N$1) -> 0 | O64: =SUMIFS(FCs!$AA$1:$AA$11201,FCs!$A$1:$A$11201,stats!$B64,FCs!$V$1:$V$11201,stats!O$2,FCs!$W$1:$W$11201,stats!O$1) -> 1.75 | P64: =SUMIFS(FCs!$AA$1:$AA$11201,FCs!$A$1:$A$11201,stats!$B64,FCs!$V$1:$V$11201,stats!P$2,FCs!$W$1:$W$11201,stats!P$1) -> 0 | Q64: =SUMIFS(FCs!$AA$1:$AA$11201,FCs!$A$1:$A$11201,stats!$B64,FCs!$V$1:$V$11201,stats!Q$2,FCs!$W$1:$W$11201,stats!Q$1) -> 2 | S64: 3.6875 | T64: 0.006595863611 | V64: 31
A65: =syllabus!A64 -> 590 | B65: Porter.5-Opns-State | D65: 0 | F65: =SUMIFS(FCs!$AA$1:$AA$11201,FCs!$A$1:$A$11201,stats!$B65,FCs!$V$1:$V$11201,stats!F$2,FCs!$W$1:$W$11201,stats!F$1) -> 1.5 | G65: =SUMIFS(FCs!$AA$1:$AA$11201,FCs!$A$1:$A$11201,stats!$B65,FCs!$V$1:$V$11201,stats!G$2,FCs!$W$1:$W$11201,stats!G$1) -> 0 | H65: =SUMIFS(FCs!$AA$1:$AA$11201,FCs!$A$1:$A$11201,stats!$B65,FCs!$V$1:$V$11201,stats!H$2,FCs!$W$1:$W$11201,stats!H$1) -> 0 | I65: =SUMIFS(FCs!$AA$1:$AA$11201,FCs!$A$1:$A$11201,stats!$B65,FCs!$V$1:$V$11201,stats!I$2,FCs!$W$1:$W$11201,stats!I$1) -> 0 | J65: =SUMIFS(FCs!$AA$1:$AA$11201,FCs!$A$1:$A$11201,stats!$B65,FCs!$V$1:$V$11201,stats!J$2,FCs!$W$1:$W$11201,stats!J$1) -> 0 | K65: =SUMIFS(FCs!$AA$1:$AA$11201,FCs!$A$1:$A$11201,stats!$B65,FCs!$V$1:$V$11201,stats!K$2,FCs!$W$1:$W$11201,stats!K$1) -> 0 | L65: =SUMIFS(FCs!$AA$1:$AA$11201,FCs!$A$1:$A$11201,stats!$B65,FCs!$V$1:$V$11201,stats!L$2,FCs!$W$1:$W$11201,stats!L$1) -> 2.5 | M65: =SUMIFS(FCs!$AA$1:$AA$11201,FCs!$A$1:$A$11201,stats!$B65,FCs!$V$1:$V$11201,stats!M$2,FCs!$W$1:$W$11201,stats!M$1) -> 0 | N65: =SUMIFS(FCs!$AA$1:$AA$11201,FCs!$A$1:$A$11201,stats!$B65,FCs!$V$1:$V$11201,stats!N$2,FCs!$W$1:$W$11201,stats!N$1) -> 0 | O65: =SUMIFS(FCs!$AA$1:$AA$11201,FCs!$A$1:$A$11201,stats!$B65,FCs!$V$1:$V$11201,stats!O$2,FCs!$W$1:$W$11201,stats!O$1) -> 0 | P65: =SUMIFS(FCs!$AA$1:$AA$11201,FCs!$A$1:$A$11201,stats!$B65,FCs!$V$1:$V$11201,stats!P$2,FCs!$W$1:$W$11201,stats!P$1) -> 0 | Q65: =SUMIFS(FCs!$AA$1:$AA$11201,FCs!$A$1:$A$11201,stats!$B65,FCs!$V$1:$V$11201,stats!Q$2,FCs!$W$1:$W$11201,stats!Q$1) -> 0 | S65: 2.75 | T65: 0.004918949134 | V65: 36
A66: =syllabus!A65 -> 600 | B66: Porter.6-Formation | D66: 0 | F66: =SUMIFS(FCs!$AA$1:$AA$11201,FCs!$A$1:$A$11201,stats!$B66,FCs!$V$1:$V$11201,stats!F$2,FCs!$W$1:$W$11201,stats!F$1) -> 0 | G66: =SUMIFS(FCs!$AA$1:$AA$11201,FCs!$A$1:$A$11201,stats!$B66,FCs!$V$1:$V$11201,stats!G$2,FCs!$W$1:$W$11201,stats!G$1) -> 0 | H66: =SUMIFS(FCs!$AA$1:$AA$11201,FCs!$A$1:$A$11201,stats!$B66,FCs!$V$1:$V$11201,stats!H$2,FCs!$W$1:$W$11201,stats!H$1) -> 0 | I66: =SUMIFS(FCs!$AA$1:$AA$11201,FCs!$A$1:$A$11201,stats!$B66,FCs!$V$1:$V$11201,stats!I$2,FCs!$W$1:$W$11201,stats!I$1) -> 0 | J66: =SUMIFS(FCs!$AA$1:$AA$11201,FCs!$A$1:$A$11201,stats!$B66,FCs!$V$1:$V$11201,stats!J$2,FCs!$W$1:$W$11201,stats!J$1) -> 0 | K66: =SUMIFS(FCs!$AA$1:$AA$11201,FCs!$A$1:$A$11201,stats!$B66,FCs!$V$1:$V$11201,stats!K$2,FCs!$W$1:$W$11201,stats!K$1) -> 0 | L66: =SUMIFS(FCs!$AA$1:$AA$11201,FCs!$A$1:$A$11201,stats!$B66,FCs!$V$1:$V$11201,stats!L$2,FCs!$W$1:$W$11201,stats!L$1) -> 0 | M66: =SUMIFS(FCs!$AA$1:$AA$11201,FCs!$A$1:$A$11201,stats!$B66,FCs!$V$1:$V$11201,stats!M$2,FCs!$W$1:$W$11201,stats!M$1) -> 0 | N66: =SUMIFS(FCs!$AA$1:$AA$11201,FCs!$A$1:$A$11201,stats!$B66,FCs!$V$1:$V$11201,stats!N$2,FCs!$W$1:$W$11201,stats!N$1) -> 0 | O66: =SUMIFS(FCs!$AA$1:$AA$11201,FCs!$A$1:$A$11201,stats!$B66,FCs!$V$1:$V$11201,stats!O$2,FCs!$W$1:$W$11201,stats!O$1) -> 0 | P66: =SUMIFS(FCs!$AA$1:$AA$11201,FCs!$A$1:$A$11201,stats!$B66,FCs!$V$1:$V$11201,stats!P$2,FCs!$W$1:$W$11201,stats!P$1) -> 0 | Q66: =SUMIFS(FCs!$AA$1:$AA$11201,FCs!$A$1:$A$11201,stats!$B66,FCs!$V$1:$V$11201,stats!Q$2,FCs!$W$1:$W$11201,stats!Q$1) -> 0 | S66: 0 | T66: 0 | V66: 52
A67: =syllabus!A66 -> 610 | B67: Porter.8-Rates | D67: 0 | F67: =SUMIFS(FCs!$AA$1:$AA$11201,FCs!$A$1:$A$11201,stats!$B67,FCs!$V$1:$V$11201,stats!F$2,FCs!$W$1:$W$11201,stats!F$1) -> 0 | G67: =SUMIFS(FCs!$AA$1:$AA$11201,FCs!$A$1:$A$11201,stats!$B67,FCs!$V$1:$V$11201,stats!G$2,FCs!$W$1:$W$11201,stats!G$1) -> 0 | H67: =SUMIFS(FCs!$AA$1:$AA$11201,FCs!$A$1:$A$11201,stats!$B67,FCs!$V$1:$V$11201,stats!H$2,FCs!$W$1:$W$11201,stats!H$1) -> 0 | I67: =SUMIFS(FCs!$AA$1:$AA$11201,FCs!$A$1:$A$11201,stats!$B67,FCs!$V$1:$V$11201,stats!I$2,FCs!$W$1:$W$11201,stats!I$1) -> 0 | J67: =SUMIFS(FCs!$AA$1:$AA$11201,FCs!$A$1:$A$11201,stats!$B67,FCs!$V$1:$V$11201,stats!J$2,FCs!$W$1:$W$11201,stats!J$1) -> 0 | K67: =SUMIFS(FCs!$AA$1:$AA$11201,FCs!$A$1:$A$11201,stats!$B67,FCs!$V$1:$V$11201,stats!K$2,FCs!$W$1:$W$11201,stats!K$1) -> 3.75 | L67: =SUMIFS(FCs!$AA$1:$AA$11201,FCs!$A$1:$A$11201,stats!$B67,FCs!$V$1:$V$11201,stats!L$2,FCs!$W$1:$W$11201,stats!L$1) -> 0 | M67: =SUMIFS(FCs!$AA$1:$AA$11201,FCs!$A$1:$A$11201,stats!$B67,FCs!$V$1:$V$11201,stats!M$2,FCs!$W$1:$W$11201,stats!M$1) -> 2.75 | N67: =SUMIFS(FCs!$AA$1:$AA$11201,FCs!$A$1:$A$11201,stats!$B67,FCs!$V$1:$V$11201,stats!N$2,FCs!$W$1:$W$11201,stats!N$1) -> 0 | O67: =SUMIFS(FCs!$AA$1:$AA$11201,FCs!$A$1:$A$11201,stats!$B67,FCs!$V$1:$V$11201,stats!O$2,FCs!$W$1:$W$11201,stats!O$1) -> 0 | P67: =SUMIFS(FCs!$AA$1:$AA$11201,FCs!$A$1:$A$11201,stats!$B67,FCs!$V$1:$V$11201,stats!P$2,FCs!$W$1:$W$11201,stats!P$1) -> 5.5 | Q67: =SUMIFS(FCs!$AA$1:$AA$11201,FCs!$A$1:$A$11201,stats!$B67,FCs!$V$1:$V$11201,stats!Q$2,FCs!$W$1:$W$11201,stats!Q$1) -> 0 | S67: 5.125 | T67: 0.009167132476 | V67: 27
A68: =syllabus!A67 -> 620 | B68: Porter.12-Insolvency | D68: 0 | F68: =SUMIFS(FCs!$AA$1:$AA$11201,FCs!$A$1:$A$11201,stats!$B68,FCs!$V$1:$V$11201,stats!F$2,FCs!$W$1:$W$11201,stats!F$1) -> 1 | G68: =SUMIFS(FCs!$AA$1:$AA$11201,FCs!$A$1:$A$11201,stats!$B68,FCs!$V$1:$V$11201,stats!G$2,FCs!$W$1:$W$11201,stats!G$1) -> 2.25 | H68: =SUMIFS(FCs!$AA$1:$AA$11201,FCs!$A$1:$A$11201,stats!$B68,FCs!$V$1:$V$11201,stats!H$2,FCs!$W$1:$W$11201,stats!H$1) -> 2.25 | I68: =SUMIFS(FCs!$AA$1:$AA$11201,FCs!$A$1:$A$11201,stats!$B68,FCs!$V$1:$V$11201,stats!I$2,FCs!$W$1:$W$11201,stats!I$1) -> 0 | J68: =SUMIFS(FCs!$AA$1:$AA$11201,FCs!$A$1:$A$11201,stats!$B68,FCs!$V$1:$V$11201,stats!J$2,FCs!$W$1:$W$11201,stats!J$1) -> 3.5 | K68: =SUMIFS(FCs!$AA$1:$AA$11201,FCs!$A$1:$A$11201,stats!$B68,FCs!$V$1:$V$11201,stats!K$2,FCs!$W$1:$W$11201,stats!K$1) -> 0 | L68: =SUMIFS(FCs!$AA$1:$AA$11201,FCs!$A$1:$A$11201,stats!$B68,FCs!$V$1:$V$11201,stats!L$2,FCs!$W$1:$W$11201,stats!L$1) -> 0.75 | M68: =SUMIFS(FCs!$AA$1:$AA$11201,FCs!$A$1:$A$11201,stats!$B68,FCs!$V$1:$V$11201,stats!M$2,FCs!$W$1:$W$11201,stats!M$1) -> 0 | N68: =SUMIFS(FCs!$AA$1:$AA$11201,FCs!$A$1:$A$11201,stats!$B68,FCs!$V$1:$V$11201,stats!N$2,FCs!$W$1:$W$11201,stats!N$1) -> 0 | O68: =SUMIFS(FCs!$AA$1:$AA$11201,FCs!$A$1:$A$11201,stats!$B68,FCs!$V$1:$V$11201,stats!O$2,FCs!$W$1:$W$11201,stats!O$1) -> 0 | P68: =SUMIFS(FCs!$AA$1:$AA$11201,FCs!$A$1:$A$11201,stats!$B68,FCs!$V$1:$V$11201,stats!P$2,FCs!$W$1:$W$11201,stats!P$1) -> 0 | Q68: =SUMIFS(FCs!$AA$1:$AA$11201,FCs!$A$1:$A$11201,stats!$B68,FCs!$V$1:$V$11201,stats!Q$2,FCs!$W$1:$W$11201,stats!Q$1) -> 3 | S68: 9.375 | T68: 0.01676914477 | V68: =_xlfn.RANK.AVG(T68,T$5:T$74) -> 18
A69: =syllabus!A68 -> 630 | B69: Porter.Reg-2 | D69: 0 | F69: =SUMIFS(FCs!$AA$1:$AA$11201,FCs!$A$1:$A$11201,stats!$B69,FCs!$V$1:$V$11201,stats!F$2,FCs!$W$1:$W$11201,stats!F$1) -> 0 | G69: =SUMIFS(FCs!$AA$1:$AA$11201,FCs!$A$1:$A$11201,stats!$B69,FCs!$V$1:$V$11201,stats!G$2,FCs!$W$1:$W$11201,stats!G$1) -> 0 | H69: =SUMIFS(FCs!$AA$1:$AA$11201,FCs!$A$1:$A$11201,stats!$B69,FCs!$V$1:$V$11201,stats!H$2,FCs!$W$1:$W$11201,stats!H$1) -> 0 | I69: =SUMIFS(FCs!$AA$1:$AA$11201,FCs!$A$1:$A$11201,stats!$B69,FCs!$V$1:$V$11201,stats!I$2,FCs!$W$1:$W$11201,stats!I$1) -> 2.25 | J69: =SUMIFS(FCs!$AA$1:$AA$11201,FCs!$A$1:$A$11201,stats!$B69,FCs!$V$1:$V$11201,stats!J$2,FCs!$W$1:$W$11201,stats!J$1) -> 0 | K69: =SUMIFS(FCs!$AA$1:$AA$11201,FCs!$A$1:$A$11201,stats!$B69,FCs!$V$1:$V$11201,stats!K$2,FCs!$W$1:$W$11201,stats!K$1) -> 0 | L69: =SUMIFS(FCs!$AA$1:$AA$11201,FCs!$A$1:$A$11201,stats!$B69,FCs!$V$1:$V$11201,stats!L$2,FCs!$W$1:$W$11201,stats!L$1) -> 1.5 | M69: =SUMIFS(FCs!$AA$1:$AA$11201,FCs!$A$1:$A$11201,stats!$B69,FCs!$V$1:$V$11201,stats!M$2,FCs!$W$1:$W$11201,stats!M$1) -> 0 | N69: =SUMIFS(FCs!$AA$1:$AA$11201,FCs!$A$1:$A$11201,stats!$B69,FCs!$V$1:$V$11201,stats!N$2,FCs!$W$1:$W$11201,stats!N$1) -> 0 | O69: =SUMIFS(FCs!$AA$1:$AA$11201,FCs!$A$1:$A$11201,stats!$B69,FCs!$V$1:$V$11201,stats!O$2,FCs!$W$1:$W$11201,stats!O$1) -> 2 | P69: =SUMIFS(FCs!$AA$1:$AA$11201,FCs!$A$1:$A$11201,stats!$B69,FCs!$V$1:$V$11201,stats!P$2,FCs!$W$1:$W$11201,stats!P$1) -> 2.5 | Q69: =SUMIFS(FCs!$AA$1:$AA$11201,FCs!$A$1:$A$11201,stats!$B69,FCs!$V$1:$V$11201,stats!Q$2,FCs!$W$1:$W$11201,stats!Q$1) -> 0 | S69: 3.5 | T69: 0.006260480715 | V69: 33
A70: =syllabus!A69 -> 640 | B70: Vaughan.Crisis | D70: 0 | F70: =SUMIFS(FCs!$AA$1:$AA$11201,FCs!$A$1:$A$11201,stats!$B70,FCs!$V$1:$V$11201,stats!F$2,FCs!$W$1:$W$11201,stats!F$1) -> 0 | G70: =SUMIFS(FCs!$AA$1:$AA$11201,FCs!$A$1:$A$11201,stats!$B70,FCs!$V$1:$V$11201,stats!G$2,FCs!$W$1:$W$11201,stats!G$1) -> 0 | H70: =SUMIFS(FCs!$AA$1:$AA$11201,FCs!$A$1:$A$11201,stats!$B70,FCs!$V$1:$V$11201,stats!H$2,FCs!$W$1:$W$11201,stats!H$1) -> 2 | I70: =SUMIFS(FCs!$AA$1:$AA$11201,FCs!$A$1:$A$11201,stats!$B70,FCs!$V$1:$V$11201,stats!I$2,FCs!$W$1:$W$11201,stats!I$1) -> 0 | J70: =SUMIFS(FCs!$AA$1:$AA$11201,FCs!$A$1:$A$11201,stats!$B70,FCs!$V$1:$V$11201,stats!J$2,FCs!$W$1:$W$11201,stats!J$1) -> 0 | K70: =SUMIFS(FCs!$AA$1:$AA$11201,FCs!$A$1:$A$11201,stats!$B70,FCs!$V$1:$V$11201,stats!K$2,FCs!$W$1:$W$11201,stats!K$1) -> 3.75 | L70: =SUMIFS(FCs!$AA$1:$AA$11201,FCs!$A$1:$A$11201,stats!$B70,FCs!$V$1:$V$11201,stats!L$2,FCs!$W$1:$W$11201,stats!L$1) -> 0 | M70: =SUMIFS(FCs!$AA$1:$AA$11201,FCs!$A$1:$A$11201,stats!$B70,FCs!$V$1:$V$11201,stats!M$2,FCs!$W$1:$W$11201,stats!M$1) -> 0 | N70: =SUMIFS(FCs!$AA$1:$AA$11201,FCs!$A$1:$A$11201,stats!$B70,FCs!$V$1:$V$11201,stats!N$2,FCs!$W$1:$W$11201,stats!N$1) -> 0 | O70: =SUMIFS(FCs!$AA$1:$AA$11201,FCs!$A$1:$A$11201,stats!$B70,FCs!$V$1:$V$11201,stats!O$2,FCs!$W$1:$W$11201,stats!O$1) -> 0 | P70: =SUMIFS(FCs!$AA$1:$AA$11201,FCs!$A$1:$A$11201,stats!$B70,FCs!$V$1:$V$11201,stats!P$2,FCs!$W$1:$W$11201,stats!P$1) -> 6.75 | Q70: =SUMIFS(FCs!$AA$1:$AA$11201,FCs!$A$1:$A$11201,stats!$B70,FCs!$V$1:$V$11201,stats!Q$2,FCs!$W$1:$W$11201,stats!Q$1) -> 0 | S70: 5.75 | T70: -0.01 | V70: 68.5
A71: =syllabus!A70 -> 650 | B71: Webel.TRIA-1 | D71: 0 | F71: =SUMIFS(FCs!$AA$1:$AA$11201,FCs!$A$1:$A$11201,stats!$B71,FCs!$V$1:$V$11201,stats!F$2,FCs!$W$1:$W$11201,stats!F$1) -> 2.25 | G71: =SUMIFS(FCs!$AA$1:$AA$11201,FCs!$A$1:$A$11201,stats!$B71,FCs!$V$1:$V$11201,stats!G$2,FCs!$W$1:$W$11201,stats!G$1) -> 0 | H71: =SUMIFS(FCs!$AA$1:$AA$11201,FCs!$A$1:$A$11201,stats!$B71,FCs!$V$1:$V$11201,stats!H$2,FCs!$W$1:$W$11201,stats!H$1) -> 0 | I71: =SUMIFS(FCs!$AA$1:$AA$11201,FCs!$A$1:$A$11201,stats!$B71,FCs!$V$1:$V$11201,stats!I$2,FCs!$W$1:$W$11201,stats!I$1) -> 2.25 | J71: =SUMIFS(FCs!$AA$1:$AA$11201,FCs!$A$1:$A$11201,stats!$B71,FCs!$V$1:$V$11201,stats!J$2,FCs!$W$1:$W$11201,stats!J$1) -> 3 | K71: =SUMIFS(FCs!$AA$1:$AA$11201,FCs!$A$1:$A$11201,stats!$B71,FCs!$V$1:$V$11201,stats!K$2,FCs!$W$1:$W$11201,stats!K$1) -> 3 | L71: =SUMIFS(FCs!$AA$1:$AA$11201,FCs!$A$1:$A$11201,stats!$B71,FCs!$V$1:$V$11201,stats!L$2,FCs!$W$1:$W$11201,stats!L$1) -> 1.75 | M71: =SUMIFS(FCs!$AA$1:$AA$11201,FCs!$A$1:$A$11201,stats!$B71,FCs!$V$1:$V$11201,stats!M$2,FCs!$W$1:$W$11201,stats!M$1) -> 1.25 | N71: =SUMIFS(FCs!$AA$1:$AA$11201,FCs!$A$1:$A$11201,stats!$B71,FCs!$V$1:$V$11201,stats!N$2,FCs!$W$1:$W$11201,stats!N$1) -> 3.25 | O71: =SUMIFS(FCs!$AA$1:$AA$11201,FCs!$A$1:$A$11201,stats!$B71,FCs!$V$1:$V$11201,stats!O$2,FCs!$W$1:$W$11201,stats!O$1) -> 1.75 | P71: =SUMIFS(FCs!$AA$1:$AA$11201,FCs!$A$1:$A$11201,stats!$B71,FCs!$V$1:$V$11201,stats!P$2,FCs!$W$1:$W$11201,stats!P$1) -> 0 | Q71: =SUMIFS(FCs!$AA$1:$AA$11201,FCs!$A$1:$A$11201,stats!$B71,FCs!$V$1:$V$11201,stats!Q$2,FCs!$W$1:$W$11201,stats!Q$1) -> 0 | S71: 13.25 | T71: =S71/S$3 -> 0.02370039128 | V71: 15
A72: =syllabus!A71 -> 660 | B72: Webel.TRIA-2 | C72: 0 | D72: 0 | F72: =SUMIFS(FCs!$AA$1:$AA$11201,FCs!$A$1:$A$11201,stats!$B72,FCs!$V$1:$V$11201,stats!F$2,FCs!$W$1:$W$11201,stats!F$1) -> 0 | G72: =SUMIFS(FCs!$AA$1:$AA$11201,FCs!$A$1:$A$11201,stats!$B72,FCs!$V$1:$V$11201,stats!G$2,FCs!$W$1:$W$11201,stats!G$1) -> 0 | H72: =SUMIFS(FCs!$AA$1:$AA$11201,FCs!$A$1:$A$11201,stats!$B72,FCs!$V$1:$V$11201,stats!H$2,FCs!$W$1:$W$11201,stats!H$1) -> 0 | I72: =SUMIFS(FCs!$AA$1:$AA$11201,FCs!$A$1:$A$11201,stats!$B72,FCs!$V$1:$V$11201,stats!I$2,FCs!$W$1:$W$11201,stats!I$1) -> 0 | J72: =SUMIFS(FCs!$AA$1:$AA$11201,FCs!$A$1:$A$11201,stats!$B72,FCs!$V$1:$V$11201,stats!J$2,FCs!$W$1:$W$11201,stats!J$1) -> 0 | K72: =SUMIFS(FCs!$AA$1:$AA$11201,FCs!$A$1:$A$11201,stats!$B72,FCs!$V$1:$V$11201,stats!K$2,FCs!$W$1:$W$11201,stats!K$1) -> 0 | L72: =SUMIFS(FCs!$AA$1:$AA$11201,FCs!$A$1:$A$11201,stats!$B72,FCs!$V$1:$V$11201,stats!L$2,FCs!$W$1:$W$11201,stats!L$1) -> 0 | M72: =SUMIFS(FCs!$AA$1:$AA$11201,FCs!$A$1:$A$11201,stats!$B72,FCs!$V$1:$V$11201,stats!M$2,FCs!$W$1:$W$11201,stats!M$1) -> 0 | N72: =SUMIFS(FCs!$AA$1:$AA$11201,FCs!$A$1:$A$11201,stats!$B72,FCs!$V$1:$V$11201,stats!N$2,FCs!$W$1:$W$11201,stats!N$1) -> 0 | O72: =SUMIFS(FCs!$AA$1:$AA$11201,FCs!$A$1:$A$11201,stats!$B72,FCs!$V$1:$V$11201,stats!O$2,FCs!$W$1:$W$11201,stats!O$1) -> 0 | P72: =SUMIFS(FCs!$AA$1:$AA$11201,FCs!$A$1:$A$11201,stats!$B72,FCs!$V$1:$V$11201,stats!P$2,FCs!$W$1:$W$11201,stats!P$1) -> 0 | Q72: =SUMIFS(FCs!$AA$1:$AA$11201,FCs!$A$1:$A$11201,stats!$B72,FCs!$V$1:$V$11201,stats!Q$2,FCs!$W$1:$W$11201,stats!Q$1) -> 0 | S72: 0 | T72: =S72/S$3 -> 0 | V72: 52
A73: =syllabus!A72 -> 670 | B73: outdated. | C73: 0 | D73: 0 | F73: =SUMIFS(FCs!$AA$1:$AA$11201,FCs!$A$1:$A$11201,stats!$B73,FCs!$V$1:$V$11201,stats!F$2,FCs!$W$1:$W$11201,stats!F$1) -> 0 | G73: =SUMIFS(FCs!$AA$1:$AA$11201,FCs!$A$1:$A$11201,stats!$B73,FCs!$V$1:$V$11201,stats!G$2,FCs!$W$1:$W$11201,stats!G$1) -> 0 | H73: =SUMIFS(FCs!$AA$1:$AA$11201,FCs!$A$1:$A$11201,stats!$B73,FCs!$V$1:$V$11201,stats!H$2,FCs!$W$1:$W$11201,stats!H$1) -> 0 | I73: =SUMIFS(FCs!$AA$1:$AA$11201,FCs!$A$1:$A$11201,stats!$B73,FCs!$V$1:$V$11201,stats!I$2,FCs!$W$1:$W$11201,stats!I$1) -> 0 | J73: =SUMIFS(FCs!$AA$1:$AA$11201,FCs!$A$1:$A$11201,stats!$B73,FCs!$V$1:$V$11201,stats!J$2,FCs!$W$1:$W$11201,stats!J$1) -> 0 | K73: =SUMIFS(FCs!$AA$1:$AA$11201,FCs!$A$1:$A$11201,stats!$B73,FCs!$V$1:$V$11201,stats!K$2,FCs!$W$1:$W$11201,stats!K$1) -> 0 | L73: =SUMIFS(FCs!$AA$1:$AA$11201,FCs!$A$1:$A$11201,stats!$B73,FCs!$V$1:$V$11201,stats!L$2,FCs!$W$1:$W$11201,stats!L$1) -> 0 | M73: =SUMIFS(FCs!$AA$1:$AA$11201,FCs!$A$1:$A$11201,stats!$B73,FCs!$V$1:$V$11201,stats!M$2,FCs!$W$1:$W$11201,stats!M$1) -> 9 | N73: =SUMIFS(FCs!$AA$1:$AA$11201,FCs!$A$1:$A$11201,stats!$B73,FCs!$V$1:$V$11201,stats!N$2,FCs!$W$1:$W$11201,stats!N$1) -> 8.25 | O73: =SUMIFS(FCs!$AA$1:$AA$11201,FCs!$A$1:$A$11201,stats!$B73,FCs!$V$1:$V$11201,stats!O$2,FCs!$W$1:$W$11201,stats!O$1) -> 12.5 | P73: =SUMIFS(FCs!$AA$1:$AA$11201,FCs!$A$1:$A$11201,stats!$B73,FCs!$V$1:$V$11201,stats!P$2,FCs!$W$1:$W$11201,stats!P$1) -> 11.75 | Q73: =SUMIFS(FCs!$AA$1:$AA$11201,FCs!$A$1:$A$11201,stats!$B73,FCs!$V$1:$V$11201,stats!Q$2,FCs!$W$1:$W$11201,stats!Q$1) -> 18.5 | S73: -1 | T73: -0.01 | V73: 68.5
A74: =syllabus!A73 -> 680 | B74: unknown. | C74: 0 | D74: 0 | F74: =SUMIFS(FCs!$AA$1:$AA$11201,FCs!$A$1:$A$11201,stats!$B74,FCs!$V$1:$V$11201,stats!F$2,FCs!$W$1:$W$11201,stats!F$1) -> 0 | G74: =SUMIFS(FCs!$AA$1:$AA$11201,FCs!$A$1:$A$11201,stats!$B74,FCs!$V$1:$V$11201,stats!G$2,FCs!$W$1:$W$11201,stats!G$1) -> 0 | H74: =SUMIFS(FCs!$AA$1:$AA$11201,FCs!$A$1:$A$11201,stats!$B74,FCs!$V$1:$V$11201,stats!H$2,FCs!$W$1:$W$11201,stats!H$1) -> 0 | I74: =SUMIFS(FCs!$AA$1:$AA$11201,FCs!$A$1:$A$11201,stats!$B74,FCs!$V$1:$V$11201,stats!I$2,FCs!$W$1:$W$11201,stats!I$1) -> 0 | J74: =SUMIFS(FCs!$AA$1:$AA$11201,FCs!$A$1:$A$11201,stats!$B74,FCs!$V$1:$V$11201,stats!J$2,FCs!$W$1:$W$11201,stats!J$1) -> 0 | K74: =SUMIFS(FCs!$AA$1:$AA$11201,FCs!$A$1:$A$11201,stats!$B74,FCs!$V$1:$V$11201,stats!K$2,FCs!$W$1:$W$11201,stats!K$1) -> 4.75 | L74: =SUMIFS(FCs!$AA$1:$AA$11201,FCs!$A$1:$A$11201,stats!$B74,FCs!$V$1:$V$11201,stats!L$2,FCs!$W$1:$W$11201,stats!L$1) -> 5.75 | M74: =SUMIFS(FCs!$AA$1:$AA$11201,FCs!$A$1:$A$11201,stats!$B74,FCs!$V$1:$V$11201,stats!M$2,FCs!$W$1:$W$11201,stats!M$1) -> 0 | N74: =SUMIFS(FCs!$AA$1:$AA$11201,FCs!$A$1:$A$11201,stats!$B74,FCs!$V$1:$V$11201,stats!N$2,FCs!$W$1:$W$11201,stats!N$1) -> 0 | O74: =SUMIFS(FCs!$AA$1:$AA$11201,FCs!$A$1:$A$11201,stats!$B74,FCs!$V$1:$V$11201,stats!O$2,FCs!$W$1:$W$11201,stats!O$1) -> 0 | P74: =SUMIFS(FCs!$AA$1:$AA$11201,FCs!$A$1:$A$11201,stats!$B74,FCs!$V$1:$V$11201,stats!P$2,FCs!$W$1:$W$11201,stats!P$1) -> 0 | Q74: =SUMIFS(FCs!$AA$1:$AA$11201,FCs!$A$1:$A$11201,stats!$B74,FCs!$V$1:$V$11201,stats!Q$2,FCs!$W$1:$W$11201,stats!Q$1) -> 0 | S74: -1 | T74: -0.01 | V74: 68.5

Sheet rank
F1: 2-Fall | G1: 1-Spring | H1: 2-Fall | I1: 1-Spring | J1: 2-Fall | K1: 1-Spring | L1: 2-Fall | M1: 1-Spring | N1: 2-Fall | O1: 1-Spring | P1: 2-Fall | Q1: 2-Fall | Y1: * this multiplier is tentative…
A2: ref | B2: BA100_abbreviation | C2: # pgs | D2: prop | F2: 18 | G2: 18 | H2: 17 | I2: 17 | J2: 16 | K2: 16 | L2: 15 | M2: 15 | N2: 14 | O2: 14 | P2: 13 | Q2: 12 | S2: last 5 | T2: % last 5 | V2: rank | Y2: calc multiplier: | AA2: 2.5
A3: 0 | B3: Exam.Total | C3: 323 | D3: 1 | H3: =SUM(H4:H73) -> 70 | I3: 73.5 | J3: 73.5 | K3: 81.25 | L3: 77.5 | M3: 81.25 | N3: 81.75 | O3: 87 | P3: 87 | Q3: 87 | T3: 0.99999998
A4: 450 | B4: Odomirok.16-17-SAO | D4: 0 | H4: 0 | I4: 0 | J4: 0 | K4: 0 | L4: 0 | M4: 0 | N4: 0 | O4: 0 | P4: 0 | Q4: 0 | S4: 0 | T4: 0 | V4: 1 | W4: 5 | Y4: =SUM(T4:T$4) -> 0 | AA4: =SUM(T4:T9) -> 0.337398374 | AC4: ="| style='background-color: ;'" & "| [["&B4&"]]" -> | style='background-color: ;'| [[Odomirok.16-17-SAO]] | AI4: 1 | AJ4: 5 | AL4: =SUM(AG4:AG$4) -> 0 | AN4: =SUM(AG4:AG9) -> 0
A5: 90 | B5: COPLFR.SAO | D5: 0 | H5: 14 | I5: 10.75 | J5: 11.5 | K5: 14 | L5: 12.75 | M5: 8 | N5: 11.75 | O5: 9.5 | P5: 12.75 | Q5: 11.75 | S5: 71 | T5: 0.1649245064 | V5: 2 | W5: 5 | Y5: =SUM(T$4:T5) -> 0.1649245064 | AC5: | style='background-color: ;'| [[COPLFR.SAO]] | AI5: 2 | AJ5: 5 | AL5: =SUM(AG$4:AG5) -> 0
A6: 30 | B6: ASOP.36 | C6: 22 | D6: 0.06811145511 | H6: 0 | I6: 0 | J6: 0 | K6: 0 | L6: 0 | M6: 0 | N6: 0 | O6: 0 | P6: 0 | Q6: 0 | S6: 0 | T6: 0 | V6: 3 | W6: 5 | Y6: =SUM(T$4:T6) -> 0.1649245064 | AC6: | style='background-color: ;'| [[ASOP.36]] | AI6: 3 | AJ6: 5 | AL6: =SUM(AG$4:AG6) -> 0
A7: 300 | B7: NAIC.IRIS | D7: 0 | H7: 6 | I7: 8.75 | J7: 3.75 | K7: 6 | L7: 0 | M7: 5 | N7: 5.25 | O7: 9.25 | P7: 3.5 | Q7: 5.5 | S7: 29.5 | T7: 0.06852497096 | V7: 4 | W7: 5 | Y7: =SUM(T$4:T7) -> 0.2334494774 | AC7: | style='background-color: ;'| [[NAIC.IRIS]] | AI7: 4 | AJ7: 5 | AL7: =SUM(AG$4:AG7) -> 0
A8: 440 | B8: Odomirok.15-P | D8: 0 | H8: 2 | I8: 2.75 | J8: 5 | K8: 6 | L8: 5 | M8: 3 | N8: 4 | O8: 8.5 | P8: 2.75 | Q8: 0 | S8: 23.75 | T8: 0.05516840883 | V8: 5 | W8: 5 | Y8: =SUM(T$4:T8) -> 0.2886178862 | AC8: | style='background-color: ;'| [[Odomirok.15-P]] | AI8: 5 | AJ8: 5 | AL8: =SUM(AG$4:AG8) -> 0
A9: 200 | B9: Klann.ReinsComm | D9: 0 | H9: 3 | I9: 3 | J9: 4.25 | K9: 3.5 | L9: 4.25 | M9: 3 | N9: 0 | O9: 0 | P9: 3.25 | Q9: 0 | S9: 21 | T9: 0.0487804878 | V9: 6 | W9: 5 | Y9: =SUM(T$4:T9) -> 0.337398374 | AC9: | style='background-color: ;'| [[Klann.ReinsComm]] | AI9: 6 | AJ9: 5 | AL9: =SUM(AG$4:AG9) -> 0
A10: 470 | B10: Odomirok.19-RBC | D10: 0 | H10: 3.75 | I10: 4 | J10: 4.25 | K10: 0 | L10: 5 | M10: 2.5 | N10: 4.5 | O10: 5.25 | P10: 3.25 | Q10: 8.75 | S10: 19.5 | T10: 0.04529616725 | V10: 7 | W10: 4 | Y10: =SUM(T$4:T10) -> 0.3826945412 | AA10: =SUM(T10:T15) -> 0.2479674797 | AC10: ="| style='background-color: ;'" & "| [["&B10&"]]" -> | style='background-color: ;'| [[Odomirok.19-RBC]] | AI10: 7 | AJ10: 4 | AL10: =SUM(AG$4:AG10) -> 0 | AN10: =SUM(AG10:AG15) -> 0
A11: 380 | B11: Odomirok.8-9-IS | D11: 0 | H11: 8.25 | I11: 0 | J11: 3.25 | K11: 0 | L11: 5.75 | M11: 0 | N11: 3 | O11: 0 | P11: 4.25 | Q11: 1.5 | S11: 17.25 | T11: 0.04006968641 | V11: 8 | W11: 4 | Y11: =SUM(T$4:T11) -> 0.4227642276 | AC11: ="| style='background-color: ;'" & "| [["&B11&"]]" -> | style='background-color: ;'| [[Odomirok.8-9-IS]] | AI11: 8 | AJ11: 4 | AL11: =SUM(AG$4:AG11) -> 0
A12: 170 | B12: Germani.GovtIns | C12: 18 | D12: 0.05572755418 | H12: 3 | I12: 2.5 | J12: 3 | K12: 2.5 | L12: 5 | M12: 1.5 | N12: 2.5 | O12: 4.75 | P12: 2.75 | Q12: 3 | S12: 17.5 | T12: 0.0406504065 | V12: 9 | W12: 4 | Y12: =SUM(T$4:T12) -> 0.4634146341 | AC12: | style='background-color: ;'| [[Germani.GovtIns]] | AI12: 9 | AJ12: 4 | AL12: =SUM(AG$4:AG12) -> 0
A13: 460 | B13: Odomirok.18-IEE | D13: 0 | H13: 0 | I13: 3.5 | J13: 4 | K13: 2.75 | L13: 2.5 | M13: 4.25 | N13: 2.5 | O13: 2 | P13: 3 | Q13: 2.75 | S13: 17 | T13: 0.03948896632 | V13: 10 | W13: 4 | Y13: =SUM(T$4:T13) -> 0.5029036005 | AC13: | style='background-color: ;'| [[Odomirok.18-IEE]] | AI13: 10 | AJ13: 4 | AL13: =SUM(AG$4:AG13) -> 0
A14: 430 | B14: Odomirok.14-F | D14: 0 | H14: 2.5 | I14: 3.75 | J14: 3.75 | K14: 4.25 | L14: 0 | M14: 4 | N14: 0 | O14: 0 | P14: 3.5 | Q14: 5.75 | S14: 18.25 | T14: 0.04239256678 | V14: 11 | W14: 4 | Y14: =SUM(T$4:T14) -> 0.5452961672 | AC14: | style='background-color: ;'| [[Odomirok.14-F]] | AI14: 11 | AJ14: 4 | AL14: =SUM(AG$4:AG14) -> 0
A15: 150 | B15: Freihaut.Reins | D15: 0 | H15: 0 | I15: 2.75 | J15: 1.5 | K15: 4.25 | L15: 2.5 | M15: 6.25 | N15: 0 | O15: 4.25 | P15: 2.25 | Q15: 1.5 | S15: 17.25 | T15: 0.04006968641 | V15: 12 | W15: 4 | Y15: =SUM(T$4:T15) -> 0.5853658537 | AC15: | style='background-color: ;'| [[Freihaut.Reins]] | AI15: 12 | AJ15: 4 | AL15: =SUM(AG$4:AG15) -> 0
A16: 500 | B16: Odomirok.22-23-GAAP | D16: 0 | H16: 7 | I16: 0 | J16: 3.75 | K16: 5.5 | L16: 0 | M16: 0 | N16: 9.25 | O16: 7 | P16: 0 | Q16: 1.75 | S16: 16.25 | T16: 0.03774680604 | V16: 13 | W16: 3 | Y16: =SUM(T$4:T16) -> 0.6231126597 | AA16: =SUM(T16:T21) -> 0.1535644599 | AC16: | style='background-color: ;'| [[Odomirok.22-23-GAAP]] | AI16: 13 | AJ16: 3 | AL16: =SUM(AG$4:AG16) -> 0 | AN16: =SUM(AG16:AG21) -> 0
A17: 100 | B17: Cook.Personal | D17: 0 | H17: 1.75 | I17: 4.75 | J17: 2.5 | K17: 2.5 | L17: 0 | M17: 3.25 | N17: 0 | O17: 4 | P17: 2 | Q17: 3 | S17: 14.75 | T17: 0.03426248548 | V17: 14 | W17: 3 | Y17: =SUM(T$4:T17) -> 0.6573751452 | AC17: | style='background-color: ;'| [[Cook.Personal]] | AI17: 14 | AJ17: 3 | AL17: =SUM(AG$4:AG17) -> 0
A18: 175 | B18: Horn.Flood | C18: 86 | D18: 0.26625387 | H18: 0 | I18: 0 | J18: 0 | K18: 0 | L18: 0 | M18: 0 | N18: 0 | O18: 0 | P18: 0 | Q18: 0 | S18: 0 | T18: 0.029 | V18: 15 | W18: 3 | Y18: =SUM(T$4:T18) -> 0.6863751452 | AC18: | style='background-color: ;'| [[Horn.Flood]] | AI18: 15 | AJ18: 3 | AL18: =SUM(AG$4:AG18) -> 0
A19: 530 | B19: Odomirok.26-Taxes | D19: 0 | H19: 2.5 | I19: 0 | J19: 3.25 | K19: 2.375 | L19: 0 | M19: 3.25 | N19: 0 | O19: 0 | P19: 7 | Q19: 0 | S19: 11.375 | T19: 0.02642276423 | V19: 16 | W19: 3 | Y19: =SUM(T$4:T19) -> 0.7127979094 | AC19: | style='background-color: ;'| [[Odomirok.26-Taxes]] | AI19: 16 | AJ19: 3 | AL19: =SUM(AG$4:AG19) -> 0
A20: 650 | B20: Webel.TRIA-1 | D20: 0 | H20: 0 | I20: 2.25 | J20: 3 | K20: 3 | L20: 1.75 | M20: 1.25 | N20: 3.25 | O20: 1.75 | P20: 0 | Q20: 0 | S20: 11.25 | T20: 0.02613240418 | V20: 17 | W20: 3 | Y20: =SUM(T$4:T20) -> 0.7389303136 | AC20: | style='background-color: ;'| [[Webel.TRIA-1]] | AI20: 17 | AJ20: 3 | AL20: =SUM(AG$4:AG20) -> 0
A21: 660 | B21: Webel.TRIA-2 | C21: 0 | D21: 0 | H21: 0 | I21: 0 | J21: 0 | K21: 0 | L21: 0 | M21: 0 | N21: 0 | O21: 0 | P21: 0 | Q21: 0 | S21: 0 | T21: 0 | V21: 18 | W21: 3 | Y21: =SUM(T$4:T21) -> 0.7389303136 | AC21: | style='background-color: ;'| [[Webel.TRIA-2]] | AI21: 18 | AJ21: 3 | AL21: =SUM(AG$4:AG21) -> 0
A22: 120 | B22: Feldblum.Ratings | D22: 0 | H22: 0 | I22: 2.5 | J22: 0 | K22: 0 | L22: 3 | M22: 5 | N22: 0 | O22: 0 | P22: 2.75 | Q22: 3 | S22: 10.5 | T22: 0.0243902439 | V22: 19 | W22: 2 | Y22: =SUM(T$4:T22) -> 0.7633205575 | AA22: =SUM(T22:T27) -> 0.1138211382 | AC22: | style='background-color: ;'| [[Feldblum.Ratings]] | AI22: 19 | AJ22: 2 | AL22: =SUM(AG$4:AG22) -> 0 | AN22: =SUM(AG22:AG27) -> 0
A23: 390 | B23: Odomirok.10-Notes | D23: 0 | H23: 0 | I23: 2.5 | J23: 0 | K23: 0 | L23: 4.25 | M23: 3 | N23: 0 | O23: 2.5 | P23: 3 | Q23: 0 | S23: 9.75 | T23: 0.02264808362 | V23: 20 | W23: 2 | Y23: =SUM(T$4:T23) -> 0.7859686411 | AC23: | style='background-color: ;'| [[Odomirok.10-Notes]] | AI23: 20 | AJ23: 2 | AL23: =SUM(AG$4:AG23) -> 0
A24: 130 | B24: Feldblum.Surplus | D24: 0 | H24: 0 | I24: 4.25 | J24: 0 | K24: 0 | L24: 0 | M24: 3.5 | N24: 0 | O24: 0 | P24: 0 | Q24: 0 | S24: 7.75 | T24: 0.01800232288 | V24: 21 | W24: 2 | Y24: =SUM(T$4:T24) -> 0.803970964 | AC24: | style='background-color: ;'| [[Feldblum.Surplus]] | AI24: 21 | AJ24: 2 | AL24: =SUM(AG$4:AG24) -> 0
A25: 340 | B25: NAIC.Solvency | D25: 0 | H25: 0 | I25: 2.5 | J25: 2.5 | K25: 0 | L25: 2.5 | M25: 0 | N25: 5 | O25: 7.5 | P25: 0 | Q25: 0 | S25: 7.5 | T25: 0.01742160279 | V25: 22 | W25: 2 | Y25: =SUM(T$4:T25) -> 0.8213925668 | AC25: | style='background-color: ;'| [[NAIC.Solvency]] | AI25: 22 | AJ25: 2 | AL25: =SUM(AG$4:AG25) -> 0
A26: 160 | B26: GAO.Report | C26: 58 | D26: 0.1795665635 | H26: 2 | I26: 0 | J26: 0 | K26: 3 | L26: 2 | M26: 0 | N26: 2.75 | O26: 0 | P26: 0 | Q26: 0 | S26: 7 | T26: 0.0162601626 | V26: 23 | W26: 2 | Y26: =SUM(T$4:T26) -> 0.8376527294 | AC26: | style='background-color: ;'| [[GAO.Report]] | AI26: 23 | AJ26: 2 | AL26: =SUM(AG$4:AG26) -> 0
A27: 610 | B27: Porter.8-Rates | D27: 0 | H27: 0 | I27: 0 | J27: 0 | K27: 3.75 | L27: 0 | M27: 2.75 | N27: 0 | O27: 0 | P27: 2.5 | Q27: 0 | S27: 6.5 | T27: 0.01509872242 | V27: 24 | W27: 2 | Y27: =SUM(T$4:T27) -> 0.8527514518 | AC27: | style='background-color: ;'| [[Porter.8-Rates]] | AI27: 24 | AJ27: 2 | AL27: =SUM(AG$4:AG27) -> 0
A28: 520 | B28: Odomirok.25-Solv2 | D28: 0 | H28: 0 | I28: 3 | J28: 0 | K28: 0 | L28: 3.25 | M28: 0 | N28: 0 | O28: 0 | P28: 3.75 | Q28: 0 | S28: 6.25 | T28: 0.01451800232 | V28: 25 | W28: 1 | Y28: =SUM(T$4:T28) -> 0.8672694541 | AA28: =SUM(T28:T33) -> 0.07549361208 | AC28: | style='background-color: ;'| [[Odomirok.25-Solv2]] | AI28: 25 | AJ28: 1 | AL28: =SUM(AG$4:AG28) -> 0 | AN28: =SUM(AG28:AG33) -> 0
A29: 560 | B29: Porter.2-Devlpt | D29: 0 | H29: 0 | I29: 0 | J29: 3.25 | K29: 0 | L29: 0 | M29: 2.75 | N29: 4 | O29: 3 | P29: 2 | Q29: 3.5 | S29: 6 | T29: 0.01393728223 | V29: 26 | W29: 1 | Y29: =SUM(T$4:T29) -> 0.8812067364 | AC29: | style='background-color: ;'| [[Porter.2-Devlpt]] | AI29: 26 | AJ29: 1 | AL29: =SUM(AG$4:AG29) -> 0
A30: 620 | B30: Porter.12-Insolvency | D30: 0 | H30: 2.25 | I30: 0 | J30: 3.5 | K30: 0 | L30: 0 | M30: 0 | N30: 0 | O30: 0 | P30: 0 | Q30: 3 | S30: 5.75 | T30: 0.01335656214 | V30: 27 | W30: 1 | Y30: =SUM(T$4:T30) -> 0.8945632985 | AC30: | style='background-color: ;'| [[Porter.12-Insolvency]] | AI30: 27 | AJ30: 1 | AL30: =SUM(AG$4:AG30) -> 0
A31: 70 | B31: Baribeau.Regs | D31: 0 | H31: 1 | I31: 1.5 | J31: 2.5 | K31: 0 | L31: 0 | M31: 0 | N31: 0 | O31: 0 | P31: 0 | Q31: 0 | S31: 5 | T31: 0.01161440186 | V31: 28 | W31: 1 | Y31: =SUM(T$4:T31) -> 0.9061777003 | AC31: | style='background-color: ;'| [[Baribeau.Regs]] | AI31: 28 | AJ31: 1 | AL31: =SUM(AG$4:AG31) -> 0
A32: 210 | B32: Kucera.Credit | C32: 7 | D32: 0.02167182663 | H32: 2.25 | I32: 0 | J32: 2.5 | K32: 0 | L32: 0 | M32: 0 | N32: 0 | O32: 2.75 | P32: 0 | Q32: 0 | S32: 4.75 | T32: 0.01103368177 | V32: 29 | W32: 1 | Y32: =SUM(T$4:T32) -> 0.9172113821 | AC32: | style='background-color: ;'| [[Kucera.Credit]] | AI32: 29 | AJ32: 1 | AL32: =SUM(AG$4:AG32) -> 0
A33: 220 | B33: McCarty.Credit | C33: 57 | D33: 0.1764705882 | H33: 0 | I33: 0 | J33: 0 | K33: 2.5 | L33: 2.25 | M33: 0 | N33: 3.75 | O33: 0 | P33: 0 | Q33: 0 | S33: 4.75 | T33: 0.01103368177 | V33: 30 | W33: 1 | Y33: =SUM(T$4:T33) -> 0.9282450639 | AC33: | style='background-color: ;'| [[McCarty.Credit]] | AI33: 30 | AJ33: 1 | AL33: =SUM(AG$4:AG33) -> 0
A34: 180 | B34: NAIC.Telematics | D34: 0 | H34: 2 | I34: 3 | J34: 0 | K34: 0 | L34: 0 | M34: 0 | N34: 0 | O34: 0 | P34: 0 | Q34: 0 | S34: 5 | T34: 0.01161440186 | V34: 31 | W34: 1 | Y34: =SUM(T$4:T34) -> 0.9398594657 | AA34: =SUM(T34:T39) -> 0.05603948897 | AC34: | style='background-color: ;'| [[NAIC.Telematics]] | AI34: 31 | AJ34: 1 | AL34: =SUM(AG$4:AG34) -> 0 | AN34: =SUM(AG34:AG39) -> 0
A35: 110 | B35: Feldblum.Discount | D35: 0 | H35: 0 | I35: 2.25 | J35: 0 | K35: 2.375 | L35: 0 | M35: 0 | N35: 2.75 | O35: 0 | P35: 0 | Q35: 0 | S35: 4.625 | T35: 0.01074332172 | V35: 32 | W35: 1 | Y35: =SUM(T$4:T35) -> 0.9506027875 | AC35: | style='background-color: ;'| [[Feldblum.Discount]] | AI35: 32 | AJ35: 1 | AL35: =SUM(AG$4:AG35) -> 0
A36: 630 | B36: Porter.Reg-2 | D36: 0 | H36: 0 | I36: 2.25 | J36: 0 | K36: 0 | L36: 2.25 | M36: 0 | N36: 0 | O36: 2 | P36: 2.5 | Q36: 0 | S36: 4.5 | T36: 0.01045296167 | V36: 33 | W36: 1 | Y36: =SUM(T$4:T36) -> 0.9610557491 | AC36: | style='background-color: ;'| [[Porter.Reg-2]] | AI36: 33 | AJ36: 1 | AL36: =SUM(AG$4:AG36) -> 0
A37: 570 | B37: Porter.3-Roles-Fed | D37: 0 | H37: 1.75 | I37: 0 | J37: 0 | K37: 2.25 | L37: 0 | M37: 0 | N37: 0 | O37: 0 | P37: 0 | Q37: 0 | S37: 4 | T37: 0.009291521487 | V37: 34 | W37: 1 | Y37: =SUM(T$4:T37) -> 0.9703472706 | AC37: | style='background-color: ;'| [[Porter.3-Roles-Fed]] | AI37: 34 | AJ37: 1 | AL37: =SUM(AG$4:AG37) -> 0
A38: 580 | B38: Porter.4-Roles-State | D38: 0 | H38: 0 | I38: 0 | J38: 0 | K38: 0 | L38: 3.25 | M38: 0 | N38: 0 | O38: 1.75 | P38: 0 | Q38: 2 | S38: 3.25 | T38: 0.007549361208 | V38: 35 | W38: 1 | Y38: =SUM(T$4:T38) -> 0.9778966318 | AC38: | style='background-color: ;'| [[Porter.4-Roles-State]] | AI38: 35 | AJ38: 1 | AL38: =SUM(AG$4:AG38) -> 0
A39: 40 | B39: ASOP.41 | C39: 27 | D39: 0.08359133127 | H39: 0 | I39: 0 | J39: 0 | K39: 0 | L39: 0 | M39: 2.75 | N39: 0 | O39: 0 | P39: 0 | Q39: 0 | S39: 2.75 | T39: 0.006387921022 | V39: 36 | W39: 1 | Y39: =SUM(T$4:T39) -> 0.9842845528 | AC39: | style='background-color: ;'| [[ASOP.41]] | AI39: 36 | AJ39: 1 | AL39: =SUM(AG$4:AG39) -> 0
A40: 590 | B40: Porter.5-Opns-State | D40: 0 | H40: 0 | I40: 0 | J40: 0 | K40: 0 | L40: 2.5 | M40: 0 | N40: 0 | O40: 0 | P40: 0 | Q40: 0 | S40: 2.5 | T40: 0.005807200929 | V40: 37 | W40: 1 | Y40: =SUM(T$4:T40) -> 0.9900917538 | AA40: =SUM(T40:T45) -> 0.01567944251 | AC40: | style='background-color: ;'| [[Porter.5-Opns-State]] | AI40: 37 | AJ40: 1 | AL40: =SUM(AG$4:AG40) -> 0 | AN40: =SUM(AG40:AG45) -> 0
A41: 230 | B41: NAIC.APPM | D41: 0 | H41: 0 | I41: 0 | J41: 0 | K41: 0 | L41: 0 | M41: 2 | N41: 0 | O41: 0 | P41: 0 | Q41: 0 | S41: 2 | T41: 0.004645760743 | V41: 38 | W41: 1 | Y41: =SUM(T$4:T41) -> 0.9947375145 | AC41: | style='background-color: ;'| [[NAIC.APPM]] | AI41: 38 | AJ41: 1 | AL41: =SUM(AG$4:AG41) -> 0
A42: 280 | B42: NAIC.SSAP-62R | D42: 0 | H42: 1.75 | I42: 0 | J42: 0 | K42: 0 | L42: 0 | M42: 0 | N42: 6 | O42: 0 | P42: 0 | Q42: 1.5 | S42: 1.75 | T42: 0.00406504065 | V42: 39 | W42: 1 | Y42: =SUM(T$4:T42) -> 0.9988025552 | AC42: | style='background-color: ;'| [[NAIC.SSAP-62R]] | AI42: 39 | AJ42: 1 | AL42: =SUM(AG$4:AG42) -> 0
A43: 330 | B43: NAIC.Price | D43: 0 | H43: 0.5 | I43: 0 | J43: 0 | K43: 0 | L43: 0 | M43: 0 | N43: 0 | O43: 0 | P43: 0 | Q43: 0 | S43: 0.5 | T43: 0.001161440186 | V43: 40 | W43: 1 | Y43: =SUM(T$4:T43) -> 0.9999639954 | AC43: | style='background-color: ;'| [[NAIC.Price]] | AI43: 40 | AJ43: 1 | AL43: =SUM(AG$4:AG43) -> 0
A44: 10 | B44: IEE.2016 | D44: 0 | H44: 0 | I44: 0 | J44: 0 | K44: 0 | L44: 0 | M44: 0 | N44: 0 | O44: 0 | P44: 0 | Q44: 0 | S44: 0 | T44: 0 | V44: 41 | W44: 1 | Y44: =SUM(T$4:T44) -> 0.9999639954 | AC44: | style='background-color: ;'| [[IEE.2016]] | AI44: 41 | AJ44: 1 | AL44: =SUM(AG$4:AG44) -> 0
A45: 20 | B45: ASOP.20 | C45: 17 | D45: 0.05263157895 | H45: 0 | I45: 0 | J45: 0 | K45: 0 | L45: 0 | M45: 0 | N45: 0 | O45: 0 | P45: 0 | Q45: 0 | S45: 0 | T45: 0 | V45: 42 | W45: 1 | Y45: =SUM(T$4:T45) -> 0.9999639954 | AC45: | style='background-color: ;'| [[ASOP.20]] | AI45: 42 | AJ45: 1 | AL45: =SUM(AG$4:AG45) -> 0
A46: 50 | B46: ASOP.43 | C46: 31 | D46: 0.0959752322 | H46: 0 | I46: 0 | J46: 0 | K46: 0 | L46: 0 | M46: 0 | N46: 0 | O46: 0 | P46: 0 | Q46: 0 | S46: 0 | T46: 0 | V46: 43 | W46: 1 | Y46: =SUM(T$4:T46) -> 0.9999639954 | AA46: =SUM(T46:T51) -> 0 | AC46: | style='background-color: ;'| [[ASOP.43]] | AI46: 43 | AJ46: 1 | AL46: =SUM(AG$4:AG46) -> 0 | AN46: =SUM(AG46:AG51) -> 0
A47: 60 | B47: AAA.Materiality | D47: 0 | H47: 0 | I47: 0 | J47: 0 | K47: 0 | L47: 0 | M47: 0 | N47: 0 | O47: 0 | P47: 0 | Q47: 0 | S47: 0 | T47: 0 | V47: 44 | W47: 1 | Y47: =SUM(T$4:T47) -> 0.9999639954 | AC47: | style='background-color: ;'| [[AAA.Materiality]] | AI47: 44 | AJ47: 1 | AL47: =SUM(AG$4:AG47) -> 0
A48: 80 | B48: BK.Reins | D48: 0 | H48: 0 | I48: 0 | J48: 0 | K48: 0 | L48: 0 | M48: 0 | N48: 0 | O48: 0 | P48: 0 | Q48: 0 | S48: 0 | T48: 0 | V48: 45 | W48: 1 | Y48: =SUM(T$4:T48) -> 0.9999639954 | AC48: | style='background-color: ;'| [[BK.Reins]] | AI48: 45 | AJ48: 1 | AL48: =SUM(AG$4:AG48) -> 0
A49: 140 | B49: FASB.944 | D49: 0 | H49: 0 | I49: 0 | J49: 0 | K49: 0 | L49: 0 | M49: 0 | N49: 0 | O49: 0 | P49: 0 | Q49: 0 | S49: 0 | T49: 0 | V49: 46 | W49: 1 | Y49: =SUM(T$4:T49) -> 0.9999639954 | AC49: | style='background-color: ;'| [[FASB.944]] | AI49: 46 | AJ49: 1 | AL49: =SUM(AG$4:AG49) -> 0
A50: 240 | B50: NAIC.SSAP-5R | D50: 0 | H50: 0 | I50: 0 | J50: 0 | K50: 0 | L50: 0 | M50: 0 | N50: 0 | O50: 0 | P50: 0 | Q50: 0 | S50: 0 | T50: 0 | V50: 47 | W50: 1 | Y50: =SUM(T$4:T50) -> 0.9999639954 | AC50: | style='background-color: ;'| [[NAIC.SSAP-5R]] | AI50: 47 | AJ50: 1 | AL50: =SUM(AG$4:AG50) -> 0
A51: 250 | B51: NAIC.SSAP-9 | D51: 0 | H51: 0 | I51: 0 | J51: 0 | K51: 0 | L51: 0 | M51: 0 | N51: 2 | O51: 0 | P51: 0 | Q51: 0 | S51: 0 | T51: 0 | V51: 48 | W51: 1 | Y51: =SUM(T$4:T51) -> 0.9999639954 | AC51: | style='background-color: ;'| [[NAIC.SSAP-9]] | AI51: 48 | AJ51: 1 | AL51: =SUM(AG$4:AG51) -> 0
A52: 260 | B52: NAIC.SSAP-53 | D52: 0 | H52: 0 | I52: 0 | J52: 0 | K52: 0 | L52: 0 | M52: 0 | N52: 0 | O52: 0 | P52: 0 | Q52: 0 | S52: 0 | T52: 0 | V52: 49 | W52: 1 | Y52: =SUM(T$4:T52) -> 0.9999639954 | AA52: =SUM(T52:T57) -> 0 | AC52: | style='background-color: ;'| [[NAIC.SSAP-53]] | AI52: 49 | AJ52: 1 | AL52: =SUM(AG$4:AG52) -> 0 | AN52: =SUM(AG52:AG57) -> 0
A53: 270 | B53: NAIC.SSAP-55 | D53: 0 | H53: 0 | I53: 0 | J53: 0 | K53: 0 | L53: 0 | M53: 0 | N53: 0 | O53: 0 | P53: 0 | Q53: 0 | S53: 0 | T53: 0 | V53: 50 | W53: 1 | Y53: =SUM(T$4:T53) -> 0.9999639954 | AC53: | style='background-color: ;'| [[NAIC.SSAP-55]] | AI53: 50 | AJ53: 1 | AL53: =SUM(AG$4:AG53) -> 0
A54: 290 | B54: NAIC.SSAP-65 | D54: 0 | H54: 0 | I54: 0 | J54: 0 | K54: 0 | L54: 0 | M54: 0 | N54: 0 | O54: 0 | P54: 0 | Q54: 3.5 | S54: 0 | T54: 0 | V54: 51 | W54: 1 | Y54: =SUM(T$4:T54) -> 0.9999639954 | AC54: | style='background-color: ;'| [[NAIC.SSAP-65]] | AI54: 51 | AJ54: 1 | AL54: =SUM(AG$4:AG54) -> 0
A55: 310 | B55: NAIC.Annual | D55: 0 | H55: 0 | I55: 0 | J55: 0 | K55: 0 | L55: 0 | M55: 0 | N55: 0 | O55: 0 | P55: 0 | Q55: 0 | S55: 0 | T55: 0 | V55: 52 | W55: 1 | Y55: =SUM(T$4:T55) -> 0.9999639954 | AC55: | style='background-color: ;'| [[NAIC.Annual]] | AI55: 52 | AJ55: 1 | AL55: =SUM(AG$4:AG55) -> 0
A56: 320 | B56: NAIC.AnnualExs | D56: 0 | H56: 0 | I56: 0 | J56: 0 | K56: 0 | L56: 0 | M56: 0 | N56: 0 | O56: 0 | P56: 0 | Q56: 0 | S56: 0 | T56: 0 | V56: 53 | W56: 1 | Y56: =SUM(T$4:T56) -> 0.9999639954 | AC56: | style='background-color: ;'| [[NAIC.AnnualExs]] | AI56: 53 | AJ56: 1 | AL56: =SUM(AG$4:AG56) -> 0
A57: 360 | B57: Odomirok.1-5-Intro | D57: 0 | H57: 0 | I57: 0 | J57: 0 | K57: 0 | L57: 0 | M57: 0 | N57: 0 | O57: 0 | P57: 0 | Q57: 0 | S57: 0 | T57: 0 | V57: 54 | W57: 1 | Y57: =SUM(T$4:T57) -> 0.9999639954 | AC57: | style='background-color: ;'| [[Odomirok.1-5-Intro]] | AI57: 54 | AJ57: 1 | AL57: =SUM(AG$4:AG57) -> 0
A58: 370 | B58: Odomirok.6-7-BS | D58: 0 | H58: 0 | I58: 0 | J58: 0 | K58: 0 | L58: 0 | M58: 0 | N58: 0 | O58: 0 | P58: 0 | Q58: 5 | S58: 0 | T58: 0 | V58: 55 | W58: 1 | Y58: =SUM(T$4:T58) -> 0.9999639954 | AA58: =SUM(T58:T63) -> 0 | AC58: | style='background-color: ;'| [[Odomirok.6-7-BS]] | AI58: 55 | AJ58: 1 | AL58: =SUM(AG$4:AG58) -> 0 | AN58: =SUM(AG58:AG63) -> 0
A59: 400 | B59: Odomirok.11-GenInt | D59: 0 | H59: 0 | I59: 0 | J59: 0 | K59: 0 | L59: 0 | M59: 0 | N59: 0 | O59: 0 | P59: 0 | Q59: 0 | S59: 0 | T59: 0 | V59: 56 | W59: 1 | Y59: =SUM(T$4:T59) -> 0.9999639954 | AC59: | style='background-color: ;'| [[Odomirok.11-GenInt]] | AI59: 56 | AJ59: 1 | AL59: =SUM(AG$4:AG59) -> 0
A60: 410 | B60: Odomirok.12-5yr | D60: 0 | H60: 0 | I60: 0 | J60: 0 | K60: 0 | L60: 0 | M60: 0 | N60: 0 | O60: 0 | P60: 0 | Q60: 0 | S60: 0 | T60: 0 | V60: 57 | W60: 1 | Y60: =SUM(T$4:T60) -> 0.9999639954 | AC60: | style='background-color: ;'| [[Odomirok.12-5yr]] | AI60: 57 | AJ60: 1 | AL60: =SUM(AG$4:AG60) -> 0
A61: 420 | B61: Odomirok.13 | D61: 0 | H61: 0 | I61: 0 | J61: 0 | K61: 0 | L61: 0 | M61: 0 | N61: 0 | O61: 0 | P61: 0 | Q61: 0 | S61: 0 | T61: 0 | V61: 58 | W61: 1 | Y61: =SUM(T$4:T61) -> 0.9999639954 | AC61: | style='background-color: ;'| [[Odomirok.13]] | AI61: 58 | AJ61: 1 | AL61: =SUM(AG$4:AG61) -> 0
A62: 480 | B62: Odomirok.20-IRIS | D62: 0 | H62: 0 | I62: 0 | J62: 0 | K62: 0 | L62: 0 | M62: 0 | N62: 0 | O62: 0 | P62: 0 | Q62: 0 | S62: 0 | T62: 0 | V62: 59 | W62: 1 | Y62: =SUM(T$4:T62) -> 0.9999639954 | AC62: | style='background-color: ;'| [[Odomirok.20-IRIS]] | AI62: 59 | AJ62: 1 | AL62: =SUM(AG$4:AG62) -> 0
A63: 490 | B63: Odomirok.21-Tools | D63: 0 | H63: 0 | I63: 0 | J63: 0 | K63: 0 | L63: 0 | M63: 0 | N63: 0 | O63: 0 | P63: 0 | Q63: 0 | S63: 0 | T63: 0 | V63: 60 | W63: 1 | Y63: =SUM(T$4:T63) -> 0.9999639954 | AC63: | style='background-color: ;'| [[Odomirok.21-Tools]] | AI63: 60 | AJ63: 1 | AL63: =SUM(AG$4:AG63) -> 0
A64: 510 | B64: Odomirok.24-IFRS | D64: 0 | H64: 0 | I64: 0 | J64: 0 | K64: 0 | L64: 0 | M64: 0 | N64: 0 | O64: 0 | P64: 0 | Q64: 0 | S64: 0 | T64: 0 | V64: 61 | W64: 1 | Y64: =SUM(T$4:T64) -> 0.9999639954 | AA64: =SUM(T64:T69) -> -0.01000002 | AC64: | style='background-color: ;'| [[Odomirok.24-IFRS]] | AI64: 61 | AJ64: 1 | AL64: =SUM(AG$4:AG64) -> 0 | AN64: =SUM(AG64:AG69) -> 0
A65: 540 | B65: Odomirok.30-Future | D65: 0 | H65: 0 | I65: 0 | J65: 0 | K65: 0 | L65: 0 | M65: 0 | N65: 0 | O65: 0 | P65: 0 | Q65: 0 | S65: 0 | T65: 0 | V65: 62 | W65: 1 | Y65: =SUM(T$4:T65) -> 0.9999639954 | AC65: | style='background-color: ;'| [[Odomirok.30-Future]] | AI65: 62 | AJ65: 1 | AL65: =SUM(AG$4:AG65) -> 0
A66: 600 | B66: Porter.6-Formation | D66: 0 | H66: 0 | I66: 0 | J66: 0 | K66: 0 | L66: 0 | M66: 0 | N66: 0 | O66: 0 | P66: 0 | Q66: 0 | S66: 0 | T66: 0 | V66: 63 | W66: 1 | Y66: =SUM(T$4:T66) -> 0.9999639954 | AC66: | style='background-color: ;'| [[Porter.6-Formation]] | AI66: 63 | AJ66: 1 | AL66: =SUM(AG$4:AG66) -> 0
A67: 350 | B67: Odomirok.Reporting | D67: 0 | S67: 0 | T67: -1e-08 | W67: 0 | AC67: | style='background-color: ;'| [[Odomirok.Reporting]] | AI67: 64 | AJ67: 1 | AL67: =SUM(AG$4:AG67) -> 0
A68: 550 | B68: Porter.Regs-1 | D68: 0 | S68: 0 | T68: -1e-08 | W68: 0
A69: 190 | B69: King.Flood | D69: 0 | H69: 2.75 | I69: 1 | J69: 2.5 | K69: 2.25 | L69: 2 | M69: 2 | N69: 2.25 | O69: 0 | P69: 1.75 | Q69: 0 | S69: 12.5 | T69: -0.01 | W69: 0
A70: 640 | B70: Vaughan.Crisis | D70: 0 | H70: 0 | I70: 0 | J70: 0 | K70: 3.75 | L70: 0 | M70: 3.25 | N70: 0 | O70: 0 | P70: 6.75 | Q70: 0 | S70: 7 | T70: -0.01 | W70: 0
A71: 670 | B71: outdated. | C71: 0 | D71: 0 | H71: 0 | I71: 0 | J71: 0 | K71: 0 | L71: 0 | M71: 9 | N71: 7.25 | O71: 11.25 | P71: 11.75 | Q71: 20.25 | S71: -1 | T71: -0.01 | V71: 65 | W71: 0
A72: 680 | B72: unknown. | C72: 0 | D72: 0 | H72: 0 | I72: 0 | J72: 0 | K72: 4.75 | L72: 5.75 | M72: 0 | N72: 0 | O72: 0 | P72: 0 | Q72: 0 | S72: -1 | T72: -0.01 | V72: 66 | W72: 0

Sheet rank_v_beta
F1: 2-Fall | G1: 1-Spring | H1: 2-Fall | I1: 1-Spring | J1: 2-Fall | K1: 1-Spring | L1: 2-Fall | M1: 1-Spring | N1: 2-Fall | O1: 1-Spring | P1: 2-Fall | Q1: 2-Fall | Y1: * this multiplier is tentative…
A2: ref | B2: BA100_abbreviation | C2: # pgs | D2: prop | F2: 18 | G2: 18 | H2: 17 | I2: 17 | J2: 16 | K2: 16 | L2: 15 | M2: 15 | N2: 14 | O2: 14 | P2: 13 | Q2: 12 | S2: last 5 | T2: % last 5 | V2: rank | Y2: calc multiplier: | AA2: 2.5
A3: 0 | B3: Exam.Total | C3: 323 | D3: 1 | H3: =SUM(H4:H73) -> 70 | I3: 73.5 | J3: 73.5 | K3: 81.25 | L3: 77.5 | M3: 81.25 | N3: 81.75 | O3: 87 | P3: 87 | Q3: 87 | T3: 0.99999998
A4: 450 | B4: Odomirok.16-17-SAO | D4: 0 | H4: 0 | I4: 0 | J4: 0 | K4: 0 | L4: 0 | M4: 0 | N4: 0 | O4: 0 | P4: 0 | Q4: 0 | S4: 0 | T4: 0 | V4: 1 | W4: 5 | Y4: =SUM(T4:T$4) -> 0 | AA4: =SUM(T4:T9) -> 0.337398374 | AC4: ="| style='background-color: ;'" & "| [["&B4&"]]" -> | style='background-color: ;'| [[Odomirok.16-17-SAO]] | AI4: 1 | AJ4: 5 | AL4: =SUM(AG4:AG$4) -> 0 | AN4: =SUM(AG4:AG9) -> 0
A5: 90 | B5: COPLFR.SAO | D5: 0 | H5: 14 | I5: 10.75 | J5: 11.5 | K5: 14 | L5: 12.75 | M5: 8 | N5: 11.75 | O5: 9.5 | P5: 12.75 | Q5: 11.75 | S5: 71 | T5: 0.1649245064 | V5: 2 | W5: 5 | Y5: =SUM(T$4:T5) -> 0.1649245064 | AC5: | style='background-color: ;'| [[COPLFR.SAO]] | AI5: 2 | AJ5: 5 | AL5: =SUM(AG$4:AG5) -> 0
A6: 30 | B6: ASOP.36 | C6: 22 | D6: 0.06811145511 | H6: 0 | I6: 0 | J6: 0 | K6: 0 | L6: 0 | M6: 0 | N6: 0 | O6: 0 | P6: 0 | Q6: 0 | S6: 0 | T6: 0 | V6: 3 | W6: 5 | Y6: =SUM(T$4:T6) -> 0.1649245064 | AC6: | style='background-color: ;'| [[ASOP.36]] | AI6: 3 | AJ6: 5 | AL6: =SUM(AG$4:AG6) -> 0
A7: 300 | B7: NAIC.IRIS | D7: 0 | H7: 6 | I7: 8.75 | J7: 3.75 | K7: 6 | L7: 0 | M7: 5 | N7: 5.25 | O7: 9.25 | P7: 3.5 | Q7: 5.5 | S7: 29.5 | T7: 0.06852497096 | V7: 4 | W7: 5 | Y7: =SUM(T$4:T7) -> 0.2334494774 | AC7: | style='background-color: ;'| [[NAIC.IRIS]] | AI7: 4 | AJ7: 5 | AL7: =SUM(AG$4:AG7) -> 0
A8: 440 | B8: Odomirok.15-P | D8: 0 | H8: 2 | I8: 2.75 | J8: 5 | K8: 6 | L8: 5 | M8: 3 | N8: 4 | O8: 8.5 | P8: 2.75 | Q8: 0 | S8: 23.75 | T8: 0.05516840883 | V8: 5 | W8: 5 | Y8: =SUM(T$4:T8) -> 0.2886178862 | AC8: | style='background-color: ;'| [[Odomirok.15-P]] | AI8: 5 | AJ8: 5 | AL8: =SUM(AG$4:AG8) -> 0
A9: 200 | B9: Klann.ReinsComm | D9: 0 | H9: 3 | I9: 3 | J9: 4.25 | K9: 3.5 | L9: 4.25 | M9: 3 | N9: 0 | O9: 0 | P9: 3.25 | Q9: 0 | S9: 21 | T9: 0.0487804878 | V9: 6 | W9: 5 | Y9: =SUM(T$4:T9) -> 0.337398374 | AC9: | style='background-color: ;'| [[Klann.ReinsComm]] | AI9: 6 | AJ9: 5 | AL9: =SUM(AG$4:AG9) -> 0
A10: 470 | B10: Odomirok.19-RBC | D10: 0 | H10: 3.75 | I10: 4 | J10: 4.25 | K10: 0 | L10: 5 | M10: 2.5 | N10: 4.5 | O10: 5.25 | P10: 3.25 | Q10: 8.75 | S10: 19.5 | T10: 0.04529616725 | V10: 7 | W10: 4 | Y10: =SUM(T$4:T10) -> 0.3826945412 | AA10: =SUM(T10:T15) -> 0.2479674797 | AC10: ="| style='background-color: ;'" & "| [["&B10&"]]" -> | style='background-color: ;'| [[Odomirok.19-RBC]] | AI10: 7 | AJ10: 4 | AL10: =SUM(AG$4:AG10) -> 0 | AN10: =SUM(AG10:AG15) -> 0
A11: 380 | B11: Odomirok.8-9-IS | D11: 0 | H11: 8.25 | I11: 0 | J11: 3.25 | K11: 0 | L11: 5.75 | M11: 0 | N11: 3 | O11: 0 | P11: 4.25 | Q11: 1.5 | S11: 17.25 | T11: 0.04006968641 | V11: 8 | W11: 4 | Y11: =SUM(T$4:T11) -> 0.4227642276 | AC11: ="| style='background-color: ;'" & "| [["&B11&"]]" -> | style='background-color: ;'| [[Odomirok.8-9-IS]] | AI11: 8 | AJ11: 4 | AL11: =SUM(AG$4:AG11) -> 0
A12: 170 | B12: Germani.GovtIns | C12: 18 | D12: 0.05572755418 | H12: 3 | I12: 2.5 | J12: 3 | K12: 2.5 | L12: 5 | M12: 1.5 | N12: 2.5 | O12: 4.75 | P12: 2.75 | Q12: 3 | S12: 17.5 | T12: 0.0406504065 | V12: 9 | W12: 4 | Y12: =SUM(T$4:T12) -> 0.4634146341 | AC12: | style='background-color: ;'| [[Germani.GovtIns]] | AI12: 9 | AJ12: 4 | AL12: =SUM(AG$4:AG12) -> 0
A13: 460 | B13: Odomirok.18-IEE | D13: 0 | H13: 0 | I13: 3.5 | J13: 4 | K13: 2.75 | L13: 2.5 | M13: 4.25 | N13: 2.5 | O13: 2 | P13: 3 | Q13: 2.75 | S13: 17 | T13: 0.03948896632 | V13: 10 | W13: 4 | Y13: =SUM(T$4:T13) -> 0.5029036005 | AC13: | style='background-color: ;'| [[Odomirok.18-IEE]] | AI13: 10 | AJ13: 4 | AL13: =SUM(AG$4:AG13) -> 0
A14: 430 | B14: Odomirok.14-F | D14: 0 | H14: 2.5 | I14: 3.75 | J14: 3.75 | K14: 4.25 | L14: 0 | M14: 4 | N14: 0 | O14: 0 | P14: 3.5 | Q14: 5.75 | S14: 18.25 | T14: 0.04239256678 | V14: 11 | W14: 4 | Y14: =SUM(T$4:T14) -> 0.5452961672 | AC14: | style='background-color: ;'| [[Odomirok.14-F]] | AI14: 11 | AJ14: 4 | AL14: =SUM(AG$4:AG14) -> 0
A15: 150 | B15: Freihaut.Reins | D15: 0 | H15: 0 | I15: 2.75 | J15: 1.5 | K15: 4.25 | L15: 2.5 | M15: 6.25 | N15: 0 | O15: 4.25 | P15: 2.25 | Q15: 1.5 | S15: 17.25 | T15: 0.04006968641 | V15: 12 | W15: 4 | Y15: =SUM(T$4:T15) -> 0.5853658537 | AC15: | style='background-color: ;'| [[Freihaut.Reins]] | AI15: 12 | AJ15: 4 | AL15: =SUM(AG$4:AG15) -> 0
A16: 500 | B16: Odomirok.22-23-GAAP | D16: 0 | H16: 7 | I16: 0 | J16: 3.75 | K16: 5.5 | L16: 0 | M16: 0 | N16: 9.25 | O16: 7 | P16: 0 | Q16: 1.75 | S16: 16.25 | T16: 0.03774680604 | V16: 13 | W16: 3 | Y16: =SUM(T$4:T16) -> 0.6231126597 | AA16: =SUM(T16:T21) -> 0.1535644599 | AC16: | style='background-color: ;'| [[Odomirok.22-23-GAAP]] | AI16: 13 | AJ16: 3 | AL16: =SUM(AG$4:AG16) -> 0 | AN16: =SUM(AG16:AG21) -> 0
A17: 100 | B17: Cook.Personal | D17: 0 | H17: 1.75 | I17: 4.75 | J17: 2.5 | K17: 2.5 | L17: 0 | M17: 3.25 | N17: 0 | O17: 4 | P17: 2 | Q17: 3 | S17: 14.75 | T17: 0.03426248548 | V17: 14 | W17: 3 | Y17: =SUM(T$4:T17) -> 0.6573751452 | AC17: | style='background-color: ;'| [[Cook.Personal]] | AI17: 14 | AJ17: 3 | AL17: =SUM(AG$4:AG17) -> 0
A18: 175 | B18: Horn.Flood | C18: 86 | D18: 0.26625387 | H18: 0 | I18: 0 | J18: 0 | K18: 0 | L18: 0 | M18: 0 | N18: 0 | O18: 0 | P18: 0 | Q18: 0 | S18: 0 | T18: 0.029 | V18: 15 | W18: 3 | Y18: =SUM(T$4:T18) -> 0.6863751452 | AC18: | style='background-color: ;'| [[Horn.Flood]] | AI18: 15 | AJ18: 3 | AL18: =SUM(AG$4:AG18) -> 0
A19: 530 | B19: Odomirok.26-Taxes | D19: 0 | H19: 2.5 | I19: 0 | J19: 3.25 | K19: 2.375 | L19: 0 | M19: 3.25 | N19: 0 | O19: 0 | P19: 7 | Q19: 0 | S19: 11.375 | T19: 0.02642276423 | V19: 16 | W19: 3 | Y19: =SUM(T$4:T19) -> 0.7127979094 | AC19: | style='background-color: ;'| [[Odomirok.26-Taxes]] | AI19: 16 | AJ19: 3 | AL19: =SUM(AG$4:AG19) -> 0
A20: 650 | B20: Webel.TRIA-1 | D20: 0 | H20: 0 | I20: 2.25 | J20: 3 | K20: 3 | L20: 1.75 | M20: 1.25 | N20: 3.25 | O20: 1.75 | P20: 0 | Q20: 0 | S20: 11.25 | T20: 0.02613240418 | V20: 17 | W20: 3 | Y20: =SUM(T$4:T20) -> 0.7389303136 | AC20: | style='background-color: ;'| [[Webel.TRIA-1]] | AI20: 17 | AJ20: 3 | AL20: =SUM(AG$4:AG20) -> 0
A21: 660 | B21: Webel.TRIA-2 | C21: 0 | D21: 0 | H21: 0 | I21: 0 | J21: 0 | K21: 0 | L21: 0 | M21: 0 | N21: 0 | O21: 0 | P21: 0 | Q21: 0 | S21: 0 | T21: 0 | V21: 18 | W21: 3 | Y21: =SUM(T$4:T21) -> 0.7389303136 | AC21: | style='background-color: ;'| [[Webel.TRIA-2]] | AI21: 18 | AJ21: 3 | AL21: =SUM(AG$4:AG21) -> 0
A22: 120 | B22: Feldblum.Ratings | D22: 0 | H22: 0 | I22: 2.5 | J22: 0 | K22: 0 | L22: 3 | M22: 5 | N22: 0 | O22: 0 | P22: 2.75 | Q22: 3 | S22: 10.5 | T22: 0.0243902439 | V22: 19 | W22: 2 | Y22: =SUM(T$4:T22) -> 0.7633205575 | AA22: =SUM(T22:T27) -> 0.1138211382 | AC22: | style='background-color: ;'| [[Feldblum.Ratings]] | AI22: 19 | AJ22: 2 | AL22: =SUM(AG$4:AG22) -> 0 | AN22: =SUM(AG22:AG27) -> 0
A23: 390 | B23: Odomirok.10-Notes | D23: 0 | H23: 0 | I23: 2.5 | J23: 0 | K23: 0 | L23: 4.25 | M23: 3 | N23: 0 | O23: 2.5 | P23: 3 | Q23: 0 | S23: 9.75 | T23: 0.02264808362 | V23: 20 | W23: 2 | Y23: =SUM(T$4:T23) -> 0.7859686411 | AC23: | style='background-color: ;'| [[Odomirok.10-Notes]] | AI23: 20 | AJ23: 2 | AL23: =SUM(AG$4:AG23) -> 0
A24: 130 | B24: Feldblum.Surplus | D24: 0 | H24: 0 | I24: 4.25 | J24: 0 | K24: 0 | L24: 0 | M24: 3.5 | N24: 0 | O24: 0 | P24: 0 | Q24: 0 | S24: 7.75 | T24: 0.01800232288 | V24: 21 | W24: 2 | Y24: =SUM(T$4:T24) -> 0.803970964 | AC24: | style='background-color: ;'| [[Feldblum.Surplus]] | AI24: 21 | AJ24: 2 | AL24: =SUM(AG$4:AG24) -> 0
A25: 340 | B25: NAIC.Solvency | D25: 0 | H25: 0 | I25: 2.5 | J25: 2.5 | K25: 0 | L25: 2.5 | M25: 0 | N25: 5 | O25: 7.5 | P25: 0 | Q25: 0 | S25: 7.5 | T25: 0.01742160279 | V25: 22 | W25: 2 | Y25: =SUM(T$4:T25) -> 0.8213925668 | AC25: | style='background-color: ;'| [[NAIC.Solvency]] | AI25: 22 | AJ25: 2 | AL25: =SUM(AG$4:AG25) -> 0
A26: 160 | B26: GAO.Report | C26: 58 | D26: 0.1795665635 | H26: 2 | I26: 0 | J26: 0 | K26: 3 | L26: 2 | M26: 0 | N26: 2.75 | O26: 0 | P26: 0 | Q26: 0 | S26: 7 | T26: 0.0162601626 | V26: 23 | W26: 2 | Y26: =SUM(T$4:T26) -> 0.8376527294 | AC26: | style='background-color: ;'| [[GAO.Report]] | AI26: 23 | AJ26: 2 | AL26: =SUM(AG$4:AG26) -> 0
A27: 610 | B27: Porter.8-Rates | D27: 0 | H27: 0 | I27: 0 | J27: 0 | K27: 3.75 | L27: 0 | M27: 2.75 | N27: 0 | O27: 0 | P27: 2.5 | Q27: 0 | S27: 6.5 | T27: 0.01509872242 | V27: 24 | W27: 2 | Y27: =SUM(T$4:T27) -> 0.8527514518 | AC27: | style='background-color: ;'| [[Porter.8-Rates]] | AI27: 24 | AJ27: 2 | AL27: =SUM(AG$4:AG27) -> 0
A28: 520 | B28: Odomirok.25-Solv2 | D28: 0 | H28: 0 | I28: 3 | J28: 0 | K28: 0 | L28: 3.25 | M28: 0 | N28: 0 | O28: 0 | P28: 3.75 | Q28: 0 | S28: 6.25 | T28: 0.01451800232 | V28: 25 | W28: 1 | Y28: =SUM(T$4:T28) -> 0.8672694541 | AA28: =SUM(T28:T33) -> 0.07549361208 | AC28: | style='background-color: ;'| [[Odomirok.25-Solv2]] | AI28: 25 | AJ28: 1 | AL28: =SUM(AG$4:AG28) -> 0 | AN28: =SUM(AG28:AG33) -> 0
A29: 560 | B29: Porter.2-Devlpt | D29: 0 | H29: 0 | I29: 0 | J29: 3.25 | K29: 0 | L29: 0 | M29: 2.75 | N29: 4 | O29: 3 | P29: 2 | Q29: 3.5 | S29: 6 | T29: 0.01393728223 | V29: 26 | W29: 1 | Y29: =SUM(T$4:T29) -> 0.8812067364 | AC29: | style='background-color: ;'| [[Porter.2-Devlpt]] | AI29: 26 | AJ29: 1 | AL29: =SUM(AG$4:AG29) -> 0
A30: 620 | B30: Porter.12-Insolvency | D30: 0 | H30: 2.25 | I30: 0 | J30: 3.5 | K30: 0 | L30: 0 | M30: 0 | N30: 0 | O30: 0 | P30: 0 | Q30: 3 | S30: 5.75 | T30: 0.01335656214 | V30: 27 | W30: 1 | Y30: =SUM(T$4:T30) -> 0.8945632985 | AC30: | style='background-color: ;'| [[Porter.12-Insolvency]] | AI30: 27 | AJ30: 1 | AL30: =SUM(AG$4:AG30) -> 0
A31: 70 | B31: Baribeau.Regs | D31: 0 | H31: 1 | I31: 1.5 | J31: 2.5 | K31: 0 | L31: 0 | M31: 0 | N31: 0 | O31: 0 | P31: 0 | Q31: 0 | S31: 5 | T31: 0.01161440186 | V31: 28 | W31: 1 | Y31: =SUM(T$4:T31) -> 0.9061777003 | AC31: | style='background-color: ;'| [[Baribeau.Regs]] | AI31: 28 | AJ31: 1 | AL31: =SUM(AG$4:AG31) -> 0
A32: 210 | B32: Kucera.Credit | C32: 7 | D32: 0.02167182663 | H32: 2.25 | I32: 0 | J32: 2.5 | K32: 0 | L32: 0 | M32: 0 | N32: 0 | O32: 2.75 | P32: 0 | Q32: 0 | S32: 4.75 | T32: 0.01103368177 | V32: 29 | W32: 1 | Y32: =SUM(T$4:T32) -> 0.9172113821 | AC32: | style='background-color: ;'| [[Kucera.Credit]] | AI32: 29 | AJ32: 1 | AL32: =SUM(AG$4:AG32) -> 0
A33: 220 | B33: McCarty.Credit | C33: 57 | D33: 0.1764705882 | H33: 0 | I33: 0 | J33: 0 | K33: 2.5 | L33: 2.25 | M33: 0 | N33: 3.75 | O33: 0 | P33: 0 | Q33: 0 | S33: 4.75 | T33: 0.01103368177 | V33: 30 | W33: 1 | Y33: =SUM(T$4:T33) -> 0.9282450639 | AC33: | style='background-color: ;'| [[McCarty.Credit]] | AI33: 30 | AJ33: 1 | AL33: =SUM(AG$4:AG33) -> 0
A34: 180 | B34: NAIC.Telematics | D34: 0 | H34: 2 | I34: 3 | J34: 0 | K34: 0 | L34: 0 | M34: 0 | N34: 0 | O34: 0 | P34: 0 | Q34: 0 | S34: 5 | T34: 0.01161440186 | V34: 31 | W34: 1 | Y34: =SUM(T$4:T34) -> 0.9398594657 | AA34: =SUM(T34:T39) -> 0.05603948897 | AC34: | style='background-color: ;'| [[NAIC.Telematics]] | AI34: 31 | AJ34: 1 | AL34: =SUM(AG$4:AG34) -> 0 | AN34: =SUM(AG34:AG39) -> 0
A35: 110 | B35: Feldblum.Discount | D35: 0 | H35: 0 | I35: 2.25 | J35: 0 | K35: 2.375 | L35: 0 | M35: 0 | N35: 2.75 | O35: 0 | P35: 0 | Q35: 0 | S35: 4.625 | T35: 0.01074332172 | V35: 32 | W35: 1 | Y35: =SUM(T$4:T35) -> 0.9506027875 | AC35: | style='background-color: ;'| [[Feldblum.Discount]] | AI35: 32 | AJ35: 1 | AL35: =SUM(AG$4:AG35) -> 0
A36: 630 | B36: Porter.Reg-2 | D36: 0 | H36: 0 | I36: 2.25 | J36: 0 | K36: 0 | L36: 2.25 | M36: 0 | N36: 0 | O36: 2 | P36: 2.5 | Q36: 0 | S36: 4.5 | T36: 0.01045296167 | V36: 33 | W36: 1 | Y36: =SUM(T$4:T36) -> 0.9610557491 | AC36: | style='background-color: ;'| [[Porter.Reg-2]] | AI36: 33 | AJ36: 1 | AL36: =SUM(AG$4:AG36) -> 0
A37: 570 | B37: Porter.3-Roles-Fed | D37: 0 | H37: 1.75 | I37: 0 | J37: 0 | K37: 2.25 | L37: 0 | M37: 0 | N37: 0 | O37: 0 | P37: 0 | Q37: 0 | S37: 4 | T37: 0.009291521487 | V37: 34 | W37: 1 | Y37: =SUM(T$4:T37) -> 0.9703472706 | AC37: | style='background-color: ;'| [[Porter.3-Roles-Fed]] | AI37: 34 | AJ37: 1 | AL37: =SUM(AG$4:AG37) -> 0
A38: 580 | B38: Porter.4-Roles-State | D38: 0 | H38: 0 | I38: 0 | J38: 0 | K38: 0 | L38: 3.25 | M38: 0 | N38: 0 | O38: 1.75 | P38: 0 | Q38: 2 | S38: 3.25 | T38: 0.007549361208 | V38: 35 | W38: 1 | Y38: =SUM(T$4:T38) -> 0.9778966318 | AC38: | style='background-color: ;'| [[Porter.4-Roles-State]] | AI38: 35 | AJ38: 1 | AL38: =SUM(AG$4:AG38) -> 0
A39: 40 | B39: ASOP.41 | C39: 27 | D39: 0.08359133127 | H39: 0 | I39: 0 | J39: 0 | K39: 0 | L39: 0 | M39: 2.75 | N39: 0 | O39: 0 | P39: 0 | Q39: 0 | S39: 2.75 | T39: 0.006387921022 | V39: 36 | W39: 1 | Y39: =SUM(T$4:T39) -> 0.9842845528 | AC39: | style='background-color: ;'| [[ASOP.41]] | AI39: 36 | AJ39: 1 | AL39: =SUM(AG$4:AG39) -> 0
A40: 590 | B40: Porter.5-Opns-State | D40: 0 | H40: 0 | I40: 0 | J40: 0 | K40: 0 | L40: 2.5 | M40: 0 | N40: 0 | O40: 0 | P40: 0 | Q40: 0 | S40: 2.5 | T40: 0.005807200929 | V40: 37 | W40: 1 | Y40: =SUM(T$4:T40) -> 0.9900917538 | AA40: =SUM(T40:T45) -> 0.01567944251 | AC40: | style='background-color: ;'| [[Porter.5-Opns-State]] | AI40: 37 | AJ40: 1 | AL40: =SUM(AG$4:AG40) -> 0 | AN40: =SUM(AG40:AG45) -> 0
A41: 230 | B41: NAIC.APPM | D41: 0 | H41: 0 | I41: 0 | J41: 0 | K41: 0 | L41: 0 | M41: 2 | N41: 0 | O41: 0 | P41: 0 | Q41: 0 | S41: 2 | T41: 0.004645760743 | V41: 38 | W41: 1 | Y41: =SUM(T$4:T41) -> 0.9947375145 | AC41: | style='background-color: ;'| [[NAIC.APPM]] | AI41: 38 | AJ41: 1 | AL41: =SUM(AG$4:AG41) -> 0
A42: 280 | B42: NAIC.SSAP-62R | D42: 0 | H42: 1.75 | I42: 0 | J42: 0 | K42: 0 | L42: 0 | M42: 0 | N42: 6 | O42: 0 | P42: 0 | Q42: 1.5 | S42: 1.75 | T42: 0.00406504065 | V42: 39 | W42: 1 | Y42: =SUM(T$4:T42) -> 0.9988025552 | AC42: | style='background-color: ;'| [[NAIC.SSAP-62R]] | AI42: 39 | AJ42: 1 | AL42: =SUM(AG$4:AG42) -> 0
A43: 330 | B43: NAIC.Price | D43: 0 | H43: 0.5 | I43: 0 | J43: 0 | K43: 0 | L43: 0 | M43: 0 | N43: 0 | O43: 0 | P43: 0 | Q43: 0 | S43: 0.5 | T43: 0.001161440186 | V43: 40 | W43: 1 | Y43: =SUM(T$4:T43) -> 0.9999639954 | AC43: | style='background-color: ;'| [[NAIC.Price]] | AI43: 40 | AJ43: 1 | AL43: =SUM(AG$4:AG43) -> 0
A44: 10 | B44: IEE.2016 | D44: 0 | H44: 0 | I44: 0 | J44: 0 | K44: 0 | L44: 0 | M44: 0 | N44: 0 | O44: 0 | P44: 0 | Q44: 0 | S44: 0 | T44: 0 | V44: 41 | W44: 1 | Y44: =SUM(T$4:T44) -> 0.9999639954 | AC44: | style='background-color: ;'| [[IEE.2016]] | AI44: 41 | AJ44: 1 | AL44: =SUM(AG$4:AG44) -> 0
A45: 20 | B45: ASOP.20 | C45: 17 | D45: 0.05263157895 | H45: 0 | I45: 0 | J45: 0 | K45: 0 | L45: 0 | M45: 0 | N45: 0 | O45: 0 | P45: 0 | Q45: 0 | S45: 0 | T45: 0 | V45: 42 | W45: 1 | Y45: =SUM(T$4:T45) -> 0.9999639954 | AC45: | style='background-color: ;'| [[ASOP.20]] | AI45: 42 | AJ45: 1 | AL45: =SUM(AG$4:AG45) -> 0
A46: 50 | B46: ASOP.43 | C46: 31 | D46: 0.0959752322 | H46: 0 | I46: 0 | J46: 0 | K46: 0 | L46: 0 | M46: 0 | N46: 0 | O46: 0 | P46: 0 | Q46: 0 | S46: 0 | T46: 0 | V46: 43 | W46: 1 | Y46: =SUM(T$4:T46) -> 0.9999639954 | AA46: =SUM(T46:T51) -> 0 | AC46: | style='background-color: ;'| [[ASOP.43]] | AI46: 43 | AJ46: 1 | AL46: =SUM(AG$4:AG46) -> 0 | AN46: =SUM(AG46:AG51) -> 0
A47: 60 | B47: AAA.Materiality | D47: 0 | H47: 0 | I47: 0 | J47: 0 | K47: 0 | L47: 0 | M47: 0 | N47: 0 | O47: 0 | P47: 0 | Q47: 0 | S47: 0 | T47: 0 | V47: 44 | W47: 1 | Y47: =SUM(T$4:T47) -> 0.9999639954 | AC47: | style='background-color: ;'| [[AAA.Materiality]] | AI47: 44 | AJ47: 1 | AL47: =SUM(AG$4:AG47) -> 0
A48: 80 | B48: BK.Reins | D48: 0 | H48: 0 | I48: 0 | J48: 0 | K48: 0 | L48: 0 | M48: 0 | N48: 0 | O48: 0 | P48: 0 | Q48: 0 | S48: 0 | T48: 0 | V48: 45 | W48: 1 | Y48: =SUM(T$4:T48) -> 0.9999639954 | AC48: | style='background-color: ;'| [[BK.Reins]] | AI48: 45 | AJ48: 1 | AL48: =SUM(AG$4:AG48) -> 0
A49: 140 | B49: FASB.944 | D49: 0 | H49: 0 | I49: 0 | J49: 0 | K49: 0 | L49: 0 | M49: 0 | N49: 0 | O49: 0 | P49: 0 | Q49: 0 | S49: 0 | T49: 0 | V49: 46 | W49: 1 | Y49: =SUM(T$4:T49) -> 0.9999639954 | AC49: | style='background-color: ;'| [[FASB.944]] | AI49: 46 | AJ49: 1 | AL49: =SUM(AG$4:AG49) -> 0
A50: 240 | B50: NAIC.SSAP-5R | D50: 0 | H50: 0 | I50: 0 | J50: 0 | K50: 0 | L50: 0 | M50: 0 | N50: 0 | O50: 0 | P50: 0 | Q50: 0 | S50: 0 | T50: 0 | V50: 47 | W50: 1 | Y50: =SUM(T$4:T50) -> 0.9999639954 | AC50: | style='background-color: ;'| [[NAIC.SSAP-5R]] | AI50: 47 | AJ50: 1 | AL50: =SUM(AG$4:AG50) -> 0
A51: 250 | B51: NAIC.SSAP-9 | D51: 0 | H51: 0 | I51: 0 | J51: 0 | K51: 0 | L51: 0 | M51: 0 | N51: 2 | O51: 0 | P51: 0 | Q51: 0 | S51: 0 | T51: 0 | V51: 48 | W51: 1 | Y51: =SUM(T$4:T51) -> 0.9999639954 | AC51: | style='background-color: ;'| [[NAIC.SSAP-9]] | AI51: 48 | AJ51: 1 | AL51: =SUM(AG$4:AG51) -> 0
A52: 260 | B52: NAIC.SSAP-53 | D52: 0 | H52: 0 | I52: 0 | J52: 0 | K52: 0 | L52: 0 | M52: 0 | N52: 0 | O52: 0 | P52: 0 | Q52: 0 | S52: 0 | T52: 0 | V52: 49 | W52: 1 | Y52: =SUM(T$4:T52) -> 0.9999639954 | AA52: =SUM(T52:T57) -> 0 | AC52: | style='background-color: ;'| [[NAIC.SSAP-53]] | AI52: 49 | AJ52: 1 | AL52: =SUM(AG$4:AG52) -> 0 | AN52: =SUM(AG52:AG57) -> 0
A53: 270 | B53: NAIC.SSAP-55 | D53: 0 | H53: 0 | I53: 0 | J53: 0 | K53: 0 | L53: 0 | M53: 0 | N53: 0 | O53: 0 | P53: 0 | Q53: 0 | S53: 0 | T53: 0 | V53: 50 | W53: 1 | Y53: =SUM(T$4:T53) -> 0.9999639954 | AC53: | style='background-color: ;'| [[NAIC.SSAP-55]] | AI53: 50 | AJ53: 1 | AL53: =SUM(AG$4:AG53) -> 0
A54: 290 | B54: NAIC.SSAP-65 | D54: 0 | H54: 0 | I54: 0 | J54: 0 | K54: 0 | L54: 0 | M54: 0 | N54: 0 | O54: 0 | P54: 0 | Q54: 3.5 | S54: 0 | T54: 0 | V54: 51 | W54: 1 | Y54: =SUM(T$4:T54) -> 0.9999639954 | AC54: | style='background-color: ;'| [[NAIC.SSAP-65]] | AI54: 51 | AJ54: 1 | AL54: =SUM(AG$4:AG54) -> 0
A55: 310 | B55: NAIC.Annual | D55: 0 | H55: 0 | I55: 0 | J55: 0 | K55: 0 | L55: 0 | M55: 0 | N55: 0 | O55: 0 | P55: 0 | Q55: 0 | S55: 0 | T55: 0 | V55: 52 | W55: 1 | Y55: =SUM(T$4:T55) -> 0.9999639954 | AC55: | style='background-color: ;'| [[NAIC.Annual]] | AI55: 52 | AJ55: 1 | AL55: =SUM(AG$4:AG55) -> 0
A56: 320 | B56: NAIC.AnnualExs | D56: 0 | H56: 0 | I56: 0 | J56: 0 | K56: 0 | L56: 0 | M56: 0 | N56: 0 | O56: 0 | P56: 0 | Q56: 0 | S56: 0 | T56: 0 | V56: 53 | W56: 1 | Y56: =SUM(T$4:T56) -> 0.9999639954 | AC56: | style='background-color: ;'| [[NAIC.AnnualExs]] | AI56: 53 | AJ56: 1 | AL56: =SUM(AG$4:AG56) -> 0
A57: 360 | B57: Odomirok.1-5-Intro | D57: 0 | H57: 0 | I57: 0 | J57: 0 | K57: 0 | L57: 0 | M57: 0 | N57: 0 | O57: 0 | P57: 0 | Q57: 0 | S57: 0 | T57: 0 | V57: 54 | W57: 1 | Y57: =SUM(T$4:T57) -> 0.9999639954 | AC57: | style='background-color: ;'| [[Odomirok.1-5-Intro]] | AI57: 54 | AJ57: 1 | AL57: =SUM(AG$4:AG57) -> 0
A58: 370 | B58: Odomirok.6-7-BS | D58: 0 | H58: 0 | I58: 0 | J58: 0 | K58: 0 | L58: 0 | M58: 0 | N58: 0 | O58: 0 | P58: 0 | Q58: 5 | S58: 0 | T58: 0 | V58: 55 | W58: 1 | Y58: =SUM(T$4:T58) -> 0.9999639954 | AA58: =SUM(T58:T63) -> 0 | AC58: | style='background-color: ;'| [[Odomirok.6-7-BS]] | AI58: 55 | AJ58: 1 | AL58: =SUM(AG$4:AG58) -> 0 | AN58: =SUM(AG58:AG63) -> 0
A59: 400 | B59: Odomirok.11-GenInt | D59: 0 | H59: 0 | I59: 0 | J59: 0 | K59: 0 | L59: 0 | M59: 0 | N59: 0 | O59: 0 | P59: 0 | Q59: 0 | S59: 0 | T59: 0 | V59: 56 | W59: 1 | Y59: =SUM(T$4:T59) -> 0.9999639954 | AC59: | style='background-color: ;'| [[Odomirok.11-GenInt]] | AI59: 56 | AJ59: 1 | AL59: =SUM(AG$4:AG59) -> 0
A60: 410 | B60: Odomirok.12-5yr | D60: 0 | H60: 0 | I60: 0 | J60: 0 | K60: 0 | L60: 0 | M60: 0 | N60: 0 | O60: 0 | P60: 0 | Q60: 0 | S60: 0 | T60: 0 | V60: 57 | W60: 1 | Y60: =SUM(T$4:T60) -> 0.9999639954 | AC60: | style='background-color: ;'| [[Odomirok.12-5yr]] | AI60: 57 | AJ60: 1 | AL60: =SUM(AG$4:AG60) -> 0
A61: 420 | B61: Odomirok.13 | D61: 0 | H61: 0 | I61: 0 | J61: 0 | K61: 0 | L61: 0 | M61: 0 | N61: 0 | O61: 0 | P61: 0 | Q61: 0 | S61: 0 | T61: 0 | V61: 58 | W61: 1 | Y61: =SUM(T$4:T61) -> 0.9999639954 | AC61: | style='background-color: ;'| [[Odomirok.13]] | AI61: 58 | AJ61: 1 | AL61: =SUM(AG$4:AG61) -> 0
A62: 480 | B62: Odomirok.20-IRIS | D62: 0 | H62: 0 | I62: 0 | J62: 0 | K62: 0 | L62: 0 | M62: 0 | N62: 0 | O62: 0 | P62: 0 | Q62: 0 | S62: 0 | T62: 0 | V62: 59 | W62: 1 | Y62: =SUM(T$4:T62) -> 0.9999639954 | AC62: | style='background-color: ;'| [[Odomirok.20-IRIS]] | AI62: 59 | AJ62: 1 | AL62: =SUM(AG$4:AG62) -> 0
A63: 490 | B63: Odomirok.21-Tools | D63: 0 | H63: 0 | I63: 0 | J63: 0 | K63: 0 | L63: 0 | M63: 0 | N63: 0 | O63: 0 | P63: 0 | Q63: 0 | S63: 0 | T63: 0 | V63: 60 | W63: 1 | Y63: =SUM(T$4:T63) -> 0.9999639954 | AC63: | style='background-color: ;'| [[Odomirok.21-Tools]] | AI63: 60 | AJ63: 1 | AL63: =SUM(AG$4:AG63) -> 0
A64: 510 | B64: Odomirok.24-IFRS | D64: 0 | H64: 0 | I64: 0 | J64: 0 | K64: 0 | L64: 0 | M64: 0 | N64: 0 | O64: 0 | P64: 0 | Q64: 0 | S64: 0 | T64: 0 | V64: 61 | W64: 1 | Y64: =SUM(T$4:T64) -> 0.9999639954 | AA64: =SUM(T64:T69) -> -0.01000002 | AC64: | style='background-color: ;'| [[Odomirok.24-IFRS]] | AI64: 61 | AJ64: 1 | AL64: =SUM(AG$4:AG64) -> 0 | AN64: =SUM(AG64:AG69) -> 0
A65: 540 | B65: Odomirok.30-Future | D65: 0 | H65: 0 | I65: 0 | J65: 0 | K65: 0 | L65: 0 | M65: 0 | N65: 0 | O65: 0 | P65: 0 | Q65: 0 | S65: 0 | T65: 0 | V65: 62 | W65: 1 | Y65: =SUM(T$4:T65) -> 0.9999639954 | AC65: | style='background-color: ;'| [[Odomirok.30-Future]] | AI65: 62 | AJ65: 1 | AL65: =SUM(AG$4:AG65) -> 0
A66: 600 | B66: Porter.6-Formation | D66: 0 | H66: 0 | I66: 0 | J66: 0 | K66: 0 | L66: 0 | M66: 0 | N66: 0 | O66: 0 | P66: 0 | Q66: 0 | S66: 0 | T66: 0 | V66: 63 | W66: 1 | Y66: =SUM(T$4:T66) -> 0.9999639954 | AC66: | style='background-color: ;'| [[Porter.6-Formation]] | AI66: 63 | AJ66: 1 | AL66: =SUM(AG$4:AG66) -> 0
A67: 350 | B67: Odomirok.Reporting | D67: 0 | S67: 0 | T67: -1e-08 | W67: 0 | AC67: | style='background-color: ;'| [[Odomirok.Reporting]] | AI67: 64 | AJ67: 1 | AL67: =SUM(AG$4:AG67) -> 0
A68: 550 | B68: Porter.Regs-1 | D68: 0 | S68: 0 | T68: -1e-08 | W68: 0
A69: 190 | B69: King.Flood | D69: 0 | H69: 2.75 | I69: 1 | J69: 2.5 | K69: 2.25 | L69: 2 | M69: 2 | N69: 2.25 | O69: 0 | P69: 1.75 | Q69: 0 | S69: 12.5 | T69: -0.01 | W69: 0
A70: 640 | B70: Vaughan.Crisis | D70: 0 | H70: 0 | I70: 0 | J70: 0 | K70: 3.75 | L70: 0 | M70: 3.25 | N70: 0 | O70: 0 | P70: 6.75 | Q70: 0 | S70: 7 | T70: -0.01 | W70: 0
A71: 670 | B71: outdated. | C71: 0 | D71: 0 | H71: 0 | I71: 0 | J71: 0 | K71: 0 | L71: 0 | M71: 9 | N71: 7.25 | O71: 11.25 | P71: 11.75 | Q71: 20.25 | S71: -1 | T71: -0.01 | V71: 65 | W71: 0
A72: 680 | B72: unknown. | C72: 0 | D72: 0 | H72: 0 | I72: 0 | J72: 0 | K72: 4.75 | L72: 5.75 | M72: 0 | N72: 0 | O72: 0 | P72: 0 | Q72: 0 | S72: -1 | T72: -0.01 | V72: 66 | W72: 0

Sheet rank.19F
F1: 2-Fall | G1: 1-Spring | H1: 2-Fall | I1: 1-Spring | J1: 2-Fall | K1: 1-Spring | L1: 2-Fall | M1: 1-Spring | N1: 2-Fall | O1: 1-Spring | P1: 2-Fall | Q1: 2-Fall | AB1: * this multiplier is tentative…
A2: ref | B2: BA100_abbreviation | C2: # pgs | D2: prop | F2: 18 | G2: 18 | H2: 17 | I2: 17 | J2: 16 | K2: 16 | L2: 15 | M2: 15 | N2: 14 | O2: 14 | P2: 13 | Q2: 12 | S2: last 5 | T2: % last 5 | V2: rank | AB2: calc multiplier: | AD2: 2.5
A3: 0 | B3: Exam.Total | C3: 323 | D3: 1 | F3: =SUM(F4:F69) -> 67 | G3: 67.25 | H3: 67.25 | I3: 70.25 | J3: 71.75 | K3: 79 | L3: 78.5 | M3: 79.25 | N3: 76.75 | O3: 88 | P3: 89.75 | Q3: 87 | T3: =SUM(T4:T120) -> 1
A4: 450 | B4: Odomirok.16-17-SAO | D4: 0 | F4: =VLOOKUP($B4,stats!$B$4:$Q$128,COLUMN(F4)-1,FALSE) -> 0 | G4: =VLOOKUP($B4,stats!$B$4:$Q$128,COLUMN(G4)-1,FALSE) -> 0 | H4: =VLOOKUP($B4,stats!$B$4:$Q$128,COLUMN(H4)-1,FALSE) -> 0 | I4: =VLOOKUP($B4,stats!$B$4:$Q$128,COLUMN(I4)-1,FALSE) -> 0 | J4: =VLOOKUP($B4,stats!$B$4:$Q$128,COLUMN(J4)-1,FALSE) -> 0 | K4: =VLOOKUP($B4,stats!$B$4:$Q$128,COLUMN(K4)-1,FALSE) -> 0 | L4: =VLOOKUP($B4,stats!$B$4:$Q$128,COLUMN(L4)-1,FALSE) -> 0 | M4: =VLOOKUP($B4,stats!$B$4:$Q$128,COLUMN(M4)-1,FALSE) -> 0 | N4: =VLOOKUP($B4,stats!$B$4:$Q$128,COLUMN(N4)-1,FALSE) -> 0 | O4: =VLOOKUP($B4,stats!$B$4:$Q$128,COLUMN(O4)-1,FALSE) -> 0 | P4: =VLOOKUP($B4,stats!$B$4:$Q$128,COLUMN(P4)-1,FALSE) -> 0 | Q4: =VLOOKUP($B4,stats!$B$4:$Q$128,COLUMN(Q4)-1,FALSE) -> 0 | S4: 0 | T4: 0 | V4: 1 | W4: 5 | Y4: 5 | Z4: Odomirok.16-17-SAO | AA4: 1 | AB4: =SUM(T4:T$4) -> 0 | AD4: =SUM(T4:T9) -> 0.3730349214 | AF4: ="| style='background-color: ;'" & "| [["&B4&"]]" -> | style='background-color: ;'| [[Odomirok.16-17-SAO]] | AL4: 1 | AM4: 5 | AO4: =SUM(AJ4:AJ$4) -> 0 | AQ4: =SUM(AJ4:AJ9) -> 0
A5: 90 | B5: COPLFR.SAO | D5: 0 | F5: =VLOOKUP($B5,stats!$B$4:$Q$128,COLUMN(F5)-1,FALSE) -> 11.25 | G5: =VLOOKUP($B5,stats!$B$4:$Q$128,COLUMN(G5)-1,FALSE) -> 12.75 | H5: =VLOOKUP($B5,stats!$B$4:$Q$128,COLUMN(H5)-1,FALSE) -> 14 | I5: =VLOOKUP($B5,stats!$B$4:$Q$128,COLUMN(I5)-1,FALSE) -> 10.75 | J5: =VLOOKUP($B5,stats!$B$4:$Q$128,COLUMN(J5)-1,FALSE) -> 11.5 | K5: =VLOOKUP($B5,stats!$B$4:$Q$128,COLUMN(K5)-1,FALSE) -> 14 | L5: =VLOOKUP($B5,stats!$B$4:$Q$128,COLUMN(L5)-1,FALSE) -> 12.75 | M5: =VLOOKUP($B5,stats!$B$4:$Q$128,COLUMN(M5)-1,FALSE) -> 8 | N5: =VLOOKUP($B5,stats!$B$4:$Q$128,COLUMN(N5)-1,FALSE) -> 11.75 | O5: =VLOOKUP($B5,stats!$B$4:$Q$128,COLUMN(O5)-1,FALSE) -> 9.5 | P5: =VLOOKUP($B5,stats!$B$4:$Q$128,COLUMN(P5)-1,FALSE) -> 12.75 | Q5: =VLOOKUP($B5,stats!$B$4:$Q$128,COLUMN(Q5)-1,FALSE) -> 11.75 | S5: 89.9375 | T5: 0.1726869075 | V5: 2 | W5: 5 | Y5: 10 | Z5: COPLFR.SAO | AA5: 2 | AB5: =SUM(T$4:T5) -> 0.1726869075 | AF5: | style='background-color: ;'| [[COPLFR.SAO]] | AL5: 2 | AM5: 5 | AO5: =SUM(AJ$4:AJ5) -> 0
A6: 30 | B6: ASOP.36 | C6: 22 | D6: 0.06811145511 | F6: =VLOOKUP($B6,stats!$B$4:$Q$128,COLUMN(F6)-1,FALSE) -> 0 | G6: =VLOOKUP($B6,stats!$B$4:$Q$128,COLUMN(G6)-1,FALSE) -> 0 | H6: =VLOOKUP($B6,stats!$B$4:$Q$128,COLUMN(H6)-1,FALSE) -> 0 | I6: =VLOOKUP($B6,stats!$B$4:$Q$128,COLUMN(I6)-1,FALSE) -> 0 | J6: =VLOOKUP($B6,stats!$B$4:$Q$128,COLUMN(J6)-1,FALSE) -> 0 | K6: =VLOOKUP($B6,stats!$B$4:$Q$128,COLUMN(K6)-1,FALSE) -> 0 | L6: =VLOOKUP($B6,stats!$B$4:$Q$128,COLUMN(L6)-1,FALSE) -> 0 | M6: =VLOOKUP($B6,stats!$B$4:$Q$128,COLUMN(M6)-1,FALSE) -> 0 | N6: =VLOOKUP($B6,stats!$B$4:$Q$128,COLUMN(N6)-1,FALSE) -> 0 | O6: =VLOOKUP($B6,stats!$B$4:$Q$128,COLUMN(O6)-1,FALSE) -> 0 | P6: =VLOOKUP($B6,stats!$B$4:$Q$128,COLUMN(P6)-1,FALSE) -> 0 | Q6: =VLOOKUP($B6,stats!$B$4:$Q$128,COLUMN(Q6)-1,FALSE) -> 0 | S6: 0 | T6: 0 | V6: 3 | W6: 5 | Y6: 12 | Z6: ASOP.36 | AA6: 3 | AB6: =SUM(T$4:T6) -> 0.1726869075 | AF6: | style='background-color: ;'| [[ASOP.36]] | AL6: 3 | AM6: 5 | AO6: =SUM(AJ$4:AJ6) -> 0
A7: 300 | B7: NAIC.IRIS | D7: 0 | F7: =VLOOKUP($B7,stats!$B$4:$Q$128,COLUMN(F7)-1,FALSE) -> 6.5 | G7: =VLOOKUP($B7,stats!$B$4:$Q$128,COLUMN(G7)-1,FALSE) -> 6 | H7: =VLOOKUP($B7,stats!$B$4:$Q$128,COLUMN(H7)-1,FALSE) -> 6 | I7: =VLOOKUP($B7,stats!$B$4:$Q$128,COLUMN(I7)-1,FALSE) -> 8.75 | J7: =VLOOKUP($B7,stats!$B$4:$Q$128,COLUMN(J7)-1,FALSE) -> 3.75 | K7: =VLOOKUP($B7,stats!$B$4:$Q$128,COLUMN(K7)-1,FALSE) -> 6 | L7: =VLOOKUP($B7,stats!$B$4:$Q$128,COLUMN(L7)-1,FALSE) -> 0 | M7: =VLOOKUP($B7,stats!$B$4:$Q$128,COLUMN(M7)-1,FALSE) -> 5 | N7: =VLOOKUP($B7,stats!$B$4:$Q$128,COLUMN(N7)-1,FALSE) -> 4.875 | O7: =VLOOKUP($B7,stats!$B$4:$Q$128,COLUMN(O7)-1,FALSE) -> 9.25 | P7: =VLOOKUP($B7,stats!$B$4:$Q$128,COLUMN(P7)-1,FALSE) -> 3.5 | Q7: =VLOOKUP($B7,stats!$B$4:$Q$128,COLUMN(Q7)-1,FALSE) -> 5.5 | S7: 43.03125 | T7: 0.08262330493 | V7: 4 | W7: 5 | Y7: 20 | Z7: NAIC.IRIS | AA7: 4 | AB7: =SUM(T$4:T7) -> 0.2553102124 | AF7: | style='background-color: ;'| [[NAIC.IRIS]] | AL7: 4 | AM7: 5 | AO7: =SUM(AJ$4:AJ7) -> 0
A8: 440 | B8: Odomirok.15-P | D8: 0 | F8: =VLOOKUP($B8,stats!$B$4:$Q$128,COLUMN(F8)-1,FALSE) -> 4.75 | G8: =VLOOKUP($B8,stats!$B$4:$Q$128,COLUMN(G8)-1,FALSE) -> 3.5 | H8: =VLOOKUP($B8,stats!$B$4:$Q$128,COLUMN(H8)-1,FALSE) -> 2 | I8: =VLOOKUP($B8,stats!$B$4:$Q$128,COLUMN(I8)-1,FALSE) -> 2.75 | J8: =VLOOKUP($B8,stats!$B$4:$Q$128,COLUMN(J8)-1,FALSE) -> 5 | K8: =VLOOKUP($B8,stats!$B$4:$Q$128,COLUMN(K8)-1,FALSE) -> 6 | L8: =VLOOKUP($B8,stats!$B$4:$Q$128,COLUMN(L8)-1,FALSE) -> 5 | M8: =VLOOKUP($B8,stats!$B$4:$Q$128,COLUMN(M8)-1,FALSE) -> 3 | N8: =VLOOKUP($B8,stats!$B$4:$Q$128,COLUMN(N8)-1,FALSE) -> 4 | O8: =VLOOKUP($B8,stats!$B$4:$Q$128,COLUMN(O8)-1,FALSE) -> 8.5 | P8: =VLOOKUP($B8,stats!$B$4:$Q$128,COLUMN(P8)-1,FALSE) -> 2.75 | Q8: =VLOOKUP($B8,stats!$B$4:$Q$128,COLUMN(Q8)-1,FALSE) -> 0 | S8: 31.125 | T8: 0.0597623905 | V8: 5 | W8: 5 | Y8: 30 | Z8: Odomirok.15-P | AA8: 5 | AB8: =SUM(T$4:T8) -> 0.3150726029 | AF8: | style='background-color: ;'| [[Odomirok.15-P]] | AL8: 5 | AM8: 5 | AO8: =SUM(AJ$4:AJ8) -> 0
A9: 470 | B9: Odomirok.19-RBC | D9: 0 | F9: =VLOOKUP($B9,stats!$B$4:$Q$128,COLUMN(F9)-1,FALSE) -> 3.5 | G9: =VLOOKUP($B9,stats!$B$4:$Q$128,COLUMN(G9)-1,FALSE) -> 3.75 | H9: =VLOOKUP($B9,stats!$B$4:$Q$128,COLUMN(H9)-1,FALSE) -> 3.75 | I9: =VLOOKUP($B9,stats!$B$4:$Q$128,COLUMN(I9)-1,FALSE) -> 4 | J9: =VLOOKUP($B9,stats!$B$4:$Q$128,COLUMN(J9)-1,FALSE) -> 4.25 | K9: =VLOOKUP($B9,stats!$B$4:$Q$128,COLUMN(K9)-1,FALSE) -> 3 | L9: =VLOOKUP($B9,stats!$B$4:$Q$128,COLUMN(L9)-1,FALSE) -> 4.5 | M9: =VLOOKUP($B9,stats!$B$4:$Q$128,COLUMN(M9)-1,FALSE) -> 6.5 | N9: =VLOOKUP($B9,stats!$B$4:$Q$128,COLUMN(N9)-1,FALSE) -> 4.5 | O9: =VLOOKUP($B9,stats!$B$4:$Q$128,COLUMN(O9)-1,FALSE) -> 5.25 | P9: =VLOOKUP($B9,stats!$B$4:$Q$128,COLUMN(P9)-1,FALSE) -> 3.25 | Q9: =VLOOKUP($B9,stats!$B$4:$Q$128,COLUMN(Q9)-1,FALSE) -> 8.75 | S9: 30.1875 | T9: 0.05796231849 | V9: 6 | W9: 5 | Y9: 40 | Z9: Odomirok.19-RBC | AA9: 6 | AB9: =SUM(T$4:T9) -> 0.3730349214 | AF9: | style='background-color: ;'| [[Odomirok.19-RBC]] | AL9: 6 | AM9: 5 | AO9: =SUM(AJ$4:AJ9) -> 0
A10: 380 | B10: Odomirok.8-9-IS | D10: 0 | F10: =VLOOKUP($B10,stats!$B$4:$Q$128,COLUMN(F10)-1,FALSE) -> 7 | G10: =VLOOKUP($B10,stats!$B$4:$Q$128,COLUMN(G10)-1,FALSE) -> 3 | H10: =VLOOKUP($B10,stats!$B$4:$Q$128,COLUMN(H10)-1,FALSE) -> 6 | I10: =VLOOKUP($B10,stats!$B$4:$Q$128,COLUMN(I10)-1,FALSE) -> 0 | J10: =VLOOKUP($B10,stats!$B$4:$Q$128,COLUMN(J10)-1,FALSE) -> 3.25 | K10: =VLOOKUP($B10,stats!$B$4:$Q$128,COLUMN(K10)-1,FALSE) -> 0 | L10: =VLOOKUP($B10,stats!$B$4:$Q$128,COLUMN(L10)-1,FALSE) -> 5.75 | M10: =VLOOKUP($B10,stats!$B$4:$Q$128,COLUMN(M10)-1,FALSE) -> 0 | N10: =VLOOKUP($B10,stats!$B$4:$Q$128,COLUMN(N10)-1,FALSE) -> 2.625 | O10: =VLOOKUP($B10,stats!$B$4:$Q$128,COLUMN(O10)-1,FALSE) -> 0 | P10: =VLOOKUP($B10,stats!$B$4:$Q$128,COLUMN(P10)-1,FALSE) -> 4.25 | Q10: =VLOOKUP($B10,stats!$B$4:$Q$128,COLUMN(Q10)-1,FALSE) -> 1.5 | S10: 22.78125 | T10: 0.04374174967 | V10: 7 | W10: 4 | Y10: 50 | Z10: Odomirok.8-9-IS | AA10: 7 | AB10: =SUM(T$4:T10) -> 0.4167766711 | AD10: =SUM(T10:T15) -> 0.2302292092 | AF10: ="| style='background-color: ;'" & "| [["&B10&"]]" -> | style='background-color: ;'| [[Odomirok.8-9-IS]] | AL10: 7 | AM10: 4 | AO10: =SUM(AJ$4:AJ10) -> 0 | AQ10: =SUM(AJ10:AJ15) -> 0
A11: 500 | B11: Odomirok.22-23-GAAP | D11: 0 | F11: =VLOOKUP($B11,stats!$B$4:$Q$128,COLUMN(F11)-1,FALSE) -> 3.5 | G11: =VLOOKUP($B11,stats!$B$4:$Q$128,COLUMN(G11)-1,FALSE) -> 2.75 | H11: =VLOOKUP($B11,stats!$B$4:$Q$128,COLUMN(H11)-1,FALSE) -> 7 | I11: =VLOOKUP($B11,stats!$B$4:$Q$128,COLUMN(I11)-1,FALSE) -> 0 | J11: =VLOOKUP($B11,stats!$B$4:$Q$128,COLUMN(J11)-1,FALSE) -> 3.75 | K11: =VLOOKUP($B11,stats!$B$4:$Q$128,COLUMN(K11)-1,FALSE) -> 5.5 | L11: =VLOOKUP($B11,stats!$B$4:$Q$128,COLUMN(L11)-1,FALSE) -> 0 | M11: =VLOOKUP($B11,stats!$B$4:$Q$128,COLUMN(M11)-1,FALSE) -> 0 | N11: =VLOOKUP($B11,stats!$B$4:$Q$128,COLUMN(N11)-1,FALSE) -> 9.25 | O11: =VLOOKUP($B11,stats!$B$4:$Q$128,COLUMN(O11)-1,FALSE) -> 8 | P11: =VLOOKUP($B11,stats!$B$4:$Q$128,COLUMN(P11)-1,FALSE) -> 0 | Q11: =VLOOKUP($B11,stats!$B$4:$Q$128,COLUMN(Q11)-1,FALSE) -> 0.5 | S11: 26.8125 | T11: 0.05148205928 | V11: 8 | W11: 4 | Y11: 60 | Z11: Odomirok.22-23-GAAP | AA11: 8 | AB11: =SUM(T$4:T11) -> 0.4682587303 | AF11: ="| style='background-color: ;'" & "| [["&B11&"]]" -> | style='background-color: ;'| [[Odomirok.22-23-GAAP]] | AL11: 8 | AM11: 4 | AO11: =SUM(AJ$4:AJ11) -> 0
A12: 430 | B12: Odomirok.14-F | D12: 0 | F12: =VLOOKUP($B12,stats!$B$4:$Q$128,COLUMN(F12)-1,FALSE) -> 3 | G12: =VLOOKUP($B12,stats!$B$4:$Q$128,COLUMN(G12)-1,FALSE) -> 2 | H12: =VLOOKUP($B12,stats!$B$4:$Q$128,COLUMN(H12)-1,FALSE) -> 2.5 | I12: =VLOOKUP($B12,stats!$B$4:$Q$128,COLUMN(I12)-1,FALSE) -> 3.75 | J12: =VLOOKUP($B12,stats!$B$4:$Q$128,COLUMN(J12)-1,FALSE) -> 3.75 | K12: =VLOOKUP($B12,stats!$B$4:$Q$128,COLUMN(K12)-1,FALSE) -> 4.25 | L12: =VLOOKUP($B12,stats!$B$4:$Q$128,COLUMN(L12)-1,FALSE) -> 0 | M12: =VLOOKUP($B12,stats!$B$4:$Q$128,COLUMN(M12)-1,FALSE) -> 4 | N12: =VLOOKUP($B12,stats!$B$4:$Q$128,COLUMN(N12)-1,FALSE) -> 0 | O12: =VLOOKUP($B12,stats!$B$4:$Q$128,COLUMN(O12)-1,FALSE) -> 0 | P12: =VLOOKUP($B12,stats!$B$4:$Q$128,COLUMN(P12)-1,FALSE) -> 3.5 | Q12: =VLOOKUP($B12,stats!$B$4:$Q$128,COLUMN(Q12)-1,FALSE) -> 5.75 | S12: 21.25 | T12: 0.04080163207 | V12: 9 | W12: 4 | Y12: 80 | Z12: Odomirok.14-F | AA12: 9 | AB12: =SUM(T$4:T12) -> 0.5090603624 | AF12: | style='background-color: ;'| [[Odomirok.14-F]] | AL12: 9 | AM12: 4 | AO12: =SUM(AJ$4:AJ12) -> 0
A13: 200 | B13: Klann.ReinsComm | D13: 0 | F13: =VLOOKUP($B13,stats!$B$4:$Q$128,COLUMN(F13)-1,FALSE) -> 2 | G13: =VLOOKUP($B13,stats!$B$4:$Q$128,COLUMN(G13)-1,FALSE) -> 0 | H13: =VLOOKUP($B13,stats!$B$4:$Q$128,COLUMN(H13)-1,FALSE) -> 3 | I13: =VLOOKUP($B13,stats!$B$4:$Q$128,COLUMN(I13)-1,FALSE) -> 3 | J13: =VLOOKUP($B13,stats!$B$4:$Q$128,COLUMN(J13)-1,FALSE) -> 4.25 | K13: =VLOOKUP($B13,stats!$B$4:$Q$128,COLUMN(K13)-1,FALSE) -> 3.5 | L13: =VLOOKUP($B13,stats!$B$4:$Q$128,COLUMN(L13)-1,FALSE) -> 4.25 | M13: =VLOOKUP($B13,stats!$B$4:$Q$128,COLUMN(M13)-1,FALSE) -> 3 | N13: =VLOOKUP($B13,stats!$B$4:$Q$128,COLUMN(N13)-1,FALSE) -> 0 | O13: =VLOOKUP($B13,stats!$B$4:$Q$128,COLUMN(O13)-1,FALSE) -> 0 | P13: =VLOOKUP($B13,stats!$B$4:$Q$128,COLUMN(P13)-1,FALSE) -> 3.25 | Q13: =VLOOKUP($B13,stats!$B$4:$Q$128,COLUMN(Q13)-1,FALSE) -> 0 | S13: 19.375 | T13: 0.03720148806 | V13: 10 | W13: 4 | Y13: 90 | Z13: Klann.ReinsComm | AA13: 10 | AB13: =SUM(T$4:T13) -> 0.5462618505 | AF13: | style='background-color: ;'| [[Klann.ReinsComm]] | AL13: 10 | AM13: 4 | AO13: =SUM(AJ$4:AJ13) -> 0
A14: 150 | B14: Freihaut.Reins | D14: 0 | F14: =VLOOKUP($B14,stats!$B$4:$Q$128,COLUMN(F14)-1,FALSE) -> 3.25 | G14: =VLOOKUP($B14,stats!$B$4:$Q$128,COLUMN(G14)-1,FALSE) -> 2.75 | H14: =VLOOKUP($B14,stats!$B$4:$Q$128,COLUMN(H14)-1,FALSE) -> 0 | I14: =VLOOKUP($B14,stats!$B$4:$Q$128,COLUMN(I14)-1,FALSE) -> 2.75 | J14: =VLOOKUP($B14,stats!$B$4:$Q$128,COLUMN(J14)-1,FALSE) -> 1.5 | K14: =VLOOKUP($B14,stats!$B$4:$Q$128,COLUMN(K14)-1,FALSE) -> 1.25 | L14: =VLOOKUP($B14,stats!$B$4:$Q$128,COLUMN(L14)-1,FALSE) -> 2.5 | M14: =VLOOKUP($B14,stats!$B$4:$Q$128,COLUMN(M14)-1,FALSE) -> 2.25 | N14: =VLOOKUP($B14,stats!$B$4:$Q$128,COLUMN(N14)-1,FALSE) -> 0 | O14: =VLOOKUP($B14,stats!$B$4:$Q$128,COLUMN(O14)-1,FALSE) -> 4.25 | P14: =VLOOKUP($B14,stats!$B$4:$Q$128,COLUMN(P14)-1,FALSE) -> 2.25 | Q14: =VLOOKUP($B14,stats!$B$4:$Q$128,COLUMN(Q14)-1,FALSE) -> 1.5 | S14: 14.9375 | T14: 0.02868114725 | V14: 11 | W14: 4 | Y14: 95 | Z14: Freihaut.Reins | AA14: 11 | AB14: =SUM(T$4:T14) -> 0.5749429977 | AF14: | style='background-color: ;'| [[Freihaut.Reins]] | AL14: 11 | AM14: 4 | AO14: =SUM(AJ$4:AJ14) -> 0
A15: 460 | B15: Odomirok.18-IEE | D15: 0 | F15: =VLOOKUP($B15,stats!$B$4:$Q$128,COLUMN(F15)-1,FALSE) -> 0 | G15: =VLOOKUP($B15,stats!$B$4:$Q$128,COLUMN(G15)-1,FALSE) -> 0 | H15: =VLOOKUP($B15,stats!$B$4:$Q$128,COLUMN(H15)-1,FALSE) -> 0 | I15: =VLOOKUP($B15,stats!$B$4:$Q$128,COLUMN(I15)-1,FALSE) -> 3.5 | J15: =VLOOKUP($B15,stats!$B$4:$Q$128,COLUMN(J15)-1,FALSE) -> 4 | K15: =VLOOKUP($B15,stats!$B$4:$Q$128,COLUMN(K15)-1,FALSE) -> 2.75 | L15: =VLOOKUP($B15,stats!$B$4:$Q$128,COLUMN(L15)-1,FALSE) -> 2.5 | M15: =VLOOKUP($B15,stats!$B$4:$Q$128,COLUMN(M15)-1,FALSE) -> 4.25 | N15: =VLOOKUP($B15,stats!$B$4:$Q$128,COLUMN(N15)-1,FALSE) -> 2.5 | O15: =VLOOKUP($B15,stats!$B$4:$Q$128,COLUMN(O15)-1,FALSE) -> 2 | P15: =VLOOKUP($B15,stats!$B$4:$Q$128,COLUMN(P15)-1,FALSE) -> 3 | Q15: =VLOOKUP($B15,stats!$B$4:$Q$128,COLUMN(Q15)-1,FALSE) -> 2.75 | S15: 14.75 | T15: 0.02832113285 | V15: 12 | W15: 4 | Y15: 96 | Z15: Odomirok.18-IEE | AA15: 12 | AB15: =SUM(T$4:T15) -> 0.6032641306 | AF15: | style='background-color: ;'| [[Odomirok.18-IEE]] | AL15: 12 | AM15: 4 | AO15: =SUM(AJ$4:AJ15) -> 0
A16: 100 | B16: Cook.Personal | D16: 0 | F16: =VLOOKUP($B16,stats!$B$4:$Q$128,COLUMN(F16)-1,FALSE) -> 2.75 | G16: =VLOOKUP($B16,stats!$B$4:$Q$128,COLUMN(G16)-1,FALSE) -> 4.75 | H16: =VLOOKUP($B16,stats!$B$4:$Q$128,COLUMN(H16)-1,FALSE) -> 1.75 | I16: =VLOOKUP($B16,stats!$B$4:$Q$128,COLUMN(I16)-1,FALSE) -> 4 | J16: =VLOOKUP($B16,stats!$B$4:$Q$128,COLUMN(J16)-1,FALSE) -> 2.5 | K16: =VLOOKUP($B16,stats!$B$4:$Q$128,COLUMN(K16)-1,FALSE) -> 2.5 | L16: =VLOOKUP($B16,stats!$B$4:$Q$128,COLUMN(L16)-1,FALSE) -> 0 | M16: =VLOOKUP($B16,stats!$B$4:$Q$128,COLUMN(M16)-1,FALSE) -> 3.25 | N16: =VLOOKUP($B16,stats!$B$4:$Q$128,COLUMN(N16)-1,FALSE) -> 0 | O16: =VLOOKUP($B16,stats!$B$4:$Q$128,COLUMN(O16)-1,FALSE) -> 4 | P16: =VLOOKUP($B16,stats!$B$4:$Q$128,COLUMN(P16)-1,FALSE) -> 2 | Q16: =VLOOKUP($B16,stats!$B$4:$Q$128,COLUMN(Q16)-1,FALSE) -> 3 | S16: 20.875 | T16: 0.04008160326 | V16: 13 | W16: 3 | Y16: 97 | Z16: Cook.Personal | AA16: 13 | AB16: =SUM(T$4:T16) -> 0.6433457338 | AD16: =SUM(T16:T21) -> 0.130925237 | AF16: | style='background-color: ;'| [[Cook.Personal]] | AL16: 13 | AM16: 3 | AO16: =SUM(AJ$4:AJ16) -> 0 | AQ16: =SUM(AJ16:AJ21) -> 0
A17: 170 | B17: Germani.GovtIns | C17: 18 | D17: 0.05572755418 | F17: =VLOOKUP($B17,stats!$B$4:$Q$128,COLUMN(F17)-1,FALSE) -> 2 | G17: =VLOOKUP($B17,stats!$B$4:$Q$128,COLUMN(G17)-1,FALSE) -> 1 | H17: =VLOOKUP($B17,stats!$B$4:$Q$128,COLUMN(H17)-1,FALSE) -> 3 | I17: =VLOOKUP($B17,stats!$B$4:$Q$128,COLUMN(I17)-1,FALSE) -> 2.5 | J17: =VLOOKUP($B17,stats!$B$4:$Q$128,COLUMN(J17)-1,FALSE) -> 3 | K17: =VLOOKUP($B17,stats!$B$4:$Q$128,COLUMN(K17)-1,FALSE) -> 2.5 | L17: =VLOOKUP($B17,stats!$B$4:$Q$128,COLUMN(L17)-1,FALSE) -> 5 | M17: =VLOOKUP($B17,stats!$B$4:$Q$128,COLUMN(M17)-1,FALSE) -> 1.5 | N17: =VLOOKUP($B17,stats!$B$4:$Q$128,COLUMN(N17)-1,FALSE) -> 2.5 | O17: =VLOOKUP($B17,stats!$B$4:$Q$128,COLUMN(O17)-1,FALSE) -> 4.75 | P17: =VLOOKUP($B17,stats!$B$4:$Q$128,COLUMN(P17)-1,FALSE) -> 2.75 | Q17: =VLOOKUP($B17,stats!$B$4:$Q$128,COLUMN(Q17)-1,FALSE) -> 6 | S17: 19.0625 | T17: 0.03660146406 | V17: 14 | W17: 3 | Y17: 100 | Z17: Germani.GovtIns | AA17: 14 | AB17: =SUM(T$4:T17) -> 0.6799471979 | AF17: | style='background-color: ;'| [[Germani.GovtIns]] | AL17: 14 | AM17: 3 | AO17: =SUM(AJ$4:AJ17) -> 0
A18: 190 | B18: Horn2018.Flood | D18: 0 | F18: =VLOOKUP($B18,stats!$B$4:$Q$128,COLUMN(F18)-1,FALSE) -> 0 | G18: =VLOOKUP($B18,stats!$B$4:$Q$128,COLUMN(G18)-1,FALSE) -> 0 | H18: =VLOOKUP($B18,stats!$B$4:$Q$128,COLUMN(H18)-1,FALSE) -> 0 | I18: =VLOOKUP($B18,stats!$B$4:$Q$128,COLUMN(I18)-1,FALSE) -> 0 | J18: =VLOOKUP($B18,stats!$B$4:$Q$128,COLUMN(J18)-1,FALSE) -> 0 | K18: =VLOOKUP($B18,stats!$B$4:$Q$128,COLUMN(K18)-1,FALSE) -> 0 | L18: =VLOOKUP($B18,stats!$B$4:$Q$128,COLUMN(L18)-1,FALSE) -> 0 | M18: =VLOOKUP($B18,stats!$B$4:$Q$128,COLUMN(M18)-1,FALSE) -> 0 | N18: =VLOOKUP($B18,stats!$B$4:$Q$128,COLUMN(N18)-1,FALSE) -> 0 | O18: =VLOOKUP($B18,stats!$B$4:$Q$128,COLUMN(O18)-1,FALSE) -> 0 | P18: =VLOOKUP($B18,stats!$B$4:$Q$128,COLUMN(P18)-1,FALSE) -> 0 | Q18: =VLOOKUP($B18,stats!$B$4:$Q$128,COLUMN(Q18)-1,FALSE) -> 0 | S18: 0 | T18: 0 | V18: 15 | W18: 3 | Y18: 102 | Z18: Horn2018.Flood | AA18: 15 | AB18: =SUM(T$4:T18) -> 0.6799471979 | AF18: | style='background-color: ;'| [[Horn2018.Flood]] | AL18: 15 | AM18: 3 | AO18: =SUM(AJ$4:AJ18) -> 0
A19: 530 | B19: Odomirok.26-Taxes | D19: 0 | F19: =VLOOKUP($B19,stats!$B$4:$Q$128,COLUMN(F19)-1,FALSE) -> 0 | G19: =VLOOKUP($B19,stats!$B$4:$Q$128,COLUMN(G19)-1,FALSE) -> 2 | H19: =VLOOKUP($B19,stats!$B$4:$Q$128,COLUMN(H19)-1,FALSE) -> 2.5 | I19: =VLOOKUP($B19,stats!$B$4:$Q$128,COLUMN(I19)-1,FALSE) -> 0 | J19: =VLOOKUP($B19,stats!$B$4:$Q$128,COLUMN(J19)-1,FALSE) -> 3.25 | K19: =VLOOKUP($B19,stats!$B$4:$Q$128,COLUMN(K19)-1,FALSE) -> 4.75 | L19: =VLOOKUP($B19,stats!$B$4:$Q$128,COLUMN(L19)-1,FALSE) -> 0 | M19: =VLOOKUP($B19,stats!$B$4:$Q$128,COLUMN(M19)-1,FALSE) -> 3.25 | N19: =VLOOKUP($B19,stats!$B$4:$Q$128,COLUMN(N19)-1,FALSE) -> 0 | O19: =VLOOKUP($B19,stats!$B$4:$Q$128,COLUMN(O19)-1,FALSE) -> 0 | P19: =VLOOKUP($B19,stats!$B$4:$Q$128,COLUMN(P19)-1,FALSE) -> 7 | Q19: =VLOOKUP($B19,stats!$B$4:$Q$128,COLUMN(Q19)-1,FALSE) -> 0 | S19: 14.125 | T19: 0.02712108484 | V19: 16 | W19: 3 | Y19: 130 | Z19: Odomirok.26-Taxes | AA19: 16 | AB19: =SUM(T$4:T19) -> 0.7070682827 | AF19: | style='background-color: ;'| [[Odomirok.26-Taxes]] | AL19: 16 | AM19: 3 | AO19: =SUM(AJ$4:AJ19) -> 0
A20: 560 | B20: Porter.2-Devlpt | D20: 0 | F20: =VLOOKUP($B20,stats!$B$4:$Q$128,COLUMN(F20)-1,FALSE) -> 1.5 | G20: =VLOOKUP($B20,stats!$B$4:$Q$128,COLUMN(G20)-1,FALSE) -> 7 | H20: =VLOOKUP($B20,stats!$B$4:$Q$128,COLUMN(H20)-1,FALSE) -> 0 | I20: =VLOOKUP($B20,stats!$B$4:$Q$128,COLUMN(I20)-1,FALSE) -> 0 | J20: =VLOOKUP($B20,stats!$B$4:$Q$128,COLUMN(J20)-1,FALSE) -> 3.25 | K20: =VLOOKUP($B20,stats!$B$4:$Q$128,COLUMN(K20)-1,FALSE) -> 0 | L20: =VLOOKUP($B20,stats!$B$4:$Q$128,COLUMN(L20)-1,FALSE) -> 0 | M20: =VLOOKUP($B20,stats!$B$4:$Q$128,COLUMN(M20)-1,FALSE) -> 2.25 | N20: =VLOOKUP($B20,stats!$B$4:$Q$128,COLUMN(N20)-1,FALSE) -> 3 | O20: =VLOOKUP($B20,stats!$B$4:$Q$128,COLUMN(O20)-1,FALSE) -> 2 | P20: =VLOOKUP($B20,stats!$B$4:$Q$128,COLUMN(P20)-1,FALSE) -> 2 | Q20: =VLOOKUP($B20,stats!$B$4:$Q$128,COLUMN(Q20)-1,FALSE) -> 3.5 | S20: 14.125 | T20: 0.02712108484 | V20: 17 | W20: 3 | Y20: 140 | Z20: Porter.2-Devlpt | AA20: 17 | AB20: =SUM(T$4:T20) -> 0.7341893676 | AF20: | style='background-color: ;'| [[Porter.2-Devlpt]] | AL20: 17 | AM20: 3 | AO20: =SUM(AJ$4:AJ20) -> 0
A21: 640 | B21: Vaughan.Crisis | D21: 0 | F21: =VLOOKUP($B21,stats!$B$4:$Q$128,COLUMN(F21)-1,FALSE) -> 0 | G21: =VLOOKUP($B21,stats!$B$4:$Q$128,COLUMN(G21)-1,FALSE) -> 0 | H21: =VLOOKUP($B21,stats!$B$4:$Q$128,COLUMN(H21)-1,FALSE) -> 2 | I21: =VLOOKUP($B21,stats!$B$4:$Q$128,COLUMN(I21)-1,FALSE) -> 0 | J21: =VLOOKUP($B21,stats!$B$4:$Q$128,COLUMN(J21)-1,FALSE) -> 0 | K21: =VLOOKUP($B21,stats!$B$4:$Q$128,COLUMN(K21)-1,FALSE) -> 3.75 | L21: =VLOOKUP($B21,stats!$B$4:$Q$128,COLUMN(L21)-1,FALSE) -> 0 | M21: =VLOOKUP($B21,stats!$B$4:$Q$128,COLUMN(M21)-1,FALSE) -> 0 | N21: =VLOOKUP($B21,stats!$B$4:$Q$128,COLUMN(N21)-1,FALSE) -> 0 | O21: =VLOOKUP($B21,stats!$B$4:$Q$128,COLUMN(O21)-1,FALSE) -> 0 | P21: =VLOOKUP($B21,stats!$B$4:$Q$128,COLUMN(P21)-1,FALSE) -> 6.75 | Q21: =VLOOKUP($B21,stats!$B$4:$Q$128,COLUMN(Q21)-1,FALSE) -> 0 | S21: 5.375 | T21: 0 | V21: 18 | W21: 3 | Y21: 145 | Z21: Vaughan.Crisis | AA21: 18 | AB21: =SUM(T$4:T21) -> 0.7341893676 | AF21: | style='background-color: ;'| [[Vaughan.Crisis]] | AL21: 18 | AM21: 3 | AO21: =SUM(AJ$4:AJ21) -> 0
A22: 650 | B22: Webel.TRIA-1 | D22: 0 | F22: =VLOOKUP($B22,stats!$B$4:$Q$128,COLUMN(F22)-1,FALSE) -> 2.25 | G22: =VLOOKUP($B22,stats!$B$4:$Q$128,COLUMN(G22)-1,FALSE) -> 0 | H22: =VLOOKUP($B22,stats!$B$4:$Q$128,COLUMN(H22)-1,FALSE) -> 0 | I22: =VLOOKUP($B22,stats!$B$4:$Q$128,COLUMN(I22)-1,FALSE) -> 2.25 | J22: =VLOOKUP($B22,stats!$B$4:$Q$128,COLUMN(J22)-1,FALSE) -> 3 | K22: =VLOOKUP($B22,stats!$B$4:$Q$128,COLUMN(K22)-1,FALSE) -> 3 | L22: =VLOOKUP($B22,stats!$B$4:$Q$128,COLUMN(L22)-1,FALSE) -> 1.75 | M22: =VLOOKUP($B22,stats!$B$4:$Q$128,COLUMN(M22)-1,FALSE) -> 1.25 | N22: =VLOOKUP($B22,stats!$B$4:$Q$128,COLUMN(N22)-1,FALSE) -> 3.25 | O22: =VLOOKUP($B22,stats!$B$4:$Q$128,COLUMN(O22)-1,FALSE) -> 1.75 | P22: =VLOOKUP($B22,stats!$B$4:$Q$128,COLUMN(P22)-1,FALSE) -> 0 | Q22: =VLOOKUP($B22,stats!$B$4:$Q$128,COLUMN(Q22)-1,FALSE) -> 0 | S22: 13.25 | T22: 0.02544101764 | V22: 19 | W22: 2 | Y22: 150 | Z22: Webel.TRIA-1 | AA22: 19 | AB22: =SUM(T$4:T22) -> 0.7596303852 | AD22: =SUM(T22:T27) -> 0.09804392176 | AF22: | style='background-color: ;'| [[Webel.TRIA-1]] | AL22: 19 | AM22: 2 | AO22: =SUM(AJ$4:AJ22) -> 0 | AQ22: =SUM(AJ22:AJ27) -> 0
A23: 660 | B23: Webel.TRIA-2 | C23: 0 | D23: 0 | F23: =VLOOKUP($B23,stats!$B$4:$Q$128,COLUMN(F23)-1,FALSE) -> 0 | G23: =VLOOKUP($B23,stats!$B$4:$Q$128,COLUMN(G23)-1,FALSE) -> 0 | H23: =VLOOKUP($B23,stats!$B$4:$Q$128,COLUMN(H23)-1,FALSE) -> 0 | I23: =VLOOKUP($B23,stats!$B$4:$Q$128,COLUMN(I23)-1,FALSE) -> 0 | J23: =VLOOKUP($B23,stats!$B$4:$Q$128,COLUMN(J23)-1,FALSE) -> 0 | K23: =VLOOKUP($B23,stats!$B$4:$Q$128,COLUMN(K23)-1,FALSE) -> 0 | L23: =VLOOKUP($B23,stats!$B$4:$Q$128,COLUMN(L23)-1,FALSE) -> 0 | M23: =VLOOKUP($B23,stats!$B$4:$Q$128,COLUMN(M23)-1,FALSE) -> 0 | N23: =VLOOKUP($B23,stats!$B$4:$Q$128,COLUMN(N23)-1,FALSE) -> 0 | O23: =VLOOKUP($B23,stats!$B$4:$Q$128,COLUMN(O23)-1,FALSE) -> 0 | P23: =VLOOKUP($B23,stats!$B$4:$Q$128,COLUMN(P23)-1,FALSE) -> 0 | Q23: =VLOOKUP($B23,stats!$B$4:$Q$128,COLUMN(Q23)-1,FALSE) -> 0 | S23: 0 | T23: 0 | V23: 20 | W23: 2 | Y23: 155 | Z23: Webel.TRIA-2 | AA23: 20 | AB23: =SUM(T$4:T23) -> 0.7596303852 | AF23: | style='background-color: ;'| [[Webel.TRIA-2]] | AL23: 20 | AM23: 2 | AO23: =SUM(AJ$4:AJ23) -> 0
A24: 340 | B24: NAIC.Solvency | D24: 0 | F24: =VLOOKUP($B24,stats!$B$4:$Q$128,COLUMN(F24)-1,FALSE) -> 0 | G24: =VLOOKUP($B24,stats!$B$4:$Q$128,COLUMN(G24)-1,FALSE) -> 0 | H24: =VLOOKUP($B24,stats!$B$4:$Q$128,COLUMN(H24)-1,FALSE) -> 0 | I24: =VLOOKUP($B24,stats!$B$4:$Q$128,COLUMN(I24)-1,FALSE) -> 2.5 | J24: =VLOOKUP($B24,stats!$B$4:$Q$128,COLUMN(J24)-1,FALSE) -> 2.5 | K24: =VLOOKUP($B24,stats!$B$4:$Q$128,COLUMN(K24)-1,FALSE) -> 0 | L24: =VLOOKUP($B24,stats!$B$4:$Q$128,COLUMN(L24)-1,FALSE) -> 5.5 | M24: =VLOOKUP($B24,stats!$B$4:$Q$128,COLUMN(M24)-1,FALSE) -> 0 | N24: =VLOOKUP($B24,stats!$B$4:$Q$128,COLUMN(N24)-1,FALSE) -> 4.5 | O24: =VLOOKUP($B24,stats!$B$4:$Q$128,COLUMN(O24)-1,FALSE) -> 6.25 | P24: =VLOOKUP($B24,stats!$B$4:$Q$128,COLUMN(P24)-1,FALSE) -> 0 | Q24: =VLOOKUP($B24,stats!$B$4:$Q$128,COLUMN(Q24)-1,FALSE) -> 0 | S24: 10.4375 | T24: 0.02004080163 | V24: 21 | W24: 2 | Y24: 160 | Z24: NAIC.Solvency | AA24: 21 | AB24: =SUM(T$4:T24) -> 0.7796711868 | AF24: | style='background-color: ;'| [[NAIC.Solvency]] | AL24: 21 | AM24: 2 | AO24: =SUM(AJ$4:AJ24) -> 0
A25: 620 | B25: Porter.12-Insolvency | D25: 0 | F25: =VLOOKUP($B25,stats!$B$4:$Q$128,COLUMN(F25)-1,FALSE) -> 1 | G25: =VLOOKUP($B25,stats!$B$4:$Q$128,COLUMN(G25)-1,FALSE) -> 2.25 | H25: =VLOOKUP($B25,stats!$B$4:$Q$128,COLUMN(H25)-1,FALSE) -> 2.25 | I25: =VLOOKUP($B25,stats!$B$4:$Q$128,COLUMN(I25)-1,FALSE) -> 0 | J25: =VLOOKUP($B25,stats!$B$4:$Q$128,COLUMN(J25)-1,FALSE) -> 3.5 | K25: =VLOOKUP($B25,stats!$B$4:$Q$128,COLUMN(K25)-1,FALSE) -> 0 | L25: =VLOOKUP($B25,stats!$B$4:$Q$128,COLUMN(L25)-1,FALSE) -> 0.75 | M25: =VLOOKUP($B25,stats!$B$4:$Q$128,COLUMN(M25)-1,FALSE) -> 0 | N25: =VLOOKUP($B25,stats!$B$4:$Q$128,COLUMN(N25)-1,FALSE) -> 0 | O25: =VLOOKUP($B25,stats!$B$4:$Q$128,COLUMN(O25)-1,FALSE) -> 0 | P25: =VLOOKUP($B25,stats!$B$4:$Q$128,COLUMN(P25)-1,FALSE) -> 0 | Q25: =VLOOKUP($B25,stats!$B$4:$Q$128,COLUMN(Q25)-1,FALSE) -> 3 | S25: 9.375 | T25: 0.01800072003 | V25: 22 | W25: 2 | Y25: 170 | Z25: Porter.12-Insolvency | AA25: 22 | AB25: =SUM(T$4:T25) -> 0.7976719069 | AF25: | style='background-color: ;'| [[Porter.12-Insolvency]] | AL25: 22 | AM25: 2 | AO25: =SUM(AJ$4:AJ25) -> 0
A26: 70 | B26: Baribeau.Regs | D26: 0 | F26: =VLOOKUP($B26,stats!$B$4:$Q$128,COLUMN(F26)-1,FALSE) -> 2.25 | G26: =VLOOKUP($B26,stats!$B$4:$Q$128,COLUMN(G26)-1,FALSE) -> 0 | H26: =VLOOKUP($B26,stats!$B$4:$Q$128,COLUMN(H26)-1,FALSE) -> 1 | I26: =VLOOKUP($B26,stats!$B$4:$Q$128,COLUMN(I26)-1,FALSE) -> 1.5 | J26: =VLOOKUP($B26,stats!$B$4:$Q$128,COLUMN(J26)-1,FALSE) -> 3.25 | K26: =VLOOKUP($B26,stats!$B$4:$Q$128,COLUMN(K26)-1,FALSE) -> 1 | L26: =VLOOKUP($B26,stats!$B$4:$Q$128,COLUMN(L26)-1,FALSE) -> 0 | M26: =VLOOKUP($B26,stats!$B$4:$Q$128,COLUMN(M26)-1,FALSE) -> 0.5 | N26: =VLOOKUP($B26,stats!$B$4:$Q$128,COLUMN(N26)-1,FALSE) -> 0.5 | O26: =VLOOKUP($B26,stats!$B$4:$Q$128,COLUMN(O26)-1,FALSE) -> 1 | P26: =VLOOKUP($B26,stats!$B$4:$Q$128,COLUMN(P26)-1,FALSE) -> 0 | Q26: =VLOOKUP($B26,stats!$B$4:$Q$128,COLUMN(Q26)-1,FALSE) -> 0 | S26: 9.625 | T26: 0.01848073923 | V26: 23 | W26: 2 | Y26: 180 | Z26: Baribeau.Regs | AA26: 23 | AB26: =SUM(T$4:T26) -> 0.8161526461 | AF26: | style='background-color: ;'| [[Baribeau.Regs]] | AL26: 23 | AM26: 2 | AO26: =SUM(AJ$4:AJ26) -> 0
A27: 520 | B27: Odomirok.25-Solv2 | D27: 0 | F27: =VLOOKUP($B27,stats!$B$4:$Q$128,COLUMN(F27)-1,FALSE) -> 1.5 | G27: =VLOOKUP($B27,stats!$B$4:$Q$128,COLUMN(G27)-1,FALSE) -> 2 | H27: =VLOOKUP($B27,stats!$B$4:$Q$128,COLUMN(H27)-1,FALSE) -> 0 | I27: =VLOOKUP($B27,stats!$B$4:$Q$128,COLUMN(I27)-1,FALSE) -> 3 | J27: =VLOOKUP($B27,stats!$B$4:$Q$128,COLUMN(J27)-1,FALSE) -> 0 | K27: =VLOOKUP($B27,stats!$B$4:$Q$128,COLUMN(K27)-1,FALSE) -> 0 | L27: =VLOOKUP($B27,stats!$B$4:$Q$128,COLUMN(L27)-1,FALSE) -> 3.75 | M27: =VLOOKUP($B27,stats!$B$4:$Q$128,COLUMN(M27)-1,FALSE) -> 0 | N27: =VLOOKUP($B27,stats!$B$4:$Q$128,COLUMN(N27)-1,FALSE) -> 0 | O27: =VLOOKUP($B27,stats!$B$4:$Q$128,COLUMN(O27)-1,FALSE) -> 0 | P27: =VLOOKUP($B27,stats!$B$4:$Q$128,COLUMN(P27)-1,FALSE) -> 3.75 | Q27: =VLOOKUP($B27,stats!$B$4:$Q$128,COLUMN(Q27)-1,FALSE) -> 0 | S27: 8.375 | T27: 0.01608064323 | V27: 24 | W27: 2 | Y27: 190 | Z27: Odomirok.25-Solv2 | AA27: 24 | AB27: =SUM(T$4:T27) -> 0.8322332893 | AF27: | style='background-color: ;'| [[Odomirok.25-Solv2]] | AL27: 24 | AM27: 2 | AO27: =SUM(AJ$4:AJ27) -> 0
A28: 130 | B28: Feldblum.Surplus | D28: 0 | F28: =VLOOKUP($B28,stats!$B$4:$Q$128,COLUMN(F28)-1,FALSE) -> 0 | G28: =VLOOKUP($B28,stats!$B$4:$Q$128,COLUMN(G28)-1,FALSE) -> 2.5 | H28: =VLOOKUP($B28,stats!$B$4:$Q$128,COLUMN(H28)-1,FALSE) -> 0 | I28: =VLOOKUP($B28,stats!$B$4:$Q$128,COLUMN(I28)-1,FALSE) -> 4.25 | J28: =VLOOKUP($B28,stats!$B$4:$Q$128,COLUMN(J28)-1,FALSE) -> 0 | K28: =VLOOKUP($B28,stats!$B$4:$Q$128,COLUMN(K28)-1,FALSE) -> 0 | L28: =VLOOKUP($B28,stats!$B$4:$Q$128,COLUMN(L28)-1,FALSE) -> 0 | M28: =VLOOKUP($B28,stats!$B$4:$Q$128,COLUMN(M28)-1,FALSE) -> 3.5 | N28: =VLOOKUP($B28,stats!$B$4:$Q$128,COLUMN(N28)-1,FALSE) -> 0 | O28: =VLOOKUP($B28,stats!$B$4:$Q$128,COLUMN(O28)-1,FALSE) -> 0 | P28: =VLOOKUP($B28,stats!$B$4:$Q$128,COLUMN(P28)-1,FALSE) -> 0 | Q28: =VLOOKUP($B28,stats!$B$4:$Q$128,COLUMN(Q28)-1,FALSE) -> 0 | S28: 8.5 | T28: 0.01632065283 | V28: 25 | W28: 1 | Y28: 200 | Z28: Feldblum.Surplus | AA28: 25 | AB28: =SUM(T$4:T28) -> 0.8485539422 | AD28: =SUM(T28:T33) -> 0.06756270251 | AF28: | style='background-color: ;'| [[Feldblum.Surplus]] | AL28: 25 | AM28: 1 | AO28: =SUM(AJ$4:AJ28) -> 0 | AQ28: =SUM(AJ28:AJ33) -> 0
A29: 120 | B29: Feldblum.Ratings | D29: 0 | F29: =VLOOKUP($B29,stats!$B$4:$Q$128,COLUMN(F29)-1,FALSE) -> 1.75 | G29: =VLOOKUP($B29,stats!$B$4:$Q$128,COLUMN(G29)-1,FALSE) -> 0 | H29: =VLOOKUP($B29,stats!$B$4:$Q$128,COLUMN(H29)-1,FALSE) -> 0 | I29: =VLOOKUP($B29,stats!$B$4:$Q$128,COLUMN(I29)-1,FALSE) -> 2.5 | J29: =VLOOKUP($B29,stats!$B$4:$Q$128,COLUMN(J29)-1,FALSE) -> 0 | K29: =VLOOKUP($B29,stats!$B$4:$Q$128,COLUMN(K29)-1,FALSE) -> 0 | L29: =VLOOKUP($B29,stats!$B$4:$Q$128,COLUMN(L29)-1,FALSE) -> 3 | M29: =VLOOKUP($B29,stats!$B$4:$Q$128,COLUMN(M29)-1,FALSE) -> 5 | N29: =VLOOKUP($B29,stats!$B$4:$Q$128,COLUMN(N29)-1,FALSE) -> 0 | O29: =VLOOKUP($B29,stats!$B$4:$Q$128,COLUMN(O29)-1,FALSE) -> 0 | P29: =VLOOKUP($B29,stats!$B$4:$Q$128,COLUMN(P29)-1,FALSE) -> 4.25 | Q29: =VLOOKUP($B29,stats!$B$4:$Q$128,COLUMN(Q29)-1,FALSE) -> 3 | S29: 8.25 | T29: 0.01584063363 | V29: 26 | W29: 1 | Y29: 210 | Z29: Feldblum.Ratings | AA29: 26 | AB29: =SUM(T$4:T29) -> 0.8643945758 | AF29: | style='background-color: ;'| [[Feldblum.Ratings]] | AL29: 26 | AM29: 1 | AO29: =SUM(AJ$4:AJ29) -> 0
A30: 105 | B30: Dearie.Excess | D30: 0 | F30: =VLOOKUP($B30,stats!$B$4:$Q$128,COLUMN(F30)-1,FALSE) -> 0 | G30: =VLOOKUP($B30,stats!$B$4:$Q$128,COLUMN(G30)-1,FALSE) -> 0 | H30: =VLOOKUP($B30,stats!$B$4:$Q$128,COLUMN(H30)-1,FALSE) -> 0 | I30: =VLOOKUP($B30,stats!$B$4:$Q$128,COLUMN(I30)-1,FALSE) -> 0 | J30: =VLOOKUP($B30,stats!$B$4:$Q$128,COLUMN(J30)-1,FALSE) -> 0 | K30: =VLOOKUP($B30,stats!$B$4:$Q$128,COLUMN(K30)-1,FALSE) -> 0 | L30: =VLOOKUP($B30,stats!$B$4:$Q$128,COLUMN(L30)-1,FALSE) -> 0 | M30: =VLOOKUP($B30,stats!$B$4:$Q$128,COLUMN(M30)-1,FALSE) -> 0 | N30: =VLOOKUP($B30,stats!$B$4:$Q$128,COLUMN(N30)-1,FALSE) -> 0 | O30: =VLOOKUP($B30,stats!$B$4:$Q$128,COLUMN(O30)-1,FALSE) -> 0 | P30: =VLOOKUP($B30,stats!$B$4:$Q$128,COLUMN(P30)-1,FALSE) -> 0 | Q30: =VLOOKUP($B30,stats!$B$4:$Q$128,COLUMN(Q30)-1,FALSE) -> 0 | S30: 0 | T30: 0 | V30: 27 | W30: 1 | Y30: 215 | Z30: Dearie.Excess | AA30: 27 | AB30: =SUM(T$4:T30) -> 0.8643945758 | AF30: | style='background-color: ;'| [[Dearie.Excess]] | AL30: 27 | AM30: 1 | AO30: =SUM(AJ$4:AJ30) -> 0
A31: 390 | B31: Odomirok.10-Notes | D31: 0 | F31: =VLOOKUP($B31,stats!$B$4:$Q$128,COLUMN(F31)-1,FALSE) -> 0 | G31: =VLOOKUP($B31,stats!$B$4:$Q$128,COLUMN(G31)-1,FALSE) -> 0 | H31: =VLOOKUP($B31,stats!$B$4:$Q$128,COLUMN(H31)-1,FALSE) -> 0 | I31: =VLOOKUP($B31,stats!$B$4:$Q$128,COLUMN(I31)-1,FALSE) -> 2.5 | J31: =VLOOKUP($B31,stats!$B$4:$Q$128,COLUMN(J31)-1,FALSE) -> 0 | K31: =VLOOKUP($B31,stats!$B$4:$Q$128,COLUMN(K31)-1,FALSE) -> 0 | L31: =VLOOKUP($B31,stats!$B$4:$Q$128,COLUMN(L31)-1,FALSE) -> 4.25 | M31: =VLOOKUP($B31,stats!$B$4:$Q$128,COLUMN(M31)-1,FALSE) -> 3 | N31: =VLOOKUP($B31,stats!$B$4:$Q$128,COLUMN(N31)-1,FALSE) -> 0.75 | O31: =VLOOKUP($B31,stats!$B$4:$Q$128,COLUMN(O31)-1,FALSE) -> 2.5 | P31: =VLOOKUP($B31,stats!$B$4:$Q$128,COLUMN(P31)-1,FALSE) -> 3 | Q31: =VLOOKUP($B31,stats!$B$4:$Q$128,COLUMN(Q31)-1,FALSE) -> 0 | S31: 6.9375 | T31: 0.01332053282 | V31: 28 | W31: 1 | Y31: 220 | Z31: Odomirok.10-Notes | AA31: 28 | AB31: =SUM(T$4:T31) -> 0.8777151086 | AF31: | style='background-color: ;'| [[Odomirok.10-Notes]] | AL31: 28 | AM31: 1 | AO31: =SUM(AJ$4:AJ31) -> 0
A32: 220 | B32: McCarty.Credit | C32: 57 | D32: 0.1764705882 | F32: =VLOOKUP($B32,stats!$B$4:$Q$128,COLUMN(F32)-1,FALSE) -> 1.5 | G32: =VLOOKUP($B32,stats!$B$4:$Q$128,COLUMN(G32)-1,FALSE) -> 0 | H32: =VLOOKUP($B32,stats!$B$4:$Q$128,COLUMN(H32)-1,FALSE) -> 0.5 | I32: =VLOOKUP($B32,stats!$B$4:$Q$128,COLUMN(I32)-1,FALSE) -> 0 | J32: =VLOOKUP($B32,stats!$B$4:$Q$128,COLUMN(J32)-1,FALSE) -> 0 | K32: =VLOOKUP($B32,stats!$B$4:$Q$128,COLUMN(K32)-1,FALSE) -> 2.5 | L32: =VLOOKUP($B32,stats!$B$4:$Q$128,COLUMN(L32)-1,FALSE) -> 2.25 | M32: =VLOOKUP($B32,stats!$B$4:$Q$128,COLUMN(M32)-1,FALSE) -> 0 | N32: =VLOOKUP($B32,stats!$B$4:$Q$128,COLUMN(N32)-1,FALSE) -> 3.75 | O32: =VLOOKUP($B32,stats!$B$4:$Q$128,COLUMN(O32)-1,FALSE) -> 0.75 | P32: =VLOOKUP($B32,stats!$B$4:$Q$128,COLUMN(P32)-1,FALSE) -> 0 | Q32: =VLOOKUP($B32,stats!$B$4:$Q$128,COLUMN(Q32)-1,FALSE) -> 0 | S32: 6.75 | T32: 0.01296051842 | V32: 29 | W32: 1 | Y32: 230 | Z32: McCarty.Credit | AA32: 29 | AB32: =SUM(T$4:T32) -> 0.890675627 | AF32: | style='background-color: ;'| [[McCarty.Credit]] | AL32: 29 | AM32: 1 | AO32: =SUM(AJ$4:AJ32) -> 0
A33: 210 | B33: Kucera.Credit | C33: 7 | D33: 0.02167182663 | F33: =VLOOKUP($B33,stats!$B$4:$Q$128,COLUMN(F33)-1,FALSE) -> 0 | G33: =VLOOKUP($B33,stats!$B$4:$Q$128,COLUMN(G33)-1,FALSE) -> 0 | H33: =VLOOKUP($B33,stats!$B$4:$Q$128,COLUMN(H33)-1,FALSE) -> 1.75 | I33: =VLOOKUP($B33,stats!$B$4:$Q$128,COLUMN(I33)-1,FALSE) -> 0 | J33: =VLOOKUP($B33,stats!$B$4:$Q$128,COLUMN(J33)-1,FALSE) -> 2.5 | K33: =VLOOKUP($B33,stats!$B$4:$Q$128,COLUMN(K33)-1,FALSE) -> 0 | L33: =VLOOKUP($B33,stats!$B$4:$Q$128,COLUMN(L33)-1,FALSE) -> 0 | M33: =VLOOKUP($B33,stats!$B$4:$Q$128,COLUMN(M33)-1,FALSE) -> 0 | N33: =VLOOKUP($B33,stats!$B$4:$Q$128,COLUMN(N33)-1,FALSE) -> 0 | O33: =VLOOKUP($B33,stats!$B$4:$Q$128,COLUMN(O33)-1,FALSE) -> 2 | P33: =VLOOKUP($B33,stats!$B$4:$Q$128,COLUMN(P33)-1,FALSE) -> 0 | Q33: =VLOOKUP($B33,stats!$B$4:$Q$128,COLUMN(Q33)-1,FALSE) -> 0 | S33: 4.75 | T33: 0.009120364815 | V33: 30 | W33: 1 | Y33: 235 | Z33: Kucera.Credit | AA33: 30 | AB33: =SUM(T$4:T33) -> 0.8997959918 | AF33: | style='background-color: ;'| [[Kucera.Credit]] | AL33: 30 | AM33: 1 | AO33: =SUM(AJ$4:AJ33) -> 0
A34: 330 | B34: NAIC.Price | D34: 0 | F34: =VLOOKUP($B34,stats!$B$4:$Q$128,COLUMN(F34)-1,FALSE) -> 3 | G34: =VLOOKUP($B34,stats!$B$4:$Q$128,COLUMN(G34)-1,FALSE) -> 3.25 | H34: =VLOOKUP($B34,stats!$B$4:$Q$128,COLUMN(H34)-1,FALSE) -> 0 | I34: =VLOOKUP($B34,stats!$B$4:$Q$128,COLUMN(I34)-1,FALSE) -> 0 | J34: =VLOOKUP($B34,stats!$B$4:$Q$128,COLUMN(J34)-1,FALSE) -> 0 | K34: =VLOOKUP($B34,stats!$B$4:$Q$128,COLUMN(K34)-1,FALSE) -> 0 | L34: =VLOOKUP($B34,stats!$B$4:$Q$128,COLUMN(L34)-1,FALSE) -> 0 | M34: =VLOOKUP($B34,stats!$B$4:$Q$128,COLUMN(M34)-1,FALSE) -> 0 | N34: =VLOOKUP($B34,stats!$B$4:$Q$128,COLUMN(N34)-1,FALSE) -> 0 | O34: =VLOOKUP($B34,stats!$B$4:$Q$128,COLUMN(O34)-1,FALSE) -> 0 | P34: =VLOOKUP($B34,stats!$B$4:$Q$128,COLUMN(P34)-1,FALSE) -> 0 | Q34: =VLOOKUP($B34,stats!$B$4:$Q$128,COLUMN(Q34)-1,FALSE) -> 0 | S34: 6.25 | T34: 0.01200048002 | V34: 31 | W34: 1 | Y34: 240 | Z34: NAIC.Price | AA34: 31 | AB34: =SUM(T$4:T34) -> 0.9117964719 | AD34: =SUM(T34:T39) -> 0.0596423857 | AF34: | style='background-color: ;'| [[NAIC.Price]] | AL34: 31 | AM34: 1 | AO34: =SUM(AJ$4:AJ34) -> 0 | AQ34: =SUM(AJ34:AJ39) -> 0
A35: 180 | B35: NAIC.Telematics | D35: 0 | F35: =VLOOKUP($B35,stats!$B$4:$Q$128,COLUMN(F35)-1,FALSE) -> 0 | G35: =VLOOKUP($B35,stats!$B$4:$Q$128,COLUMN(G35)-1,FALSE) -> 0 | H35: =VLOOKUP($B35,stats!$B$4:$Q$128,COLUMN(H35)-1,FALSE) -> 2 | I35: =VLOOKUP($B35,stats!$B$4:$Q$128,COLUMN(I35)-1,FALSE) -> 3.75 | J35: =VLOOKUP($B35,stats!$B$4:$Q$128,COLUMN(J35)-1,FALSE) -> 0 | K35: =VLOOKUP($B35,stats!$B$4:$Q$128,COLUMN(K35)-1,FALSE) -> 0 | L35: =VLOOKUP($B35,stats!$B$4:$Q$128,COLUMN(L35)-1,FALSE) -> 0 | M35: =VLOOKUP($B35,stats!$B$4:$Q$128,COLUMN(M35)-1,FALSE) -> 0 | N35: =VLOOKUP($B35,stats!$B$4:$Q$128,COLUMN(N35)-1,FALSE) -> 0 | O35: =VLOOKUP($B35,stats!$B$4:$Q$128,COLUMN(O35)-1,FALSE) -> 0 | P35: =VLOOKUP($B35,stats!$B$4:$Q$128,COLUMN(P35)-1,FALSE) -> 0 | Q35: =VLOOKUP($B35,stats!$B$4:$Q$128,COLUMN(Q35)-1,FALSE) -> 0 | S35: 5.75 | T35: 0.01104044162 | V35: 32 | W35: 1 | Y35: 250 | Z35: NAIC.Telematics | AA35: 32 | AB35: =SUM(T$4:T35) -> 0.9228369135 | AF35: | style='background-color: ;'| [[NAIC.Telematics]] | AL35: 32 | AM35: 1 | AO35: =SUM(AJ$4:AJ35) -> 0
A36: 410 | B36: Odomirok.12-5yr | D36: 0 | F36: =VLOOKUP($B36,stats!$B$4:$Q$128,COLUMN(F36)-1,FALSE) -> 0 | G36: =VLOOKUP($B36,stats!$B$4:$Q$128,COLUMN(G36)-1,FALSE) -> 4 | H36: =VLOOKUP($B36,stats!$B$4:$Q$128,COLUMN(H36)-1,FALSE) -> 0 | I36: =VLOOKUP($B36,stats!$B$4:$Q$128,COLUMN(I36)-1,FALSE) -> 0 | J36: =VLOOKUP($B36,stats!$B$4:$Q$128,COLUMN(J36)-1,FALSE) -> 0 | K36: =VLOOKUP($B36,stats!$B$4:$Q$128,COLUMN(K36)-1,FALSE) -> 0 | L36: =VLOOKUP($B36,stats!$B$4:$Q$128,COLUMN(L36)-1,FALSE) -> 0 | M36: =VLOOKUP($B36,stats!$B$4:$Q$128,COLUMN(M36)-1,FALSE) -> 0 | N36: =VLOOKUP($B36,stats!$B$4:$Q$128,COLUMN(N36)-1,FALSE) -> 0 | O36: =VLOOKUP($B36,stats!$B$4:$Q$128,COLUMN(O36)-1,FALSE) -> 0 | P36: =VLOOKUP($B36,stats!$B$4:$Q$128,COLUMN(P36)-1,FALSE) -> 0 | Q36: =VLOOKUP($B36,stats!$B$4:$Q$128,COLUMN(Q36)-1,FALSE) -> 0 | S36: 4 | T36: 0.007680307212 | V36: 33 | W36: 1 | Y36: 260 | Z36: Odomirok.12-5yr | AA36: 33 | AB36: =SUM(T$4:T36) -> 0.9305172207 | AF36: | style='background-color: ;'| [[Odomirok.12-5yr]] | AL36: 33 | AM36: 1 | AO36: =SUM(AJ$4:AJ36) -> 0
A37: 610 | B37: Porter.8-Rates | D37: 0 | F37: =VLOOKUP($B37,stats!$B$4:$Q$128,COLUMN(F37)-1,FALSE) -> 0 | G37: =VLOOKUP($B37,stats!$B$4:$Q$128,COLUMN(G37)-1,FALSE) -> 0 | H37: =VLOOKUP($B37,stats!$B$4:$Q$128,COLUMN(H37)-1,FALSE) -> 0 | I37: =VLOOKUP($B37,stats!$B$4:$Q$128,COLUMN(I37)-1,FALSE) -> 0 | J37: =VLOOKUP($B37,stats!$B$4:$Q$128,COLUMN(J37)-1,FALSE) -> 0 | K37: =VLOOKUP($B37,stats!$B$4:$Q$128,COLUMN(K37)-1,FALSE) -> 3.75 | L37: =VLOOKUP($B37,stats!$B$4:$Q$128,COLUMN(L37)-1,FALSE) -> 0 | M37: =VLOOKUP($B37,stats!$B$4:$Q$128,COLUMN(M37)-1,FALSE) -> 2.75 | N37: =VLOOKUP($B37,stats!$B$4:$Q$128,COLUMN(N37)-1,FALSE) -> 0 | O37: =VLOOKUP($B37,stats!$B$4:$Q$128,COLUMN(O37)-1,FALSE) -> 0 | P37: =VLOOKUP($B37,stats!$B$4:$Q$128,COLUMN(P37)-1,FALSE) -> 5.5 | Q37: =VLOOKUP($B37,stats!$B$4:$Q$128,COLUMN(Q37)-1,FALSE) -> 0 | S37: 5.125 | T37: 0.009840393616 | V37: 34 | W37: 1 | Y37: 270 | Z37: Porter.8-Rates | AA37: 34 | AB37: =SUM(T$4:T37) -> 0.9403576143 | AF37: | style='background-color: ;'| [[Porter.8-Rates]] | AL37: 34 | AM37: 1 | AO37: =SUM(AJ$4:AJ37) -> 0
A38: 160 | B38: GAO.Report | C38: 58 | D38: 0.1795665635 | F38: =VLOOKUP($B38,stats!$B$4:$Q$128,COLUMN(F38)-1,FALSE) -> 0 | G38: =VLOOKUP($B38,stats!$B$4:$Q$128,COLUMN(G38)-1,FALSE) -> 0 | H38: =VLOOKUP($B38,stats!$B$4:$Q$128,COLUMN(H38)-1,FALSE) -> 0 | I38: =VLOOKUP($B38,stats!$B$4:$Q$128,COLUMN(I38)-1,FALSE) -> 0 | J38: =VLOOKUP($B38,stats!$B$4:$Q$128,COLUMN(J38)-1,FALSE) -> 0 | K38: =VLOOKUP($B38,stats!$B$4:$Q$128,COLUMN(K38)-1,FALSE) -> 3 | L38: =VLOOKUP($B38,stats!$B$4:$Q$128,COLUMN(L38)-1,FALSE) -> 2 | M38: =VLOOKUP($B38,stats!$B$4:$Q$128,COLUMN(M38)-1,FALSE) -> 0 | N38: =VLOOKUP($B38,stats!$B$4:$Q$128,COLUMN(N38)-1,FALSE) -> 2.75 | O38: =VLOOKUP($B38,stats!$B$4:$Q$128,COLUMN(O38)-1,FALSE) -> 0 | P38: =VLOOKUP($B38,stats!$B$4:$Q$128,COLUMN(P38)-1,FALSE) -> 0 | Q38: =VLOOKUP($B38,stats!$B$4:$Q$128,COLUMN(Q38)-1,FALSE) -> 0 | S38: 4.6875 | T38: 0.009000360014 | V38: 35 | W38: 1 | Y38: 290 | Z38: GAO.Report | AA38: 35 | AB38: =SUM(T$4:T38) -> 0.9493579743 | AF38: | style='background-color: ;'| [[GAO.Report]] | AL38: 35 | AM38: 1 | AO38: =SUM(AJ$4:AJ38) -> 0
A39: 280 | B39: NAIC.SSAP-62R | D39: 0 | F39: =VLOOKUP($B39,stats!$B$4:$Q$128,COLUMN(F39)-1,FALSE) -> 0 | G39: =VLOOKUP($B39,stats!$B$4:$Q$128,COLUMN(G39)-1,FALSE) -> 2 | H39: =VLOOKUP($B39,stats!$B$4:$Q$128,COLUMN(H39)-1,FALSE) -> 1.75 | I39: =VLOOKUP($B39,stats!$B$4:$Q$128,COLUMN(I39)-1,FALSE) -> 0 | J39: =VLOOKUP($B39,stats!$B$4:$Q$128,COLUMN(J39)-1,FALSE) -> 0 | K39: =VLOOKUP($B39,stats!$B$4:$Q$128,COLUMN(K39)-1,FALSE) -> 0 | L39: =VLOOKUP($B39,stats!$B$4:$Q$128,COLUMN(L39)-1,FALSE) -> 0 | M39: =VLOOKUP($B39,stats!$B$4:$Q$128,COLUMN(M39)-1,FALSE) -> 0 | N39: =VLOOKUP($B39,stats!$B$4:$Q$128,COLUMN(N39)-1,FALSE) -> 6 | O39: =VLOOKUP($B39,stats!$B$4:$Q$128,COLUMN(O39)-1,FALSE) -> 0 | P39: =VLOOKUP($B39,stats!$B$4:$Q$128,COLUMN(P39)-1,FALSE) -> 0 | Q39: =VLOOKUP($B39,stats!$B$4:$Q$128,COLUMN(Q39)-1,FALSE) -> 1.5 | S39: 5.25 | T39: 0.01008040322 | V39: 36 | W39: 1 | Y39: 300 | Z39: NAIC.SSAP-62R | AA39: 36 | AB39: =SUM(T$4:T39) -> 0.9594383775 | AF39: | style='background-color: ;'| [[NAIC.SSAP-62R]] | AL39: 36 | AM39: 1 | AO39: =SUM(AJ$4:AJ39) -> 0
A40: 370 | B40: Odomirok.6-7-BS | D40: 0 | F40: =VLOOKUP($B40,stats!$B$4:$Q$128,COLUMN(F40)-1,FALSE) -> 1.25 | G40: =VLOOKUP($B40,stats!$B$4:$Q$128,COLUMN(G40)-1,FALSE) -> 0 | H40: =VLOOKUP($B40,stats!$B$4:$Q$128,COLUMN(H40)-1,FALSE) -> 2.25 | I40: =VLOOKUP($B40,stats!$B$4:$Q$128,COLUMN(I40)-1,FALSE) -> 0 | J40: =VLOOKUP($B40,stats!$B$4:$Q$128,COLUMN(J40)-1,FALSE) -> 0 | K40: =VLOOKUP($B40,stats!$B$4:$Q$128,COLUMN(K40)-1,FALSE) -> 0 | L40: =VLOOKUP($B40,stats!$B$4:$Q$128,COLUMN(L40)-1,FALSE) -> 0 | M40: =VLOOKUP($B40,stats!$B$4:$Q$128,COLUMN(M40)-1,FALSE) -> 0 | N40: =VLOOKUP($B40,stats!$B$4:$Q$128,COLUMN(N40)-1,FALSE) -> 0 | O40: =VLOOKUP($B40,stats!$B$4:$Q$128,COLUMN(O40)-1,FALSE) -> 0 | P40: =VLOOKUP($B40,stats!$B$4:$Q$128,COLUMN(P40)-1,FALSE) -> 0 | Q40: =VLOOKUP($B40,stats!$B$4:$Q$128,COLUMN(Q40)-1,FALSE) -> 5 | S40: 3.5 | T40: 0.006720268811 | V40: 37 | W40: 1 | Y40: 310 | Z40: Odomirok.6-7-BS | AA40: 37 | AB40: =SUM(T$4:T40) -> 0.9661586463 | AD40: =SUM(T40:T45) -> 0.03204128165 | AF40: | style='background-color: ;'| [[Odomirok.6-7-BS]] | AL40: 37 | AM40: 1 | AO40: =SUM(AJ$4:AJ40) -> 0 | AQ40: =SUM(AJ40:AJ45) -> 0
A41: 630 | B41: Porter.Reg-2 | D41: 0 | F41: =VLOOKUP($B41,stats!$B$4:$Q$128,COLUMN(F41)-1,FALSE) -> 0 | G41: =VLOOKUP($B41,stats!$B$4:$Q$128,COLUMN(G41)-1,FALSE) -> 0 | H41: =VLOOKUP($B41,stats!$B$4:$Q$128,COLUMN(H41)-1,FALSE) -> 0 | I41: =VLOOKUP($B41,stats!$B$4:$Q$128,COLUMN(I41)-1,FALSE) -> 2.25 | J41: =VLOOKUP($B41,stats!$B$4:$Q$128,COLUMN(J41)-1,FALSE) -> 0 | K41: =VLOOKUP($B41,stats!$B$4:$Q$128,COLUMN(K41)-1,FALSE) -> 0 | L41: =VLOOKUP($B41,stats!$B$4:$Q$128,COLUMN(L41)-1,FALSE) -> 1.5 | M41: =VLOOKUP($B41,stats!$B$4:$Q$128,COLUMN(M41)-1,FALSE) -> 0 | N41: =VLOOKUP($B41,stats!$B$4:$Q$128,COLUMN(N41)-1,FALSE) -> 0 | O41: =VLOOKUP($B41,stats!$B$4:$Q$128,COLUMN(O41)-1,FALSE) -> 2 | P41: =VLOOKUP($B41,stats!$B$4:$Q$128,COLUMN(P41)-1,FALSE) -> 2.5 | Q41: =VLOOKUP($B41,stats!$B$4:$Q$128,COLUMN(Q41)-1,FALSE) -> 0 | S41: 3.5 | T41: 0.006720268811 | V41: 38 | W41: 1 | Y41: 320 | Z41: Porter.Reg-2 | AA41: 38 | AB41: =SUM(T$4:T41) -> 0.9728789152 | AF41: | style='background-color: ;'| [[Porter.Reg-2]] | AL41: 38 | AM41: 1 | AO41: =SUM(AJ$4:AJ41) -> 0
A42: 570 | B42: Porter.3-Roles-Fed | D42: 0 | F42: =VLOOKUP($B42,stats!$B$4:$Q$128,COLUMN(F42)-1,FALSE) -> 0 | G42: =VLOOKUP($B42,stats!$B$4:$Q$128,COLUMN(G42)-1,FALSE) -> 0 | H42: =VLOOKUP($B42,stats!$B$4:$Q$128,COLUMN(H42)-1,FALSE) -> 2.25 | I42: =VLOOKUP($B42,stats!$B$4:$Q$128,COLUMN(I42)-1,FALSE) -> 0 | J42: =VLOOKUP($B42,stats!$B$4:$Q$128,COLUMN(J42)-1,FALSE) -> 0 | K42: =VLOOKUP($B42,stats!$B$4:$Q$128,COLUMN(K42)-1,FALSE) -> 1.25 | L42: =VLOOKUP($B42,stats!$B$4:$Q$128,COLUMN(L42)-1,FALSE) -> 0 | M42: =VLOOKUP($B42,stats!$B$4:$Q$128,COLUMN(M42)-1,FALSE) -> 0 | N42: =VLOOKUP($B42,stats!$B$4:$Q$128,COLUMN(N42)-1,FALSE) -> 0 | O42: =VLOOKUP($B42,stats!$B$4:$Q$128,COLUMN(O42)-1,FALSE) -> 0 | P42: =VLOOKUP($B42,stats!$B$4:$Q$128,COLUMN(P42)-1,FALSE) -> 0 | Q42: =VLOOKUP($B42,stats!$B$4:$Q$128,COLUMN(Q42)-1,FALSE) -> 0 | S42: 3.5 | T42: 0.006720268811 | V42: 39 | W42: 1 | Y42: 330 | Z42: Porter.3-Roles-Fed | AA42: 39 | AB42: =SUM(T$4:T42) -> 0.979599184 | AF42: | style='background-color: ;'| [[Porter.3-Roles-Fed]] | AL42: 39 | AM42: 1 | AO42: =SUM(AJ$4:AJ42) -> 0
A43: 580 | B43: Porter.4-Roles-State | D43: 0 | F43: =VLOOKUP($B43,stats!$B$4:$Q$128,COLUMN(F43)-1,FALSE) -> 0 | G43: =VLOOKUP($B43,stats!$B$4:$Q$128,COLUMN(G43)-1,FALSE) -> 0 | H43: =VLOOKUP($B43,stats!$B$4:$Q$128,COLUMN(H43)-1,FALSE) -> 0 | I43: =VLOOKUP($B43,stats!$B$4:$Q$128,COLUMN(I43)-1,FALSE) -> 0 | J43: =VLOOKUP($B43,stats!$B$4:$Q$128,COLUMN(J43)-1,FALSE) -> 0 | K43: =VLOOKUP($B43,stats!$B$4:$Q$128,COLUMN(K43)-1,FALSE) -> 0 | L43: =VLOOKUP($B43,stats!$B$4:$Q$128,COLUMN(L43)-1,FALSE) -> 3.25 | M43: =VLOOKUP($B43,stats!$B$4:$Q$128,COLUMN(M43)-1,FALSE) -> 3.25 | N43: =VLOOKUP($B43,stats!$B$4:$Q$128,COLUMN(N43)-1,FALSE) -> 0 | O43: =VLOOKUP($B43,stats!$B$4:$Q$128,COLUMN(O43)-1,FALSE) -> 1.75 | P43: =VLOOKUP($B43,stats!$B$4:$Q$128,COLUMN(P43)-1,FALSE) -> 0 | Q43: =VLOOKUP($B43,stats!$B$4:$Q$128,COLUMN(Q43)-1,FALSE) -> 2 | S43: 2.0625 | T43: 0.003960158406 | V43: 40 | W43: 1 | Y43: 350 | Z43: Porter.4-Roles-State | AA43: 40 | AB43: =SUM(T$4:T43) -> 0.9835593424 | AF43: | style='background-color: ;'| [[Porter.4-Roles-State]] | AL43: 40 | AM43: 1 | AO43: =SUM(AJ$4:AJ43) -> 0
A44: 590 | B44: Porter.5-Opns-State | D44: 0 | F44: =VLOOKUP($B44,stats!$B$4:$Q$128,COLUMN(F44)-1,FALSE) -> 1.5 | G44: =VLOOKUP($B44,stats!$B$4:$Q$128,COLUMN(G44)-1,FALSE) -> 0 | H44: =VLOOKUP($B44,stats!$B$4:$Q$128,COLUMN(H44)-1,FALSE) -> 0 | I44: =VLOOKUP($B44,stats!$B$4:$Q$128,COLUMN(I44)-1,FALSE) -> 0 | J44: =VLOOKUP($B44,stats!$B$4:$Q$128,COLUMN(J44)-1,FALSE) -> 0 | K44: =VLOOKUP($B44,stats!$B$4:$Q$128,COLUMN(K44)-1,FALSE) -> 0 | L44: =VLOOKUP($B44,stats!$B$4:$Q$128,COLUMN(L44)-1,FALSE) -> 2.5 | M44: =VLOOKUP($B44,stats!$B$4:$Q$128,COLUMN(M44)-1,FALSE) -> 0 | N44: =VLOOKUP($B44,stats!$B$4:$Q$128,COLUMN(N44)-1,FALSE) -> 0 | O44: =VLOOKUP($B44,stats!$B$4:$Q$128,COLUMN(O44)-1,FALSE) -> 0 | P44: =VLOOKUP($B44,stats!$B$4:$Q$128,COLUMN(P44)-1,FALSE) -> 0 | Q44: =VLOOKUP($B44,stats!$B$4:$Q$128,COLUMN(Q44)-1,FALSE) -> 0 | S44: 2.75 | T44: 0.005280211208 | V44: 41 | W44: 1 | Y44: 360 | Z44: Porter.5-Opns-State | AA44: 41 | AB44: =SUM(T$4:T44) -> 0.9888395536 | AF44: | style='background-color: ;'| [[Porter.5-Opns-State]] | AL44: 41 | AM44: 1 | AO44: =SUM(AJ$4:AJ44) -> 0
A45: 40 | B45: ASOP.41 | C45: 27 | D45: 0.08359133127 | F45: =VLOOKUP($B45,stats!$B$4:$Q$128,COLUMN(F45)-1,FALSE) -> 0 | G45: =VLOOKUP($B45,stats!$B$4:$Q$128,COLUMN(G45)-1,FALSE) -> 0 | H45: =VLOOKUP($B45,stats!$B$4:$Q$128,COLUMN(H45)-1,FALSE) -> 0 | I45: =VLOOKUP($B45,stats!$B$4:$Q$128,COLUMN(I45)-1,FALSE) -> 0 | J45: =VLOOKUP($B45,stats!$B$4:$Q$128,COLUMN(J45)-1,FALSE) -> 0 | K45: =VLOOKUP($B45,stats!$B$4:$Q$128,COLUMN(K45)-1,FALSE) -> 0 | L45: =VLOOKUP($B45,stats!$B$4:$Q$128,COLUMN(L45)-1,FALSE) -> 0 | M45: =VLOOKUP($B45,stats!$B$4:$Q$128,COLUMN(M45)-1,FALSE) -> 2.75 | N45: =VLOOKUP($B45,stats!$B$4:$Q$128,COLUMN(N45)-1,FALSE) -> 0 | O45: =VLOOKUP($B45,stats!$B$4:$Q$128,COLUMN(O45)-1,FALSE) -> 0 | P45: =VLOOKUP($B45,stats!$B$4:$Q$128,COLUMN(P45)-1,FALSE) -> 0 | Q45: =VLOOKUP($B45,stats!$B$4:$Q$128,COLUMN(Q45)-1,FALSE) -> 0 | S45: 1.375 | T45: 0.002640105604 | V45: 42 | W45: 1 | Y45: 370 | Z45: ASOP.41 | AA45: 42 | AB45: =SUM(T$4:T45) -> 0.9914796592 | AF45: | style='background-color: ;'| [[ASOP.41]] | AL45: 42 | AM45: 1 | AO45: =SUM(AJ$4:AJ45) -> 0
A46: 230 | B46: NAIC.APPM | D46: 0 | F46: =VLOOKUP($B46,stats!$B$4:$Q$128,COLUMN(F46)-1,FALSE) -> 0 | G46: =VLOOKUP($B46,stats!$B$4:$Q$128,COLUMN(G46)-1,FALSE) -> 0 | H46: =VLOOKUP($B46,stats!$B$4:$Q$128,COLUMN(H46)-1,FALSE) -> 0 | I46: =VLOOKUP($B46,stats!$B$4:$Q$128,COLUMN(I46)-1,FALSE) -> 0 | J46: =VLOOKUP($B46,stats!$B$4:$Q$128,COLUMN(J46)-1,FALSE) -> 0 | K46: =VLOOKUP($B46,stats!$B$4:$Q$128,COLUMN(K46)-1,FALSE) -> 0 | L46: =VLOOKUP($B46,stats!$B$4:$Q$128,COLUMN(L46)-1,FALSE) -> 0 | M46: =VLOOKUP($B46,stats!$B$4:$Q$128,COLUMN(M46)-1,FALSE) -> 2 | N46: =VLOOKUP($B46,stats!$B$4:$Q$128,COLUMN(N46)-1,FALSE) -> 0 | O46: =VLOOKUP($B46,stats!$B$4:$Q$128,COLUMN(O46)-1,FALSE) -> 0 | P46: =VLOOKUP($B46,stats!$B$4:$Q$128,COLUMN(P46)-1,FALSE) -> 0 | Q46: =VLOOKUP($B46,stats!$B$4:$Q$128,COLUMN(Q46)-1,FALSE) -> 0 | S46: 1 | T46: 0.001920076803 | V46: 43 | W46: 1 | Y46: 380 | Z46: NAIC.APPM | AA46: 43 | AB46: =SUM(T$4:T46) -> 0.993399736 | AD46: =SUM(T46:T51) -> 0.002880115205 | AF46: | style='background-color: ;'| [[NAIC.APPM]] | AL46: 43 | AM46: 1 | AO46: =SUM(AJ$4:AJ46) -> 0 | AQ46: =SUM(AJ46:AJ51) -> 0
A47: 250 | B47: NAIC.SSAP-9 | D47: 0 | F47: =VLOOKUP($B47,stats!$B$4:$Q$128,COLUMN(F47)-1,FALSE) -> 0 | G47: =VLOOKUP($B47,stats!$B$4:$Q$128,COLUMN(G47)-1,FALSE) -> 0 | H47: =VLOOKUP($B47,stats!$B$4:$Q$128,COLUMN(H47)-1,FALSE) -> 0 | I47: =VLOOKUP($B47,stats!$B$4:$Q$128,COLUMN(I47)-1,FALSE) -> 0 | J47: =VLOOKUP($B47,stats!$B$4:$Q$128,COLUMN(J47)-1,FALSE) -> 0 | K47: =VLOOKUP($B47,stats!$B$4:$Q$128,COLUMN(K47)-1,FALSE) -> 0 | L47: =VLOOKUP($B47,stats!$B$4:$Q$128,COLUMN(L47)-1,FALSE) -> 0 | M47: =VLOOKUP($B47,stats!$B$4:$Q$128,COLUMN(M47)-1,FALSE) -> 0 | N47: =VLOOKUP($B47,stats!$B$4:$Q$128,COLUMN(N47)-1,FALSE) -> 2 | O47: =VLOOKUP($B47,stats!$B$4:$Q$128,COLUMN(O47)-1,FALSE) -> 0 | P47: =VLOOKUP($B47,stats!$B$4:$Q$128,COLUMN(P47)-1,FALSE) -> 0 | Q47: =VLOOKUP($B47,stats!$B$4:$Q$128,COLUMN(Q47)-1,FALSE) -> 0 | S47: 0.5 | T47: 0.0009600384015 | V47: 44 | W47: 1 | Y47: 390 | Z47: NAIC.SSAP-9 | AA47: 44 | AB47: =SUM(T$4:T47) -> 0.9943597744 | AF47: | style='background-color: ;'| [[NAIC.SSAP-9]] | AL47: 44 | AM47: 1 | AO47: =SUM(AJ$4:AJ47) -> 0
A48: 20 | B48: ASOP.20 | C48: 17 | D48: 0.05263157895 | F48: =VLOOKUP($B48,stats!$B$4:$Q$128,COLUMN(F48)-1,FALSE) -> 0 | G48: =VLOOKUP($B48,stats!$B$4:$Q$128,COLUMN(G48)-1,FALSE) -> 0 | H48: =VLOOKUP($B48,stats!$B$4:$Q$128,COLUMN(H48)-1,FALSE) -> 0 | I48: =VLOOKUP($B48,stats!$B$4:$Q$128,COLUMN(I48)-1,FALSE) -> 0 | J48: =VLOOKUP($B48,stats!$B$4:$Q$128,COLUMN(J48)-1,FALSE) -> 0 | K48: =VLOOKUP($B48,stats!$B$4:$Q$128,COLUMN(K48)-1,FALSE) -> 0 | L48: =VLOOKUP($B48,stats!$B$4:$Q$128,COLUMN(L48)-1,FALSE) -> 0 | M48: =VLOOKUP($B48,stats!$B$4:$Q$128,COLUMN(M48)-1,FALSE) -> 0 | N48: =VLOOKUP($B48,stats!$B$4:$Q$128,COLUMN(N48)-1,FALSE) -> 0 | O48: =VLOOKUP($B48,stats!$B$4:$Q$128,COLUMN(O48)-1,FALSE) -> 0 | P48: =VLOOKUP($B48,stats!$B$4:$Q$128,COLUMN(P48)-1,FALSE) -> 0 | Q48: =VLOOKUP($B48,stats!$B$4:$Q$128,COLUMN(Q48)-1,FALSE) -> 0 | S48: 0 | T48: 0 | V48: 45 | W48: 1 | Y48: 410 | Z48: ASOP.20 | AA48: 45 | AB48: =SUM(T$4:T48) -> 0.9943597744 | AF48: | style='background-color: ;'| [[ASOP.20]] | AL48: 45 | AM48: 1 | AO48: =SUM(AJ$4:AJ48) -> 0
A49: 50 | B49: ASOP.43 | C49: 31 | D49: 0.0959752322 | F49: =VLOOKUP($B49,stats!$B$4:$Q$128,COLUMN(F49)-1,FALSE) -> 0 | G49: =VLOOKUP($B49,stats!$B$4:$Q$128,COLUMN(G49)-1,FALSE) -> 0 | H49: =VLOOKUP($B49,stats!$B$4:$Q$128,COLUMN(H49)-1,FALSE) -> 0 | I49: =VLOOKUP($B49,stats!$B$4:$Q$128,COLUMN(I49)-1,FALSE) -> 0 | J49: =VLOOKUP($B49,stats!$B$4:$Q$128,COLUMN(J49)-1,FALSE) -> 0 | K49: =VLOOKUP($B49,stats!$B$4:$Q$128,COLUMN(K49)-1,FALSE) -> 0 | L49: =VLOOKUP($B49,stats!$B$4:$Q$128,COLUMN(L49)-1,FALSE) -> 0 | M49: =VLOOKUP($B49,stats!$B$4:$Q$128,COLUMN(M49)-1,FALSE) -> 0 | N49: =VLOOKUP($B49,stats!$B$4:$Q$128,COLUMN(N49)-1,FALSE) -> 0 | O49: =VLOOKUP($B49,stats!$B$4:$Q$128,COLUMN(O49)-1,FALSE) -> 0 | P49: =VLOOKUP($B49,stats!$B$4:$Q$128,COLUMN(P49)-1,FALSE) -> 0 | Q49: =VLOOKUP($B49,stats!$B$4:$Q$128,COLUMN(Q49)-1,FALSE) -> 0 | S49: 0 | T49: 0 | V49: 46 | W49: 1 | Y49: 415 | Z49: ASOP.43 | AA49: 46 | AB49: =SUM(T$4:T49) -> 0.9943597744 | AF49: | style='background-color: ;'| [[ASOP.43]] | AL49: 46 | AM49: 1 | AO49: =SUM(AJ$4:AJ49) -> 0
A50: 80 | B50: BK.Reins | D50: 0 | F50: =VLOOKUP($B50,stats!$B$4:$Q$128,COLUMN(F50)-1,FALSE) -> 0 | G50: =VLOOKUP($B50,stats!$B$4:$Q$128,COLUMN(G50)-1,FALSE) -> 0 | H50: =VLOOKUP($B50,stats!$B$4:$Q$128,COLUMN(H50)-1,FALSE) -> 0 | I50: =VLOOKUP($B50,stats!$B$4:$Q$128,COLUMN(I50)-1,FALSE) -> 0 | J50: =VLOOKUP($B50,stats!$B$4:$Q$128,COLUMN(J50)-1,FALSE) -> 0 | K50: =VLOOKUP($B50,stats!$B$4:$Q$128,COLUMN(K50)-1,FALSE) -> 0 | L50: =VLOOKUP($B50,stats!$B$4:$Q$128,COLUMN(L50)-1,FALSE) -> 0 | M50: =VLOOKUP($B50,stats!$B$4:$Q$128,COLUMN(M50)-1,FALSE) -> 0 | N50: =VLOOKUP($B50,stats!$B$4:$Q$128,COLUMN(N50)-1,FALSE) -> 0 | O50: =VLOOKUP($B50,stats!$B$4:$Q$128,COLUMN(O50)-1,FALSE) -> 0 | P50: =VLOOKUP($B50,stats!$B$4:$Q$128,COLUMN(P50)-1,FALSE) -> 0 | Q50: =VLOOKUP($B50,stats!$B$4:$Q$128,COLUMN(Q50)-1,FALSE) -> 0 | S50: 0 | T50: 0 | V50: 47 | W50: 1 | Y50: 440 | Z50: BK.Reins | AA50: 47 | AB50: =SUM(T$4:T50) -> 0.9943597744 | AF50: | style='background-color: ;'| [[BK.Reins]] | AL50: 47 | AM50: 1 | AO50: =SUM(AJ$4:AJ50) -> 0
A51: 140 | B51: FASB.944 | D51: 0 | F51: =VLOOKUP($B51,stats!$B$4:$Q$128,COLUMN(F51)-1,FALSE) -> 0 | G51: =VLOOKUP($B51,stats!$B$4:$Q$128,COLUMN(G51)-1,FALSE) -> 0 | H51: =VLOOKUP($B51,stats!$B$4:$Q$128,COLUMN(H51)-1,FALSE) -> 0 | I51: =VLOOKUP($B51,stats!$B$4:$Q$128,COLUMN(I51)-1,FALSE) -> 0 | J51: =VLOOKUP($B51,stats!$B$4:$Q$128,COLUMN(J51)-1,FALSE) -> 0 | K51: =VLOOKUP($B51,stats!$B$4:$Q$128,COLUMN(K51)-1,FALSE) -> 0 | L51: =VLOOKUP($B51,stats!$B$4:$Q$128,COLUMN(L51)-1,FALSE) -> 0 | M51: =VLOOKUP($B51,stats!$B$4:$Q$128,COLUMN(M51)-1,FALSE) -> 0 | N51: =VLOOKUP($B51,stats!$B$4:$Q$128,COLUMN(N51)-1,FALSE) -> 0 | O51: =VLOOKUP($B51,stats!$B$4:$Q$128,COLUMN(O51)-1,FALSE) -> 0 | P51: =VLOOKUP($B51,stats!$B$4:$Q$128,COLUMN(P51)-1,FALSE) -> 0 | Q51: =VLOOKUP($B51,stats!$B$4:$Q$128,COLUMN(Q51)-1,FALSE) -> 0 | S51: 0 | T51: 0 | V51: 48 | W51: 1 | Y51: 442 | Z51: FASB.944 | AA51: 48 | AB51: =SUM(T$4:T51) -> 0.9943597744 | AF51: | style='background-color: ;'| [[FASB.944]] | AL51: 48 | AM51: 1 | AO51: =SUM(AJ$4:AJ51) -> 0
A52: 60 | B52: AAA.Materiality | D52: 0 | F52: =VLOOKUP($B52,stats!$B$4:$Q$128,COLUMN(F52)-1,FALSE) -> 0 | G52: =VLOOKUP($B52,stats!$B$4:$Q$128,COLUMN(G52)-1,FALSE) -> 0 | H52: =VLOOKUP($B52,stats!$B$4:$Q$128,COLUMN(H52)-1,FALSE) -> 0 | I52: =VLOOKUP($B52,stats!$B$4:$Q$128,COLUMN(I52)-1,FALSE) -> 0 | J52: =VLOOKUP($B52,stats!$B$4:$Q$128,COLUMN(J52)-1,FALSE) -> 0 | K52: =VLOOKUP($B52,stats!$B$4:$Q$128,COLUMN(K52)-1,FALSE) -> 0 | L52: =VLOOKUP($B52,stats!$B$4:$Q$128,COLUMN(L52)-1,FALSE) -> 0 | M52: =VLOOKUP($B52,stats!$B$4:$Q$128,COLUMN(M52)-1,FALSE) -> 0 | N52: =VLOOKUP($B52,stats!$B$4:$Q$128,COLUMN(N52)-1,FALSE) -> 0 | O52: =VLOOKUP($B52,stats!$B$4:$Q$128,COLUMN(O52)-1,FALSE) -> 0 | P52: =VLOOKUP($B52,stats!$B$4:$Q$128,COLUMN(P52)-1,FALSE) -> 0 | Q52: =VLOOKUP($B52,stats!$B$4:$Q$128,COLUMN(Q52)-1,FALSE) -> 0 | S52: 0 | T52: 0 | V52: 49 | W52: 1 | Y52: 445 | Z52: AAA.Materiality | AA52: 49 | AB52: =SUM(T$4:T52) -> 0.9943597744 | AD52: =SUM(T52:T57) -> 0 | AF52: | style='background-color: ;'| [[AAA.Materiality]] | AL52: 49 | AM52: 1 | AO52: =SUM(AJ$4:AJ52) -> 0 | AQ52: =SUM(AJ52:AJ57) -> 0
A53: 240 | B53: NAIC.SSAP-5R | D53: 0 | F53: =VLOOKUP($B53,stats!$B$4:$Q$128,COLUMN(F53)-1,FALSE) -> 0 | G53: =VLOOKUP($B53,stats!$B$4:$Q$128,COLUMN(G53)-1,FALSE) -> 0 | H53: =VLOOKUP($B53,stats!$B$4:$Q$128,COLUMN(H53)-1,FALSE) -> 0 | I53: =VLOOKUP($B53,stats!$B$4:$Q$128,COLUMN(I53)-1,FALSE) -> 0 | J53: =VLOOKUP($B53,stats!$B$4:$Q$128,COLUMN(J53)-1,FALSE) -> 0 | K53: =VLOOKUP($B53,stats!$B$4:$Q$128,COLUMN(K53)-1,FALSE) -> 0 | L53: =VLOOKUP($B53,stats!$B$4:$Q$128,COLUMN(L53)-1,FALSE) -> 0 | M53: =VLOOKUP($B53,stats!$B$4:$Q$128,COLUMN(M53)-1,FALSE) -> 0 | N53: =VLOOKUP($B53,stats!$B$4:$Q$128,COLUMN(N53)-1,FALSE) -> 0 | O53: =VLOOKUP($B53,stats!$B$4:$Q$128,COLUMN(O53)-1,FALSE) -> 0 | P53: =VLOOKUP($B53,stats!$B$4:$Q$128,COLUMN(P53)-1,FALSE) -> 0 | Q53: =VLOOKUP($B53,stats!$B$4:$Q$128,COLUMN(Q53)-1,FALSE) -> 0 | S53: 0 | T53: 0 | V53: 50 | W53: 1 | Y53: 480 | Z53: NAIC.SSAP-5R | AA53: 50 | AB53: =SUM(T$4:T53) -> 0.9943597744 | AF53: | style='background-color: ;'| [[NAIC.SSAP-5R]] | AL53: 50 | AM53: 1 | AO53: =SUM(AJ$4:AJ53) -> 0
A54: 260 | B54: NAIC.SSAP-53 | D54: 0 | F54: =VLOOKUP($B54,stats!$B$4:$Q$128,COLUMN(F54)-1,FALSE) -> 0 | G54: =VLOOKUP($B54,stats!$B$4:$Q$128,COLUMN(G54)-1,FALSE) -> 0 | H54: =VLOOKUP($B54,stats!$B$4:$Q$128,COLUMN(H54)-1,FALSE) -> 0 | I54: =VLOOKUP($B54,stats!$B$4:$Q$128,COLUMN(I54)-1,FALSE) -> 0 | J54: =VLOOKUP($B54,stats!$B$4:$Q$128,COLUMN(J54)-1,FALSE) -> 0 | K54: =VLOOKUP($B54,stats!$B$4:$Q$128,COLUMN(K54)-1,FALSE) -> 0 | L54: =VLOOKUP($B54,stats!$B$4:$Q$128,COLUMN(L54)-1,FALSE) -> 0 | M54: =VLOOKUP($B54,stats!$B$4:$Q$128,COLUMN(M54)-1,FALSE) -> 0 | N54: =VLOOKUP($B54,stats!$B$4:$Q$128,COLUMN(N54)-1,FALSE) -> 0 | O54: =VLOOKUP($B54,stats!$B$4:$Q$128,COLUMN(O54)-1,FALSE) -> 0 | P54: =VLOOKUP($B54,stats!$B$4:$Q$128,COLUMN(P54)-1,FALSE) -> 0 | Q54: =VLOOKUP($B54,stats!$B$4:$Q$128,COLUMN(Q54)-1,FALSE) -> 0 | S54: 0 | T54: 0 | V54: 51 | W54: 1 | Y54: 490 | Z54: NAIC.SSAP-53 | AA54: 51 | AB54: =SUM(T$4:T54) -> 0.9943597744 | AF54: | style='background-color: ;'| [[NAIC.SSAP-53]] | AL54: 51 | AM54: 1 | AO54: =SUM(AJ$4:AJ54) -> 0
A55: 270 | B55: NAIC.SSAP-55 | D55: 0 | F55: =VLOOKUP($B55,stats!$B$4:$Q$128,COLUMN(F55)-1,FALSE) -> 0 | G55: =VLOOKUP($B55,stats!$B$4:$Q$128,COLUMN(G55)-1,FALSE) -> 0 | H55: =VLOOKUP($B55,stats!$B$4:$Q$128,COLUMN(H55)-1,FALSE) -> 0 | I55: =VLOOKUP($B55,stats!$B$4:$Q$128,COLUMN(I55)-1,FALSE) -> 0 | J55: =VLOOKUP($B55,stats!$B$4:$Q$128,COLUMN(J55)-1,FALSE) -> 0 | K55: =VLOOKUP($B55,stats!$B$4:$Q$128,COLUMN(K55)-1,FALSE) -> 0 | L55: =VLOOKUP($B55,stats!$B$4:$Q$128,COLUMN(L55)-1,FALSE) -> 0 | M55: =VLOOKUP($B55,stats!$B$4:$Q$128,COLUMN(M55)-1,FALSE) -> 0 | N55: =VLOOKUP($B55,stats!$B$4:$Q$128,COLUMN(N55)-1,FALSE) -> 0 | O55: =VLOOKUP($B55,stats!$B$4:$Q$128,COLUMN(O55)-1,FALSE) -> 0 | P55: =VLOOKUP($B55,stats!$B$4:$Q$128,COLUMN(P55)-1,FALSE) -> 0 | Q55: =VLOOKUP($B55,stats!$B$4:$Q$128,COLUMN(Q55)-1,FALSE) -> 0 | S55: 0 | T55: 0 | V55: 52 | W55: 1 | Y55: 500 | Z55: NAIC.SSAP-55 | AA55: 52 | AB55: =SUM(T$4:T55) -> 0.9943597744 | AF55: | style='background-color: ;'| [[NAIC.SSAP-55]] | AL55: 52 | AM55: 1 | AO55: =SUM(AJ$4:AJ55) -> 0
A56: 290 | B56: NAIC.SSAP-65 | D56: 0 | F56: =VLOOKUP($B56,stats!$B$4:$Q$128,COLUMN(F56)-1,FALSE) -> 0 | G56: =VLOOKUP($B56,stats!$B$4:$Q$128,COLUMN(G56)-1,FALSE) -> 0 | H56: =VLOOKUP($B56,stats!$B$4:$Q$128,COLUMN(H56)-1,FALSE) -> 0 | I56: =VLOOKUP($B56,stats!$B$4:$Q$128,COLUMN(I56)-1,FALSE) -> 0 | J56: =VLOOKUP($B56,stats!$B$4:$Q$128,COLUMN(J56)-1,FALSE) -> 0 | K56: =VLOOKUP($B56,stats!$B$4:$Q$128,COLUMN(K56)-1,FALSE) -> 0 | L56: =VLOOKUP($B56,stats!$B$4:$Q$128,COLUMN(L56)-1,FALSE) -> 0 | M56: =VLOOKUP($B56,stats!$B$4:$Q$128,COLUMN(M56)-1,FALSE) -> 0 | N56: =VLOOKUP($B56,stats!$B$4:$Q$128,COLUMN(N56)-1,FALSE) -> 0 | O56: =VLOOKUP($B56,stats!$B$4:$Q$128,COLUMN(O56)-1,FALSE) -> 0 | P56: =VLOOKUP($B56,stats!$B$4:$Q$128,COLUMN(P56)-1,FALSE) -> 0 | Q56: =VLOOKUP($B56,stats!$B$4:$Q$128,COLUMN(Q56)-1,FALSE) -> 3.5 | S56: 0 | T56: 0 | V56: 53 | W56: 1 | Y56: 510 | Z56: NAIC.SSAP-65 | AA56: 53 | AB56: =SUM(T$4:T56) -> 0.9943597744 | AF56: | style='background-color: ;'| [[NAIC.SSAP-65]] | AL56: 53 | AM56: 1 | AO56: =SUM(AJ$4:AJ56) -> 0
A57: 360 | B57: Odomirok.1-5-Intro | D57: 0 | F57: =VLOOKUP($B57,stats!$B$4:$Q$128,COLUMN(F57)-1,FALSE) -> 0 | G57: =VLOOKUP($B57,stats!$B$4:$Q$128,COLUMN(G57)-1,FALSE) -> 0 | H57: =VLOOKUP($B57,stats!$B$4:$Q$128,COLUMN(H57)-1,FALSE) -> 0 | I57: =VLOOKUP($B57,stats!$B$4:$Q$128,COLUMN(I57)-1,FALSE) -> 0 | J57: =VLOOKUP($B57,stats!$B$4:$Q$128,COLUMN(J57)-1,FALSE) -> 0 | K57: =VLOOKUP($B57,stats!$B$4:$Q$128,COLUMN(K57)-1,FALSE) -> 0 | L57: =VLOOKUP($B57,stats!$B$4:$Q$128,COLUMN(L57)-1,FALSE) -> 0 | M57: =VLOOKUP($B57,stats!$B$4:$Q$128,COLUMN(M57)-1,FALSE) -> 0 | N57: =VLOOKUP($B57,stats!$B$4:$Q$128,COLUMN(N57)-1,FALSE) -> 0 | O57: =VLOOKUP($B57,stats!$B$4:$Q$128,COLUMN(O57)-1,FALSE) -> 0 | P57: =VLOOKUP($B57,stats!$B$4:$Q$128,COLUMN(P57)-1,FALSE) -> 0 | Q57: =VLOOKUP($B57,stats!$B$4:$Q$128,COLUMN(Q57)-1,FALSE) -> 0 | S57: 0 | T57: 0 | V57: 54 | W57: 1 | Y57: 540 | Z57: Odomirok.1-5-Intro | AA57: 54 | AB57: =SUM(T$4:T57) -> 0.9943597744 | AF57: | style='background-color: ;'| [[Odomirok.1-5-Intro]] | AL57: 54 | AM57: 1 | AO57: =SUM(AJ$4:AJ57) -> 0
A58: 400 | B58: Odomirok.11-GenInt | D58: 0 | F58: =VLOOKUP($B58,stats!$B$4:$Q$128,COLUMN(F58)-1,FALSE) -> 0 | G58: =VLOOKUP($B58,stats!$B$4:$Q$128,COLUMN(G58)-1,FALSE) -> 0 | H58: =VLOOKUP($B58,stats!$B$4:$Q$128,COLUMN(H58)-1,FALSE) -> 0 | I58: =VLOOKUP($B58,stats!$B$4:$Q$128,COLUMN(I58)-1,FALSE) -> 0 | J58: =VLOOKUP($B58,stats!$B$4:$Q$128,COLUMN(J58)-1,FALSE) -> 0 | K58: =VLOOKUP($B58,stats!$B$4:$Q$128,COLUMN(K58)-1,FALSE) -> 0 | L58: =VLOOKUP($B58,stats!$B$4:$Q$128,COLUMN(L58)-1,FALSE) -> 0 | M58: =VLOOKUP($B58,stats!$B$4:$Q$128,COLUMN(M58)-1,FALSE) -> 0 | N58: =VLOOKUP($B58,stats!$B$4:$Q$128,COLUMN(N58)-1,FALSE) -> 0 | O58: =VLOOKUP($B58,stats!$B$4:$Q$128,COLUMN(O58)-1,FALSE) -> 0 | P58: =VLOOKUP($B58,stats!$B$4:$Q$128,COLUMN(P58)-1,FALSE) -> 0 | Q58: =VLOOKUP($B58,stats!$B$4:$Q$128,COLUMN(Q58)-1,FALSE) -> 0 | S58: 0 | T58: 0 | V58: 55 | W58: 1 | Y58: 550 | Z58: Odomirok.11-GenInt | AA58: 55 | AB58: =SUM(T$4:T58) -> 0.9943597744 | AD58: =SUM(T58:T63) -> 0 | AF58: | style='background-color: ;'| [[Odomirok.11-GenInt]] | AL58: 55 | AM58: 1 | AO58: =SUM(AJ$4:AJ58) -> 0 | AQ58: =SUM(AJ58:AJ63) -> 0
A59: 420 | B59: Odomirok.13 | D59: 0 | F59: =VLOOKUP($B59,stats!$B$4:$Q$128,COLUMN(F59)-1,FALSE) -> 0 | G59: =VLOOKUP($B59,stats!$B$4:$Q$128,COLUMN(G59)-1,FALSE) -> 0 | H59: =VLOOKUP($B59,stats!$B$4:$Q$128,COLUMN(H59)-1,FALSE) -> 0 | I59: =VLOOKUP($B59,stats!$B$4:$Q$128,COLUMN(I59)-1,FALSE) -> 0 | J59: =VLOOKUP($B59,stats!$B$4:$Q$128,COLUMN(J59)-1,FALSE) -> 0 | K59: =VLOOKUP($B59,stats!$B$4:$Q$128,COLUMN(K59)-1,FALSE) -> 0 | L59: =VLOOKUP($B59,stats!$B$4:$Q$128,COLUMN(L59)-1,FALSE) -> 0 | M59: =VLOOKUP($B59,stats!$B$4:$Q$128,COLUMN(M59)-1,FALSE) -> 0 | N59: =VLOOKUP($B59,stats!$B$4:$Q$128,COLUMN(N59)-1,FALSE) -> 0 | O59: =VLOOKUP($B59,stats!$B$4:$Q$128,COLUMN(O59)-1,FALSE) -> 0 | P59: =VLOOKUP($B59,stats!$B$4:$Q$128,COLUMN(P59)-1,FALSE) -> 0 | Q59: =VLOOKUP($B59,stats!$B$4:$Q$128,COLUMN(Q59)-1,FALSE) -> 0 | S59: 0 | T59: 0 | V59: 56 | W59: 1 | Y59: 560 | Z59: Odomirok.13 | AA59: 56 | AB59: =SUM(T$4:T59) -> 0.9943597744 | AF59: | style='background-color: ;'| [[Odomirok.13]] | AL59: 56 | AM59: 1 | AO59: =SUM(AJ$4:AJ59) -> 0
A60: 480 | B60: Odomirok.20-IRIS | D60: 0 | F60: =VLOOKUP($B60,stats!$B$4:$Q$128,COLUMN(F60)-1,FALSE) -> 0 | G60: =VLOOKUP($B60,stats!$B$4:$Q$128,COLUMN(G60)-1,FALSE) -> 0 | H60: =VLOOKUP($B60,stats!$B$4:$Q$128,COLUMN(H60)-1,FALSE) -> 0 | I60: =VLOOKUP($B60,stats!$B$4:$Q$128,COLUMN(I60)-1,FALSE) -> 0 | J60: =VLOOKUP($B60,stats!$B$4:$Q$128,COLUMN(J60)-1,FALSE) -> 0 | K60: =VLOOKUP($B60,stats!$B$4:$Q$128,COLUMN(K60)-1,FALSE) -> 0 | L60: =VLOOKUP($B60,stats!$B$4:$Q$128,COLUMN(L60)-1,FALSE) -> 0 | M60: =VLOOKUP($B60,stats!$B$4:$Q$128,COLUMN(M60)-1,FALSE) -> 0 | N60: =VLOOKUP($B60,stats!$B$4:$Q$128,COLUMN(N60)-1,FALSE) -> 0 | O60: =VLOOKUP($B60,stats!$B$4:$Q$128,COLUMN(O60)-1,FALSE) -> 0 | P60: =VLOOKUP($B60,stats!$B$4:$Q$128,COLUMN(P60)-1,FALSE) -> 0 | Q60: =VLOOKUP($B60,stats!$B$4:$Q$128,COLUMN(Q60)-1,FALSE) -> 0 | S60: 0 | T60: 0 | V60: 57 | W60: 1 | Y60: 580 | Z60: Odomirok.20-IRIS | AA60: 57 | AB60: =SUM(T$4:T60) -> 0.9943597744 | AF60: | style='background-color: ;'| [[Odomirok.20-IRIS]] | AL60: 57 | AM60: 1 | AO60: =SUM(AJ$4:AJ60) -> 0
A61: 490 | B61: Odomirok.21-Tools | D61: 0 | F61: =VLOOKUP($B61,stats!$B$4:$Q$128,COLUMN(F61)-1,FALSE) -> 0 | G61: =VLOOKUP($B61,stats!$B$4:$Q$128,COLUMN(G61)-1,FALSE) -> 0 | H61: =VLOOKUP($B61,stats!$B$4:$Q$128,COLUMN(H61)-1,FALSE) -> 0 | I61: =VLOOKUP($B61,stats!$B$4:$Q$128,COLUMN(I61)-1,FALSE) -> 0 | J61: =VLOOKUP($B61,stats!$B$4:$Q$128,COLUMN(J61)-1,FALSE) -> 0 | K61: =VLOOKUP($B61,stats!$B$4:$Q$128,COLUMN(K61)-1,FALSE) -> 0 | L61: =VLOOKUP($B61,stats!$B$4:$Q$128,COLUMN(L61)-1,FALSE) -> 0 | M61: =VLOOKUP($B61,stats!$B$4:$Q$128,COLUMN(M61)-1,FALSE) -> 0 | N61: =VLOOKUP($B61,stats!$B$4:$Q$128,COLUMN(N61)-1,FALSE) -> 0 | O61: =VLOOKUP($B61,stats!$B$4:$Q$128,COLUMN(O61)-1,FALSE) -> 0 | P61: =VLOOKUP($B61,stats!$B$4:$Q$128,COLUMN(P61)-1,FALSE) -> 0 | Q61: =VLOOKUP($B61,stats!$B$4:$Q$128,COLUMN(Q61)-1,FALSE) -> 0 | S61: 0 | T61: 0 | V61: 58 | W61: 1 | Y61: 590 | Z61: Odomirok.21-Tools | AA61: 58 | AB61: =SUM(T$4:T61) -> 0.9943597744 | AF61: | style='background-color: ;'| [[Odomirok.21-Tools]] | AL61: 58 | AM61: 1 | AO61: =SUM(AJ$4:AJ61) -> 0
A62: 510 | B62: Odomirok.24-IFRS | D62: 0 | F62: =VLOOKUP($B62,stats!$B$4:$Q$128,COLUMN(F62)-1,FALSE) -> 0 | G62: =VLOOKUP($B62,stats!$B$4:$Q$128,COLUMN(G62)-1,FALSE) -> 0 | H62: =VLOOKUP($B62,stats!$B$4:$Q$128,COLUMN(H62)-1,FALSE) -> 0 | I62: =VLOOKUP($B62,stats!$B$4:$Q$128,COLUMN(I62)-1,FALSE) -> 0 | J62: =VLOOKUP($B62,stats!$B$4:$Q$128,COLUMN(J62)-1,FALSE) -> 0 | K62: =VLOOKUP($B62,stats!$B$4:$Q$128,COLUMN(K62)-1,FALSE) -> 0 | L62: =VLOOKUP($B62,stats!$B$4:$Q$128,COLUMN(L62)-1,FALSE) -> 0 | M62: =VLOOKUP($B62,stats!$B$4:$Q$128,COLUMN(M62)-1,FALSE) -> 0 | N62: =VLOOKUP($B62,stats!$B$4:$Q$128,COLUMN(N62)-1,FALSE) -> 0 | O62: =VLOOKUP($B62,stats!$B$4:$Q$128,COLUMN(O62)-1,FALSE) -> 0 | P62: =VLOOKUP($B62,stats!$B$4:$Q$128,COLUMN(P62)-1,FALSE) -> 0 | Q62: =VLOOKUP($B62,stats!$B$4:$Q$128,COLUMN(Q62)-1,FALSE) -> 0 | S62: 0 | T62: 0 | V62: 59 | W62: 1 | Y62: 600 | Z62: Odomirok.24-IFRS | AA62: 59 | AB62: =SUM(T$4:T62) -> 0.9943597744 | AF62: | style='background-color: ;'| [[Odomirok.24-IFRS]] | AL62: 59 | AM62: 1 | AO62: =SUM(AJ$4:AJ62) -> 0
A63: 540 | B63: Odomirok.30-Future | D63: 0 | F63: =VLOOKUP($B63,stats!$B$4:$Q$128,COLUMN(F63)-1,FALSE) -> 0 | G63: =VLOOKUP($B63,stats!$B$4:$Q$128,COLUMN(G63)-1,FALSE) -> 0 | H63: =VLOOKUP($B63,stats!$B$4:$Q$128,COLUMN(H63)-1,FALSE) -> 0 | I63: =VLOOKUP($B63,stats!$B$4:$Q$128,COLUMN(I63)-1,FALSE) -> 0 | J63: =VLOOKUP($B63,stats!$B$4:$Q$128,COLUMN(J63)-1,FALSE) -> 0 | K63: =VLOOKUP($B63,stats!$B$4:$Q$128,COLUMN(K63)-1,FALSE) -> 0 | L63: =VLOOKUP($B63,stats!$B$4:$Q$128,COLUMN(L63)-1,FALSE) -> 0 | M63: =VLOOKUP($B63,stats!$B$4:$Q$128,COLUMN(M63)-1,FALSE) -> 0 | N63: =VLOOKUP($B63,stats!$B$4:$Q$128,COLUMN(N63)-1,FALSE) -> 0 | O63: =VLOOKUP($B63,stats!$B$4:$Q$128,COLUMN(O63)-1,FALSE) -> 0 | P63: =VLOOKUP($B63,stats!$B$4:$Q$128,COLUMN(P63)-1,FALSE) -> 0 | Q63: =VLOOKUP($B63,stats!$B$4:$Q$128,COLUMN(Q63)-1,FALSE) -> 0 | S63: 0 | T63: 0 | V63: 60 | W63: 1 | Y63: 610 | Z63: Odomirok.30-Future | AA63: 60 | AB63: =SUM(T$4:T63) -> 0.9943597744 | AF63: | style='background-color: ;'| [[Odomirok.30-Future]] | AL63: 60 | AM63: 1 | AO63: =SUM(AJ$4:AJ63) -> 0
A64: 600 | B64: Porter.6-Formation | D64: 0 | F64: =VLOOKUP($B64,stats!$B$4:$Q$128,COLUMN(F64)-1,FALSE) -> 0 | G64: =VLOOKUP($B64,stats!$B$4:$Q$128,COLUMN(G64)-1,FALSE) -> 0 | H64: =VLOOKUP($B64,stats!$B$4:$Q$128,COLUMN(H64)-1,FALSE) -> 0 | I64: =VLOOKUP($B64,stats!$B$4:$Q$128,COLUMN(I64)-1,FALSE) -> 0 | J64: =VLOOKUP($B64,stats!$B$4:$Q$128,COLUMN(J64)-1,FALSE) -> 0 | K64: =VLOOKUP($B64,stats!$B$4:$Q$128,COLUMN(K64)-1,FALSE) -> 0 | L64: =VLOOKUP($B64,stats!$B$4:$Q$128,COLUMN(L64)-1,FALSE) -> 0 | M64: =VLOOKUP($B64,stats!$B$4:$Q$128,COLUMN(M64)-1,FALSE) -> 0 | N64: =VLOOKUP($B64,stats!$B$4:$Q$128,COLUMN(N64)-1,FALSE) -> 0 | O64: =VLOOKUP($B64,stats!$B$4:$Q$128,COLUMN(O64)-1,FALSE) -> 0 | P64: =VLOOKUP($B64,stats!$B$4:$Q$128,COLUMN(P64)-1,FALSE) -> 0 | Q64: =VLOOKUP($B64,stats!$B$4:$Q$128,COLUMN(Q64)-1,FALSE) -> 0 | S64: 0 | T64: 0 | V64: 61 | W64: 1 | Y64: 620 | Z64: Porter.6-Formation | AA64: 61 | AB64: =SUM(T$4:T64) -> 0.9943597744 | AD64: =SUM(T64:T69) -> 0 | AF64: | style='background-color: ;'| [[Porter.6-Formation]] | AL64: 61 | AM64: 1 | AO64: =SUM(AJ$4:AJ64) -> 0 | AQ64: =SUM(AJ64:AJ69) -> 0
A65: 10 | B65: IEE.2016 | D65: 0 | F65: =VLOOKUP($B65,stats!$B$4:$Q$128,COLUMN(F65)-1,FALSE) -> 0 | G65: =VLOOKUP($B65,stats!$B$4:$Q$128,COLUMN(G65)-1,FALSE) -> 0 | H65: =VLOOKUP($B65,stats!$B$4:$Q$128,COLUMN(H65)-1,FALSE) -> 0 | I65: =VLOOKUP($B65,stats!$B$4:$Q$128,COLUMN(I65)-1,FALSE) -> 0 | J65: =VLOOKUP($B65,stats!$B$4:$Q$128,COLUMN(J65)-1,FALSE) -> 0 | K65: =VLOOKUP($B65,stats!$B$4:$Q$128,COLUMN(K65)-1,FALSE) -> 0 | L65: =VLOOKUP($B65,stats!$B$4:$Q$128,COLUMN(L65)-1,FALSE) -> 0 | M65: =VLOOKUP($B65,stats!$B$4:$Q$128,COLUMN(M65)-1,FALSE) -> 0 | N65: =VLOOKUP($B65,stats!$B$4:$Q$128,COLUMN(N65)-1,FALSE) -> 0 | O65: =VLOOKUP($B65,stats!$B$4:$Q$128,COLUMN(O65)-1,FALSE) -> 0 | P65: =VLOOKUP($B65,stats!$B$4:$Q$128,COLUMN(P65)-1,FALSE) -> 0 | Q65: =VLOOKUP($B65,stats!$B$4:$Q$128,COLUMN(Q65)-1,FALSE) -> 0 | S65: 0 | T65: 0 | V65: 62 | W65: 1 | Y65: 623 | Z65: IEE.2016 | AA65: 62 | AB65: =SUM(T$4:T65) -> 0.9943597744 | AF65: | style='background-color: ;'| [[IEE.2016]] | AL65: 62 | AM65: 1 | AO65: =SUM(AJ$4:AJ65) -> 0
A66: 310 | B66: NAIC.Annual | D66: 0 | F66: =VLOOKUP($B66,stats!$B$4:$Q$128,COLUMN(F66)-1,FALSE) -> 0 | G66: =VLOOKUP($B66,stats!$B$4:$Q$128,COLUMN(G66)-1,FALSE) -> 0 | H66: =VLOOKUP($B66,stats!$B$4:$Q$128,COLUMN(H66)-1,FALSE) -> 0 | I66: =VLOOKUP($B66,stats!$B$4:$Q$128,COLUMN(I66)-1,FALSE) -> 0 | J66: =VLOOKUP($B66,stats!$B$4:$Q$128,COLUMN(J66)-1,FALSE) -> 0 | K66: =VLOOKUP($B66,stats!$B$4:$Q$128,COLUMN(K66)-1,FALSE) -> 0 | L66: =VLOOKUP($B66,stats!$B$4:$Q$128,COLUMN(L66)-1,FALSE) -> 0 | M66: =VLOOKUP($B66,stats!$B$4:$Q$128,COLUMN(M66)-1,FALSE) -> 0 | N66: =VLOOKUP($B66,stats!$B$4:$Q$128,COLUMN(N66)-1,FALSE) -> 0 | O66: =VLOOKUP($B66,stats!$B$4:$Q$128,COLUMN(O66)-1,FALSE) -> 0 | P66: =VLOOKUP($B66,stats!$B$4:$Q$128,COLUMN(P66)-1,FALSE) -> 0 | Q66: =VLOOKUP($B66,stats!$B$4:$Q$128,COLUMN(Q66)-1,FALSE) -> 0 | S66: 0 | T66: 0 | V66: 63 | W66: 1 | Y66: 625 | Z66: NAIC.Annual | AA66: 63 | AB66: =SUM(T$4:T66) -> 0.9943597744 | AF66: | style='background-color: ;'| [[NAIC.Annual]] | AL66: 63 | AM66: 1 | AO66: =SUM(AJ$4:AJ66) -> 0
A67: 320 | B67: NAIC.AnnualExs | D67: 0 | F67: =VLOOKUP($B67,stats!$B$4:$Q$128,COLUMN(F67)-1,FALSE) -> 0 | G67: =VLOOKUP($B67,stats!$B$4:$Q$128,COLUMN(G67)-1,FALSE) -> 0 | H67: =VLOOKUP($B67,stats!$B$4:$Q$128,COLUMN(H67)-1,FALSE) -> 0 | I67: =VLOOKUP($B67,stats!$B$4:$Q$128,COLUMN(I67)-1,FALSE) -> 0 | J67: =VLOOKUP($B67,stats!$B$4:$Q$128,COLUMN(J67)-1,FALSE) -> 0 | K67: =VLOOKUP($B67,stats!$B$4:$Q$128,COLUMN(K67)-1,FALSE) -> 0 | L67: =VLOOKUP($B67,stats!$B$4:$Q$128,COLUMN(L67)-1,FALSE) -> 0 | M67: =VLOOKUP($B67,stats!$B$4:$Q$128,COLUMN(M67)-1,FALSE) -> 0 | N67: =VLOOKUP($B67,stats!$B$4:$Q$128,COLUMN(N67)-1,FALSE) -> 0 | O67: =VLOOKUP($B67,stats!$B$4:$Q$128,COLUMN(O67)-1,FALSE) -> 0 | P67: =VLOOKUP($B67,stats!$B$4:$Q$128,COLUMN(P67)-1,FALSE) -> 0 | Q67: =VLOOKUP($B67,stats!$B$4:$Q$128,COLUMN(Q67)-1,FALSE) -> 0 | S67: 0 | T67: 0 | V67: 64 | W67: 1 | Y67: 630 | Z67: NAIC.AnnualExs | AA67: 64 | AF67: | style='background-color: ;'| [[NAIC.AnnualExs]] | AL67: 64 | AM67: 1 | AO67: =SUM(AJ$4:AJ67) -> 0
A68: 670 | B68: outdated. | C68: 0 | D68: 0 | F68: =VLOOKUP($B68,stats!$B$4:$Q$128,COLUMN(F68)-1,FALSE) -> 0 | G68: =VLOOKUP($B68,stats!$B$4:$Q$128,COLUMN(G68)-1,FALSE) -> 0 | H68: =VLOOKUP($B68,stats!$B$4:$Q$128,COLUMN(H68)-1,FALSE) -> 0 | I68: =VLOOKUP($B68,stats!$B$4:$Q$128,COLUMN(I68)-1,FALSE) -> 0 | J68: =VLOOKUP($B68,stats!$B$4:$Q$128,COLUMN(J68)-1,FALSE) -> 0 | K68: =VLOOKUP($B68,stats!$B$4:$Q$128,COLUMN(K68)-1,FALSE) -> 0 | L68: =VLOOKUP($B68,stats!$B$4:$Q$128,COLUMN(L68)-1,FALSE) -> 0 | M68: =VLOOKUP($B68,stats!$B$4:$Q$128,COLUMN(M68)-1,FALSE) -> 9 | N68: =VLOOKUP($B68,stats!$B$4:$Q$128,COLUMN(N68)-1,FALSE) -> 8.25 | O68: =VLOOKUP($B68,stats!$B$4:$Q$128,COLUMN(O68)-1,FALSE) -> 12.5 | P68: =VLOOKUP($B68,stats!$B$4:$Q$128,COLUMN(P68)-1,FALSE) -> 11.75 | Q68: =VLOOKUP($B68,stats!$B$4:$Q$128,COLUMN(Q68)-1,FALSE) -> 18.5 | S68: 0 | T68: 0 | V68: 65 | W68: 0 | Y68: 740 | Z68: outdated. | AA68: 65
A69: 680 | B69: unknown. | C69: 0 | D69: 0 | F69: =VLOOKUP($B69,stats!$B$4:$Q$128,COLUMN(F69)-1,FALSE) -> 0 | G69: =VLOOKUP($B69,stats!$B$4:$Q$128,COLUMN(G69)-1,FALSE) -> 0 | H69: =VLOOKUP($B69,stats!$B$4:$Q$128,COLUMN(H69)-1,FALSE) -> 0 | I69: =VLOOKUP($B69,stats!$B$4:$Q$128,COLUMN(I69)-1,FALSE) -> 0 | J69: =VLOOKUP($B69,stats!$B$4:$Q$128,COLUMN(J69)-1,FALSE) -> 0 | K69: =VLOOKUP($B69,stats!$B$4:$Q$128,COLUMN(K69)-1,FALSE) -> 4.75 | L69: =VLOOKUP($B69,stats!$B$4:$Q$128,COLUMN(L69)-1,FALSE) -> 5.75 | M69: =VLOOKUP($B69,stats!$B$4:$Q$128,COLUMN(M69)-1,FALSE) -> 0 | N69: =VLOOKUP($B69,stats!$B$4:$Q$128,COLUMN(N69)-1,FALSE) -> 0 | O69: =VLOOKUP($B69,stats!$B$4:$Q$128,COLUMN(O69)-1,FALSE) -> 0 | P69: =VLOOKUP($B69,stats!$B$4:$Q$128,COLUMN(P69)-1,FALSE) -> 0 | Q69: =VLOOKUP($B69,stats!$B$4:$Q$128,COLUMN(Q69)-1,FALSE) -> 0 | S69: 0 | T69: 0 | V69: 66 | W69: 0 | Y69: 750 | Z69: unknown. | AA69: 66
A70: 110 | B70: Feldblum.Discount | D70: 0 | F70: =VLOOKUP($B70,stats!$B$4:$Q$128,COLUMN(F70)-1,FALSE) -> 0 | G70: =VLOOKUP($B70,stats!$B$4:$Q$128,COLUMN(G70)-1,FALSE) -> 0 | H70: =VLOOKUP($B70,stats!$B$4:$Q$128,COLUMN(H70)-1,FALSE) -> 0 | I70: =VLOOKUP($B70,stats!$B$4:$Q$128,COLUMN(I70)-1,FALSE) -> 2.25 | J70: =VLOOKUP($B70,stats!$B$4:$Q$128,COLUMN(J70)-1,FALSE) -> 0 | K70: =VLOOKUP($B70,stats!$B$4:$Q$128,COLUMN(K70)-1,FALSE) -> 0 | L70: =VLOOKUP($B70,stats!$B$4:$Q$128,COLUMN(L70)-1,FALSE) -> 0 | M70: =VLOOKUP($B70,stats!$B$4:$Q$128,COLUMN(M70)-1,FALSE) -> 0 | N70: =VLOOKUP($B70,stats!$B$4:$Q$128,COLUMN(N70)-1,FALSE) -> 2.75 | O70: =VLOOKUP($B70,stats!$B$4:$Q$128,COLUMN(O70)-1,FALSE) -> 0 | P70: =VLOOKUP($B70,stats!$B$4:$Q$128,COLUMN(P70)-1,FALSE) -> 0 | Q70: =VLOOKUP($B70,stats!$B$4:$Q$128,COLUMN(Q70)-1,FALSE) -> 0 | S70: 2.9375 | T70: 0.005640225609 | V70: 67 | W70: 0 | Y70: 752 | Z70: Feldblum.Discount | AA70: 67
A71: 175 | B71: Horn.Flood | C71: 86 | D71: 0.26625387 | F71: =VLOOKUP($B71,stats!$B$4:$Q$128,COLUMN(F71)-1,FALSE) -> 2.5 | G71: =VLOOKUP($B71,stats!$B$4:$Q$128,COLUMN(G71)-1,FALSE) -> 0 | H71: =VLOOKUP($B71,stats!$B$4:$Q$128,COLUMN(H71)-1,FALSE) -> 0 | I71: =VLOOKUP($B71,stats!$B$4:$Q$128,COLUMN(I71)-1,FALSE) -> 0 | J71: =VLOOKUP($B71,stats!$B$4:$Q$128,COLUMN(J71)-1,FALSE) -> 0 | K71: =VLOOKUP($B71,stats!$B$4:$Q$128,COLUMN(K71)-1,FALSE) -> 0 | L71: =VLOOKUP($B71,stats!$B$4:$Q$128,COLUMN(L71)-1,FALSE) -> 0 | M71: =VLOOKUP($B71,stats!$B$4:$Q$128,COLUMN(M71)-1,FALSE) -> 0 | N71: =VLOOKUP($B71,stats!$B$4:$Q$128,COLUMN(N71)-1,FALSE) -> 0 | O71: =VLOOKUP($B71,stats!$B$4:$Q$128,COLUMN(O71)-1,FALSE) -> 0 | P71: =VLOOKUP($B71,stats!$B$4:$Q$128,COLUMN(P71)-1,FALSE) -> 0 | Q71: =VLOOKUP($B71,stats!$B$4:$Q$128,COLUMN(Q71)-1,FALSE) -> 0 | S71: 0 | T71: 0 | V71: 68 | W71: 0 | Y71: 755 | Z71: Horn.Flood | AA71: 68
A72: 190 | B72: King.Flood | D72: 0 | F72: =VLOOKUP($B72,stats!$B$4:$Q$128,COLUMN(F72)-1,FALSE) -> 0 | G72: =VLOOKUP($B72,stats!$B$4:$Q$128,COLUMN(G72)-1,FALSE) -> 0 | H72: =VLOOKUP($B72,stats!$B$4:$Q$128,COLUMN(H72)-1,FALSE) -> 2.75 | I72: =VLOOKUP($B72,stats!$B$4:$Q$128,COLUMN(I72)-1,FALSE) -> 1 | J72: =VLOOKUP($B72,stats!$B$4:$Q$128,COLUMN(J72)-1,FALSE) -> 2.5 | K72: =VLOOKUP($B72,stats!$B$4:$Q$128,COLUMN(K72)-1,FALSE) -> 2.25 | L72: =VLOOKUP($B72,stats!$B$4:$Q$128,COLUMN(L72)-1,FALSE) -> 2 | M72: =VLOOKUP($B72,stats!$B$4:$Q$128,COLUMN(M72)-1,FALSE) -> 2 | N72: =VLOOKUP($B72,stats!$B$4:$Q$128,COLUMN(N72)-1,FALSE) -> 2.25 | O72: =VLOOKUP($B72,stats!$B$4:$Q$128,COLUMN(O72)-1,FALSE) -> 0 | P72: =VLOOKUP($B72,stats!$B$4:$Q$128,COLUMN(P72)-1,FALSE) -> 1.75 | Q72: =VLOOKUP($B72,stats!$B$4:$Q$128,COLUMN(Q72)-1,FALSE) -> 0 | S72: 0 | T72: 0 | V72: 69 | W72: 0 | Y72: 760 | Z72: King.Flood | AA72: 69
B81: AAA.Materiality | C81: =IF(B81=B80,"xxxx","") -> 
B82: ASOP.20 | C82: =IF(B82=B81,"xxxx","") -> 
B83: ASOP.36
B84: ASOP.41
B85: ASOP.43
B86: Baribeau.Regs
B87: BK.Reins
B88: Cook.Personal
B89: COPLFR.SAO
B90: Dearie.Surplus
B91: FASB.944
B92: Feldblum.Discount
B93: Feldblum.Ratings
B94: Feldblum.Surplus
B95: Freihaut.Reins
B96: GAO.Report
B97: Germani.GovtIns
B98: Horn.Flood
B99: Horn2018.Flood
B100: IEE.2016
B101: King.Flood
B102: Klann.ReinsComm
B103: Kucera.Credit
B104: McCarty.Credit
B105: NAIC.Annual
B106: NAIC.AnnualExs
B107: NAIC.APPM
B108: NAIC.IRIS
B109: NAIC.Price
B110: NAIC.Solvency
B111: NAIC.SSAP-53
B112: NAIC.SSAP-55
B113: NAIC.SSAP-5R
B114: NAIC.SSAP-62R
B115: NAIC.SSAP-65
B116: NAIC.SSAP-9
B117: NAIC.Telematics
B118: Odomirok.10-Notes
B119: Odomirok.11-GenInt
B120: Odomirok.11-GenInt | C120: xxxx
B121: Odomirok.12-5yr
B122: Odomirok.12-5yr | C122: xxxx
B123: Odomirok.13
B124: Odomirok.13 | C124: xxxx
B125: Odomirok.14-F
B126: Odomirok.1-5-Intro
B127: Odomirok.15-P
B128: Odomirok.16-17-SAO
B129: Odomirok.18-IEE
B130: Odomirok.19-RBC
B131: Odomirok.20-IRIS
B132: Odomirok.20-IRIS | C132: xxxx
B133: Odomirok.21-Tools
B134: Odomirok.21-Tools | C134: xxxx
B135: Odomirok.22-23-GAAP
B136: Odomirok.24-IFRS
B137: Odomirok.24-IFRS | C137: xxxx
B138: Odomirok.25-Solv2
B139: Odomirok.26-Taxes
B140: Odomirok.30-Future
B141: Odomirok.30-Future | C141: xxxx
B142: Odomirok.6-7-BS
B143: Odomirok.8-9-IS
B144: outdated.
B145: Porter.12-Insolvency
B146: Porter.2-Devlpt | C146: =IF(B146=B145,"xxxx","") -> 
B147: Porter.3-Roles-Fed
B148: Porter.4-Roles-State
B149: Porter.5-Opns-State
B150: Porter.6-Formation
B151: Porter.8-Rates
B152: Porter.Reg-2
B153: unknown.
B154: Vaughan.Crisis
B155: Webel.TRIA-1
B156: Webel.TRIA-2

Sheet FCs
A1: lookup | B1: dates | C1: record | D1: S | E1: myID | F1: paperPrefix | G1: paperSuffix | H1: section | I1: subSection | J1: numID1 | K1: numID2 | L1: flag | M1: question | N1: answer | O1: hint | P1: tag1 | Q1: tag2 | R1: tag3 | S1: tag4 | T1: examFlag | U1: examRep | V1: examYear | W1: examTerm | X1: examQnum | Y1: examQletter | Z1: examQsub | AA1: examQpoints | AB1: W | AC1: E | AD1: T | AE1: WE1/2T | AF1: rank | AG1: s01_rank | AH1: s02_day | AI1: s03_blank | AJ1: s04_calc | AK1: s05_calcRef | AL1: s_06_fade | AM1: s_07_Boot1 | AN1: s_08_Boot2 | AO1: s_09_BQ1 | AP1: s_10_BQ2 | AQ1: COPLFR-ordering | AR1: select12 | AS1: select13 | AT1: select14 | AU1: select15 | AV1: select16 | AW1: random | AX1: FutDev01 | AY1: FutDev02 | AZ1: FutDev03 | BA1: FutDev04 | BB1: FutDev05 | BC1: FutDev06 | BD1: FutDev07 | BE1: FutDev08 | BF1: FutDev09 | BG1: FutDev10 | BH1: FutDev11 | BI1: FutDev12 | BJ1: FutDev13 | BK1: FutDev14 | BL1: FutDev15 | BM1: FutDev16 | BN1: xxx
A2: IEE.2016 | B2: x | E2: =VLOOKUP(F2&"."&G2,syllabus!B$3:I$130,8,FALSE)&RIGHT("00000"&J2,5) -> 1000100 | F2: IEE | G2: 2016 | H2: IEE.2016: All | I2: -- | J2: 100 | M2: =A2&": All" -> IEE.2016: All | P2: -- | R2: info | U2: 0 | AB2: =IF(R2="info","",IFERROR(VLOOKUP(F2&"."&G2,rank.19F!B$3:W$120,22,FALSE)*IF(P2="calc",rank!$AA$2,1),0)) ->  | AC2: =IFERROR(IF(P2="--","",MAX(1+LEN(N2)-LEN(SUBSTITUTE(N2,"|",""))+1+LEN(N2)-LEN(SUBSTITUTE(N2,"~","")),INT(LEN(N2)/64)+1))*IFERROR(RIGHT(Q2,2)/2,1),"") ->  | AD2: =IFERROR(VLOOKUP(R2,SYSTEM!B$4:C$79,2,FALSE),0) -> 0 | AE2: =IF(AND(S2="dup",P2<>"calc"),0,IFERROR(AB2*SQRT(AC2)*VLOOKUP(LEFT(R2,6),SYSTEM!K$19:L$128,2,FALSE),0))*IF(AJ2="CP",4,1) -> 0 | AF2: =VLOOKUP(A2,rank.19F!B$3:V$120,21,FALSE) -> 62 | AG2: =AF2 -> 62 | AH2: =IFERROR(VLOOKUP(H2&I2,#REF!,7,FALSE),999) -> 999 | AI2: xxx | AJ2: xxx | AK2: xxx | AL2: =IF(P2="calc",0.0002/2,0.001/2) -> 0.0005 | AM2: x | AO2: xxxx
A3: IEE.2016 | E3: =VLOOKUP(F3&"."&G3,syllabus!B$3:I$99,8,FALSE)&RIGHT("00000"&J3,5) -> 1000200 | F3: IEE | G3: 2016 | H3: IEE.2016: All | I3: BC | J3: 200 | M3: BC: | P3: concept | R3: F | U3: 0 | AB3: 1 | AC3: 2 | AD3: 0 | AE3: 0 | AF3: 62 | AG3: 62 | AH3: 999 | AL3: 0.0005 | AM3: x | AO3: xxxx
A4: IEE.2016 | E4: =VLOOKUP(F4&"."&G4,syllabus!B$3:I$99,8,FALSE)&RIGHT("00000"&J4,5) -> 1000300 | F4: IEE | G4: 2016 | H4: IEE.2016: All | I4: BC | J4: 300 | M4: BC: | P4: concept | R4: F | U4: 0 | AB4: 1 | AC4: 2 | AD4: 0 | AE4: 0 | AF4: 62 | AG4: 62 | AH4: 999 | AL4: 0.0005 | AM4: x | AO4: xxxx
A5: IEE.2016 | E5: =VLOOKUP(F5&"."&G5,syllabus!B$3:I$99,8,FALSE)&RIGHT("00000"&J5,5) -> 1000400 | F5: IEE | G5: 2016 | H5: IEE.2016: All | I5: BC | J5: 400 | M5: BC: | P5: concept | R5: F | U5: 0 | AB5: 1 | AC5: 2 | AD5: 0 | AE5: 0 | AF5: 62 | AG5: 62 | AH5: 999 | AL5: 0.0005 | AM5: x | AO5: xxxx
A6: IEE.2016 | E6: =VLOOKUP(F6&"."&G6,syllabus!B$3:I$99,8,FALSE)&RIGHT("00000"&J6,5) -> 1000500 | F6: IEE | G6: 2016 | H6: IEE.2016: All | I6: BC | J6: 500 | M6: BC: | P6: concept | R6: F | U6: 0 | AB6: 1 | AC6: 2 | AD6: 0 | AE6: 0 | AF6: 62 | AG6: 62 | AH6: 999 | AL6: 0.0005 | AM6: x | AO6: xxxx
A7: IEE.2016 | E7: =VLOOKUP(F7&"."&G7,syllabus!B$3:I$99,8,FALSE)&RIGHT("00000"&J7,5) -> 1000600 | F7: IEE | G7: 2016 | H7: IEE.2016: All | I7: BC | J7: 600 | M7: BC: | P7: concept | R7: F | U7: 0 | AB7: 1 | AC7: 2 | AD7: 0 | AE7: 0 | AF7: 62 | AG7: 62 | AH7: 999 | AL7: 0.0005 | AM7: x | AO7: xxxx
A8: IEE.2016 | E8: =VLOOKUP(F8&"."&G8,syllabus!B$3:I$99,8,FALSE)&RIGHT("00000"&J8,5) -> 1000700 | F8: IEE | G8: 2016 | H8: IEE.2016: All | I8: BC | J8: 700 | M8: BC: | P8: concept | R8: F | U8: 0 | AB8: 1 | AC8: 2 | AD8: 0 | AE8: 0 | AF8: 62 | AG8: 62 | AH8: 999 | AL8: 0.0005 | AM8: x | AO8: xxxx
A9: IEE.2016 | E9: =VLOOKUP(F9&"."&G9,syllabus!B$3:I$99,8,FALSE)&RIGHT("00000"&J9,5) -> 1000800 | F9: IEE | G9: 2016 | H9: IEE.2016: All | I9: BC | J9: 800 | M9: BC: | P9: concept | R9: F | U9: 0 | AB9: 1 | AC9: 2 | AD9: 0 | AE9: 0 | AF9: 62 | AG9: 62 | AH9: 999 | AL9: 0.0005 | AM9: x | AO9: xxxx
A10: IEE.2016 | E10: =VLOOKUP(F10&"."&G10,syllabus!B$3:I$99,8,FALSE)&RIGHT("00000"&J10,5) -> 1000900 | F10: IEE | G10: 2016 | H10: IEE.2016: All | I10: BC | J10: 900 | M10: BC: | P10: concept | R10: F | U10: 0 | AB10: 1 | AC10: 2 | AD10: 0 | AE10: 0 | AF10: 62 | AG10: 62 | AH10: 999 | AL10: 0.0005 | AM10: x | AO10: xxxx
A11: IEE.2016 | E11: =VLOOKUP(F11&"."&G11,syllabus!B$3:I$99,8,FALSE)&RIGHT("00000"&J11,5) -> 1001000 | F11: IEE | G11: 2016 | H11: IEE.2016: All | I11: BC | J11: 1000 | M11: BC: | P11: concept | R11: F | U11: 0 | AB11: 1 | AC11: 2 | AD11: 0 | AE11: 0 | AF11: 62 | AG11: 62 | AH11: 999 | AL11: 0.0005 | AM11: x | AO11: xxxx
A12: IEE.2016 | E12: =VLOOKUP(F12&"."&G12,syllabus!B$3:I$99,8,FALSE)&RIGHT("00000"&J12,5) -> 1001100 | F12: IEE | G12: 2016 | H12: IEE.2016: All | I12: BC | J12: 1100 | M12: BC: | P12: concept | R12: F | U12: 0 | AB12: 1 | AC12: 2 | AD12: 0 | AE12: 0 | AF12: 62 | AG12: 62 | AH12: 999 | AL12: 0.0005 | AM12: x | AO12: xxxx
A13: IEE.2016 | E13: =VLOOKUP(F13&"."&G13,syllabus!B$3:I$99,8,FALSE)&RIGHT("00000"&J13,5) -> 1001200 | F13: IEE | G13: 2016 | H13: IEE.2016: All | I13: BC | J13: 1200 | M13: BC: | P13: concept | R13: F | U13: 0 | AB13: 1 | AC13: 2 | AD13: 0 | AE13: 0 | AF13: 62 | AG13: 62 | AH13: 999 | AL13: 0.0005 | AM13: x | AO13: xxxx
A14: IEE.2016 | E14: =VLOOKUP(F14&"."&G14,syllabus!B$3:I$99,8,FALSE)&RIGHT("00000"&J14,5) -> 1001300 | F14: IEE | G14: 2016 | H14: IEE.2016: All | I14: BC | J14: 1300 | M14: BC: | P14: concept | R14: F | U14: 0 | AB14: 1 | AC14: 2 | AD14: 0 | AE14: 0 | AF14: 62 | AG14: 62 | AH14: 999 | AL14: 0.0005 | AM14: x | AO14: xxxx
A15: IEE.2016 | E15: =VLOOKUP(F15&"."&G15,syllabus!B$3:I$99,8,FALSE)&RIGHT("00000"&J15,5) -> 1001400 | F15: IEE | G15: 2016 | H15: IEE.2016: All | I15: BC | J15: 1400 | M15: BC: | P15: concept | R15: F | U15: 0 | AB15: 1 | AC15: 2 | AD15: 0 | AE15: 0 | AF15: 62 | AG15: 62 | AH15: 999 | AL15: 0.0005 | AM15: x | AO15: xxxx
A16: IEE.2016 | E16: =VLOOKUP(F16&"."&G16,syllabus!B$3:I$99,8,FALSE)&RIGHT("00000"&J16,5) -> 1001500 | F16: IEE | G16: 2016 | H16: IEE.2016: All | I16: BC | J16: 1500 | M16: BC: | P16: concept | R16: F | U16: 0 | AB16: 1 | AC16: 2 | AD16: 0 | AE16: 0 | AF16: 62 | AG16: 62 | AH16: 999 | AL16: 0.0005 | AM16: x | AO16: xxxx
A17: IEE.2016 | E17: =VLOOKUP(F17&"."&G17,syllabus!B$3:I$99,8,FALSE)&RIGHT("00000"&J17,5) -> 1001600 | F17: IEE | G17: 2016 | H17: IEE.2016: All | I17: BC | J17: 1600 | M17: BC: | P17: concept | R17: F | U17: 0 | AB17: 1 | AC17: 2 | AD17: 0 | AE17: 0 | AF17: 62 | AG17: 62 | AH17: 999 | AL17: 0.0005 | AM17: x | AO17: xxxx
A18: IEE.2016 | E18: =VLOOKUP(F18&"."&G18,syllabus!B$3:I$99,8,FALSE)&RIGHT("00000"&J18,5) -> 1001700 | F18: IEE | G18: 2016 | H18: IEE.2016: All | I18: BC | J18: 1700 | M18: BC: | P18: concept | R18: F | U18: 0 | AB18: 1 | AC18: 2 | AD18: 0 | AE18: 0 | AF18: 62 | AG18: 62 | AH18: 999 | AL18: 0.0005 | AM18: x | AO18: xxxx
A19: IEE.2016 | E19: =VLOOKUP(F19&"."&G19,syllabus!B$3:I$99,8,FALSE)&RIGHT("00000"&J19,5) -> 1001800 | F19: IEE | G19: 2016 | H19: IEE.2016: All | I19: BC | J19: 1800 | M19: BC: | P19: concept | R19: F | U19: 0 | AB19: 1 | AC19: 2 | AD19: 0 | AE19: 0 | AF19: 62 | AG19: 62 | AH19: 999 | AL19: 0.0005 | AM19: x | AO19: xxxx
A20: IEE.2016 | E20: =VLOOKUP(F20&"."&G20,syllabus!B$3:I$99,8,FALSE)&RIGHT("00000"&J20,5) -> 1001900 | F20: IEE | G20: 2016 | H20: IEE.2016: All | I20: BC | J20: 1900 | M20: BC: | P20: concept | R20: F | U20: 0 | AB20: 1 | AC20: 2 | AD20: 0 | AE20: 0 | AF20: 62 | AG20: 62 | AH20: 999 | AL20: 0.0005 | AM20: x | AO20: xxxx
A21: IEE.2016 | E21: =VLOOKUP(F21&"."&G21,syllabus!B$3:I$99,8,FALSE)&RIGHT("00000"&J21,5) -> 1002000 | F21: IEE | G21: 2016 | H21: IEE.2016: All | I21: BC | J21: 2000 | M21: BC: | P21: concept | R21: F | U21: 0 | AB21: 1 | AC21: 2 | AD21: 0 | AE21: 0 | AF21: 62 | AG21: 62 | AH21: 999 | AL21: 0.0005 | AM21: x | AO21: xxxx
A22: IEE.2016 | E22: =VLOOKUP(F22&"."&G22,syllabus!B$3:I$99,8,FALSE)&RIGHT("00000"&J22,5) -> 1002100 | F22: IEE | G22: 2016 | H22: IEE.2016: All | I22: BC | J22: 2100 | M22: BC: | P22: concept | R22: F | U22: 0 | AB22: 1 | AC22: 2 | AD22: 0 | AE22: 0 | AF22: 62 | AG22: 62 | AH22: 999 | AL22: 0.0005 | AM22: x | AO22: xxxx
A23: IEE.2016 | E23: =VLOOKUP(F23&"."&G23,syllabus!B$3:I$99,8,FALSE)&RIGHT("00000"&J23,5) -> 1002200 | F23: IEE | G23: 2016 | H23: IEE.2016: All | I23: BC | J23: 2200 | M23: BC: | P23: concept | R23: F | U23: 0 | AB23: 1 | AC23: 2 | AD23: 0 | AE23: 0 | AF23: 62 | AG23: 62 | AH23: 999 | AL23: 0.0005 | AM23: x | AO23: xxxx
A24: IEE.2016 | E24: =VLOOKUP(F24&"."&G24,syllabus!B$3:I$99,8,FALSE)&RIGHT("00000"&J24,5) -> 1002300 | F24: IEE | G24: 2016 | H24: IEE.2016: All | I24: BC | J24: 2300 | M24: BC: | P24: concept | R24: F | U24: 0 | AB24: 1 | AC24: 2 | AD24: 0 | AE24: 0 | AF24: 62 | AG24: 62 | AH24: 999 | AL24: 0.0005 | AM24: x | AO24: xxxx
A25: IEE.2016 | E25: =VLOOKUP(F25&"."&G25,syllabus!B$3:I$99,8,FALSE)&RIGHT("00000"&J25,5) -> 1002400 | F25: IEE | G25: 2016 | H25: IEE.2016: All | I25: BC | J25: 2400 | M25: BC: | P25: concept | R25: F | U25: 0 | AB25: 1 | AC25: 2 | AD25: 0 | AE25: 0 | AF25: 62 | AG25: 62 | AH25: 999 | AL25: 0.0005 | AM25: x | AO25: xxxx
A26: IEE.2016 | E26: =VLOOKUP(F26&"."&G26,syllabus!B$3:I$99,8,FALSE)&RIGHT("00000"&J26,5) -> 1002500 | F26: IEE | G26: 2016 | H26: IEE.2016: All | I26: BC | J26: 2500 | M26: BC: | P26: concept | R26: F | U26: 0 | AB26: 1 | AC26: 2 | AD26: 0 | AE26: 0 | AF26: 62 | AG26: 62 | AH26: 999 | AL26: 0.0005 | AM26: x | AO26: xxxx
A27: IEE.2016 | E27: =VLOOKUP(F27&"."&G27,syllabus!B$3:I$99,8,FALSE)&RIGHT("00000"&J27,5) -> 1002600 | F27: IEE | G27: 2016 | H27: IEE.2016: All | I27: BC | J27: 2600 | M27: BC: | P27: concept | R27: F | U27: 0 | AB27: 1 | AC27: 2 | AD27: 0 | AE27: 0 | AF27: 62 | AG27: 62 | AH27: 999 | AL27: 0.0005 | AM27: x | AO27: xxxx
A28: IEE.2016 | E28: =VLOOKUP(F28&"."&G28,syllabus!B$3:I$99,8,FALSE)&RIGHT("00000"&J28,5) -> 1002700 | F28: IEE | G28: 2016 | H28: IEE.2016: All | I28: BC | J28: 2700 | M28: BC: | P28: concept | R28: F | U28: 0 | AB28: 1 | AC28: 2 | AD28: 0 | AE28: 0 | AF28: 62 | AG28: 62 | AH28: 999 | AL28: 0.0005 | AM28: x | AO28: xxxx
A29: IEE.2016 | E29: =VLOOKUP(F29&"."&G29,syllabus!B$3:I$99,8,FALSE)&RIGHT("00000"&J29,5) -> 1002800 | F29: IEE | G29: 2016 | H29: IEE.2016: All | I29: BC | J29: 2800 | M29: BC: | P29: concept | R29: F | U29: 0 | AB29: 1 | AC29: 2 | AD29: 0 | AE29: 0 | AF29: 62 | AG29: 62 | AH29: 999 | AL29: 0.0005 | AM29: x | AO29: xxxx
A30: IEE.2016 | E30: =VLOOKUP(F30&"."&G30,syllabus!B$3:I$99,8,FALSE)&RIGHT("00000"&J30,5) -> 1002900 | F30: IEE | G30: 2016 | H30: IEE.2016: All | I30: BC | J30: 2900 | M30: BC: | P30: concept | R30: F | U30: 0 | AB30: 1 | AC30: 2 | AD30: 0 | AE30: 0 | AF30: 62 | AG30: 62 | AH30: 999 | AL30: 0.0005 | AM30: x | AO30: xxxx
A31: IEE.2016 | E31: =VLOOKUP(F31&"."&G31,syllabus!B$3:I$99,8,FALSE)&RIGHT("00000"&J31,5) -> 1003000 | F31: IEE | G31: 2016 | H31: IEE.2016: All | I31: BC | J31: 3000 | M31: BC: | P31: concept | R31: F | U31: 0 | AB31: 1 | AC31: 2 | AD31: 0 | AE31: 0 | AF31: 62 | AG31: 62 | AH31: 999 | AL31: 0.0005 | AM31: x | AO31: xxxx
A32: IEE.2016 | E32: =VLOOKUP(F32&"."&G32,syllabus!B$3:I$99,8,FALSE)&RIGHT("00000"&J32,5) -> 1003100 | F32: IEE | G32: 2016 | H32: IEE.2016: All | I32: BC | J32: 3100 | M32: BC: | P32: concept | R32: F | U32: 0 | AB32: 1 | AC32: 2 | AD32: 0 | AE32: 0 | AF32: 62 | AG32: 62 | AH32: 999 | AL32: 0.0005 | AM32: x | AO32: xxxx
A33: IEE.2016 | E33: =VLOOKUP(F33&"."&G33,syllabus!B$3:I$99,8,FALSE)&RIGHT("00000"&J33,5) -> 1003200 | F33: IEE | G33: 2016 | H33: IEE.2016: All | I33: BC | J33: 3200 | M33: BC: | P33: concept | R33: F | U33: 0 | AB33: 1 | AC33: 2 | AD33: 0 | AE33: 0 | AF33: 62 | AG33: 62 | AH33: 999 | AL33: 0.0005 | AM33: x | AO33: xxxx
A34: IEE.2016 | E34: =VLOOKUP(F34&"."&G34,syllabus!B$3:I$99,8,FALSE)&RIGHT("00000"&J34,5) -> 1003300 | F34: IEE | G34: 2016 | H34: IEE.2016: All | I34: BC | J34: 3300 | M34: BC: | P34: concept | R34: F | U34: 0 | AB34: 1 | AC34: 2 | AD34: 0 | AE34: 0 | AF34: 62 | AG34: 62 | AH34: 999 | AL34: 0.0005 | AM34: x | AO34: xxxx
A35: IEE.2016 | E35: =VLOOKUP(F35&"."&G35,syllabus!B$3:I$99,8,FALSE)&RIGHT("00000"&J35,5) -> 1003400 | F35: IEE | G35: 2016 | H35: IEE.2016: All | I35: BC | J35: 3400 | M35: BC: | P35: concept | R35: F | U35: 0 | AB35: 1 | AC35: 2 | AD35: 0 | AE35: 0 | AF35: 62 | AG35: 62 | AH35: 999 | AL35: 0.0005 | AM35: x | AO35: xxxx
A36: IEE.2016 | E36: =VLOOKUP(F36&"."&G36,syllabus!B$3:I$99,8,FALSE)&RIGHT("00000"&J36,5) -> 1003500 | F36: IEE | G36: 2016 | H36: IEE.2016: All | I36: exam | J36: 3500 | M36: exam: | P36: concept | R36: F | U36: 0 | AB36: 1 | AC36: 2 | AD36: 0 | AE36: 0 | AF36: 62 | AG36: 62 | AH36: 999 | AL36: 0.0005 | AM36: x | AO36: xxxx
A37: IEE.2016 | E37: =VLOOKUP(F37&"."&G37,syllabus!B$3:I$99,8,FALSE)&RIGHT("00000"&J37,5) -> 1003600 | F37: IEE | G37: 2016 | H37: IEE.2016: All | I37: exam | J37: 3600 | M37: exam: | P37: concept | R37: F | U37: 0 | AB37: 1 | AC37: 2 | AD37: 0 | AE37: 0 | AF37: 62 | AG37: 62 | AH37: 999 | AL37: 0.0005 | AM37: x | AO37: xxxx
A38: IEE.2016 | E38: =VLOOKUP(F38&"."&G38,syllabus!B$3:I$99,8,FALSE)&RIGHT("00000"&J38,5) -> 1003700 | F38: IEE | G38: 2016 | H38: IEE.2016: All | I38: exam | J38: 3700 | M38: exam: | P38: concept | R38: F | U38: 0 | AB38: 1 | AC38: 2 | AD38: 0 | AE38: 0 | AF38: 62 | AG38: 62 | AH38: 999 | AL38: 0.0005 | AM38: x | AO38: xxxx
A39: IEE.2016 | E39: =VLOOKUP(F39&"."&G39,syllabus!B$3:I$99,8,FALSE)&RIGHT("00000"&J39,5) -> 1003800 | F39: IEE | G39: 2016 | H39: IEE.2016: All | I39: exam | J39: 3800 | M39: exam: | P39: concept | R39: F | U39: 0 | AB39: 1 | AC39: 2 | AD39: 0 | AE39: 0 | AF39: 62 | AG39: 62 | AH39: 999 | AL39: 0.0005 | AM39: x | AO39: xxxx
A40: IEE.2016 | E40: =VLOOKUP(F40&"."&G40,syllabus!B$3:I$99,8,FALSE)&RIGHT("00000"&J40,5) -> 1003900 | F40: IEE | G40: 2016 | H40: IEE.2016: All | I40: exam | J40: 3900 | M40: exam: | P40: concept | R40: F | U40: 0 | AB40: 1 | AC40: 2 | AD40: 0 | AE40: 0 | AF40: 62 | AG40: 62 | AH40: 999 | AL40: 0.0005 | AM40: x | AO40: xxxx
A41: IEE.2016 | E41: =VLOOKUP(F41&"."&G41,syllabus!B$3:I$99,8,FALSE)&RIGHT("00000"&J41,5) -> 1004000 | F41: IEE | G41: 2016 | H41: IEE.2016: All | I41: exam | J41: 4000 | M41: exam: | P41: concept | R41: F | U41: 0 | AB41: 1 | AC41: 2 | AD41: 0 | AE41: 0 | AF41: 62 | AG41: 62 | AH41: 999 | AL41: 0.0005 | AM41: x | AO41: xxxx
A42: IEE.2016 | E42: =VLOOKUP(F42&"."&G42,syllabus!B$3:I$99,8,FALSE)&RIGHT("00000"&J42,5) -> 1004100 | F42: IEE | G42: 2016 | H42: IEE.2016: All | I42: exam | J42: 4100 | M42: exam: | P42: concept | R42: F | U42: 0 | AB42: 1 | AC42: 2 | AD42: 0 | AE42: 0 | AF42: 62 | AG42: 62 | AH42: 999 | AL42: 0.0005 | AM42: x | AO42: xxxx
A43: IEE.2016 | E43: =VLOOKUP(F43&"."&G43,syllabus!B$3:I$99,8,FALSE)&RIGHT("00000"&J43,5) -> 1004200 | F43: IEE | G43: 2016 | H43: IEE.2016: All | I43: exam | J43: 4200 | M43: exam: | P43: concept | R43: F | U43: 0 | AB43: 1 | AC43: 2 | AD43: 0 | AE43: 0 | AF43: 62 | AG43: 62 | AH43: 999 | AL43: 0.0005 | AM43: x | AO43: xxxx
A44: IEE.2016 | E44: =VLOOKUP(F44&"."&G44,syllabus!B$3:I$99,8,FALSE)&RIGHT("00000"&J44,5) -> 1004300 | F44: IEE | G44: 2016 | H44: IEE.2016: All | I44: exam | J44: 4300 | M44: exam: | P44: concept | R44: F | U44: 0 | AB44: 1 | AC44: 2 | AD44: 0 | AE44: 0 | AF44: 62 | AG44: 62 | AH44: 999 | AL44: 0.0005 | AM44: x | AO44: xxxx
A45: IEE.2016 | E45: =VLOOKUP(F45&"."&G45,syllabus!B$3:I$99,8,FALSE)&RIGHT("00000"&J45,5) -> 1004400 | F45: IEE | G45: 2016 | H45: IEE.2016: All | I45: exam | J45: 4400 | M45: exam: | P45: concept | R45: F | U45: 0 | AB45: 1 | AC45: 2 | AD45: 0 | AE45: 0 | AF45: 62 | AG45: 62 | AH45: 999 | AL45: 0.0005 | AM45: x | AO45: xxxx
A46: IEE.2016 | E46: =VLOOKUP(F46&"."&G46,syllabus!B$3:I$99,8,FALSE)&RIGHT("00000"&J46,5) -> 1004500 | F46: IEE | G46: 2016 | H46: IEE.2016: All | I46: exam | J46: 4500 | M46: exam: | P46: concept | R46: F | U46: 0 | AB46: 1 | AC46: 2 | AD46: 0 | AE46: 0 | AF46: 62 | AG46: 62 | AH46: 999 | AL46: 0.0005 | AM46: x | AO46: xxxx
A47: IEE.2016 | E47: =VLOOKUP(F47&"."&G47,syllabus!B$3:I$99,8,FALSE)&RIGHT("00000"&J47,5) -> 1004600 | F47: IEE | G47: 2016 | H47: IEE.2016: All | I47: exam | J47: 4600 | M47: exam: | P47: concept | R47: F | U47: 0 | AB47: 1 | AC47: 2 | AD47: 0 | AE47: 0 | AF47: 62 | AG47: 62 | AH47: 999 | AL47: 0.0005 | AM47: x | AO47: xxxx
A48: IEE.2016 | E48: =VLOOKUP(F48&"."&G48,syllabus!B$3:I$99,8,FALSE)&RIGHT("00000"&J48,5) -> 1004700 | F48: IEE | G48: 2016 | H48: IEE.2016: All | I48: exam | J48: 4700 | M48: exam: | P48: concept | R48: F | U48: 0 | AB48: 1 | AC48: 2 | AD48: 0 | AE48: 0 | AF48: 62 | AG48: 62 | AH48: 999 | AL48: 0.0005 | AM48: x | AO48: xxxx
A49: IEE.2016 | E49: =VLOOKUP(F49&"."&G49,syllabus!B$3:I$99,8,FALSE)&RIGHT("00000"&J49,5) -> 1004800 | F49: IEE | G49: 2016 | H49: IEE.2016: All | I49: exam | J49: 4800 | M49: exam: | P49: concept | R49: F | U49: 0 | AB49: 1 | AC49: 2 | AD49: 0 | AE49: 0 | AF49: 62 | AG49: 62 | AH49: 999 | AL49: 0.0005 | AM49: x | AO49: xxxx
A50: IEE.2016 | E50: =VLOOKUP(F50&"."&G50,syllabus!B$3:I$99,8,FALSE)&RIGHT("00000"&J50,5) -> 1004900 | F50: IEE | G50: 2016 | H50: IEE.2016: All | I50: exam | J50: 4900 | M50: exam: | P50: concept | R50: F | U50: 0 | AB50: 1 | AC50: 2 | AD50: 0 | AE50: 0 | AF50: 62 | AG50: 62 | AH50: 999 | AL50: 0.0005 | AM50: x | AO50: xxxx
A51: IEE.2016 | E51: =VLOOKUP(F51&"."&G51,syllabus!B$3:I$99,8,FALSE)&RIGHT("00000"&J51,5) -> 1005000 | F51: IEE | G51: 2016 | H51: IEE.2016: All | I51: exam | J51: 5000 | M51: exam: | P51: concept | R51: F | U51: 0 | AB51: 1 | AC51: 2 | AD51: 0 | AE51: 0 | AF51: 62 | AG51: 62 | AH51: 999 | AL51: 0.0005 | AM51: x | AO51: xxxx
A52: IEE.2016 | E52: =VLOOKUP(F52&"."&G52,syllabus!B$3:I$99,8,FALSE)&RIGHT("00000"&J52,5) -> 1005100 | F52: IEE | G52: 2016 | H52: IEE.2016: All | I52: exam | J52: 5100 | M52: exam: | P52: concept | R52: F | U52: 0 | AB52: 1 | AC52: 2 | AD52: 0 | AE52: 0 | AF52: 62 | AG52: 62 | AH52: 999 | AL52: 0.0005 | AM52: x | AO52: xxxx
A53: IEE.2016 | E53: =VLOOKUP(F53&"."&G53,syllabus!B$3:I$99,8,FALSE)&RIGHT("00000"&J53,5) -> 1005200 | F53: IEE | G53: 2016 | H53: IEE.2016: All | I53: exam | J53: 5200 | M53: exam: | P53: concept | R53: F | U53: 0 | AB53: 1 | AC53: 2 | AD53: 0 | AE53: 0 | AF53: 62 | AG53: 62 | AH53: 999 | AL53: 0.0005 | AM53: x | AO53: xxxx
A54: IEE.2016 | E54: =VLOOKUP(F54&"."&G54,syllabus!B$3:I$99,8,FALSE)&RIGHT("00000"&J54,5) -> 1005300 | F54: IEE | G54: 2016 | H54: IEE.2016: All | I54: exam | J54: 5300 | M54: exam: | P54: concept | R54: F | U54: 0 | AB54: 1 | AC54: 2 | AD54: 0 | AE54: 0 | AF54: 62 | AG54: 62 | AH54: 999 | AL54: 0.0005 | AM54: x | AO54: xxxx
A55: IEE.2016 | E55: =VLOOKUP(F55&"."&G55,syllabus!B$3:I$99,8,FALSE)&RIGHT("00000"&J55,5) -> 1005400 | F55: IEE | G55: 2016 | H55: IEE.2016: All | I55: exam | J55: 5400 | M55: exam: | P55: concept | R55: F | U55: 0 | AB55: 1 | AC55: 2 | AD55: 0 | AE55: 0 | AF55: 62 | AG55: 62 | AH55: 999 | AL55: 0.0005 | AM55: x | AO55: xxxx
A56: IEE.2016 | E56: =VLOOKUP(F56&"."&G56,syllabus!B$3:I$99,8,FALSE)&RIGHT("00000"&J56,5) -> 1005500 | F56: IEE | G56: 2016 | H56: IEE.2016: All | I56: exam | J56: 5500 | M56: exam: | P56: concept | R56: F | U56: 0 | AB56: 1 | AC56: 2 | AD56: 0 | AE56: 0 | AF56: 62 | AG56: 62 | AH56: 999 | AL56: 0.0005 | AM56: x | AO56: xxxx
A57: IEE.2016 | E57: =VLOOKUP(F57&"."&G57,syllabus!B$3:I$99,8,FALSE)&RIGHT("00000"&J57,5) -> 1005600 | F57: IEE | G57: 2016 | H57: IEE.2016: All | I57: exam | J57: 5600 | M57: exam: | P57: concept | R57: F | U57: 0 | AB57: 1 | AC57: 2 | AD57: 0 | AE57: 0 | AF57: 62 | AG57: 62 | AH57: 999 | AL57: 0.0005 | AM57: x | AO57: xxxx
A58: IEE.2016 | E58: =VLOOKUP(F58&"."&G58,syllabus!B$3:I$99,8,FALSE)&RIGHT("00000"&J58,5) -> 1005700 | F58: IEE | G58: 2016 | H58: IEE.2016: All | I58: exam | J58: 5700 | M58: exam: | P58: concept | R58: F | U58: 0 | AB58: 1 | AC58: 2 | AD58: 0 | AE58: 0 | AF58: 62 | AG58: 62 | AH58: 999 | AL58: 0.0005 | AM58: x | AO58: xxxx
A59: IEE.2016 | E59: =VLOOKUP(F59&"."&G59,syllabus!B$3:I$99,8,FALSE)&RIGHT("00000"&J59,5) -> 1005800 | F59: IEE | G59: 2016 | H59: IEE.2016: All | I59: exam | J59: 5800 | M59: exam: | P59: concept | R59: F | U59: 0 | AB59: 1 | AC59: 2 | AD59: 0 | AE59: 0 | AF59: 62 | AG59: 62 | AH59: 999 | AL59: 0.0005 | AM59: x | AO59: xxxx
A60: IEE.2016 | E60: =VLOOKUP(F60&"."&G60,syllabus!B$3:I$99,8,FALSE)&RIGHT("00000"&J60,5) -> 1005900 | F60: IEE | G60: 2016 | H60: IEE.2016: All | I60: exam | J60: 5900 | M60: exam: | P60: concept | R60: F | U60: 0 | AB60: 1 | AC60: 2 | AD60: 0 | AE60: 0 | AF60: 62 | AG60: 62 | AH60: 999 | AL60: 0.0005 | AM60: x | AO60: xxxx
A61: IEE.2016 | E61: =VLOOKUP(F61&"."&G61,syllabus!B$3:I$99,8,FALSE)&RIGHT("00000"&J61,5) -> 1006000 | F61: IEE | G61: 2016 | H61: IEE.2016: All | I61: exam | J61: 6000 | K61: x | M61: exam: start Fall.2017 here (at numID = 6000) | P61: concept | R61: F | U61: 0 | AB61: 1 | AC61: 2 | AD61: 0 | AE61: 0 | AF61: 62 | AG61: 62 | AH61: 999 | AL61: 0.0005 | AM61: x | AO61: xxxx
A62: IEE.2016 | E62: =VLOOKUP(F62&"."&G62,syllabus!B$3:I$99,8,FALSE)&RIGHT("00000"&J62,5) -> 1006100 | F62: IEE | G62: 2016 | H62: IEE.2016: All | I62: exam | J62: 6100 | M62: exam: | P62: concept | R62: F | U62: 0 | AB62: 1 | AC62: 2 | AD62: 0 | AE62: 0 | AF62: 62 | AG62: 62 | AH62: 999 | AL62: 0.0005 | AM62: x | AO62: xxxx
A63: IEE.2016 | E63: =VLOOKUP(F63&"."&G63,syllabus!B$3:I$99,8,FALSE)&RIGHT("00000"&J63,5) -> 1006200 | F63: IEE | G63: 2016 | H63: IEE.2016: All | I63: exam | J63: 6200 | M63: exam: | P63: concept | R63: F | U63: 0 | AB63: 1 | AC63: 2 | AD63: 0 | AE63: 0 | AF63: 62 | AG63: 62 | AH63: 999 | AL63: 0.0005 | AM63: x | AO63: xxxx
A64: IEE.2016 | E64: =VLOOKUP(F64&"."&G64,syllabus!B$3:I$99,8,FALSE)&RIGHT("00000"&J64,5) -> 1006300 | F64: IEE | G64: 2016 | H64: IEE.2016: All | I64: exam | J64: 6300 | M64: exam: | P64: concept | R64: F | U64: 0 | AB64: 1 | AC64: 2 | AD64: 0 | AE64: 0 | AF64: 62 | AG64: 62 | AH64: 999 | AL64: 0.0005 | AM64: x | AO64: xxxx
A65: IEE.2016 | E65: =VLOOKUP(F65&"."&G65,syllabus!B$3:I$99,8,FALSE)&RIGHT("00000"&J65,5) -> 1006400 | F65: IEE | G65: 2016 | H65: IEE.2016: All | I65: exam | J65: 6400 | M65: exam: | P65: concept | R65: F | U65: 0 | AB65: 1 | AC65: 2 | AD65: 0 | AE65: 0 | AF65: 62 | AG65: 62 | AH65: 999 | AL65: 0.0005 | AM65: x | AO65: xxxx
A66: IEE.2016 | E66: =VLOOKUP(F66&"."&G66,syllabus!B$3:I$99,8,FALSE)&RIGHT("00000"&J66,5) -> 1006500 | F66: IEE | G66: 2016 | H66: IEE.2016: All | I66: exam | J66: 6500 | M66: exam: | P66: concept | R66: F | U66: 0 | AB66: 1 | AC66: 2 | AD66: 0 | AE66: 0 | AF66: 62 | AG66: 62 | AH66: 999 | AL66: 0.0005 | AM66: x | AO66: xxxx
A67: IEE.2016 | E67: =VLOOKUP(F67&"."&G67,syllabus!B$3:I$99,8,FALSE)&RIGHT("00000"&J67,5) -> 1006600 | F67: IEE | G67: 2016 | H67: IEE.2016: All | I67: exam | J67: 6600 | M67: exam: | P67: concept | R67: F | U67: 0 | AB67: 1 | AC67: 2 | AD67: 0 | AE67: 0 | AF67: 62 | AG67: 62 | AH67: 999 | AL67: 0.0005 | AM67: x | AO67: xxxx
A68: IEE.2016 | E68: =VLOOKUP(F68&"."&G68,syllabus!B$3:I$99,8,FALSE)&RIGHT("00000"&J68,5) -> 1006700 | F68: IEE | G68: 2016 | H68: IEE.2016: All | I68: exam | J68: 6700 | M68: exam: | P68: concept | R68: F | U68: 0 | AB68: 1 | AC68: 2 | AD68: 0 | AE68: 0 | AF68: 62 | AG68: 62 | AH68: 999 | AL68: 0.0005 | AM68: x | AO68: xxxx
A69: IEE.2016 | E69: =VLOOKUP(F69&"."&G69,syllabus!B$3:I$99,8,FALSE)&RIGHT("00000"&J69,5) -> 1006800 | F69: IEE | G69: 2016 | H69: IEE.2016: All | I69: exam | J69: 6800 | M69: exam: | P69: concept | R69: F | U69: 0 | AB69: 1 | AC69: 2 | AD69: 0 | AE69: 0 | AF69: 62 | AG69: 62 | AH69: 999 | AL69: 0.0005 | AM69: x | AO69: xxxx
A70: IEE.2016 | E70: =VLOOKUP(F70&"."&G70,syllabus!B$3:I$99,8,FALSE)&RIGHT("00000"&J70,5) -> 1006900 | F70: IEE | G70: 2016 | H70: IEE.2016: All | I70: exam | J70: 6900 | M70: exam: | P70: concept | R70: F | U70: 0 | AB70: 1 | AC70: 2 | AD70: 0 | AE70: 0 | AF70: 62 | AG70: 62 | AH70: 999 | AL70: 0.0005 | AM70: x | AO70: xxxx
A71: IEE.2016 | E71: =VLOOKUP(F71&"."&G71,syllabus!B$3:I$99,8,FALSE)&RIGHT("00000"&J71,5) -> 1007000 | F71: IEE | G71: 2016 | H71: IEE.2016: All | I71: exam | J71: 7000 | M71: exam: | P71: concept | R71: F | U71: 0 | AB71: 1 | AC71: 2 | AD71: 0 | AE71: 0 | AF71: 62 | AG71: 62 | AH71: 999 | AL71: 0.0005 | AM71: x | AO71: xxxx
A72: IEE.2016 | E72: =VLOOKUP(F72&"."&G72,syllabus!B$3:I$99,8,FALSE)&RIGHT("00000"&J72,5) -> 1007100 | F72: IEE | G72: 2016 | H72: IEE.2016: All | I72: exam | J72: 7100 | M72: exam: | P72: concept | R72: F | U72: 0 | AB72: 1 | AC72: 2 | AD72: 0 | AE72: 0 | AF72: 62 | AG72: 62 | AH72: 999 | AL72: 0.0005 | AM72: x | AO72: xxxx
A73: IEE.2016 | E73: =VLOOKUP(F73&"."&G73,syllabus!B$3:I$99,8,FALSE)&RIGHT("00000"&J73,5) -> 1007200 | F73: IEE | G73: 2016 | H73: IEE.2016: All | I73: exam | J73: 7200 | M73: exam: | P73: concept | R73: F | U73: 0 | AB73: 1 | AC73: 2 | AD73: 0 | AE73: 0 | AF73: 62 | AG73: 62 | AH73: 999 | AL73: 0.0005 | AM73: x | AO73: xxxx
A74: IEE.2016 | E74: =VLOOKUP(F74&"."&G74,syllabus!B$3:I$99,8,FALSE)&RIGHT("00000"&J74,5) -> 1007300 | F74: IEE | G74: 2016 | H74: IEE.2016: All | I74: exam | J74: 7300 | M74: exam: | P74: concept | R74: F | U74: 0 | AB74: 1 | AC74: 2 | AD74: 0 | AE74: 0 | AF74: 62 | AG74: 62 | AH74: 999 | AL74: 0.0005 | AM74: x | AO74: xxxx
A75: IEE.2016 | E75: =VLOOKUP(F75&"."&G75,syllabus!B$3:I$99,8,FALSE)&RIGHT("00000"&J75,5) -> 1007400 | F75: IEE | G75: 2016 | H75: IEE.2016: All | I75: exam | J75: 7400 | M75: exam: | P75: concept | R75: F | U75: 0 | AB75: 1 | AC75: 2 | AD75: 0 | AE75: 0 | AF75: 62 | AG75: 62 | AH75: 999 | AL75: 0.0005 | AM75: x | AO75: xxxx
A76: IEE.2016 | E76: =VLOOKUP(F76&"."&G76,syllabus!B$3:I$99,8,FALSE)&RIGHT("00000"&J76,5) -> 1007500 | F76: IEE | G76: 2016 | H76: IEE.2016: All | I76: exam | J76: 7500 | M76: exam: | P76: concept | R76: F | U76: 0 | AB76: 1 | AC76: 2 | AD76: 0 | AE76: 0 | AF76: 62 | AG76: 62 | AH76: 999 | AL76: 0.0005 | AM76: x | AO76: xxxx
A77: IEE.2016 | E77: =VLOOKUP(F77&"."&G77,syllabus!B$3:I$99,8,FALSE)&RIGHT("00000"&J77,5) -> 1007600 | F77: IEE | G77: 2016 | H77: IEE.2016: All | I77: exam | J77: 7600 | M77: exam: | P77: concept | R77: F | U77: 0 | AB77: 1 | AC77: 2 | AD77: 0 | AE77: 0 | AF77: 62 | AG77: 62 | AH77: 999 | AL77: 0.0005 | AM77: x | AO77: xxxx
A78: IEE.2016 | E78: =VLOOKUP(F78&"."&G78,syllabus!B$3:I$99,8,FALSE)&RIGHT("00000"&J78,5) -> 1007700 | F78: IEE | G78: 2016 | H78: IEE.2016: All | I78: exam | J78: 7700 | M78: exam: | P78: concept | R78: F | U78: 0 | AB78: 1 | AC78: 2 | AD78: 0 | AE78: 0 | AF78: 62 | AG78: 62 | AH78: 999 | AL78: 0.0005 | AM78: x | AO78: xxxx
A79: IEE.2016 | E79: =VLOOKUP(F79&"."&G79,syllabus!B$3:I$99,8,FALSE)&RIGHT("00000"&J79,5) -> 1007800 | F79: IEE | G79: 2016 | H79: IEE.2016: All | I79: exam | J79: 7800 | M79: exam: | P79: concept | R79: F | U79: 0 | AB79: 1 | AC79: 2 | AD79: 0 | AE79: 0 | AF79: 62 | AG79: 62 | AH79: 999 | AL79: 0.0005 | AM79: x | AO79: xxxx
A80: IEE.2016 | E80: =VLOOKUP(F80&"."&G80,syllabus!B$3:I$99,8,FALSE)&RIGHT("00000"&J80,5) -> 1007900 | F80: IEE | G80: 2016 | H80: IEE.2016: All | I80: exam | J80: 7900 | M80: exam: | P80: concept | R80: F | U80: 0 | AB80: 1 | AC80: 2 | AD80: 0 | AE80: 0 | AF80: 62 | AG80: 62 | AH80: 999 | AL80: 0.0005 | AM80: x | AO80: xxxx
A81: IEE.2016 | E81: =VLOOKUP(F81&"."&G81,syllabus!B$3:I$99,8,FALSE)&RIGHT("00000"&J81,5) -> 1008000 | F81: IEE | G81: 2016 | H81: IEE.2016: All | I81: exam | J81: 8000 | M81: exam: | P81: concept | R81: F | U81: 0 | AB81: 1 | AC81: 2 | AD81: 0 | AE81: 0 | AF81: 62 | AG81: 62 | AH81: 999 | AL81: 0.0005 | AM81: x | AO81: xxxx
A82: IEE.2016 | E82: =VLOOKUP(F82&"."&G82,syllabus!B$3:I$99,8,FALSE)&RIGHT("00000"&J82,5) -> 1008100 | F82: IEE | G82: 2016 | H82: IEE.2016: All | I82: exam | J82: 8100 | M82: exam: | P82: concept | R82: F | U82: 0 | AB82: 1 | AC82: 2 | AD82: 0 | AE82: 0 | AF82: 62 | AG82: 62 | AH82: 999 | AL82: 0.0005 | AM82: x | AO82: xxxx
A83: IEE.2016 | E83: =VLOOKUP(F83&"."&G83,syllabus!B$3:I$99,8,FALSE)&RIGHT("00000"&J83,5) -> 1008200 | F83: IEE | G83: 2016 | H83: IEE.2016: All | I83: exam | J83: 8200 | M83: exam: | P83: concept | R83: F | U83: 0 | AB83: 1 | AC83: 2 | AD83: 0 | AE83: 0 | AF83: 62 | AG83: 62 | AH83: 999 | AL83: 0.0005 | AM83: x | AO83: xxxx
A84: IEE.2016 | E84: =VLOOKUP(F84&"."&G84,syllabus!B$3:I$99,8,FALSE)&RIGHT("00000"&J84,5) -> 1008300 | F84: IEE | G84: 2016 | H84: IEE.2016: All | I84: exam | J84: 8300 | M84: exam: | P84: concept | R84: F | U84: 0 | AB84: 1 | AC84: 2 | AD84: 0 | AE84: 0 | AF84: 62 | AG84: 62 | AH84: 999 | AL84: 0.0005 | AM84: x | AO84: xxxx
A85: IEE.2016 | E85: =VLOOKUP(F85&"."&G85,syllabus!B$3:I$99,8,FALSE)&RIGHT("00000"&J85,5) -> 1008400 | F85: IEE | G85: 2016 | H85: IEE.2016: All | I85: exam | J85: 8400 | M85: exam: | P85: concept | R85: F | U85: 0 | AB85: 1 | AC85: 2 | AD85: 0 | AE85: 0 | AF85: 62 | AG85: 62 | AH85: 999 | AL85: 0.0005 | AM85: x | AO85: xxxx
A86: IEE.2016 | E86: =VLOOKUP(F86&"."&G86,syllabus!B$3:I$99,8,FALSE)&RIGHT("00000"&J86,5) -> 1008500 | F86: IEE | G86: 2016 | H86: IEE.2016: All | I86: exam | J86: 8500 | M86: exam: | P86: concept | R86: F | U86: 0 | AB86: 1 | AC86: 2 | AD86: 0 | AE86: 0 | AF86: 62 | AG86: 62 | AH86: 999 | AL86: 0.0005 | AM86: x | AO86: xxxx
A87: IEE.2016 | E87: =VLOOKUP(F87&"."&G87,syllabus!B$3:I$99,8,FALSE)&RIGHT("00000"&J87,5) -> 1008600 | F87: IEE | G87: 2016 | H87: IEE.2016: All | I87: exam | J87: 8600 | M87: exam: | P87: concept | R87: F | U87: 0 | AB87: 1 | AC87: 2 | AD87: 0 | AE87: 0 | AF87: 62 | AG87: 62 | AH87: 999 | AL87: 0.0005 | AM87: x | AO87: xxxx
A88: IEE.2016 | E88: =VLOOKUP(F88&"."&G88,syllabus!B$3:I$99,8,FALSE)&RIGHT("00000"&J88,5) -> 1008700 | F88: IEE | G88: 2016 | H88: IEE.2016: All | I88: exam | J88: 8700 | M88: exam: | P88: concept | R88: F | U88: 0 | AB88: 1 | AC88: 2 | AD88: 0 | AE88: 0 | AF88: 62 | AG88: 62 | AH88: 999 | AL88: 0.0005 | AM88: x | AO88: xxxx
A89: IEE.2016 | E89: =VLOOKUP(F89&"."&G89,syllabus!B$3:I$99,8,FALSE)&RIGHT("00000"&J89,5) -> 1008800 | F89: IEE | G89: 2016 | H89: IEE.2016: All | I89: exam | J89: 8800 | M89: exam: | P89: concept | R89: F | U89: 0 | AB89: 1 | AC89: 2 | AD89: 0 | AE89: 0 | AF89: 62 | AG89: 62 | AH89: 999 | AL89: 0.0005 | AM89: x | AO89: xxxx
A90: IEE.2016 | E90: =VLOOKUP(F90&"."&G90,syllabus!B$3:I$99,8,FALSE)&RIGHT("00000"&J90,5) -> 1008900 | F90: IEE | G90: 2016 | H90: IEE.2016: All | I90: exam | J90: 8900 | M90: exam: | P90: concept | R90: F | U90: 0 | AB90: 1 | AC90: 2 | AD90: 0 | AE90: 0 | AF90: 62 | AG90: 62 | AH90: 999 | AL90: 0.0005 | AM90: x | AO90: xxxx
A91: IEE.2016 | E91: =VLOOKUP(F91&"."&G91,syllabus!B$3:I$99,8,FALSE)&RIGHT("00000"&J91,5) -> 1009000 | F91: IEE | G91: 2016 | H91: IEE.2016: All | I91: exam | J91: 9000 | M91: exam: | P91: concept | R91: F | U91: 0 | AB91: 1 | AC91: 2 | AD91: 0 | AE91: 0 | AF91: 62 | AG91: 62 | AH91: 999 | AL91: 0.0005 | AM91: x | AO91: xxxx
A92: IEE.2016 | E92: =VLOOKUP(F92&"."&G92,syllabus!B$3:I$99,8,FALSE)&RIGHT("00000"&J92,5) -> 1009100 | F92: IEE | G92: 2016 | H92: IEE.2016: All | I92: exam | J92: 9100 | M92: exam: | P92: concept | R92: F | U92: 0 | AB92: 1 | AC92: 2 | AD92: 0 | AE92: 0 | AF92: 62 | AG92: 62 | AH92: 999 | AL92: 0.0005 | AM92: x | AO92: xxxx
A93: IEE.2016 | E93: =VLOOKUP(F93&"."&G93,syllabus!B$3:I$99,8,FALSE)&RIGHT("00000"&J93,5) -> 1009200 | F93: IEE | G93: 2016 | H93: IEE.2016: All | I93: exam | J93: 9200 | M93: exam: | P93: concept | R93: F | U93: 0 | AB93: 1 | AC93: 2 | AD93: 0 | AE93: 0 | AF93: 62 | AG93: 62 | AH93: 999 | AL93: 0.0005 | AM93: x | AO93: xxxx
A94: IEE.2016 | E94: =VLOOKUP(F94&"."&G94,syllabus!B$3:I$99,8,FALSE)&RIGHT("00000"&J94,5) -> 1009300 | F94: IEE | G94: 2016 | H94: IEE.2016: All | I94: exam | J94: 9300 | M94: exam: | P94: concept | R94: F | U94: 0 | AB94: 1 | AC94: 2 | AD94: 0 | AE94: 0 | AF94: 62 | AG94: 62 | AH94: 999 | AL94: 0.0005 | AM94: x | AO94: xxxx
A95: IEE.2016 | E95: =VLOOKUP(F95&"."&G95,syllabus!B$3:I$99,8,FALSE)&RIGHT("00000"&J95,5) -> 1009400 | F95: IEE | G95: 2016 | H95: IEE.2016: All | I95: exam | J95: 9400 | M95: exam: | P95: concept | R95: F | U95: 0 | AB95: 1 | AC95: 2 | AD95: 0 | AE95: 0 | AF95: 62 | AG95: 62 | AH95: 999 | AL95: 0.0005 | AM95: x | AO95: xxxx
A96: IEE.2016 | E96: =VLOOKUP(F96&"."&G96,syllabus!B$3:I$99,8,FALSE)&RIGHT("00000"&J96,5) -> 1009500 | F96: IEE | G96: 2016 | H96: IEE.2016: All | I96: exam | J96: 9500 | M96: exam: | P96: concept | R96: F | U96: 0 | AB96: 1 | AC96: 2 | AD96: 0 | AE96: 0 | AF96: 62 | AG96: 62 | AH96: 999 | AL96: 0.0005 | AM96: x | AO96: xxxx
A97: IEE.2016 | E97: =VLOOKUP(F97&"."&G97,syllabus!B$3:I$99,8,FALSE)&RIGHT("00000"&J97,5) -> 1009600 | F97: IEE | G97: 2016 | H97: IEE.2016: All | I97: exam | J97: 9600 | M97: exam: | P97: concept | R97: F | U97: 0 | AB97: 1 | AC97: 2 | AD97: 0 | AE97: 0 | AF97: 62 | AG97: 62 | AH97: 999 | AL97: 0.0005 | AM97: x | AO97: xxxx
A98: IEE.2016 | E98: =VLOOKUP(F98&"."&G98,syllabus!B$3:I$99,8,FALSE)&RIGHT("00000"&J98,5) -> 1009700 | F98: IEE | G98: 2016 | H98: IEE.2016: All | I98: exam | J98: 9700 | M98: exam: | P98: concept | R98: F | U98: 0 | AB98: 1 | AC98: 2 | AD98: 0 | AE98: 0 | AF98: 62 | AG98: 62 | AH98: 999 | AL98: 0.0005 | AM98: x | AO98: xxxx
A99: IEE.2016 | E99: =VLOOKUP(F99&"."&G99,syllabus!B$3:I$99,8,FALSE)&RIGHT("00000"&J99,5) -> 1009800 | F99: IEE | G99: 2016 | H99: IEE.2016: All | I99: exam | J99: 9800 | M99: exam: | P99: concept | R99: F | U99: 0 | AB99: 1 | AC99: 2 | AD99: 0 | AE99: 0 | AF99: 62 | AG99: 62 | AH99: 999 | AL99: 0.0005 | AM99: x | AO99: xxxx
A100: IEE.2016 | E100: =VLOOKUP(F100&"."&G100,syllabus!B$3:I$99,8,FALSE)&RIGHT("00000"&J100,5) -> 1009900 | F100: IEE | G100: 2016 | H100: IEE.2016: All | I100: exam | J100: 9900 | M100: exam: | P100: concept | R100: F | U100: 0 | AB100: 1 | AC100: 2 | AD100: 0 | AE100: 0 | AF100: 62 | AG100: 62 | AH100: 999 | AL100: 0.0005 | AM100: x | AO100: xxxx
A101: ASOP.20 | B101: x | E101: =VLOOKUP(F101&"."&G101,syllabus!B$3:I$99,8,FALSE)&RIGHT("00000"&J101,5) -> 2000100 | F101: ASOP | G101: 20 | H101: ASOP.20: All | I101: -- | J101: 100 | M101: =A101&": All" -> ASOP.20: All | P101: -- | R101: info | U101: 0 | AD101: 0 | AE101: 0 | AF101: 45 | AG101: 45 | AH101: 999 | AL101: 0.0005 | AM101: x | AO101: xxxx
A102: ASOP.20 | E102: =VLOOKUP(F102&"."&G102,syllabus!B$3:I$99,8,FALSE)&RIGHT("00000"&J102,5) -> 2000200 | F102: ASOP | G102: 20 | H102: ASOP.20: All | I102: general | J102: 200 | K102: 1 | M102: general: given an undiscounted reserve, what components are required to calculate the discounted reserve | N102: - payment pattern ~~ (recoverables should be considered when developing a payment pattern) ~ - discount rate | P102: concept | R102: A | U102: 0 | AB102: 1 | AC102: 5 | AD102: 2 | AE102: 4.472135955 | AF102: 45 | AG102: 45 | AH102: 999 | AL102: 0.0005 | AM102: x | AO102: 1
A103: ASOP.20 | E103: =VLOOKUP(F103&"."&G103,syllabus!B$3:I$99,8,FALSE)&RIGHT("00000"&J103,5) -> 2000300 | F103: ASOP | G103: 20 | H103: ASOP.20: All | I103: general | J103: 300 | K103: 1 | M103: general: briefly describe 3 possible methods for selecting a discount rate for reserves | N103: risk-free rate: ~~ - rate of return for a very low risk investment ~~ - timing pattern should be similar to the payment pattern for the given reserve liabilities ~ portfolio yield rate: ~~ - average yield on investments within a selected asset portfolio ~~ - provides better matching of liabilities & assets ~~~ (assuming the timing & value of asset earnings matches the payment pattern of the reserve liabilities) ~ selection by another party: ~~ - the actuary uses a rate selected by someone else ~~ - the actuary must disclose this (or be held responsible for the selection) | P103: concept | R103: A | U103: 0 | AB103: 1 | AC103: 19 | AD103: 2 | AE103: 8.717797887 | AF103: 45 | AG103: 45 | AH103: 999 | AL103: 0.0005 | AM103: x | AO103: 1
A104: ASOP.20 | E104: =VLOOKUP(F104&"."&G104,syllabus!B$3:I$99,8,FALSE)&RIGHT("00000"&J104,5) -> 2000400 | F104: ASOP | G104: 20 | H104: ASOP.20: All | I104: general | J104: 400 | K104: 1 | M104: general: identify required disclosures related to an actuary's work involving discounting | N104: <u>many answers</u>: (see Section 4.1 in ASOP 20 and review ASOP 41 in Actuarial Communications) ~~ <strong>dates:</strong> accounting date, valuation date, review date ~~ <span style="color: red;"><strong>DAM:</strong></span> <u>D</u>ata, <u>A</u>ssumptions, <u>M</u>ethods for the discount rate selection ~~ <strong>uncertainties</strong> around the payment pattern ~~ <strong>difference</strong> between discounted & undiscounted reserves ~~ <strong>range:</strong> if a range of estimates is provided, actuary should describe the basis for the range | P104: concept | R104: A | U104: 0 | AB104: 1 | AC104: 12 | AD104: 2 | AE104: 6.92820323 | AF104: 45 | AG104: 45 | AH104: 999 | AL104: 0.0005 | AM104: x | AO104: 1
A105: ASOP.20 | E105: =VLOOKUP(F105&"."&G105,syllabus!B$3:I$99,8,FALSE)&RIGHT("00000"&J105,5) -> 2000500 | F105: ASOP | G105: 20 | H105: ASOP.20: All | I105: BC | J105: 500 | M105: BC: | P105: concept | R105: F | U105: 0 | AB105: 1 | AC105: 2 | AD105: 0 | AE105: 0 | AF105: 45 | AG105: 45 | AH105: 999 | AL105: 0.0005 | AM105: x | AO105: xxxx
A106: ASOP.20 | E106: =VLOOKUP(F106&"."&G106,syllabus!B$3:I$99,8,FALSE)&RIGHT("00000"&J106,5) -> 2000600 | F106: ASOP | G106: 20 | H106: ASOP.20: All | I106: BC | J106: 600 | M106: BC: | P106: concept | R106: F | U106: 0 | AB106: 1 | AC106: 2 | AD106: 0 | AE106: 0 | AF106: 45 | AG106: 45 | AH106: 999 | AL106: 0.0005 | AM106: x | AO106: xxxx
A107: ASOP.20 | E107: =VLOOKUP(F107&"."&G107,syllabus!B$3:I$99,8,FALSE)&RIGHT("00000"&J107,5) -> 2000700 | F107: ASOP | G107: 20 | H107: ASOP.20: All | I107: BC | J107: 700 | M107: BC: | P107: concept | R107: F | U107: 0 | AB107: 1 | AC107: 2 | AD107: 0 | AE107: 0 | AF107: 45 | AG107: 45 | AH107: 999 | AL107: 0.0005 | AM107: x | AO107: xxxx
A108: ASOP.20 | E108: =VLOOKUP(F108&"."&G108,syllabus!B$3:I$99,8,FALSE)&RIGHT("00000"&J108,5) -> 2000800 | F108: ASOP | G108: 20 | H108: ASOP.20: All | I108: BC | J108: 800 | M108: BC: | P108: concept | R108: F | U108: 0 | AB108: 1 | AC108: 2 | AD108: 0 | AE108: 0 | AF108: 45 | AG108: 45 | AH108: 999 | AL108: 0.0005 | AM108: x | AO108: xxxx
A109: ASOP.20 | E109: =VLOOKUP(F109&"."&G109,syllabus!B$3:I$99,8,FALSE)&RIGHT("00000"&J109,5) -> 2000900 | F109: ASOP | G109: 20 | H109: ASOP.20: All | I109: BC | J109: 900 | M109: BC: | P109: concept | R109: F | U109: 0 | AB109: 1 | AC109: 2 | AD109: 0 | AE109: 0 | AF109: 45 | AG109: 45 | AH109: 999 | AL109: 0.0005 | AM109: x | AO109: xxxx
A110: ASOP.20 | E110: =VLOOKUP(F110&"."&G110,syllabus!B$3:I$99,8,FALSE)&RIGHT("00000"&J110,5) -> 2001000 | F110: ASOP | G110: 20 | H110: ASOP.20: All | I110: BC | J110: 1000 | M110: BC: | P110: concept | R110: F | U110: 0 | AB110: 1 | AC110: 2 | AD110: 0 | AE110: 0 | AF110: 45 | AG110: 45 | AH110: 999 | AL110: 0.0005 | AM110: x | AO110: xxxx
A111: ASOP.20 | E111: =VLOOKUP(F111&"."&G111,syllabus!B$3:I$99,8,FALSE)&RIGHT("00000"&J111,5) -> 2001100 | F111: ASOP | G111: 20 | H111: ASOP.20: All | I111: BC | J111: 1100 | M111: BC: | P111: concept | R111: F | U111: 0 | AB111: 1 | AC111: 2 | AD111: 0 | AE111: 0 | AF111: 45 | AG111: 45 | AH111: 999 | AL111: 0.0005 | AM111: x | AO111: xxxx
A112: ASOP.20 | E112: =VLOOKUP(F112&"."&G112,syllabus!B$3:I$99,8,FALSE)&RIGHT("00000"&J112,5) -> 2001200 | F112: ASOP | G112: 20 | H112: ASOP.20: All | I112: BC | J112: 1200 | M112: BC: | P112: concept | R112: F | U112: 0 | AB112: 1 | AC112: 2 | AD112: 0 | AE112: 0 | AF112: 45 | AG112: 45 | AH112: 999 | AL112: 0.0005 | AM112: x | AO112: xxxx
A113: ASOP.20 | E113: =VLOOKUP(F113&"."&G113,syllabus!B$3:I$99,8,FALSE)&RIGHT("00000"&J113,5) -> 2001300 | F113: ASOP | G113: 20 | H113: ASOP.20: All | I113: BC | J113: 1300 | M113: BC: | P113: concept | R113: F | U113: 0 | AB113: 1 | AC113: 2 | AD113: 0 | AE113: 0 | AF113: 45 | AG113: 45 | AH113: 999 | AL113: 0.0005 | AM113: x | AO113: xxxx
A114: ASOP.20 | E114: =VLOOKUP(F114&"."&G114,syllabus!B$3:I$99,8,FALSE)&RIGHT("00000"&J114,5) -> 2001400 | F114: ASOP | G114: 20 | H114: ASOP.20: All | I114: BC | J114: 1400 | M114: BC: | P114: concept | R114: F | U114: 0 | AB114: 1 | AC114: 2 | AD114: 0 | AE114: 0 | AF114: 45 | AG114: 45 | AH114: 999 | AL114: 0.0005 | AM114: x | AO114: xxxx
A115: ASOP.20 | E115: =VLOOKUP(F115&"."&G115,syllabus!B$3:I$99,8,FALSE)&RIGHT("00000"&J115,5) -> 2001500 | F115: ASOP | G115: 20 | H115: ASOP.20: All | I115: BC | J115: 1500 | M115: BC: | P115: concept | R115: F | U115: 0 | AB115: 1 | AC115: 2 | AD115: 0 | AE115: 0 | AF115: 45 | AG115: 45 | AH115: 999 | AL115: 0.0005 | AM115: x | AO115: xxxx
A116: ASOP.20 | E116: =VLOOKUP(F116&"."&G116,syllabus!B$3:I$99,8,FALSE)&RIGHT("00000"&J116,5) -> 2001600 | F116: ASOP | G116: 20 | H116: ASOP.20: All | I116: BC | J116: 1600 | M116: BC: | P116: concept | R116: F | U116: 0 | AB116: 1 | AC116: 2 | AD116: 0 | AE116: 0 | AF116: 45 | AG116: 45 | AH116: 999 | AL116: 0.0005 | AM116: x | AO116: xxxx
A117: ASOP.20 | E117: =VLOOKUP(F117&"."&G117,syllabus!B$3:I$99,8,FALSE)&RIGHT("00000"&J117,5) -> 2001700 | F117: ASOP | G117: 20 | H117: ASOP.20: All | I117: BC | J117: 1700 | M117: BC: | P117: concept | R117: F | U117: 0 | AB117: 1 | AC117: 2 | AD117: 0 | AE117: 0 | AF117: 45 | AG117: 45 | AH117: 999 | AL117: 0.0005 | AM117: x | AO117: xxxx
A118: ASOP.20 | E118: =VLOOKUP(F118&"."&G118,syllabus!B$3:I$99,8,FALSE)&RIGHT("00000"&J118,5) -> 2001800 | F118: ASOP | G118: 20 | H118: ASOP.20: All | I118: BC | J118: 1800 | M118: BC: | P118: concept | R118: F | U118: 0 | AB118: 1 | AC118: 2 | AD118: 0 | AE118: 0 | AF118: 45 | AG118: 45 | AH118: 999 | AL118: 0.0005 | AM118: x | AO118: xxxx
A119: ASOP.20 | E119: =VLOOKUP(F119&"."&G119,syllabus!B$3:I$99,8,FALSE)&RIGHT("00000"&J119,5) -> 2001900 | F119: ASOP | G119: 20 | H119: ASOP.20: All | I119: BC | J119: 1900 | M119: BC: | P119: concept | R119: F | U119: 0 | AB119: 1 | AC119: 2 | AD119: 0 | AE119: 0 | AF119: 45 | AG119: 45 | AH119: 999 | AL119: 0.0005 | AM119: x | AO119: xxxx
A120: ASOP.20 | E120: =VLOOKUP(F120&"."&G120,syllabus!B$3:I$99,8,FALSE)&RIGHT("00000"&J120,5) -> 2002000 | F120: ASOP | G120: 20 | H120: ASOP.20: All | I120: BC | J120: 2000 | M120: BC: | P120: concept | R120: F | U120: 0 | AB120: 1 | AC120: 2 | AD120: 0 | AE120: 0 | AF120: 45 | AG120: 45 | AH120: 999 | AL120: 0.0005 | AM120: x | AO120: xxxx
A121: ASOP.20 | E121: =VLOOKUP(F121&"."&G121,syllabus!B$3:I$99,8,FALSE)&RIGHT("00000"&J121,5) -> 2002100 | F121: ASOP | G121: 20 | H121: ASOP.20: All | I121: BC | J121: 2100 | M121: BC: | P121: concept | R121: F | U121: 0 | AB121: 1 | AC121: 2 | AD121: 0 | AE121: 0 | AF121: 45 | AG121: 45 | AH121: 999 | AL121: 0.0005 | AM121: x | AO121: xxxx
A122: ASOP.20 | E122: =VLOOKUP(F122&"."&G122,syllabus!B$3:I$99,8,FALSE)&RIGHT("00000"&J122,5) -> 2002200 | F122: ASOP | G122: 20 | H122: ASOP.20: All | I122: BC | J122: 2200 | M122: BC: | P122: concept | R122: F | U122: 0 | AB122: 1 | AC122: 2 | AD122: 0 | AE122: 0 | AF122: 45 | AG122: 45 | AH122: 999 | AL122: 0.0005 | AM122: x | AO122: xxxx
A123: ASOP.20 | E123: =VLOOKUP(F123&"."&G123,syllabus!B$3:I$99,8,FALSE)&RIGHT("00000"&J123,5) -> 2002300 | F123: ASOP | G123: 20 | H123: ASOP.20: All | I123: BC | J123: 2300 | M123: BC: | P123: concept | R123: F | U123: 0 | AB123: 1 | AC123: 2 | AD123: 0 | AE123: 0 | AF123: 45 | AG123: 45 | AH123: 999 | AL123: 0.0005 | AM123: x | AO123: xxxx
A124: ASOP.20 | E124: =VLOOKUP(F124&"."&G124,syllabus!B$3:I$99,8,FALSE)&RIGHT("00000"&J124,5) -> 2002400 | F124: ASOP | G124: 20 | H124: ASOP.20: All | I124: BC | J124: 2400 | M124: BC: | P124: concept | R124: F | U124: 0 | AB124: 1 | AC124: 2 | AD124: 0 | AE124: 0 | AF124: 45 | AG124: 45 | AH124: 999 | AL124: 0.0005 | AM124: x | AO124: xxxx
A125: ASOP.20 | E125: =VLOOKUP(F125&"."&G125,syllabus!B$3:I$99,8,FALSE)&RIGHT("00000"&J125,5) -> 2002500 | F125: ASOP | G125: 20 | H125: ASOP.20: All | I125: BC | J125: 2500 | M125: BC: | P125: concept | R125: F | U125: 0 | AB125: 1 | AC125: 2 | AD125: 0 | AE125: 0 | AF125: 45 | AG125: 45 | AH125: 999 | AL125: 0.0005 | AM125: x | AO125: xxxx
A126: ASOP.20 | E126: =VLOOKUP(F126&"."&G126,syllabus!B$3:I$99,8,FALSE)&RIGHT("00000"&J126,5) -> 2002600 | F126: ASOP | G126: 20 | H126: ASOP.20: All | I126: BC | J126: 2600 | M126: BC: | P126: concept | R126: F | U126: 0 | AB126: 1 | AC126: 2 | AD126: 0 | AE126: 0 | AF126: 45 | AG126: 45 | AH126: 999 | AL126: 0.0005 | AM126: x | AO126: xxxx
A127: ASOP.20 | E127: =VLOOKUP(F127&"."&G127,syllabus!B$3:I$99,8,FALSE)&RIGHT("00000"&J127,5) -> 2002700 | F127: ASOP | G127: 20 | H127: ASOP.20: All | I127: BC | J127: 2700 | M127: BC: | P127: concept | R127: F | U127: 0 | AB127: 1 | AC127: 2 | AD127: 0 | AE127: 0 | AF127: 45 | AG127: 45 | AH127: 999 | AL127: 0.0005 | AM127: x | AO127: xxxx
A128: ASOP.20 | E128: =VLOOKUP(F128&"."&G128,syllabus!B$3:I$99,8,FALSE)&RIGHT("00000"&J128,5) -> 2002800 | F128: ASOP | G128: 20 | H128: ASOP.20: All | I128: BC | J128: 2800 | M128: BC: | P128: concept | R128: F | U128: 0 | AB128: 1 | AC128: 2 | AD128: 0 | AE128: 0 | AF128: 45 | AG128: 45 | AH128: 999 | AL128: 0.0005 | AM128: x | AO128: xxxx
A129: ASOP.20 | E129: =VLOOKUP(F129&"."&G129,syllabus!B$3:I$99,8,FALSE)&RIGHT("00000"&J129,5) -> 2002900 | F129: ASOP | G129: 20 | H129: ASOP.20: All | I129: BC | J129: 2900 | M129: BC: | P129: concept | R129: F | U129: 0 | AB129: 1 | AC129: 2 | AD129: 0 | AE129: 0 | AF129: 45 | AG129: 45 | AH129: 999 | AL129: 0.0005 | AM129: x | AO129: xxxx
